Workbook

Sheet Cover
A1: RIIO price control model
B2: Electricity Transmission
C3: =MID(CELL("filename"),SEARCH("[",CELL("filename"))+1,SEARCH("]",CELL("filename"))-SEARCH("[",CELL("filename"))-1) -> ET1 PCFM November 2014 change control 18 (SO Data Centre).xlsm
C4: DISCLAIMER: This purpose of this model is used to calculate Base Revenue (PU) at Final Proposals and MOD terms in subsequent years for Licensees on the basis of Financial Handbook and Licence conditions of the relevant Network Operator
B5: RIIO ET1 Price Control Financial Model for the Annual Iteration Process that will take place by 30 November 2013-14
B6: Model key
E8: Sample | G8: Calculated value | I8: Sample | K8: Information and interface
E9: Sample | G9: Import | I9: Sample | K9: FP fixed input value
E10: Sample | G10: Export | I10: Sample | K10: Annual update input
E11: Sample | G11: Named range | I11: Sample | K11: Input linked from annual update
E12: Sample | G12: Formula change in cells to the right | I12: Sample | K12: Notes and instructions
B15: Contents
E17: INTERFACE > | I17: COMPANY SPECIFIC INPUT SHEETS >
E18: Cover | G18: Model key and content directory
E19: UserInterface | G19: Model operation | I19: SHE-T PLC (Blank - not used) | K19: Inputs for SHE-Tranmission PLC TO
E20: TaxTrigger | G20: Tax trigger calculations | I20: SPTL | K20: Inputs for SPTL TO
E21: INPUT SELECTION > | I21: NGET TO | K21: Inputs for NGET TO
E22: MOD Summary | I22: NGET SO | K22: Inputs for NGET SO
E23: Input | G23: Inputs for selected licensee
E24: CALCULATION >
E25: Totex | G25: Totex allowance and actuals
E26: TIM | G26: Totex Incentive Mechanism and capitalisation
E27: DARTs | G27: Direct Allowance Revenue Terms
E28: Depn | G28: Electricity transmission regulatory depreciation
E29: SystemOperator | G29: System operator calculations
E30: Return&RAV | G30: RAV and return calculations
E31: TaxPools | G31: Tax pools and capital allowances
E32: Finance&Tax | G32: Net debt, equity issuance, financing costs and tax
E33: NonCore | G33: Calculations for non-core regulatory assets (TIRG)
E34: Revenue | G34: Revenue and MOD
E35: OUTPUT >
E36: ResultsLive | G36: Results for selected company
E37: ResultsLive(SO) | G37: Results for SO (for selected company)
E38: SavedResults | G38: Saved results for all companies
B44: End of sheet

Sheet UserInterface
A1: User Interface
B3: Model operation
C5: View
E8: Select view
E10: Year t selected: | G10: =INDEX(E67:E68,E69) -> Base view
C13: PCFM year t
C14: Instruction: Use the following drop-down list to identify year t in the model. Year t is identified here by its end date.
E16: Year t selection:
E18: Year t selected: | G18: =EOMONTH(41364,G62*12) -> 2016-03-31
C20: Active company
C21: Instruction: Use the following drop-down list to select the active company in the model.
E23: Company selection:
E25: Selected company: | G25: =INDEX(E54:E56, E57) -> NGET TO
C27: Model state
C28: Instruction: Use the following drop-down list to set the model state and run it as either the "Licence Model" or the "Tax Trigger Tool."
C29: Note: "Tax Trigger Tool" must be selected here for functionality on the "TaxTrigger" sheet to function.
C30: Selecting "Licence Model" ensures that the Tax Trigger Tool functionality is deactivated and does not affect the calculations in the model.
E32: Model status selection:
E34: Selected model status: | G34: =INDEX(E61:E62,m_model_state) -> Licence Model
C36: Run model for all licensees
C37: Instruction: Click on the left button to save results for the selected company only. Click the right button to save results for all.
C38: Note: Annual iterations must have been completed for all prior years before running the model to generate MOD.
C39: The macros save results and values required for future years which cannot be recreated once inputs are revised.
C40: Running the macro saves the output from year t's iteration for use in future iterations.
C41: Results for the selected company can be found on the "LiveResults" sheet and also on the "SavedResults" sheet once saved by a macro.
B47: User selection lists
B48: Note: The lists below drive the drop-down lists above.
B49: Using the drop-down lists above returns an integer in the "cell link" positioned below their "source list."
B50: The number returned in the cell link corresponds to the position of the selected item in the source list.
B51: The company selection output is set as a "named range." This gives a stable anchor point for the "RunForAll" macro to change the company.
E53: ="Source for ''"&C20&"'' drop-down list" -> Source for ''Active company'' drop-down list | G53: ="Source for ''"&C13&"'' drop-down list" -> Source for ''PCFM year t'' drop-down list
E54: SHE-Transmission PLC | G54: 2014-03-31
E55: SPTL | G55: 2015-03-31
E56: NGET TO | G56: 2016-03-31
E57: 3 | G57: 2017-03-31
E58: Adjacent named range: m_identity | G58: 2018-03-31
G59: 2019-03-31
E60: ="Source for ''"&C27&"'' drop-down list" -> Source for ''Model state'' drop-down list | G60: 2020-03-31
E61: Licence Model | G61: 2021-03-31
E62: Tax Trigger Tool | G62: 3
E63: 1 | G63: Adjacent named range: m_PCFM_year_t
E64: Adjacent named range: m_model_state
E66: ="Source for ''"&C5&"'' drop-down list" -> Source for ''View'' drop-down list
E67: Base view
E68: Best view
E69: 1
B70: End of sheet

Sheet TaxTrigger
A1: Tax Trigger
B2: =UserInterface!G25 -> NGET TO
E3: Parameter | G3: Units | I3: Constant | AH3: Annual values
E4: PCFM year ending | I4: =UserInterface!$G$18 -> 2016-03-31 | K4: 1991-03-31 | L4: 1992-03-31 | M4: 1993-03-31 | N4: 1994-03-31 | O4: 1995-03-31 | P4: 1996-03-31 | Q4: 1997-03-31 | R4: 1998-03-31 | S4: 1999-03-31 | T4: 2000-03-31 | U4: 2001-03-31 | V4: 2002-03-31 | W4: 2003-03-31 | X4: 2004-03-31 | Y4: 2005-03-31 | Z4: 2006-03-31 | AA4: 2007-03-31 | AB4: 2008-03-31 | AC4: 2009-03-31 | AD4: 2010-03-31 | AE4: 2011-03-31 | AF4: 2012-03-31 | AG4: 2013-03-31 | AH4: 2014-03-31 | AI4: 2015-03-31 | AJ4: 2016-03-31 | AK4: 2017-03-31 | AL4: 2018-03-31 | AM4: 2019-03-31 | AN4: 2020-03-31 | AO4: 2021-03-31
B6: Tax trigger calculation
C8: Test operation
C9: Instruction: To run the model as the Tax Trigger Tool, the "model state" must be set to "Tax Trigger Tool" on the "UserInterface" sheet. The model state selected is shown below.
C10: Clicking the macro button below runs the "TaxTrigger" macro, performing the Tax Trigger adjustment calculation for the selected licensee for year t.
C11: The output generated by the macro can be replicated manually using the following steps:
C12: 1. Clear any values from previous tests in the "Test state output" section below (named range "m_saved_original_results")
C13: 2. Set testing state to "Licence Model"
C14: 3. Copy the cells marked as the "m_calculated_tax" named range and paste them at the named range "m_saved_original_test."
C15: 4. Set testing state to "Tax Trigger Calculation"
C16: Note: The Tax Trigger Tool is disabled if the "Model state" below reads "Licence Model."
E18: Model state
E19: =UserInterface!G34 -> Licence Model
E22: State selection
E25: State options
E26: Licence Model
E27: Tax Trigger Calculation
E28: 1
E29: Adjacent named range: m_tax_trigger_state
E31: State selected
E32: =IF(E19 = "Licence Model", "Licence Model", INDEX(E26:E27, E28)) -> Licence Model
E34: Run macro
C39: Transmission operator
D41: Tax calculation
I43: Instruction
E44: Profits attributable to corporation tax | AH44: ='Finance&Tax'!AH199*Input!$AD$46/Input!AH$46 -> 323.5291657 | AI44: ='Finance&Tax'!AI199*Input!$AD$46/Input!AI$46 -> 291.8547935 | AJ44: ='Finance&Tax'!AJ199*Input!$AD$46/Input!AJ$46 -> 259.2804207 | AK44: ='Finance&Tax'!AK199*Input!$AD$46/Input!AK$46 -> 279.1565726 | AL44: ='Finance&Tax'!AL199*Input!$AD$46/Input!AL$46 -> 248.6989885 | AM44: ='Finance&Tax'!AM199*Input!$AD$46/Input!AM$46 -> 260.0554471 | AN44: ='Finance&Tax'!AN199*Input!$AD$46/Input!AN$46 -> 254.7886786 | AO44: ='Finance&Tax'!AO199*Input!$AD$46/Input!AO$46 -> 256.662418
E45: Corporation tax rate | AH45: ='Finance&Tax'!AH217 -> 0.23 | AI45: ='Finance&Tax'!AI217 -> 0.21 | AJ45: ='Finance&Tax'!AJ217 -> 0.21 | AK45: ='Finance&Tax'!AK217 -> 0.21 | AL45: ='Finance&Tax'!AL217 -> 0.21 | AM45: ='Finance&Tax'!AM217 -> 0.21 | AN45: ='Finance&Tax'!AN217 -> 0.21 | AO45: ='Finance&Tax'!AO217 -> 0.21
E46: Grossing-up factor for tax on tax charge | AH46: ='Finance&Tax'!AH220 -> 1.298701299 | AI46: ='Finance&Tax'!AI220 -> 1.265822785 | AJ46: ='Finance&Tax'!AJ220 -> 1.265822785 | AK46: ='Finance&Tax'!AK220 -> 1.265822785 | AL46: ='Finance&Tax'!AL220 -> 1.265822785 | AM46: ='Finance&Tax'!AM220 -> 1.265822785 | AN46: ='Finance&Tax'!AN220 -> 1.265822785 | AO46: ='Finance&Tax'!AO220 -> 1.265822785
E47: Corporation tax charge (tax allowance) before losses | AH47: =AH45*AH44*AH46 -> 96.63858196 | AI47: =AI45*AI44*AI46 -> 77.58165398 | AJ47: 68.92264348 | AK47: 74.20617754 | AL47: 66.1098577 | AM47: 69.12866315 | AN47: 67.72863608 | AO47: 68.2267187
E49: Tax allowance (pre losses) before tax trigger | G49: £m 09/10 prices | AH49: =AH47 -> 96.63858196 | AI49: =AI47 -> 77.58165398 | AJ49: 68.92264348 | AK49: 74.20617754 | AL49: 66.1098577 | AM49: 69.12866315 | AN49: 67.72863608 | AO49: 68.2267187
E50: B event value | G50: £m 09/10 prices | AH50: =AH161 -> 0 | AI50: =AI161 -> 0 | AJ50: 0 | AK50: 0 | AL50: 0 | AM50: 0 | AN50: 0 | AO50: 0
E51: Threshold value adjustment | G51: £m 09/10 prices | AH51: =AH106 -> -4.496076532 | AI51: =AI106 -> -4.93087424 | AJ51: =AJ106 -> -5.219754524 | AK51: -5.525369543 | AL51: -5.567777439 | AM51: -5.896922257 | AN51: -5.779975933 | AO51: -5.736164938
E52: Tax allowance | G52: £m 09/10 prices | I52: =IF( m_tax_trigger_state = 1, "Copy cells -->","-") -> Copy cells --> | AH52: =SUM(AH49:AH51) -> 92.14250543 | AI52: 72.65077974 | AJ52: 63.70288895 | AK52: 68.68080799 | AL52: 60.54208026 | AM52: 63.23174089 | AN52: 61.94866015 | AO52: 62.49055376
AH53: Adjacent named range: m_calculated_tax
D54: Test state output
D55: Note: The formula determines whether the recalculated tax is above or below the threshold and sets the adjustment accordingly
I57: Instruction
E58: Value with original settings | G58: £m 09/10 prices | I58: =IF( m_tax_trigger_state = 1, "Paste cells -->","-") -> Paste cells --> | AG58: m_tax_trigger_results | AH58: 7.487960707 | AI58: 4.805085818 | AJ58: 6.249671349 | AK58: 4.997258144 | AL58: 2.005370306 | AM58: 1.190869385 | AN58: 4.055343008 | AO58: 6.815938387
AH59: Adjacent named range: m_saved_original_test
E60: Value with new settings and threshold adjustment | G60: text | AH60: =AH52 -> 92.14250543 | AI60: =AI52 -> 72.65077974 | AJ60: 63.70288895 | AK60: 68.68080799 | AL60: 60.54208026 | AM60: 63.23174089 | AN60: 61.94866015 | AO60: 62.49055376
D62: Result and output
D63: Note: Once the test is complete, the "Tax Trigger adjustment" below can be taken from below and inputted to the PCFM set to run as the Licence Model, rather than the Tax Trigger Tool.
E65: TO tax trigger adjustment | G65: £m 09/10 prices | AH65: =IF(AND(m_tax_trigger_state=2,m_model_state=2),IF(ABS((AH49+AH50)-AH58)> ABS(AH106), AH60 - AH58, 0),0) -> 0 | AI65: 0 | AJ65: 0 | AK65: 0 | AL65: 0 | AM65: 0 | AN65: 0 | AO65: 0
C67: System operator
D69: SO tax calculation
I70: Instruction
E71: Profits attributable to corporation tax | AH71: =SystemOperator!AH328 * Input!$AD$46 / Input!AH$46 -> 6.098652929 | AI71: =SystemOperator!AI328 * Input!$AD$46 / Input!AI$46 -> 4.576220229 | AJ71: =SystemOperator!AJ328 * Input!$AD$46 / Input!AJ$46 -> 1.778808502 | AK71: =SystemOperator!AK328 * Input!$AD$46 / Input!AK$46 -> 1.857282742 | AL71: =SystemOperator!AL328 * Input!$AD$46 / Input!AL$46 -> 5.095498167 | AM71: =SystemOperator!AM328 * Input!$AD$46 / Input!AM$46 -> 0.8878932503 | AN71: =SystemOperator!AN328 * Input!$AD$46 / Input!AN$46 -> 5.001019471 | AO71: =SystemOperator!AO328 * Input!$AD$46 / Input!AO$46 -> 4.490666831
E72: Corporation tax rate | AH72: =SystemOperator!AH349 -> 0.23 | AI72: =SystemOperator!AI349 -> 0.21 | AJ72: =SystemOperator!AJ349 -> 0.21 | AK72: =SystemOperator!AK349 -> 0.21 | AL72: =SystemOperator!AL349 -> 0.21 | AM72: =SystemOperator!AM349 -> 0.21 | AN72: =SystemOperator!AN349 -> 0.21 | AO72: =SystemOperator!AO349 -> 0.21
E73: Grossing-up factor for tax on tax charge | AH73: =SystemOperator!AH352 -> 1.298701299 | AI73: =SystemOperator!AI352 -> 1.265822785 | AJ73: =SystemOperator!AJ352 -> 1.265822785 | AK73: =SystemOperator!AK352 -> 1.265822785 | AL73: =SystemOperator!AL352 -> 1.265822785 | AM73: =SystemOperator!AM352 -> 1.265822785 | AN73: =SystemOperator!AN352 -> 1.265822785 | AO73: =SystemOperator!AO352 -> 1.265822785
E74: Corporation tax charge (tax allowance) before losses | AH74: =AH72*AH71*AH73 -> 1.82167555 | AI74: =AI72*AI71*AI73 -> 1.216463605 | AJ74: 0.4728478297 | AK74: 0.4937080706 | AL74: 1.354499513 | AM74: 0.2360222564 | AN74: 1.329384923 | AO74: 1.193721563
E76: Tax allowance (pre losses) before tax trigger | G76: £m 09/10 prices | AH76: =AH74 -> 1.82167555 | AI76: =AI74 -> 1.216463605 | AJ76: 0.4728478297 | AK76: 0.4937080706 | AL76: 1.354499513 | AM76: 0.2360222564 | AN76: 1.329384923 | AO76: 1.193721563
E77: B event value | G77: £m 09/10 prices | AH77: =AH168 -> 0 | AI77: =AI168 -> 0 | AJ77: 0 | AK77: 0 | AL77: 0 | AM77: 0 | AN77: 0 | AO77: 0
E78: Threshold value adjustment | G78: £m 09/10 prices | AH78: =AH112 -> -0.4131222462 | AI78: =AI112 -> -0.3756243029 | AJ78: -0.3789432909 | AK78: -0.3867094001 | AL78: -0.4063375706 | AM78: -0.3896703952 | AN78: -0.4131302731 | AO78: -0.4181245165
E79: Tax allowance | G79: £m 09/10 prices | I79: =IF( m_tax_trigger_state = 1, "Copy cells -->","") -> Copy cells --> | AH79: =SUM(AH76:AH78) -> 1.408553304 | AI79: 0.8408393022 | AJ79: 0.09390453878 | AK79: 0.1069986705 | AL79: 0.9481619422 | AM79: -0.1536481388 | AN79: 0.9162546496 | AO79: 0.7755970462
AH80: Adjacent named range: m_SO_calculated_tax
D81: Test state output
D82: Note: The formula determines whether the recalculated tax is above or below the threshold and sets the adjustment accordingly
I84: Instruction
E85: Value with original settings | G85: £m 09/10 prices | I85: =IF( m_tax_trigger_state = 1, "Paste cells -->","") -> Paste cells --> | AG85: m_tax_trigger_results | AH85: 0 | AI85: 0 | AJ85: 0 | AK85: 0 | AL85: 0 | AM85: 0 | AN85: 0 | AO85: 0
AH86: Adjacent named range: m_SO_saved_original_test
E87: Value with new settings and threshold adjustment | G87: text | AH87: =AH79 -> 1.408553304 | AI87: =AI79 -> 0.8408393022 | AJ87: 0.09390453878 | AK87: 0.1069986705 | AL87: 0.9481619422 | AM87: -0.1536481388 | AN87: 0.9162546496 | AO87: 0.7755970462
D89: Result and output
D90: Note: Once the test is complete, the "Tax Trigger adjustment" below can be taken from below and inputted to the PCFM set to run as the Licence Model, rather than the Tax Trigger Tool.
E92: SO tax trigger adjustment | G92: £m 09/10 prices | AH92: =IF(AND(m_tax_trigger_state=2,m_model_state=2),IF(ABS((AH76+AH77)-AH85)> ABS(AH112), AH87 - AH85, 0),0) -> 0 | AI92: 0 | AJ92: 0 | AK92: 0 | AL92: 0 | AM92: 0 | AN92: 0 | AO92: 0
B94: Tax trigger parameters
B95: Instruction: Enter values in the yellow cells below for use in the Tax Trigger test.
B96: Note: Flags are used throughout to indicate whether the original or Tax Trigger value is being used. The live values below are exported for use throughout the model.
C98: Active policy
E100: Tax trigger tax settings are used | G100: flag | AH100: =IF(AND(AH$4 <= $I4, m_tax_trigger_state = 2, m_model_state=2), TRUE, FALSE) -> FALSE | AI100: FALSE | AJ100: FALSE | AK100: FALSE | AL100: FALSE | AM100: FALSE | AN100: FALSE | AO100: FALSE
C102: TO threshold
E104: Threshold value | G104: £m 09/10 prices | AH104: =CHOOSE(m_identity,AH174,AH175,AH176) -> 4.496076532 | AI104: 4.93087424 | AJ104: 5.219754524 | AK104: 5.525369543 | AL104: 5.567777439 | AM104: 5.896922257 | AN104: 5.779975933 | AO104: 5.736164938
E106: Threshold value applied | G106: £m 09/10 prices | AH106: =IF(OR((AH49+AH50)= AH58, AH58 = ""), 0, IF(AH58 < (AH49+AH50), -AH104, +AH104)) -> -4.496076532 | AI106: =IF(OR((AI49+AI50)= AI58, AI58 = ""), 0, IF(AI58 < (AI49+AI50), -AI104, +AI104)) -> -4.93087424 | AJ106: -5.219754524 | AK106: -5.525369543 | AL106: -5.567777439 | AM106: -5.896922257 | AN106: -5.779975933 | AO106: -5.736164938
C108: SO threshold
E110: Threshold value | G110: £m 09/10 prices | AH110: =CHOOSE(m_identity,0,0,AH180) -> 0.4131222462 | AI110: 0.3756243029 | AJ110: 0.3789432909 | AK110: 0.3867094001 | AL110: 0.4063375706 | AM110: 0.3896703952 | AN110: 0.4131302731 | AO110: 0.4181245165
E112: Threshold value applied | G112: £m 09/10 prices | AH112: =IF(OR((AH76+AH77) = AH85, AH85 = ""), 0, IF(AH85 < (AH76+AH77), -AH110, +AH110)) -> -0.4131222462 | AI112: =IF(OR((AI76+AI77) = AI85, AI85 = ""), 0, IF(AI85 < (AI76+AI77), -AI110, +AI110)) -> -0.3756243029 | AJ112: -0.3789432909 | AK112: -0.3867094001 | AL112: -0.4063375706 | AM112: -0.3896703952 | AN112: -0.4131302731 | AO112: -0.4181245165
C114: Corporation tax rate
E116: Active | G116: text | AH116: =AH$100 = FALSE() -> TRUE | AI116: TRUE | AJ116: TRUE | AK116: TRUE | AL116: TRUE | AM116: TRUE | AN116: TRUE | AO116: TRUE
E117: RIIO | G117: % | J117: > | Y117: =Input!Y301 -> 0.3 | Z117: =Input!Z301 -> 0.3 | AA117: =Input!AA301 -> 0.3 | AB117: =Input!AB301 -> 0.3 | AC117: =Input!AC301 -> 0.28 | AD117: =Input!AD301 -> 0.28 | AE117: =Input!AE301 -> 0.28 | AF117: =Input!AF301 -> 0.26 | AG117: =Input!AG301 -> 0.24 | AH117: =Input!AH301 -> 0.23 | AI117: =Input!AI301 -> 0.21 | AJ117: =Input!AJ301 -> 0.21 | AK117: =Input!AK301 -> 0.21 | AL117: =Input!AL301 -> 0.21 | AM117: =Input!AM301 -> 0.21 | AN117: =Input!AN301 -> 0.21 | AO117: =Input!AO301 -> 0.21
E119: Active | G119: text | AH119: =AH$100 -> FALSE | AI119: FALSE | AJ119: FALSE | AK119: FALSE | AL119: FALSE | AM119: FALSE | AN119: FALSE | AO119: FALSE
E120: Tax trigger | G120: % | AH120: =AH117 -> 0.23 | AI120: 0.21 | AJ120: 0.2 | AK120: 0.2 | AL120: 0.2 | AM120: 0.2 | AN120: 0.2 | AO120: 0.2
E122: Applied | G122: % | J122: > | Y122: =Y117 -> 0.3 | Z122: =Z117 -> 0.3 | AA122: =AA117 -> 0.3 | AB122: 0.3 | AC122: 0.28 | AD122: 0.28 | AE122: 0.28 | AF122: 0.26 | AG122: 0.24 | AH122: =(AH116 * AH117) + (AH119 * AH120) -> 0.23 | AI122: =(AI116 * AI117) + (AI119 * AI120) -> 0.21 | AJ122: 0.21 | AK122: 0.21 | AL122: 0.21 | AM122: 0.21 | AN122: 0.21 | AO122: 0.21
C124: Capital allowance rate
D126: General pool
E128: Active | G128: text | AH128: =AH$100 = FALSE() -> TRUE | AI128: TRUE | AJ128: TRUE | AK128: TRUE | AL128: TRUE | AM128: TRUE | AN128: TRUE | AO128: TRUE
E129: RIIO | G129: % | V129: =Input!V303 -> 0.25 | W129: =Input!W303 -> 0.25 | X129: =Input!X303 -> 0.25 | Y129: =Input!Y303 -> 0.25 | Z129: =Input!Z303 -> 0.25 | AA129: =Input!AA303 -> 0.25 | AB129: =Input!AB303 -> 0.25 | AC129: =Input!AC303 -> 0.2 | AD129: =Input!AD303 -> 0.2 | AE129: =Input!AE303 -> 0.2 | AF129: =Input!AF303 -> 0.2 | AG129: =Input!AG303 -> 0.18 | AH129: =Input!AH303 -> 0.18 | AI129: =Input!AI303 -> 0.18 | AJ129: =Input!AJ303 -> 0.18 | AK129: =Input!AK303 -> 0.18 | AL129: =Input!AL303 -> 0.18 | AM129: =Input!AM303 -> 0.18 | AN129: =Input!AN303 -> 0.18 | AO129: =Input!AO303 -> 0.18
E131: Active | G131: text | AH131: =AH$100 -> FALSE | AI131: FALSE | AJ131: FALSE | AK131: FALSE | AL131: FALSE | AM131: FALSE | AN131: FALSE | AO131: FALSE
E132: Tax trigger | G132: % | AH132: =AH129 -> 0.18 | AI132: =AI129 -> 0.18 | AJ132: 0.18 | AK132: 0.18 | AL132: 0.18 | AM132: 0.18 | AN132: 0.18 | AO132: 0.18
E134: Applied | G134: % | V134: =V129 -> 0.25 | W134: 0.25 | X134: 0.25 | Y134: 0.25 | Z134: 0.25 | AA134: 0.25 | AB134: 0.25 | AC134: 0.2 | AD134: 0.2 | AE134: 0.2 | AF134: 0.2 | AG134: =AG129 -> 0.18 | AH134: =(AH128 * AH129) + (AH131 * AH132) -> 0.18 | AI134: 0.18 | AJ134: 0.18 | AK134: 0.18 | AL134: 0.18 | AM134: 0.18 | AN134: 0.18 | AO134: 0.18
D136: Special Rate pool
E138: Active | G138: text | AH138: =AH$100 = FALSE() -> TRUE | AI138: TRUE | AJ138: TRUE | AK138: TRUE | AL138: TRUE | AM138: TRUE | AN138: TRUE | AO138: TRUE
E139: RIIO | G139: % | J139: > | V139: =Input!V304 -> 0.06 | W139: =Input!W304 -> 0.06 | X139: =Input!X304 -> 0.06 | Y139: =Input!Y304 -> 0.06 | Z139: =Input!Z304 -> 0.06 | AA139: =Input!AA304 -> 0.06 | AB139: =Input!AB304 -> 0.06 | AC139: =Input!AC304 -> 0.1 | AD139: =Input!AD304 -> 0.1 | AE139: =Input!AE304 -> 0.1 | AF139: =Input!AF304 -> 0.1 | AG139: =Input!AG304 -> 0.08 | AH139: =Input!AH304 -> 0.08 | AI139: =Input!AI304 -> 0.08 | AJ139: =Input!AJ304 -> 0.08 | AK139: =Input!AK304 -> 0.08 | AL139: =Input!AL304 -> 0.08 | AM139: =Input!AM304 -> 0.08 | AN139: =Input!AN304 -> 0.08 | AO139: =Input!AO304 -> 0.08
E141: Active | G141: text | AH141: =AH$100 -> FALSE | AI141: FALSE | AJ141: FALSE | AK141: FALSE | AL141: FALSE | AM141: FALSE | AN141: FALSE | AO141: FALSE
E142: Tax trigger | G142: % | AH142: =AH139 -> 0.08 | AI142: =AI139 -> 0.08 | AJ142: 0.08 | AK142: 0.08 | AL142: 0.08 | AM142: 0.08 | AN142: 0.08 | AO142: 0.08
E144: Applied | G144: % | J144: > | V144: =V139 -> 0.06 | W144: =W139 -> 0.06 | X144: =X139 -> 0.06 | Y144: =Y139 -> 0.06 | Z144: =Z139 -> 0.06 | AA144: =AA139 -> 0.06 | AB144: 0.06 | AC144: 0.1 | AD144: 0.1 | AE144: 0.1 | AF144: 0.1 | AG144: 0.08 | AH144: =(AH138 * AH139) + (AH141 * AH142) -> 0.08 | AI144: 0.08 | AJ144: 0.08 | AK144: 0.08 | AL144: 0.08 | AM144: 0.08 | AN144: 0.08 | AO144: 0.08
D146: Deferred revenue writing down allowance rate
E148: Active | G148: text | AH148: =AH$100 = FALSE() -> TRUE | AI148: TRUE | AJ148: TRUE | AK148: TRUE | AL148: TRUE | AM148: TRUE | AN148: TRUE | AO148: TRUE
E149: RIIO | G149: % | J149: > | V149: =Input!V305 -> 0 | W149: =Input!W305 -> 0 | X149: =Input!X305 -> 0 | Y149: =Input!Y305 -> 0 | Z149: =Input!Z305 -> 0 | AA149: =Input!AA305 -> 0 | AB149: =Input!AB305 -> 0 | AC149: =Input!AC305 -> 0 | AD149: =Input!AD305 -> 0 | AE149: =Input!AE305 -> 0 | AF149: =Input!AF305 -> 0 | AG149: =Input!AG305 -> 0 | AH149: =Input!AH305 -> 0.03 | AI149: =Input!AI305 -> 0.03 | AJ149: =Input!AJ305 -> 0.03 | AK149: =Input!AK305 -> 0.03 | AL149: =Input!AL305 -> 0.03 | AM149: =Input!AM305 -> 0.03 | AN149: =Input!AN305 -> 0.03 | AO149: =Input!AO305 -> 0.03
E151: Active | G151: text | AH151: =AH$100 -> FALSE | AI151: FALSE | AJ151: FALSE | AK151: FALSE | AL151: FALSE | AM151: FALSE | AN151: FALSE | AO151: FALSE
E152: Tax trigger | G152: % | AH152: =AH149 -> 0.03 | AI152: =AI149 -> 0.03 | AJ152: 0.03 | AK152: 0.03 | AL152: 0.03 | AM152: 0.03 | AN152: 0.03 | AO152: 0.03
E154: Applied | G154: % | J154: > | V154: =V149 -> 0 | W154: 0 | X154: 0 | Y154: 0 | Z154: 0 | AA154: 0 | AB154: 0 | AC154: 0 | AD154: 0 | AE154: 0 | AF154: 0 | AG154: =AG149 -> 0 | AH154: =(AH148 * AH149) + (AH151 * AH152) -> 0.03 | AI154: 0.03 | AJ154: 0.03 | AK154: 0.03 | AL154: 0.03 | AM154: 0.03 | AN154: 0.03 | AO154: 0.03
C156: TO B event value
E158: Active | G158: text | AH158: =AH$100 -> FALSE | AI158: FALSE | AJ158: FALSE | AK158: FALSE | AL158: FALSE | AM158: FALSE | AN158: FALSE | AO158: FALSE
E159: Tax trigger | G159: £m 09/10 prices | AH159: =INDEX(AH186:AH188,MATCH($B$2,$E$186:$E$188,0),1) -> 0 | AI159: =INDEX(AI186:AI188,MATCH($B$2,$E$186:$E$188,0),1) -> 0 | AJ159: 0 | AK159: 0 | AL159: 0 | AM159: 0 | AN159: 0 | AO159: 0
E161: Applied | G161: £m 09/10 prices | AH161: =AH158 * AH159 -> 0 | AI161: =AI158 * AI159 -> 0 | AJ161: 0 | AK161: 0 | AL161: 0 | AM161: 0 | AN161: 0 | AO161: 0
C163: SO B event value
E165: Active | G165: text | AH165: =AH$100 -> FALSE | AI165: FALSE | AJ165: FALSE | AK165: FALSE | AL165: FALSE | AM165: FALSE | AN165: FALSE | AO165: FALSE
E166: Tax trigger | G166: £m 09/10 prices | AH166: 0 | AI166: 0 | AJ166: 0 | AK166: 0 | AL166: 0 | AM166: 0 | AN166: 0 | AO166: 0
E168: Applied | G168: £m 09/10 prices | AH168: =AH165 * AH166 -> 0 | AI168: =AI165 * AI166 -> 0 | AJ168: 0 | AK168: 0 | AL168: 0 | AM168: 0 | AN168: 0 | AO168: 0
C170: Tax Trigger Deadbands
E172: TO
E174: SHE-Transmission PLC | AH174: ='SHE-Transmission PLC'!AH370 -> 0.5330128439 | AI174: ='SHE-Transmission PLC'!AI370 -> 0.7700507315 | AJ174: ='SHE-Transmission PLC'!AJ370 -> 0.918116989 | AK174: ='SHE-Transmission PLC'!AK370 -> 0.9840273952 | AL174: ='SHE-Transmission PLC'!AL370 -> 1.019281906 | AM174: ='SHE-Transmission PLC'!AM370 -> 1.070223405 | AN174: ='SHE-Transmission PLC'!AN370 -> 1.136778454 | AO174: ='SHE-Transmission PLC'!AO370 -> 1.227677495
E175: SPTL | AH175: =SPTL!AH370 -> 0.7448434056 | AI175: =SPTL!AI370 -> 0.7939215702 | AJ175: =SPTL!AJ370 -> 0.887009614 | AK175: =SPTL!AK370 -> 0.8725060802 | AL175: =SPTL!AL370 -> 0.9092160731 | AM175: =SPTL!AM370 -> 0.9394639204 | AN175: =SPTL!AN370 -> 0.9578290354 | AO175: =SPTL!AO370 -> 0.9346259702
E176: NGET | AH176: ='NGET TO'!AH370 -> 4.496076532 | AI176: ='NGET TO'!AI370 -> 4.93087424 | AJ176: ='NGET TO'!AJ370 -> 5.219754524 | AK176: ='NGET TO'!AK370 -> 5.525369543 | AL176: ='NGET TO'!AL370 -> 5.567777439 | AM176: ='NGET TO'!AM370 -> 5.896922257 | AN176: ='NGET TO'!AN370 -> 5.779975933 | AO176: ='NGET TO'!AO370 -> 5.736164938
E178: SO
E180: NGET | AH180: ='NGET SO'!AH113 -> 0.4131222462 | AI180: ='NGET SO'!AI113 -> 0.3756243029 | AJ180: ='NGET SO'!AJ113 -> 0.3789432909 | AK180: ='NGET SO'!AK113 -> 0.3867094001 | AL180: ='NGET SO'!AL113 -> 0.4063375706 | AM180: ='NGET SO'!AM113 -> 0.3896703952 | AN180: ='NGET SO'!AN113 -> 0.4131302731 | AO180: ='NGET SO'!AO113 -> 0.4181245165
C182: TO Type B event values for each Operator
E184: TO
E186: SHE-Transmission PLC | G186: £m 09/10 prices | AH186: 0 | AI186: 0 | AJ186: 0 | AK186: 0 | AL186: 0 | AM186: 0 | AN186: 0 | AO186: 0
E187: SPTL | G187: £m 09/10 prices | AH187: 0 | AI187: 0 | AJ187: 0 | AK187: 0 | AL187: 0 | AM187: 0 | AN187: 0 | AO187: 0
E188: NGET TO | G188: £m 09/10 prices | AH188: 0 | AI188: 0 | AJ188: 0 | AK188: 0 | AL188: 0 | AM188: 0 | AN188: 0 | AO188: 0

Sheet MOD
A1: MOD Summary
B2: =UserInterface!G25 -> NGET TO
E3: Parameter | G3: Units | I3: Constant | AH3: Annual values
E4: PCFM year ending | I4: =UserInterface!$G$18 -> 2016-03-31 | K4: 1991-03-31 | L4: 1992-03-31 | M4: 1993-03-31 | N4: 1994-03-31 | O4: 1995-03-31 | P4: 1996-03-31 | Q4: 1997-03-31 | R4: 1998-03-31 | S4: 1999-03-31 | T4: 2000-03-31 | U4: 2001-03-31 | V4: 2002-03-31 | W4: 2003-03-31 | X4: 2004-03-31 | Y4: 2005-03-31 | Z4: 2006-03-31 | AA4: 2007-03-31 | AB4: 2008-03-31 | AC4: 2009-03-31 | AD4: 2010-03-31 | AE4: 2011-03-31 | AF4: 2012-03-31 | AG4: 2013-03-31 | AH4: 2014-03-31 | AI4: 2015-03-31 | AJ4: 2016-03-31 | AK4: 2017-03-31 | AL4: 2018-03-31 | AM4: 2019-03-31 | AN4: 2020-03-31 | AO4: 2021-03-31
E5: Note: Base revenue referred to in the PCFM is not the BRt terms quoted in the licence as this also includes the terms TRUE and RPIFt which relate to retail price index adjustments
E6: =UserInterface!E18 -> Year t selected: | G6: =UserInterface!G18 -> 2016-03-31
E8: =Revenue!E64 -> Final Proposals base revenue | AH8: =Revenue!AH64 -> 1342.281291 | AI8: =Revenue!AI64 -> 1443.829462 | AJ8: =Revenue!AJ64 -> 1475.592573 | AK8: =Revenue!AK64 -> 1571.38681 | AL8: =Revenue!AL64 -> 1554.942142 | AM8: =Revenue!AM64 -> 1587.627421 | AN8: =Revenue!AN64 -> 1585.228122 | AO8: =Revenue!AO64 -> 1571.584109
E9: =Revenue!E65 -> MOD | AH9: =Revenue!AH65 -> 0 | AI9: =Revenue!AI65 -> -5.447243613 | AJ9: =Revenue!AJ65 -> -114.1797579 | AK9: =Revenue!AK65 -> 0 | AL9: =Revenue!AL65 -> 0 | AM9: =Revenue!AM65 -> 0 | AN9: =Revenue!AN65 -> 0 | AO9: =Revenue!AO65 -> 0
E10: =Revenue!E66 -> Base revenue | AH10: =Revenue!AH66 -> 1342.281291 | AI10: =Revenue!AI66 -> 1438.382218 | AJ10: =Revenue!AJ66 -> 1361.412815 | AK10: =Revenue!AK66 -> 1571.38681 | AL10: =Revenue!AL66 -> 1554.942142 | AM10: =Revenue!AM66 -> 1587.627421 | AN10: =Revenue!AN66 -> 1585.228122 | AO10: =Revenue!AO66 -> 1571.584109

Sheet Input
A1: Input
B2: =UserInterface!G25 -> NGET TO | G2: Price shock:
E3: Parameter | F3: Licence condition | G3: Units | H3: Term | I3: Constant | AH3: Annual values
E4: PCFM year ending | F4: =Cover!C3 -> ET1 PCFM November 2014 change control 18 (SO Data Centre).xlsm | I4: =UserInterface!$G$18 -> 2016-03-31 | K4: 1991-03-31 | L4: 1992-03-31 | M4: 1993-03-31 | N4: 1994-03-31 | O4: 1995-03-31 | P4: 1996-03-31 | Q4: 1997-03-31 | R4: 1998-03-31 | S4: 1999-03-31 | T4: 2000-03-31 | U4: 2001-03-31 | V4: 2002-03-31 | W4: 2003-03-31 | X4: 2004-03-31 | Y4: 2005-03-31 | Z4: 2006-03-31 | AA4: 2007-03-31 | AB4: 2008-03-31 | AC4: 2009-03-31 | AD4: 2010-03-31 | AE4: 2011-03-31 | AF4: 2012-03-31 | AG4: 2013-03-31 | AH4: 2014-03-31 | AI4: 2015-03-31 | AJ4: 2016-03-31 | AK4: 2017-03-31 | AL4: 2018-03-31 | AM4: 2019-03-31 | AN4: 2020-03-31 | AO4: 2021-03-31
B6: PCFM Variable Values Table
E8: Allowed percentage cost of debt | F8: 6D | G8: annual real % | H8: CDE / SO CDE | AH8: =IF(UserInterface!$E$69 = 1,CHOOSE(m_identity,'SHE-Transmission PLC'!AH8, SPTL!AH8, 'NGET TO'!AH8),CHOOSE(m_identity,'SHE-Transmission PLC (Blank - )'!AH8, 'SPTL (Blank - not used)'!AH8, 'NGET TO (Blank - not used)'!AH8)) -> 0.0292 | AI8: =IF(UserInterface!$E$69 = 1,CHOOSE(m_identity,'SHE-Transmission PLC'!AI8, SPTL!AI8, 'NGET TO'!AI8),CHOOSE(m_identity,'SHE-Transmission PLC (Blank - )'!AI8, 'SPTL (Blank - not used)'!AI8, 'NGET TO (Blank - not used)'!AI8)) -> 0.0272 | AJ8: =IF(UserInterface!$E$69 = 1,CHOOSE(m_identity,'SHE-Transmission PLC'!AJ8, SPTL!AJ8, 'NGET TO'!AJ8),CHOOSE(m_identity,'SHE-Transmission PLC (Blank - )'!AJ8, 'SPTL (Blank - not used)'!AJ8, 'NGET TO (Blank - not used)'!AJ8)) -> 0.0255 | AK8: =IF(UserInterface!$E$69 = 1,CHOOSE(m_identity,'SHE-Transmission PLC'!AK8, SPTL!AK8, 'NGET TO'!AK8),CHOOSE(m_identity,'SHE-Transmission PLC (Blank - )'!AK8, 'SPTL (Blank - not used)'!AK8, 'NGET TO (Blank - not used)'!AK8)) -> 0.0255 | AL8: =IF(UserInterface!$E$69 = 1,CHOOSE(m_identity,'SHE-Transmission PLC'!AL8, SPTL!AL8, 'NGET TO'!AL8),CHOOSE(m_identity,'SHE-Transmission PLC (Blank - )'!AL8, 'SPTL (Blank - not used)'!AL8, 'NGET TO (Blank - not used)'!AL8)) -> 0.0255 | AM8: =IF(UserInterface!$E$69 = 1,CHOOSE(m_identity,'SHE-Transmission PLC'!AM8, SPTL!AM8, 'NGET TO'!AM8),CHOOSE(m_identity,'SHE-Transmission PLC (Blank - )'!AM8, 'SPTL (Blank - not used)'!AM8, 'NGET TO (Blank - not used)'!AM8)) -> 0.0255 | AN8: =IF(UserInterface!$E$69 = 1,CHOOSE(m_identity,'SHE-Transmission PLC'!AN8, SPTL!AN8, 'NGET TO'!AN8),CHOOSE(m_identity,'SHE-Transmission PLC (Blank - )'!AN8, 'SPTL (Blank - not used)'!AN8, 'NGET TO (Blank - not used)'!AN8)) -> 0.0255 | AO8: =IF(UserInterface!$E$69 = 1,CHOOSE(m_identity,'SHE-Transmission PLC'!AO8, SPTL!AO8, 'NGET TO'!AO8),CHOOSE(m_identity,'SHE-Transmission PLC (Blank - )'!AO8, 'SPTL (Blank - not used)'!AO8, 'NGET TO (Blank - not used)'!AO8)) -> 0.0255
E9: Actual load related capex expenditure | F9: 6C | G9: £m 09/10 prices | H9: ALC | AH9: =IF(UserInterface!$E$69 = 1,CHOOSE(m_identity,'SHE-Transmission PLC'!AH9, SPTL!AH9, 'NGET TO'!AH9),CHOOSE(m_identity,'SHE-Transmission PLC (Blank - )'!AH9, 'SPTL (Blank - not used)'!AH9, 'NGET TO (Blank - not used)'!AH9)) -> 576.47236 | AI9: =IF(UserInterface!$E$69 = 1,CHOOSE(m_identity,'SHE-Transmission PLC'!AI9, SPTL!AI9, 'NGET TO'!AI9),CHOOSE(m_identity,'SHE-Transmission PLC (Blank - )'!AI9, 'SPTL (Blank - not used)'!AI9, 'NGET TO (Blank - not used)'!AI9)) -> 0 | AJ9: =IF(UserInterface!$E$69 = 1,CHOOSE(m_identity,'SHE-Transmission PLC'!AJ9, SPTL!AJ9, 'NGET TO'!AJ9),CHOOSE(m_identity,'SHE-Transmission PLC (Blank - )'!AJ9, 'SPTL (Blank - not used)'!AJ9, 'NGET TO (Blank - not used)'!AJ9)) -> 0 | AK9: =IF(UserInterface!$E$69 = 1,CHOOSE(m_identity,'SHE-Transmission PLC'!AK9, SPTL!AK9, 'NGET TO'!AK9),CHOOSE(m_identity,'SHE-Transmission PLC (Blank - )'!AK9, 'SPTL (Blank - not used)'!AK9, 'NGET TO (Blank - not used)'!AK9)) -> 0 | AL9: =IF(UserInterface!$E$69 = 1,CHOOSE(m_identity,'SHE-Transmission PLC'!AL9, SPTL!AL9, 'NGET TO'!AL9),CHOOSE(m_identity,'SHE-Transmission PLC (Blank - )'!AL9, 'SPTL (Blank - not used)'!AL9, 'NGET TO (Blank - not used)'!AL9)) -> 0 | AM9: =IF(UserInterface!$E$69 = 1,CHOOSE(m_identity,'SHE-Transmission PLC'!AM9, SPTL!AM9, 'NGET TO'!AM9),CHOOSE(m_identity,'SHE-Transmission PLC (Blank - )'!AM9, 'SPTL (Blank - not used)'!AM9, 'NGET TO (Blank - not used)'!AM9)) -> 0 | AN9: =IF(UserInterface!$E$69 = 1,CHOOSE(m_identity,'SHE-Transmission PLC'!AN9, SPTL!AN9, 'NGET TO'!AN9),CHOOSE(m_identity,'SHE-Transmission PLC (Blank - )'!AN9, 'SPTL (Blank - not used)'!AN9, 'NGET TO (Blank - not used)'!AN9)) -> 0 | AO9: =IF(UserInterface!$E$69 = 1,CHOOSE(m_identity,'SHE-Transmission PLC'!AO9, SPTL!AO9, 'NGET TO'!AO9),CHOOSE(m_identity,'SHE-Transmission PLC (Blank - )'!AO9, 'SPTL (Blank - not used)'!AO9, 'NGET TO (Blank - not used)'!AO9)) -> 0
E10: Actual asset replacement capex expenditure | F10: 6C | G10: £m 09/10 prices | H10: ARC | AH10: =IF(UserInterface!$E$69 = 1,CHOOSE(m_identity,'SHE-Transmission PLC'!AH10, SPTL!AH10, 'NGET TO'!AH10),CHOOSE(m_identity,'SHE-Transmission PLC (Blank - )'!AH10, 'SPTL (Blank - not used)'!AH10, 'NGET TO (Blank - not used)'!AH10)) -> 217.1426879 | AI10: =IF(UserInterface!$E$69 = 1,CHOOSE(m_identity,'SHE-Transmission PLC'!AI10, SPTL!AI10, 'NGET TO'!AI10),CHOOSE(m_identity,'SHE-Transmission PLC (Blank - )'!AI10, 'SPTL (Blank - not used)'!AI10, 'NGET TO (Blank - not used)'!AI10)) -> 0 | AJ10: =IF(UserInterface!$E$69 = 1,CHOOSE(m_identity,'SHE-Transmission PLC'!AJ10, SPTL!AJ10, 'NGET TO'!AJ10),CHOOSE(m_identity,'SHE-Transmission PLC (Blank - )'!AJ10, 'SPTL (Blank - not used)'!AJ10, 'NGET TO (Blank - not used)'!AJ10)) -> 0 | AK10: =IF(UserInterface!$E$69 = 1,CHOOSE(m_identity,'SHE-Transmission PLC'!AK10, SPTL!AK10, 'NGET TO'!AK10),CHOOSE(m_identity,'SHE-Transmission PLC (Blank - )'!AK10, 'SPTL (Blank - not used)'!AK10, 'NGET TO (Blank - not used)'!AK10)) -> 0 | AL10: =IF(UserInterface!$E$69 = 1,CHOOSE(m_identity,'SHE-Transmission PLC'!AL10, SPTL!AL10, 'NGET TO'!AL10),CHOOSE(m_identity,'SHE-Transmission PLC (Blank - )'!AL10, 'SPTL (Blank - not used)'!AL10, 'NGET TO (Blank - not used)'!AL10)) -> 0 | AM10: =IF(UserInterface!$E$69 = 1,CHOOSE(m_identity,'SHE-Transmission PLC'!AM10, SPTL!AM10, 'NGET TO'!AM10),CHOOSE(m_identity,'SHE-Transmission PLC (Blank - )'!AM10, 'SPTL (Blank - not used)'!AM10, 'NGET TO (Blank - not used)'!AM10)) -> 0 | AN10: =IF(UserInterface!$E$69 = 1,CHOOSE(m_identity,'SHE-Transmission PLC'!AN10, SPTL!AN10, 'NGET TO'!AN10),CHOOSE(m_identity,'SHE-Transmission PLC (Blank - )'!AN10, 'SPTL (Blank - not used)'!AN10, 'NGET TO (Blank - not used)'!AN10)) -> 0 | AO10: =IF(UserInterface!$E$69 = 1,CHOOSE(m_identity,'SHE-Transmission PLC'!AO10, SPTL!AO10, 'NGET TO'!AO10),CHOOSE(m_identity,'SHE-Transmission PLC (Blank - )'!AO10, 'SPTL (Blank - not used)'!AO10, 'NGET TO (Blank - not used)'!AO10)) -> 0
E11: Actual other capex expenditure | F11: 6C | G11: £m 09/10 prices | H11: AOC | AH11: =IF(UserInterface!$E$69 = 1,CHOOSE(m_identity,'SHE-Transmission PLC'!AH11, SPTL!AH11, 'NGET TO'!AH11),CHOOSE(m_identity,'SHE-Transmission PLC (Blank - )'!AH11, 'SPTL (Blank - not used)'!AH11, 'NGET TO (Blank - not used)'!AH11)) -> 174.9917829 | AI11: =IF(UserInterface!$E$69 = 1,CHOOSE(m_identity,'SHE-Transmission PLC'!AI11, SPTL!AI11, 'NGET TO'!AI11),CHOOSE(m_identity,'SHE-Transmission PLC (Blank - )'!AI11, 'SPTL (Blank - not used)'!AI11, 'NGET TO (Blank - not used)'!AI11)) -> 0 | AJ11: =IF(UserInterface!$E$69 = 1,CHOOSE(m_identity,'SHE-Transmission PLC'!AJ11, SPTL!AJ11, 'NGET TO'!AJ11),CHOOSE(m_identity,'SHE-Transmission PLC (Blank - )'!AJ11, 'SPTL (Blank - not used)'!AJ11, 'NGET TO (Blank - not used)'!AJ11)) -> 0 | AK11: =IF(UserInterface!$E$69 = 1,CHOOSE(m_identity,'SHE-Transmission PLC'!AK11, SPTL!AK11, 'NGET TO'!AK11),CHOOSE(m_identity,'SHE-Transmission PLC (Blank - )'!AK11, 'SPTL (Blank - not used)'!AK11, 'NGET TO (Blank - not used)'!AK11)) -> 0 | AL11: =IF(UserInterface!$E$69 = 1,CHOOSE(m_identity,'SHE-Transmission PLC'!AL11, SPTL!AL11, 'NGET TO'!AL11),CHOOSE(m_identity,'SHE-Transmission PLC (Blank - )'!AL11, 'SPTL (Blank - not used)'!AL11, 'NGET TO (Blank - not used)'!AL11)) -> 0 | AM11: =IF(UserInterface!$E$69 = 1,CHOOSE(m_identity,'SHE-Transmission PLC'!AM11, SPTL!AM11, 'NGET TO'!AM11),CHOOSE(m_identity,'SHE-Transmission PLC (Blank - )'!AM11, 'SPTL (Blank - not used)'!AM11, 'NGET TO (Blank - not used)'!AM11)) -> 0 | AN11: =IF(UserInterface!$E$69 = 1,CHOOSE(m_identity,'SHE-Transmission PLC'!AN11, SPTL!AN11, 'NGET TO'!AN11),CHOOSE(m_identity,'SHE-Transmission PLC (Blank - )'!AN11, 'SPTL (Blank - not used)'!AN11, 'NGET TO (Blank - not used)'!AN11)) -> 0 | AO11: =IF(UserInterface!$E$69 = 1,CHOOSE(m_identity,'SHE-Transmission PLC'!AO11, SPTL!AO11, 'NGET TO'!AO11),CHOOSE(m_identity,'SHE-Transmission PLC (Blank - )'!AO11, 'SPTL (Blank - not used)'!AO11, 'NGET TO (Blank - not used)'!AO11)) -> 0
E12: Actual controllable opex | F12: 6C | G12: £m 09/10 prices | H12: ACO | AH12: =IF(UserInterface!$E$69 = 1,CHOOSE(m_identity,'SHE-Transmission PLC'!AH12, SPTL!AH12, 'NGET TO'!AH12),CHOOSE(m_identity,'SHE-Transmission PLC (Blank - )'!AH12, 'SPTL (Blank - not used)'!AH12, 'NGET TO (Blank - not used)'!AH12)) -> 165.286129 | AI12: =IF(UserInterface!$E$69 = 1,CHOOSE(m_identity,'SHE-Transmission PLC'!AI12, SPTL!AI12, 'NGET TO'!AI12),CHOOSE(m_identity,'SHE-Transmission PLC (Blank - )'!AI12, 'SPTL (Blank - not used)'!AI12, 'NGET TO (Blank - not used)'!AI12)) -> 0 | AJ12: =IF(UserInterface!$E$69 = 1,CHOOSE(m_identity,'SHE-Transmission PLC'!AJ12, SPTL!AJ12, 'NGET TO'!AJ12),CHOOSE(m_identity,'SHE-Transmission PLC (Blank - )'!AJ12, 'SPTL (Blank - not used)'!AJ12, 'NGET TO (Blank - not used)'!AJ12)) -> 0 | AK12: =IF(UserInterface!$E$69 = 1,CHOOSE(m_identity,'SHE-Transmission PLC'!AK12, SPTL!AK12, 'NGET TO'!AK12),CHOOSE(m_identity,'SHE-Transmission PLC (Blank - )'!AK12, 'SPTL (Blank - not used)'!AK12, 'NGET TO (Blank - not used)'!AK12)) -> 0 | AL12: =IF(UserInterface!$E$69 = 1,CHOOSE(m_identity,'SHE-Transmission PLC'!AL12, SPTL!AL12, 'NGET TO'!AL12),CHOOSE(m_identity,'SHE-Transmission PLC (Blank - )'!AL12, 'SPTL (Blank - not used)'!AL12, 'NGET TO (Blank - not used)'!AL12)) -> 0 | AM12: =IF(UserInterface!$E$69 = 1,CHOOSE(m_identity,'SHE-Transmission PLC'!AM12, SPTL!AM12, 'NGET TO'!AM12),CHOOSE(m_identity,'SHE-Transmission PLC (Blank - )'!AM12, 'SPTL (Blank - not used)'!AM12, 'NGET TO (Blank - not used)'!AM12)) -> 0 | AN12: =IF(UserInterface!$E$69 = 1,CHOOSE(m_identity,'SHE-Transmission PLC'!AN12, SPTL!AN12, 'NGET TO'!AN12),CHOOSE(m_identity,'SHE-Transmission PLC (Blank - )'!AN12, 'SPTL (Blank - not used)'!AN12, 'NGET TO (Blank - not used)'!AN12)) -> 0 | AO12: =IF(UserInterface!$E$69 = 1,CHOOSE(m_identity,'SHE-Transmission PLC'!AO12, SPTL!AO12, 'NGET TO'!AO12),CHOOSE(m_identity,'SHE-Transmission PLC (Blank - )'!AO12, 'SPTL (Blank - not used)'!AO12, 'NGET TO (Blank - not used)'!AO12)) -> 0
E13: Actual non-operational capex | F13: 6C | G13: £m 09/10 prices | H13: ANC | AH13: =IF(UserInterface!$E$69 = 1,CHOOSE(m_identity,'SHE-Transmission PLC'!AH13, SPTL!AH13, 'NGET TO'!AH13),CHOOSE(m_identity,'SHE-Transmission PLC (Blank - )'!AH13, 'SPTL (Blank - not used)'!AH13, 'NGET TO (Blank - not used)'!AH13)) -> 30.72440394 | AI13: =IF(UserInterface!$E$69 = 1,CHOOSE(m_identity,'SHE-Transmission PLC'!AI13, SPTL!AI13, 'NGET TO'!AI13),CHOOSE(m_identity,'SHE-Transmission PLC (Blank - )'!AI13, 'SPTL (Blank - not used)'!AI13, 'NGET TO (Blank - not used)'!AI13)) -> 0 | AJ13: =IF(UserInterface!$E$69 = 1,CHOOSE(m_identity,'SHE-Transmission PLC'!AJ13, SPTL!AJ13, 'NGET TO'!AJ13),CHOOSE(m_identity,'SHE-Transmission PLC (Blank - )'!AJ13, 'SPTL (Blank - not used)'!AJ13, 'NGET TO (Blank - not used)'!AJ13)) -> 0 | AK13: =IF(UserInterface!$E$69 = 1,CHOOSE(m_identity,'SHE-Transmission PLC'!AK13, SPTL!AK13, 'NGET TO'!AK13),CHOOSE(m_identity,'SHE-Transmission PLC (Blank - )'!AK13, 'SPTL (Blank - not used)'!AK13, 'NGET TO (Blank - not used)'!AK13)) -> 0 | AL13: =IF(UserInterface!$E$69 = 1,CHOOSE(m_identity,'SHE-Transmission PLC'!AL13, SPTL!AL13, 'NGET TO'!AL13),CHOOSE(m_identity,'SHE-Transmission PLC (Blank - )'!AL13, 'SPTL (Blank - not used)'!AL13, 'NGET TO (Blank - not used)'!AL13)) -> 0 | AM13: =IF(UserInterface!$E$69 = 1,CHOOSE(m_identity,'SHE-Transmission PLC'!AM13, SPTL!AM13, 'NGET TO'!AM13),CHOOSE(m_identity,'SHE-Transmission PLC (Blank - )'!AM13, 'SPTL (Blank - not used)'!AM13, 'NGET TO (Blank - not used)'!AM13)) -> 0 | AN13: =IF(UserInterface!$E$69 = 1,CHOOSE(m_identity,'SHE-Transmission PLC'!AN13, SPTL!AN13, 'NGET TO'!AN13),CHOOSE(m_identity,'SHE-Transmission PLC (Blank - )'!AN13, 'SPTL (Blank - not used)'!AN13, 'NGET TO (Blank - not used)'!AN13)) -> 0 | AO13: =IF(UserInterface!$E$69 = 1,CHOOSE(m_identity,'SHE-Transmission PLC'!AO13, SPTL!AO13, 'NGET TO'!AO13),CHOOSE(m_identity,'SHE-Transmission PLC (Blank - )'!AO13, 'SPTL (Blank - not used)'!AO13, 'NGET TO (Blank - not used)'!AO13)) -> 0
E14: Uncertain costs - enhanced security | F14: 6H | G14: £m 09/10 prices | H14: IAEEPS | AH14: =IF(UserInterface!$E$69 = 1,CHOOSE(m_identity,'SHE-Transmission PLC'!AH14, SPTL!AH14, 'NGET TO'!AH14),CHOOSE(m_identity,'SHE-Transmission PLC (Blank - )'!AH14, 'SPTL (Blank - not used)'!AH14, 'NGET TO (Blank - not used)'!AH14)) -> 0 | AI14: =IF(UserInterface!$E$69 = 1,CHOOSE(m_identity,'SHE-Transmission PLC'!AI14, SPTL!AI14, 'NGET TO'!AI14),CHOOSE(m_identity,'SHE-Transmission PLC (Blank - )'!AI14, 'SPTL (Blank - not used)'!AI14, 'NGET TO (Blank - not used)'!AI14)) -> 0 | AJ14: =IF(UserInterface!$E$69 = 1,CHOOSE(m_identity,'SHE-Transmission PLC'!AJ14, SPTL!AJ14, 'NGET TO'!AJ14),CHOOSE(m_identity,'SHE-Transmission PLC (Blank - )'!AJ14, 'SPTL (Blank - not used)'!AJ14, 'NGET TO (Blank - not used)'!AJ14)) -> 0 | AK14: =IF(UserInterface!$E$69 = 1,CHOOSE(m_identity,'SHE-Transmission PLC'!AK14, SPTL!AK14, 'NGET TO'!AK14),CHOOSE(m_identity,'SHE-Transmission PLC (Blank - )'!AK14, 'SPTL (Blank - not used)'!AK14, 'NGET TO (Blank - not used)'!AK14)) -> 0 | AL14: =IF(UserInterface!$E$69 = 1,CHOOSE(m_identity,'SHE-Transmission PLC'!AL14, SPTL!AL14, 'NGET TO'!AL14),CHOOSE(m_identity,'SHE-Transmission PLC (Blank - )'!AL14, 'SPTL (Blank - not used)'!AL14, 'NGET TO (Blank - not used)'!AL14)) -> 0 | AM14: =IF(UserInterface!$E$69 = 1,CHOOSE(m_identity,'SHE-Transmission PLC'!AM14, SPTL!AM14, 'NGET TO'!AM14),CHOOSE(m_identity,'SHE-Transmission PLC (Blank - )'!AM14, 'SPTL (Blank - not used)'!AM14, 'NGET TO (Blank - not used)'!AM14)) -> 0 | AN14: =IF(UserInterface!$E$69 = 1,CHOOSE(m_identity,'SHE-Transmission PLC'!AN14, SPTL!AN14, 'NGET TO'!AN14),CHOOSE(m_identity,'SHE-Transmission PLC (Blank - )'!AN14, 'SPTL (Blank - not used)'!AN14, 'NGET TO (Blank - not used)'!AN14)) -> 0 | AO14: =IF(UserInterface!$E$69 = 1,CHOOSE(m_identity,'SHE-Transmission PLC'!AO14, SPTL!AO14, 'NGET TO'!AO14),CHOOSE(m_identity,'SHE-Transmission PLC (Blank - )'!AO14, 'SPTL (Blank - not used)'!AO14, 'NGET TO (Blank - not used)'!AO14)) -> 0
E15: Uncertain costs – workforce renewal (SPTL only) | F15: 6H | G15: £m 09/10 prices | H15: IAEWR | AH15: =IF(UserInterface!$E$69 = 1,CHOOSE(m_identity,'SHE-Transmission PLC'!AH15, SPTL!AH15, 'NGET TO'!AH15),CHOOSE(m_identity,'SHE-Transmission PLC (Blank - )'!AH15, 'SPTL (Blank - not used)'!AH15, 'NGET TO (Blank - not used)'!AH15)) -> 0 | AI15: =IF(UserInterface!$E$69 = 1,CHOOSE(m_identity,'SHE-Transmission PLC'!AI15, SPTL!AI15, 'NGET TO'!AI15),CHOOSE(m_identity,'SHE-Transmission PLC (Blank - )'!AI15, 'SPTL (Blank - not used)'!AI15, 'NGET TO (Blank - not used)'!AI15)) -> 0 | AJ15: =IF(UserInterface!$E$69 = 1,CHOOSE(m_identity,'SHE-Transmission PLC'!AJ15, SPTL!AJ15, 'NGET TO'!AJ15),CHOOSE(m_identity,'SHE-Transmission PLC (Blank - )'!AJ15, 'SPTL (Blank - not used)'!AJ15, 'NGET TO (Blank - not used)'!AJ15)) -> 0 | AK15: =IF(UserInterface!$E$69 = 1,CHOOSE(m_identity,'SHE-Transmission PLC'!AK15, SPTL!AK15, 'NGET TO'!AK15),CHOOSE(m_identity,'SHE-Transmission PLC (Blank - )'!AK15, 'SPTL (Blank - not used)'!AK15, 'NGET TO (Blank - not used)'!AK15)) -> 0 | AL15: =IF(UserInterface!$E$69 = 1,CHOOSE(m_identity,'SHE-Transmission PLC'!AL15, SPTL!AL15, 'NGET TO'!AL15),CHOOSE(m_identity,'SHE-Transmission PLC (Blank - )'!AL15, 'SPTL (Blank - not used)'!AL15, 'NGET TO (Blank - not used)'!AL15)) -> 0 | AM15: =IF(UserInterface!$E$69 = 1,CHOOSE(m_identity,'SHE-Transmission PLC'!AM15, SPTL!AM15, 'NGET TO'!AM15),CHOOSE(m_identity,'SHE-Transmission PLC (Blank - )'!AM15, 'SPTL (Blank - not used)'!AM15, 'NGET TO (Blank - not used)'!AM15)) -> 0 | AN15: =IF(UserInterface!$E$69 = 1,CHOOSE(m_identity,'SHE-Transmission PLC'!AN15, SPTL!AN15, 'NGET TO'!AN15),CHOOSE(m_identity,'SHE-Transmission PLC (Blank - )'!AN15, 'SPTL (Blank - not used)'!AN15, 'NGET TO (Blank - not used)'!AN15)) -> 0 | AO15: =IF(UserInterface!$E$69 = 1,CHOOSE(m_identity,'SHE-Transmission PLC'!AO15, SPTL!AO15, 'NGET TO'!AO15),CHOOSE(m_identity,'SHE-Transmission PLC (Blank - )'!AO15, 'SPTL (Blank - not used)'!AO15, 'NGET TO (Blank - not used)'!AO15)) -> 0
E16: Uncertain costs – BT 21st Century (SHETPLC only) | F16: 6H | G16: £m 09/10 prices | H16: IAEBT | AH16: =IF(UserInterface!$E$69 = 1,CHOOSE(m_identity,'SHE-Transmission PLC'!AH16, SPTL!AH16, 'NGET TO'!AH16),CHOOSE(m_identity,'SHE-Transmission PLC (Blank - )'!AH16, 'SPTL (Blank - not used)'!AH16, 'NGET TO (Blank - not used)'!AH16)) -> 0 | AI16: =IF(UserInterface!$E$69 = 1,CHOOSE(m_identity,'SHE-Transmission PLC'!AI16, SPTL!AI16, 'NGET TO'!AI16),CHOOSE(m_identity,'SHE-Transmission PLC (Blank - )'!AI16, 'SPTL (Blank - not used)'!AI16, 'NGET TO (Blank - not used)'!AI16)) -> 0 | AJ16: =IF(UserInterface!$E$69 = 1,CHOOSE(m_identity,'SHE-Transmission PLC'!AJ16, SPTL!AJ16, 'NGET TO'!AJ16),CHOOSE(m_identity,'SHE-Transmission PLC (Blank - )'!AJ16, 'SPTL (Blank - not used)'!AJ16, 'NGET TO (Blank - not used)'!AJ16)) -> 0 | AK16: =IF(UserInterface!$E$69 = 1,CHOOSE(m_identity,'SHE-Transmission PLC'!AK16, SPTL!AK16, 'NGET TO'!AK16),CHOOSE(m_identity,'SHE-Transmission PLC (Blank - )'!AK16, 'SPTL (Blank - not used)'!AK16, 'NGET TO (Blank - not used)'!AK16)) -> 0 | AL16: =IF(UserInterface!$E$69 = 1,CHOOSE(m_identity,'SHE-Transmission PLC'!AL16, SPTL!AL16, 'NGET TO'!AL16),CHOOSE(m_identity,'SHE-Transmission PLC (Blank - )'!AL16, 'SPTL (Blank - not used)'!AL16, 'NGET TO (Blank - not used)'!AL16)) -> 0 | AM16: =IF(UserInterface!$E$69 = 1,CHOOSE(m_identity,'SHE-Transmission PLC'!AM16, SPTL!AM16, 'NGET TO'!AM16),CHOOSE(m_identity,'SHE-Transmission PLC (Blank - )'!AM16, 'SPTL (Blank - not used)'!AM16, 'NGET TO (Blank - not used)'!AM16)) -> 0 | AN16: =IF(UserInterface!$E$69 = 1,CHOOSE(m_identity,'SHE-Transmission PLC'!AN16, SPTL!AN16, 'NGET TO'!AN16),CHOOSE(m_identity,'SHE-Transmission PLC (Blank - )'!AN16, 'SPTL (Blank - not used)'!AN16, 'NGET TO (Blank - not used)'!AN16)) -> 0 | AO16: =IF(UserInterface!$E$69 = 1,CHOOSE(m_identity,'SHE-Transmission PLC'!AO16, SPTL!AO16, 'NGET TO'!AO16),CHOOSE(m_identity,'SHE-Transmission PLC (Blank - )'!AO16, 'SPTL (Blank - not used)'!AO16, 'NGET TO (Blank - not used)'!AO16)) -> 0
E17: Uncertain costs – compensation costs for landowners for wayleave (SHETPLC only) | F17: 6H | G17: £m 09/10 prices | H17: IAEWL | AH17: =IF(UserInterface!$E$69 = 1,CHOOSE(m_identity,'SHE-Transmission PLC'!AH17, SPTL!AH17, 'NGET TO'!AH17),CHOOSE(m_identity,'SHE-Transmission PLC (Blank - )'!AH17, 'SPTL (Blank - not used)'!AH17, 'NGET TO (Blank - not used)'!AH17)) -> 0 | AI17: =IF(UserInterface!$E$69 = 1,CHOOSE(m_identity,'SHE-Transmission PLC'!AI17, SPTL!AI17, 'NGET TO'!AI17),CHOOSE(m_identity,'SHE-Transmission PLC (Blank - )'!AI17, 'SPTL (Blank - not used)'!AI17, 'NGET TO (Blank - not used)'!AI17)) -> 0 | AJ17: =IF(UserInterface!$E$69 = 1,CHOOSE(m_identity,'SHE-Transmission PLC'!AJ17, SPTL!AJ17, 'NGET TO'!AJ17),CHOOSE(m_identity,'SHE-Transmission PLC (Blank - )'!AJ17, 'SPTL (Blank - not used)'!AJ17, 'NGET TO (Blank - not used)'!AJ17)) -> 0 | AK17: =IF(UserInterface!$E$69 = 1,CHOOSE(m_identity,'SHE-Transmission PLC'!AK17, SPTL!AK17, 'NGET TO'!AK17),CHOOSE(m_identity,'SHE-Transmission PLC (Blank - )'!AK17, 'SPTL (Blank - not used)'!AK17, 'NGET TO (Blank - not used)'!AK17)) -> 0 | AL17: =IF(UserInterface!$E$69 = 1,CHOOSE(m_identity,'SHE-Transmission PLC'!AL17, SPTL!AL17, 'NGET TO'!AL17),CHOOSE(m_identity,'SHE-Transmission PLC (Blank - )'!AL17, 'SPTL (Blank - not used)'!AL17, 'NGET TO (Blank - not used)'!AL17)) -> 0 | AM17: =IF(UserInterface!$E$69 = 1,CHOOSE(m_identity,'SHE-Transmission PLC'!AM17, SPTL!AM17, 'NGET TO'!AM17),CHOOSE(m_identity,'SHE-Transmission PLC (Blank - )'!AM17, 'SPTL (Blank - not used)'!AM17, 'NGET TO (Blank - not used)'!AM17)) -> 0 | AN17: =IF(UserInterface!$E$69 = 1,CHOOSE(m_identity,'SHE-Transmission PLC'!AN17, SPTL!AN17, 'NGET TO'!AN17),CHOOSE(m_identity,'SHE-Transmission PLC (Blank - )'!AN17, 'SPTL (Blank - not used)'!AN17, 'NGET TO (Blank - not used)'!AN17)) -> 0 | AO17: =IF(UserInterface!$E$69 = 1,CHOOSE(m_identity,'SHE-Transmission PLC'!AO17, SPTL!AO17, 'NGET TO'!AO17),CHOOSE(m_identity,'SHE-Transmission PLC (Blank - )'!AO17, 'SPTL (Blank - not used)'!AO17, 'NGET TO (Blank - not used)'!AO17)) -> 0
E18: Baseline and strategic wider works outputs | F18: 6I | G18: £m 09/10 prices | H18: WWE | AH18: =IF(UserInterface!$E$69 = 1,CHOOSE(m_identity,'SHE-Transmission PLC'!AH18, SPTL!AH18, 'NGET TO'!AH18),CHOOSE(m_identity,'SHE-Transmission PLC (Blank - )'!AH18, 'SPTL (Blank - not used)'!AH18, 'NGET TO (Blank - not used)'!AH18)) -> 161.7 | AI18: =IF(UserInterface!$E$69 = 1,CHOOSE(m_identity,'SHE-Transmission PLC'!AI18, SPTL!AI18, 'NGET TO'!AI18),CHOOSE(m_identity,'SHE-Transmission PLC (Blank - )'!AI18, 'SPTL (Blank - not used)'!AI18, 'NGET TO (Blank - not used)'!AI18)) -> 230.4 | AJ18: =IF(UserInterface!$E$69 = 1,CHOOSE(m_identity,'SHE-Transmission PLC'!AJ18, SPTL!AJ18, 'NGET TO'!AJ18),CHOOSE(m_identity,'SHE-Transmission PLC (Blank - )'!AJ18, 'SPTL (Blank - not used)'!AJ18, 'NGET TO (Blank - not used)'!AJ18)) -> 208.9 | AK18: =IF(UserInterface!$E$69 = 1,CHOOSE(m_identity,'SHE-Transmission PLC'!AK18, SPTL!AK18, 'NGET TO'!AK18),CHOOSE(m_identity,'SHE-Transmission PLC (Blank - )'!AK18, 'SPTL (Blank - not used)'!AK18, 'NGET TO (Blank - not used)'!AK18)) -> 20.1 | AL18: =IF(UserInterface!$E$69 = 1,CHOOSE(m_identity,'SHE-Transmission PLC'!AL18, SPTL!AL18, 'NGET TO'!AL18),CHOOSE(m_identity,'SHE-Transmission PLC (Blank - )'!AL18, 'SPTL (Blank - not used)'!AL18, 'NGET TO (Blank - not used)'!AL18)) -> 0 | AM18: =IF(UserInterface!$E$69 = 1,CHOOSE(m_identity,'SHE-Transmission PLC'!AM18, SPTL!AM18, 'NGET TO'!AM18),CHOOSE(m_identity,'SHE-Transmission PLC (Blank - )'!AM18, 'SPTL (Blank - not used)'!AM18, 'NGET TO (Blank - not used)'!AM18)) -> 0 | AN18: =IF(UserInterface!$E$69 = 1,CHOOSE(m_identity,'SHE-Transmission PLC'!AN18, SPTL!AN18, 'NGET TO'!AN18),CHOOSE(m_identity,'SHE-Transmission PLC (Blank - )'!AN18, 'SPTL (Blank - not used)'!AN18, 'NGET TO (Blank - not used)'!AN18)) -> 0 | AO18: =IF(UserInterface!$E$69 = 1,CHOOSE(m_identity,'SHE-Transmission PLC'!AO18, SPTL!AO18, 'NGET TO'!AO18),CHOOSE(m_identity,'SHE-Transmission PLC (Blank - )'!AO18, 'SPTL (Blank - not used)'!AO18, 'NGET TO (Blank - not used)'!AO18)) -> 0
E19: Network development and wider works volume driver (NGET only) | F19: 6J | G19: £m 09/10 prices | H19: WWI | AH19: =IF(UserInterface!$E$69 = 1,CHOOSE(m_identity,'SHE-Transmission PLC'!AH19, SPTL!AH19, 'NGET TO'!AH19),CHOOSE(m_identity,'SHE-Transmission PLC (Blank - )'!AH19, 'SPTL (Blank - not used)'!AH19, 'NGET TO (Blank - not used)'!AH19)) -> 397.10976 | AI19: =IF(UserInterface!$E$69 = 1,CHOOSE(m_identity,'SHE-Transmission PLC'!AI19, SPTL!AI19, 'NGET TO'!AI19),CHOOSE(m_identity,'SHE-Transmission PLC (Blank - )'!AI19, 'SPTL (Blank - not used)'!AI19, 'NGET TO (Blank - not used)'!AI19)) -> 303.2836665 | AJ19: =IF(UserInterface!$E$69 = 1,CHOOSE(m_identity,'SHE-Transmission PLC'!AJ19, SPTL!AJ19, 'NGET TO'!AJ19),CHOOSE(m_identity,'SHE-Transmission PLC (Blank - )'!AJ19, 'SPTL (Blank - not used)'!AJ19, 'NGET TO (Blank - not used)'!AJ19)) -> 264.33553 | AK19: =IF(UserInterface!$E$69 = 1,CHOOSE(m_identity,'SHE-Transmission PLC'!AK19, SPTL!AK19, 'NGET TO'!AK19),CHOOSE(m_identity,'SHE-Transmission PLC (Blank - )'!AK19, 'SPTL (Blank - not used)'!AK19, 'NGET TO (Blank - not used)'!AK19)) -> 283.1637444 | AL19: =IF(UserInterface!$E$69 = 1,CHOOSE(m_identity,'SHE-Transmission PLC'!AL19, SPTL!AL19, 'NGET TO'!AL19),CHOOSE(m_identity,'SHE-Transmission PLC (Blank - )'!AL19, 'SPTL (Blank - not used)'!AL19, 'NGET TO (Blank - not used)'!AL19)) -> 133.1950619 | AM19: =IF(UserInterface!$E$69 = 1,CHOOSE(m_identity,'SHE-Transmission PLC'!AM19, SPTL!AM19, 'NGET TO'!AM19),CHOOSE(m_identity,'SHE-Transmission PLC (Blank - )'!AM19, 'SPTL (Blank - not used)'!AM19, 'NGET TO (Blank - not used)'!AM19)) -> 70.25223768 | AN19: =IF(UserInterface!$E$69 = 1,CHOOSE(m_identity,'SHE-Transmission PLC'!AN19, SPTL!AN19, 'NGET TO'!AN19),CHOOSE(m_identity,'SHE-Transmission PLC (Blank - )'!AN19, 'SPTL (Blank - not used)'!AN19, 'NGET TO (Blank - not used)'!AN19)) -> 27.32472935 | AO19: =IF(UserInterface!$E$69 = 1,CHOOSE(m_identity,'SHE-Transmission PLC'!AO19, SPTL!AO19, 'NGET TO'!AO19),CHOOSE(m_identity,'SHE-Transmission PLC (Blank - )'!AO19, 'SPTL (Blank - not used)'!AO19, 'NGET TO (Blank - not used)'!AO19)) -> 8.569314199
E20: Enhancements to pre-existing infrastructure | F20: 6G | G20: £m 09/10 prices | H20: EPIE | AH20: =IF(UserInterface!$E$69 = 1,CHOOSE(m_identity,'SHE-Transmission PLC'!AH20, SPTL!AH20, 'NGET TO'!AH20),CHOOSE(m_identity,'SHE-Transmission PLC (Blank - )'!AH20, 'SPTL (Blank - not used)'!AH20, 'NGET TO (Blank - not used)'!AH20)) -> 0 | AI20: =IF(UserInterface!$E$69 = 1,CHOOSE(m_identity,'SHE-Transmission PLC'!AI20, SPTL!AI20, 'NGET TO'!AI20),CHOOSE(m_identity,'SHE-Transmission PLC (Blank - )'!AI20, 'SPTL (Blank - not used)'!AI20, 'NGET TO (Blank - not used)'!AI20)) -> 0 | AJ20: =IF(UserInterface!$E$69 = 1,CHOOSE(m_identity,'SHE-Transmission PLC'!AJ20, SPTL!AJ20, 'NGET TO'!AJ20),CHOOSE(m_identity,'SHE-Transmission PLC (Blank - )'!AJ20, 'SPTL (Blank - not used)'!AJ20, 'NGET TO (Blank - not used)'!AJ20)) -> 0 | AK20: =IF(UserInterface!$E$69 = 1,CHOOSE(m_identity,'SHE-Transmission PLC'!AK20, SPTL!AK20, 'NGET TO'!AK20),CHOOSE(m_identity,'SHE-Transmission PLC (Blank - )'!AK20, 'SPTL (Blank - not used)'!AK20, 'NGET TO (Blank - not used)'!AK20)) -> 0 | AL20: =IF(UserInterface!$E$69 = 1,CHOOSE(m_identity,'SHE-Transmission PLC'!AL20, SPTL!AL20, 'NGET TO'!AL20),CHOOSE(m_identity,'SHE-Transmission PLC (Blank - )'!AL20, 'SPTL (Blank - not used)'!AL20, 'NGET TO (Blank - not used)'!AL20)) -> 0 | AM20: =IF(UserInterface!$E$69 = 1,CHOOSE(m_identity,'SHE-Transmission PLC'!AM20, SPTL!AM20, 'NGET TO'!AM20),CHOOSE(m_identity,'SHE-Transmission PLC (Blank - )'!AM20, 'SPTL (Blank - not used)'!AM20, 'NGET TO (Blank - not used)'!AM20)) -> 0 | AN20: =IF(UserInterface!$E$69 = 1,CHOOSE(m_identity,'SHE-Transmission PLC'!AN20, SPTL!AN20, 'NGET TO'!AN20),CHOOSE(m_identity,'SHE-Transmission PLC (Blank - )'!AN20, 'SPTL (Blank - not used)'!AN20, 'NGET TO (Blank - not used)'!AN20)) -> 0 | AO20: =IF(UserInterface!$E$69 = 1,CHOOSE(m_identity,'SHE-Transmission PLC'!AO20, SPTL!AO20, 'NGET TO'!AO20),CHOOSE(m_identity,'SHE-Transmission PLC (Blank - )'!AO20, 'SPTL (Blank - not used)'!AO20, 'NGET TO (Blank - not used)'!AO20)) -> 0
E21: Demand related infrastructure volume driver | F21: 6L | G21: £m 09/10 prices | H21: DRI | AH21: =IF(UserInterface!$E$69 = 1,CHOOSE(m_identity,'SHE-Transmission PLC'!AH21, SPTL!AH21, 'NGET TO'!AH21),CHOOSE(m_identity,'SHE-Transmission PLC (Blank - )'!AH21, 'SPTL (Blank - not used)'!AH21, 'NGET TO (Blank - not used)'!AH21)) -> 31.78771538 | AI21: =IF(UserInterface!$E$69 = 1,CHOOSE(m_identity,'SHE-Transmission PLC'!AI21, SPTL!AI21, 'NGET TO'!AI21),CHOOSE(m_identity,'SHE-Transmission PLC (Blank - )'!AI21, 'SPTL (Blank - not used)'!AI21, 'NGET TO (Blank - not used)'!AI21)) -> 36.18741631 | AJ21: =IF(UserInterface!$E$69 = 1,CHOOSE(m_identity,'SHE-Transmission PLC'!AJ21, SPTL!AJ21, 'NGET TO'!AJ21),CHOOSE(m_identity,'SHE-Transmission PLC (Blank - )'!AJ21, 'SPTL (Blank - not used)'!AJ21, 'NGET TO (Blank - not used)'!AJ21)) -> 32.38779131 | AK21: =IF(UserInterface!$E$69 = 1,CHOOSE(m_identity,'SHE-Transmission PLC'!AK21, SPTL!AK21, 'NGET TO'!AK21),CHOOSE(m_identity,'SHE-Transmission PLC (Blank - )'!AK21, 'SPTL (Blank - not used)'!AK21, 'NGET TO (Blank - not used)'!AK21)) -> 32.82810519 | AL21: =IF(UserInterface!$E$69 = 1,CHOOSE(m_identity,'SHE-Transmission PLC'!AL21, SPTL!AL21, 'NGET TO'!AL21),CHOOSE(m_identity,'SHE-Transmission PLC (Blank - )'!AL21, 'SPTL (Blank - not used)'!AL21, 'NGET TO (Blank - not used)'!AL21)) -> 50.58957488 | AM21: =IF(UserInterface!$E$69 = 1,CHOOSE(m_identity,'SHE-Transmission PLC'!AM21, SPTL!AM21, 'NGET TO'!AM21),CHOOSE(m_identity,'SHE-Transmission PLC (Blank - )'!AM21, 'SPTL (Blank - not used)'!AM21, 'NGET TO (Blank - not used)'!AM21)) -> 41.37305882 | AN21: =IF(UserInterface!$E$69 = 1,CHOOSE(m_identity,'SHE-Transmission PLC'!AN21, SPTL!AN21, 'NGET TO'!AN21),CHOOSE(m_identity,'SHE-Transmission PLC (Blank - )'!AN21, 'SPTL (Blank - not used)'!AN21, 'NGET TO (Blank - not used)'!AN21)) -> 12.47368774 | AO21: =IF(UserInterface!$E$69 = 1,CHOOSE(m_identity,'SHE-Transmission PLC'!AO21, SPTL!AO21, 'NGET TO'!AO21),CHOOSE(m_identity,'SHE-Transmission PLC (Blank - )'!AO21, 'SPTL (Blank - not used)'!AO21, 'NGET TO (Blank - not used)'!AO21)) -> 0.9330676837
E22: Undergrounding volume driver | F22: 6K | G22: £m 09/10 prices | H22: UCE | AH22: =IF(UserInterface!$E$69 = 1,CHOOSE(m_identity,'SHE-Transmission PLC'!AH22, SPTL!AH22, 'NGET TO'!AH22),CHOOSE(m_identity,'SHE-Transmission PLC (Blank - )'!AH22, 'SPTL (Blank - not used)'!AH22, 'NGET TO (Blank - not used)'!AH22)) -> 0 | AI22: =IF(UserInterface!$E$69 = 1,CHOOSE(m_identity,'SHE-Transmission PLC'!AI22, SPTL!AI22, 'NGET TO'!AI22),CHOOSE(m_identity,'SHE-Transmission PLC (Blank - )'!AI22, 'SPTL (Blank - not used)'!AI22, 'NGET TO (Blank - not used)'!AI22)) -> 0 | AJ22: =IF(UserInterface!$E$69 = 1,CHOOSE(m_identity,'SHE-Transmission PLC'!AJ22, SPTL!AJ22, 'NGET TO'!AJ22),CHOOSE(m_identity,'SHE-Transmission PLC (Blank - )'!AJ22, 'SPTL (Blank - not used)'!AJ22, 'NGET TO (Blank - not used)'!AJ22)) -> 0 | AK22: =IF(UserInterface!$E$69 = 1,CHOOSE(m_identity,'SHE-Transmission PLC'!AK22, SPTL!AK22, 'NGET TO'!AK22),CHOOSE(m_identity,'SHE-Transmission PLC (Blank - )'!AK22, 'SPTL (Blank - not used)'!AK22, 'NGET TO (Blank - not used)'!AK22)) -> 0 | AL22: =IF(UserInterface!$E$69 = 1,CHOOSE(m_identity,'SHE-Transmission PLC'!AL22, SPTL!AL22, 'NGET TO'!AL22),CHOOSE(m_identity,'SHE-Transmission PLC (Blank - )'!AL22, 'SPTL (Blank - not used)'!AL22, 'NGET TO (Blank - not used)'!AL22)) -> 0 | AM22: =IF(UserInterface!$E$69 = 1,CHOOSE(m_identity,'SHE-Transmission PLC'!AM22, SPTL!AM22, 'NGET TO'!AM22),CHOOSE(m_identity,'SHE-Transmission PLC (Blank - )'!AM22, 'SPTL (Blank - not used)'!AM22, 'NGET TO (Blank - not used)'!AM22)) -> 0 | AN22: =IF(UserInterface!$E$69 = 1,CHOOSE(m_identity,'SHE-Transmission PLC'!AN22, SPTL!AN22, 'NGET TO'!AN22),CHOOSE(m_identity,'SHE-Transmission PLC (Blank - )'!AN22, 'SPTL (Blank - not used)'!AN22, 'NGET TO (Blank - not used)'!AN22)) -> 0 | AO22: =IF(UserInterface!$E$69 = 1,CHOOSE(m_identity,'SHE-Transmission PLC'!AO22, SPTL!AO22, 'NGET TO'!AO22),CHOOSE(m_identity,'SHE-Transmission PLC (Blank - )'!AO22, 'SPTL (Blank - not used)'!AO22, 'NGET TO (Blank - not used)'!AO22)) -> 0
E23: Generation connections volume driver | F23: 6F | G23: £m 09/10 prices | H23: GCE | AH23: =IF(UserInterface!$E$69 = 1,CHOOSE(m_identity,'SHE-Transmission PLC'!AH23, SPTL!AH23, 'NGET TO'!AH23),CHOOSE(m_identity,'SHE-Transmission PLC (Blank - )'!AH23, 'SPTL (Blank - not used)'!AH23, 'NGET TO (Blank - not used)'!AH23)) -> 133.8600486 | AI23: =IF(UserInterface!$E$69 = 1,CHOOSE(m_identity,'SHE-Transmission PLC'!AI23, SPTL!AI23, 'NGET TO'!AI23),CHOOSE(m_identity,'SHE-Transmission PLC (Blank - )'!AI23, 'SPTL (Blank - not used)'!AI23, 'NGET TO (Blank - not used)'!AI23)) -> 185.2282575 | AJ23: =IF(UserInterface!$E$69 = 1,CHOOSE(m_identity,'SHE-Transmission PLC'!AJ23, SPTL!AJ23, 'NGET TO'!AJ23),CHOOSE(m_identity,'SHE-Transmission PLC (Blank - )'!AJ23, 'SPTL (Blank - not used)'!AJ23, 'NGET TO (Blank - not used)'!AJ23)) -> 184.1122051 | AK23: =IF(UserInterface!$E$69 = 1,CHOOSE(m_identity,'SHE-Transmission PLC'!AK23, SPTL!AK23, 'NGET TO'!AK23),CHOOSE(m_identity,'SHE-Transmission PLC (Blank - )'!AK23, 'SPTL (Blank - not used)'!AK23, 'NGET TO (Blank - not used)'!AK23)) -> 220.7097046 | AL23: =IF(UserInterface!$E$69 = 1,CHOOSE(m_identity,'SHE-Transmission PLC'!AL23, SPTL!AL23, 'NGET TO'!AL23),CHOOSE(m_identity,'SHE-Transmission PLC (Blank - )'!AL23, 'SPTL (Blank - not used)'!AL23, 'NGET TO (Blank - not used)'!AL23)) -> 117.3640777 | AM23: =IF(UserInterface!$E$69 = 1,CHOOSE(m_identity,'SHE-Transmission PLC'!AM23, SPTL!AM23, 'NGET TO'!AM23),CHOOSE(m_identity,'SHE-Transmission PLC (Blank - )'!AM23, 'SPTL (Blank - not used)'!AM23, 'NGET TO (Blank - not used)'!AM23)) -> 95.96457882 | AN23: =IF(UserInterface!$E$69 = 1,CHOOSE(m_identity,'SHE-Transmission PLC'!AN23, SPTL!AN23, 'NGET TO'!AN23),CHOOSE(m_identity,'SHE-Transmission PLC (Blank - )'!AN23, 'SPTL (Blank - not used)'!AN23, 'NGET TO (Blank - not used)'!AN23)) -> 42.49354524 | AO23: =IF(UserInterface!$E$69 = 1,CHOOSE(m_identity,'SHE-Transmission PLC'!AO23, SPTL!AO23, 'NGET TO'!AO23),CHOOSE(m_identity,'SHE-Transmission PLC (Blank - )'!AO23, 'SPTL (Blank - not used)'!AO23, 'NGET TO (Blank - not used)'!AO23)) -> 20.66151168
E24: Innovation roll out mechanism | F24: 6E | G24: £m 09/10 prices | H24: IRM | AH24: =IF(UserInterface!$E$69 = 1,CHOOSE(m_identity,'SHE-Transmission PLC'!AH24, SPTL!AH24, 'NGET TO'!AH24),CHOOSE(m_identity,'SHE-Transmission PLC (Blank - )'!AH24, 'SPTL (Blank - not used)'!AH24, 'NGET TO (Blank - not used)'!AH24)) -> 0 | AI24: =IF(UserInterface!$E$69 = 1,CHOOSE(m_identity,'SHE-Transmission PLC'!AI24, SPTL!AI24, 'NGET TO'!AI24),CHOOSE(m_identity,'SHE-Transmission PLC (Blank - )'!AI24, 'SPTL (Blank - not used)'!AI24, 'NGET TO (Blank - not used)'!AI24)) -> 0 | AJ24: =IF(UserInterface!$E$69 = 1,CHOOSE(m_identity,'SHE-Transmission PLC'!AJ24, SPTL!AJ24, 'NGET TO'!AJ24),CHOOSE(m_identity,'SHE-Transmission PLC (Blank - )'!AJ24, 'SPTL (Blank - not used)'!AJ24, 'NGET TO (Blank - not used)'!AJ24)) -> 0 | AK24: =IF(UserInterface!$E$69 = 1,CHOOSE(m_identity,'SHE-Transmission PLC'!AK24, SPTL!AK24, 'NGET TO'!AK24),CHOOSE(m_identity,'SHE-Transmission PLC (Blank - )'!AK24, 'SPTL (Blank - not used)'!AK24, 'NGET TO (Blank - not used)'!AK24)) -> 0 | AL24: =IF(UserInterface!$E$69 = 1,CHOOSE(m_identity,'SHE-Transmission PLC'!AL24, SPTL!AL24, 'NGET TO'!AL24),CHOOSE(m_identity,'SHE-Transmission PLC (Blank - )'!AL24, 'SPTL (Blank - not used)'!AL24, 'NGET TO (Blank - not used)'!AL24)) -> 0 | AM24: =IF(UserInterface!$E$69 = 1,CHOOSE(m_identity,'SHE-Transmission PLC'!AM24, SPTL!AM24, 'NGET TO'!AM24),CHOOSE(m_identity,'SHE-Transmission PLC (Blank - )'!AM24, 'SPTL (Blank - not used)'!AM24, 'NGET TO (Blank - not used)'!AM24)) -> 0 | AN24: =IF(UserInterface!$E$69 = 1,CHOOSE(m_identity,'SHE-Transmission PLC'!AN24, SPTL!AN24, 'NGET TO'!AN24),CHOOSE(m_identity,'SHE-Transmission PLC (Blank - )'!AN24, 'SPTL (Blank - not used)'!AN24, 'NGET TO (Blank - not used)'!AN24)) -> 0 | AO24: =IF(UserInterface!$E$69 = 1,CHOOSE(m_identity,'SHE-Transmission PLC'!AO24, SPTL!AO24, 'NGET TO'!AO24),CHOOSE(m_identity,'SHE-Transmission PLC (Blank - )'!AO24, 'SPTL (Blank - not used)'!AO24, 'NGET TO (Blank - not used)'!AO24)) -> 0
E25: Exceptional Sub Sea Cable Faults | F25: 6H | G25: £m 09/10 prices | H25: IAESSCM | AH25: =IF(UserInterface!$E$69 = 1,CHOOSE(m_identity,'SHE-Transmission PLC'!AH25, SPTL!AH25, 'NGET TO'!AH25),CHOOSE(m_identity,'SHE-Transmission PLC (Blank - )'!AH25, 'SPTL (Blank - not used)'!AH25, 'NGET TO (Blank - not used)'!AH25)) -> 0 | AI25: =IF(UserInterface!$E$69 = 1,CHOOSE(m_identity,'SHE-Transmission PLC'!AI25, SPTL!AI25, 'NGET TO'!AI25),CHOOSE(m_identity,'SHE-Transmission PLC (Blank - )'!AI25, 'SPTL (Blank - not used)'!AI25, 'NGET TO (Blank - not used)'!AI25)) -> 0 | AJ25: =IF(UserInterface!$E$69 = 1,CHOOSE(m_identity,'SHE-Transmission PLC'!AJ25, SPTL!AJ25, 'NGET TO'!AJ25),CHOOSE(m_identity,'SHE-Transmission PLC (Blank - )'!AJ25, 'SPTL (Blank - not used)'!AJ25, 'NGET TO (Blank - not used)'!AJ25)) -> 0 | AK25: =IF(UserInterface!$E$69 = 1,CHOOSE(m_identity,'SHE-Transmission PLC'!AK25, SPTL!AK25, 'NGET TO'!AK25),CHOOSE(m_identity,'SHE-Transmission PLC (Blank - )'!AK25, 'SPTL (Blank - not used)'!AK25, 'NGET TO (Blank - not used)'!AK25)) -> 0 | AL25: =IF(UserInterface!$E$69 = 1,CHOOSE(m_identity,'SHE-Transmission PLC'!AL25, SPTL!AL25, 'NGET TO'!AL25),CHOOSE(m_identity,'SHE-Transmission PLC (Blank - )'!AL25, 'SPTL (Blank - not used)'!AL25, 'NGET TO (Blank - not used)'!AL25)) -> 0 | AM25: =IF(UserInterface!$E$69 = 1,CHOOSE(m_identity,'SHE-Transmission PLC'!AM25, SPTL!AM25, 'NGET TO'!AM25),CHOOSE(m_identity,'SHE-Transmission PLC (Blank - )'!AM25, 'SPTL (Blank - not used)'!AM25, 'NGET TO (Blank - not used)'!AM25)) -> 0 | AN25: =IF(UserInterface!$E$69 = 1,CHOOSE(m_identity,'SHE-Transmission PLC'!AN25, SPTL!AN25, 'NGET TO'!AN25),CHOOSE(m_identity,'SHE-Transmission PLC (Blank - )'!AN25, 'SPTL (Blank - not used)'!AN25, 'NGET TO (Blank - not used)'!AN25)) -> 0 | AO25: =IF(UserInterface!$E$69 = 1,CHOOSE(m_identity,'SHE-Transmission PLC'!AO25, SPTL!AO25, 'NGET TO'!AO25),CHOOSE(m_identity,'SHE-Transmission PLC (Blank - )'!AO25, 'SPTL (Blank - not used)'!AO25, 'NGET TO (Blank - not used)'!AO25)) -> 0
E26: Non-load Related Work Costs | F26: 6H | G26: £m 09/10 prices | H26: IAENLUM | AH26: =IF(UserInterface!$E$69 = 1,CHOOSE(m_identity,'SHE-Transmission PLC'!AH26, SPTL!AH26, 'NGET TO'!AH26),CHOOSE(m_identity,'SHE-Transmission PLC (Blank - )'!AH26, 'SPTL (Blank - not used)'!AH26, 'NGET TO (Blank - not used)'!AH26)) -> 0 | AI26: =IF(UserInterface!$E$69 = 1,CHOOSE(m_identity,'SHE-Transmission PLC'!AI26, SPTL!AI26, 'NGET TO'!AI26),CHOOSE(m_identity,'SHE-Transmission PLC (Blank - )'!AI26, 'SPTL (Blank - not used)'!AI26, 'NGET TO (Blank - not used)'!AI26)) -> 0 | AJ26: =IF(UserInterface!$E$69 = 1,CHOOSE(m_identity,'SHE-Transmission PLC'!AJ26, SPTL!AJ26, 'NGET TO'!AJ26),CHOOSE(m_identity,'SHE-Transmission PLC (Blank - )'!AJ26, 'SPTL (Blank - not used)'!AJ26, 'NGET TO (Blank - not used)'!AJ26)) -> 0 | AK26: =IF(UserInterface!$E$69 = 1,CHOOSE(m_identity,'SHE-Transmission PLC'!AK26, SPTL!AK26, 'NGET TO'!AK26),CHOOSE(m_identity,'SHE-Transmission PLC (Blank - )'!AK26, 'SPTL (Blank - not used)'!AK26, 'NGET TO (Blank - not used)'!AK26)) -> 0 | AL26: =IF(UserInterface!$E$69 = 1,CHOOSE(m_identity,'SHE-Transmission PLC'!AL26, SPTL!AL26, 'NGET TO'!AL26),CHOOSE(m_identity,'SHE-Transmission PLC (Blank - )'!AL26, 'SPTL (Blank - not used)'!AL26, 'NGET TO (Blank - not used)'!AL26)) -> 0 | AM26: =IF(UserInterface!$E$69 = 1,CHOOSE(m_identity,'SHE-Transmission PLC'!AM26, SPTL!AM26, 'NGET TO'!AM26),CHOOSE(m_identity,'SHE-Transmission PLC (Blank - )'!AM26, 'SPTL (Blank - not used)'!AM26, 'NGET TO (Blank - not used)'!AM26)) -> 0 | AN26: =IF(UserInterface!$E$69 = 1,CHOOSE(m_identity,'SHE-Transmission PLC'!AN26, SPTL!AN26, 'NGET TO'!AN26),CHOOSE(m_identity,'SHE-Transmission PLC (Blank - )'!AN26, 'SPTL (Blank - not used)'!AN26, 'NGET TO (Blank - not used)'!AN26)) -> 0 | AO26: =IF(UserInterface!$E$69 = 1,CHOOSE(m_identity,'SHE-Transmission PLC'!AO26, SPTL!AO26, 'NGET TO'!AO26),CHOOSE(m_identity,'SHE-Transmission PLC (Blank - )'!AO26, 'SPTL (Blank - not used)'!AO26, 'NGET TO (Blank - not used)'!AO26)) -> 0
E27: Tax liability - gearing/interest costs | F27: 6D | G27: £m nominal | H27: TGIE | AH27: =IF(UserInterface!$E$69 = 1,CHOOSE(m_identity,'SHE-Transmission PLC'!AH27, SPTL!AH27, 'NGET TO'!AH27),CHOOSE(m_identity,'SHE-Transmission PLC (Blank - )'!AH27, 'SPTL (Blank - not used)'!AH27, 'NGET TO (Blank - not used)'!AH27)) -> 0 | AI27: =IF(UserInterface!$E$69 = 1,CHOOSE(m_identity,'SHE-Transmission PLC'!AI27, SPTL!AI27, 'NGET TO'!AI27),CHOOSE(m_identity,'SHE-Transmission PLC (Blank - )'!AI27, 'SPTL (Blank - not used)'!AI27, 'NGET TO (Blank - not used)'!AI27)) -> 0 | AJ27: =IF(UserInterface!$E$69 = 1,CHOOSE(m_identity,'SHE-Transmission PLC'!AJ27, SPTL!AJ27, 'NGET TO'!AJ27),CHOOSE(m_identity,'SHE-Transmission PLC (Blank - )'!AJ27, 'SPTL (Blank - not used)'!AJ27, 'NGET TO (Blank - not used)'!AJ27)) -> 0 | AK27: =IF(UserInterface!$E$69 = 1,CHOOSE(m_identity,'SHE-Transmission PLC'!AK27, SPTL!AK27, 'NGET TO'!AK27),CHOOSE(m_identity,'SHE-Transmission PLC (Blank - )'!AK27, 'SPTL (Blank - not used)'!AK27, 'NGET TO (Blank - not used)'!AK27)) -> 0 | AL27: =IF(UserInterface!$E$69 = 1,CHOOSE(m_identity,'SHE-Transmission PLC'!AL27, SPTL!AL27, 'NGET TO'!AL27),CHOOSE(m_identity,'SHE-Transmission PLC (Blank - )'!AL27, 'SPTL (Blank - not used)'!AL27, 'NGET TO (Blank - not used)'!AL27)) -> 0 | AM27: =IF(UserInterface!$E$69 = 1,CHOOSE(m_identity,'SHE-Transmission PLC'!AM27, SPTL!AM27, 'NGET TO'!AM27),CHOOSE(m_identity,'SHE-Transmission PLC (Blank - )'!AM27, 'SPTL (Blank - not used)'!AM27, 'NGET TO (Blank - not used)'!AM27)) -> 0 | AN27: =IF(UserInterface!$E$69 = 1,CHOOSE(m_identity,'SHE-Transmission PLC'!AN27, SPTL!AN27, 'NGET TO'!AN27),CHOOSE(m_identity,'SHE-Transmission PLC (Blank - )'!AN27, 'SPTL (Blank - not used)'!AN27, 'NGET TO (Blank - not used)'!AN27)) -> 0 | AO27: =IF(UserInterface!$E$69 = 1,CHOOSE(m_identity,'SHE-Transmission PLC'!AO27, SPTL!AO27, 'NGET TO'!AO27),CHOOSE(m_identity,'SHE-Transmission PLC (Blank - )'!AO27, 'SPTL (Blank - not used)'!AO27, 'NGET TO (Blank - not used)'!AO27)) -> 0
E28: Tax liability - tax trigger events | F28: 6D | G28: £m 09/10 prices | H28: TTE | AH28: =IF(UserInterface!$E$69 = 1,CHOOSE(m_identity,'SHE-Transmission PLC'!AH28, SPTL!AH28, 'NGET TO'!AH28),CHOOSE(m_identity,'SHE-Transmission PLC (Blank - )'!AH28, 'SPTL (Blank - not used)'!AH28, 'NGET TO (Blank - not used)'!AH28)) -> 0 | AI28: =IF(UserInterface!$E$69 = 1,CHOOSE(m_identity,'SHE-Transmission PLC'!AI28, SPTL!AI28, 'NGET TO'!AI28),CHOOSE(m_identity,'SHE-Transmission PLC (Blank - )'!AI28, 'SPTL (Blank - not used)'!AI28, 'NGET TO (Blank - not used)'!AI28)) -> 0 | AJ28: =IF(UserInterface!$E$69 = 1,CHOOSE(m_identity,'SHE-Transmission PLC'!AJ28, SPTL!AJ28, 'NGET TO'!AJ28),CHOOSE(m_identity,'SHE-Transmission PLC (Blank - )'!AJ28, 'SPTL (Blank - not used)'!AJ28, 'NGET TO (Blank - not used)'!AJ28)) -> 0 | AK28: =IF(UserInterface!$E$69 = 1,CHOOSE(m_identity,'SHE-Transmission PLC'!AK28, SPTL!AK28, 'NGET TO'!AK28),CHOOSE(m_identity,'SHE-Transmission PLC (Blank - )'!AK28, 'SPTL (Blank - not used)'!AK28, 'NGET TO (Blank - not used)'!AK28)) -> 0 | AL28: =IF(UserInterface!$E$69 = 1,CHOOSE(m_identity,'SHE-Transmission PLC'!AL28, SPTL!AL28, 'NGET TO'!AL28),CHOOSE(m_identity,'SHE-Transmission PLC (Blank - )'!AL28, 'SPTL (Blank - not used)'!AL28, 'NGET TO (Blank - not used)'!AL28)) -> 0 | AM28: =IF(UserInterface!$E$69 = 1,CHOOSE(m_identity,'SHE-Transmission PLC'!AM28, SPTL!AM28, 'NGET TO'!AM28),CHOOSE(m_identity,'SHE-Transmission PLC (Blank - )'!AM28, 'SPTL (Blank - not used)'!AM28, 'NGET TO (Blank - not used)'!AM28)) -> 0 | AN28: =IF(UserInterface!$E$69 = 1,CHOOSE(m_identity,'SHE-Transmission PLC'!AN28, SPTL!AN28, 'NGET TO'!AN28),CHOOSE(m_identity,'SHE-Transmission PLC (Blank - )'!AN28, 'SPTL (Blank - not used)'!AN28, 'NGET TO (Blank - not used)'!AN28)) -> 0 | AO28: =IF(UserInterface!$E$69 = 1,CHOOSE(m_identity,'SHE-Transmission PLC'!AO28, SPTL!AO28, 'NGET TO'!AO28),CHOOSE(m_identity,'SHE-Transmission PLC (Blank - )'!AO28, 'SPTL (Blank - not used)'!AO28, 'NGET TO (Blank - not used)'!AO28)) -> 0
E29: Pension scheme administration and Pension Protection Fund Levy | F29: 6D | G29: £m 09/10 prices | H29: APFE | AH29: =IF(UserInterface!$E$69 = 1,CHOOSE(m_identity,'SHE-Transmission PLC'!AH29, SPTL!AH29, 'NGET TO'!AH29),CHOOSE(m_identity,'SHE-Transmission PLC (Blank - )'!AH29, 'SPTL (Blank - not used)'!AH29, 'NGET TO (Blank - not used)'!AH29)) -> 1.5 | AI29: =IF(UserInterface!$E$69 = 1,CHOOSE(m_identity,'SHE-Transmission PLC'!AI29, SPTL!AI29, 'NGET TO'!AI29),CHOOSE(m_identity,'SHE-Transmission PLC (Blank - )'!AI29, 'SPTL (Blank - not used)'!AI29, 'NGET TO (Blank - not used)'!AI29)) -> 1.3 | AJ29: =IF(UserInterface!$E$69 = 1,CHOOSE(m_identity,'SHE-Transmission PLC'!AJ29, SPTL!AJ29, 'NGET TO'!AJ29),CHOOSE(m_identity,'SHE-Transmission PLC (Blank - )'!AJ29, 'SPTL (Blank - not used)'!AJ29, 'NGET TO (Blank - not used)'!AJ29)) -> 1.3 | AK29: =IF(UserInterface!$E$69 = 1,CHOOSE(m_identity,'SHE-Transmission PLC'!AK29, SPTL!AK29, 'NGET TO'!AK29),CHOOSE(m_identity,'SHE-Transmission PLC (Blank - )'!AK29, 'SPTL (Blank - not used)'!AK29, 'NGET TO (Blank - not used)'!AK29)) -> 1.5 | AL29: =IF(UserInterface!$E$69 = 1,CHOOSE(m_identity,'SHE-Transmission PLC'!AL29, SPTL!AL29, 'NGET TO'!AL29),CHOOSE(m_identity,'SHE-Transmission PLC (Blank - )'!AL29, 'SPTL (Blank - not used)'!AL29, 'NGET TO (Blank - not used)'!AL29)) -> 1.3 | AM29: =IF(UserInterface!$E$69 = 1,CHOOSE(m_identity,'SHE-Transmission PLC'!AM29, SPTL!AM29, 'NGET TO'!AM29),CHOOSE(m_identity,'SHE-Transmission PLC (Blank - )'!AM29, 'SPTL (Blank - not used)'!AM29, 'NGET TO (Blank - not used)'!AM29)) -> 1.3 | AN29: =IF(UserInterface!$E$69 = 1,CHOOSE(m_identity,'SHE-Transmission PLC'!AN29, SPTL!AN29, 'NGET TO'!AN29),CHOOSE(m_identity,'SHE-Transmission PLC (Blank - )'!AN29, 'SPTL (Blank - not used)'!AN29, 'NGET TO (Blank - not used)'!AN29)) -> 1.5 | AO29: =IF(UserInterface!$E$69 = 1,CHOOSE(m_identity,'SHE-Transmission PLC'!AO29, SPTL!AO29, 'NGET TO'!AO29),CHOOSE(m_identity,'SHE-Transmission PLC (Blank - )'!AO29, 'SPTL (Blank - not used)'!AO29, 'NGET TO (Blank - not used)'!AO29)) -> 1.3
E30: Pension Scheme Established Deficit | F30: 6D | G30: £m 09/10 prices | H30: EDE | AH30: =IF(UserInterface!$E$69 = 1,CHOOSE(m_identity,'SHE-Transmission PLC'!AH30, SPTL!AH30, 'NGET TO'!AH30),CHOOSE(m_identity,'SHE-Transmission PLC (Blank - )'!AH30, 'SPTL (Blank - not used)'!AH30, 'NGET TO (Blank - not used)'!AH30)) -> 28.92905255 | AI30: =IF(UserInterface!$E$69 = 1,CHOOSE(m_identity,'SHE-Transmission PLC'!AI30, SPTL!AI30, 'NGET TO'!AI30),CHOOSE(m_identity,'SHE-Transmission PLC (Blank - )'!AI30, 'SPTL (Blank - not used)'!AI30, 'NGET TO (Blank - not used)'!AI30)) -> 28.92905255 | AJ30: =IF(UserInterface!$E$69 = 1,CHOOSE(m_identity,'SHE-Transmission PLC'!AJ30, SPTL!AJ30, 'NGET TO'!AJ30),CHOOSE(m_identity,'SHE-Transmission PLC (Blank - )'!AJ30, 'SPTL (Blank - not used)'!AJ30, 'NGET TO (Blank - not used)'!AJ30)) -> 32.58575306 | AK30: =IF(UserInterface!$E$69 = 1,CHOOSE(m_identity,'SHE-Transmission PLC'!AK30, SPTL!AK30, 'NGET TO'!AK30),CHOOSE(m_identity,'SHE-Transmission PLC (Blank - )'!AK30, 'SPTL (Blank - not used)'!AK30, 'NGET TO (Blank - not used)'!AK30)) -> 32.58575306 | AL30: =IF(UserInterface!$E$69 = 1,CHOOSE(m_identity,'SHE-Transmission PLC'!AL30, SPTL!AL30, 'NGET TO'!AL30),CHOOSE(m_identity,'SHE-Transmission PLC (Blank - )'!AL30, 'SPTL (Blank - not used)'!AL30, 'NGET TO (Blank - not used)'!AL30)) -> 32.58575306 | AM30: =IF(UserInterface!$E$69 = 1,CHOOSE(m_identity,'SHE-Transmission PLC'!AM30, SPTL!AM30, 'NGET TO'!AM30),CHOOSE(m_identity,'SHE-Transmission PLC (Blank - )'!AM30, 'SPTL (Blank - not used)'!AM30, 'NGET TO (Blank - not used)'!AM30)) -> 32.58575306 | AN30: =IF(UserInterface!$E$69 = 1,CHOOSE(m_identity,'SHE-Transmission PLC'!AN30, SPTL!AN30, 'NGET TO'!AN30),CHOOSE(m_identity,'SHE-Transmission PLC (Blank - )'!AN30, 'SPTL (Blank - not used)'!AN30, 'NGET TO (Blank - not used)'!AN30)) -> 32.58575306 | AO30: =IF(UserInterface!$E$69 = 1,CHOOSE(m_identity,'SHE-Transmission PLC'!AO30, SPTL!AO30, 'NGET TO'!AO30),CHOOSE(m_identity,'SHE-Transmission PLC (Blank - )'!AO30, 'SPTL (Blank - not used)'!AO30, 'NGET TO (Blank - not used)'!AO30)) -> 32.58575306
E31: Legacy price control adjustments to allowed revenue | F31: 6A | G31: £m 09/10 prices | H31: LAR | AH31: =IF(UserInterface!$E$69 = 1,CHOOSE(m_identity,'SHE-Transmission PLC'!AH31, SPTL!AH31, 'NGET TO'!AH31),CHOOSE(m_identity,'SHE-Transmission PLC (Blank - )'!AH31, 'SPTL (Blank - not used)'!AH31, 'NGET TO (Blank - not used)'!AH31)) -> 98.5943763
E32: Legacy price control adjustments to RAV | F32: 6A | G32: £m 09/10 prices | H32: LRAV | AH32: =IF(UserInterface!$E$69 = 1,CHOOSE(m_identity,'SHE-Transmission PLC'!AH32, SPTL!AH32, 'NGET TO'!AH32),CHOOSE(m_identity,'SHE-Transmission PLC (Blank - )'!AH32, 'SPTL (Blank - not used)'!AH32, 'NGET TO (Blank - not used)'!AH32)) -> -162.1748942
B34: Policy
C36: Cost of capital
E38: Cost of debt | G38: annual real % | AH38: =AH8 -> 0.0292 | AI38: 0.0272 | AJ38: 0.0255 | AK38: 0.0255 | AL38: 0.0255 | AM38: 0.0255 | AN38: 0.0255 | AO38: 0.0255
E39: Cost of equity | G39: annual real % | AH39: =IF(UserInterface!$E$69 = 1,CHOOSE(m_identity,'SHE-Transmission PLC'!AH39, SPTL!AH39, 'NGET TO'!AH39),CHOOSE(m_identity,'SHE-Transmission PLC (Blank - )'!AH39, 'SPTL (Blank - not used)'!AH39, 'NGET TO (Blank - not used)'!AH39)) -> 0.07 | AI39: =IF(UserInterface!$E$69 = 1,CHOOSE(m_identity,'SHE-Transmission PLC'!AI39, SPTL!AI39, 'NGET TO'!AI39),CHOOSE(m_identity,'SHE-Transmission PLC (Blank - )'!AI39, 'SPTL (Blank - not used)'!AI39, 'NGET TO (Blank - not used)'!AI39)) -> 0.07 | AJ39: =IF(UserInterface!$E$69 = 1,CHOOSE(m_identity,'SHE-Transmission PLC'!AJ39, SPTL!AJ39, 'NGET TO'!AJ39),CHOOSE(m_identity,'SHE-Transmission PLC (Blank - )'!AJ39, 'SPTL (Blank - not used)'!AJ39, 'NGET TO (Blank - not used)'!AJ39)) -> 0.07 | AK39: =IF(UserInterface!$E$69 = 1,CHOOSE(m_identity,'SHE-Transmission PLC'!AK39, SPTL!AK39, 'NGET TO'!AK39),CHOOSE(m_identity,'SHE-Transmission PLC (Blank - )'!AK39, 'SPTL (Blank - not used)'!AK39, 'NGET TO (Blank - not used)'!AK39)) -> 0.07 | AL39: =IF(UserInterface!$E$69 = 1,CHOOSE(m_identity,'SHE-Transmission PLC'!AL39, SPTL!AL39, 'NGET TO'!AL39),CHOOSE(m_identity,'SHE-Transmission PLC (Blank - )'!AL39, 'SPTL (Blank - not used)'!AL39, 'NGET TO (Blank - not used)'!AL39)) -> 0.07 | AM39: =IF(UserInterface!$E$69 = 1,CHOOSE(m_identity,'SHE-Transmission PLC'!AM39, SPTL!AM39, 'NGET TO'!AM39),CHOOSE(m_identity,'SHE-Transmission PLC (Blank - )'!AM39, 'SPTL (Blank - not used)'!AM39, 'NGET TO (Blank - not used)'!AM39)) -> 0.07 | AN39: =IF(UserInterface!$E$69 = 1,CHOOSE(m_identity,'SHE-Transmission PLC'!AN39, SPTL!AN39, 'NGET TO'!AN39),CHOOSE(m_identity,'SHE-Transmission PLC (Blank - )'!AN39, 'SPTL (Blank - not used)'!AN39, 'NGET TO (Blank - not used)'!AN39)) -> 0.07 | AO39: =IF(UserInterface!$E$69 = 1,CHOOSE(m_identity,'SHE-Transmission PLC'!AO39, SPTL!AO39, 'NGET TO'!AO39),CHOOSE(m_identity,'SHE-Transmission PLC (Blank - )'!AO39, 'SPTL (Blank - not used)'!AO39, 'NGET TO (Blank - not used)'!AO39)) -> 0.07
E40: Notional gearing | G40: % | J40: > | AG40: =IF(UserInterface!$E$69 = 1,CHOOSE(m_identity,'SHE-Transmission PLC'!AG40, SPTL!AG40, 'NGET TO'!AG40),CHOOSE(m_identity,'SHE-Transmission PLC (Blank - )'!AG40, 'SPTL (Blank - not used)'!AG40, 'NGET TO (Blank - not used)'!AG40)) -> 0.6 | AH40: =IF(UserInterface!$E$69 = 1,CHOOSE(m_identity,'SHE-Transmission PLC'!AH40, SPTL!AH40, 'NGET TO'!AH40),CHOOSE(m_identity,'SHE-Transmission PLC (Blank - )'!AH40, 'SPTL (Blank - not used)'!AH40, 'NGET TO (Blank - not used)'!AH40)) -> 0.6 | AI40: =IF(UserInterface!$E$69 = 1,CHOOSE(m_identity,'SHE-Transmission PLC'!AI40, SPTL!AI40, 'NGET TO'!AI40),CHOOSE(m_identity,'SHE-Transmission PLC (Blank - )'!AI40, 'SPTL (Blank - not used)'!AI40, 'NGET TO (Blank - not used)'!AI40)) -> 0.6 | AJ40: =IF(UserInterface!$E$69 = 1,CHOOSE(m_identity,'SHE-Transmission PLC'!AJ40, SPTL!AJ40, 'NGET TO'!AJ40),CHOOSE(m_identity,'SHE-Transmission PLC (Blank - )'!AJ40, 'SPTL (Blank - not used)'!AJ40, 'NGET TO (Blank - not used)'!AJ40)) -> 0.6 | AK40: =IF(UserInterface!$E$69 = 1,CHOOSE(m_identity,'SHE-Transmission PLC'!AK40, SPTL!AK40, 'NGET TO'!AK40),CHOOSE(m_identity,'SHE-Transmission PLC (Blank - )'!AK40, 'SPTL (Blank - not used)'!AK40, 'NGET TO (Blank - not used)'!AK40)) -> 0.6 | AL40: =IF(UserInterface!$E$69 = 1,CHOOSE(m_identity,'SHE-Transmission PLC'!AL40, SPTL!AL40, 'NGET TO'!AL40),CHOOSE(m_identity,'SHE-Transmission PLC (Blank - )'!AL40, 'SPTL (Blank - not used)'!AL40, 'NGET TO (Blank - not used)'!AL40)) -> 0.6 | AM40: =IF(UserInterface!$E$69 = 1,CHOOSE(m_identity,'SHE-Transmission PLC'!AM40, SPTL!AM40, 'NGET TO'!AM40),CHOOSE(m_identity,'SHE-Transmission PLC (Blank - )'!AM40, 'SPTL (Blank - not used)'!AM40, 'NGET TO (Blank - not used)'!AM40)) -> 0.6 | AN40: =IF(UserInterface!$E$69 = 1,CHOOSE(m_identity,'SHE-Transmission PLC'!AN40, SPTL!AN40, 'NGET TO'!AN40),CHOOSE(m_identity,'SHE-Transmission PLC (Blank - )'!AN40, 'SPTL (Blank - not used)'!AN40, 'NGET TO (Blank - not used)'!AN40)) -> 0.6 | AO40: =IF(UserInterface!$E$69 = 1,CHOOSE(m_identity,'SHE-Transmission PLC'!AO40, SPTL!AO40, 'NGET TO'!AO40),CHOOSE(m_identity,'SHE-Transmission PLC (Blank - )'!AO40, 'SPTL (Blank - not used)'!AO40, 'NGET TO (Blank - not used)'!AO40)) -> 0.6
E42: Vanilla WACC | G42: annual real % | AH42: =(AH38 * AH40) + (AH39 * (1 - AH40)) -> 0.04552 | AI42: 0.04432 | AJ42: 0.0433 | AK42: 0.0433 | AL42: 0.0433 | AM42: 0.0433 | AN42: 0.0433 | AO42: 0.0433
E44: Pre-RIIO closing notional gearing | G44: % | I44: =IF(UserInterface!$E$69 = 1,CHOOSE(m_identity,'SHE-Transmission PLC'!I44, SPTL!I44, 'NGET TO'!I44),CHOOSE(m_identity,'SHE-Transmission PLC (Blank - )'!I44, 'SPTL (Blank - not used)'!I44, 'NGET TO (Blank - not used)'!I44)) -> 0.6113535324
E46: Forecast RPI (simple average year to March) | G46: index value | J46: > | V46: =IF(UserInterface!$E$69 = 1,CHOOSE(m_identity,'SHE-Transmission PLC'!V46, SPTL!V46, 'NGET TO'!V46),CHOOSE(m_identity,'SHE-Transmission PLC (Blank - )'!V46, 'SPTL (Blank - not used)'!V46, 'NGET TO (Blank - not used)'!V46)) -> 173.875 | W46: =IF(UserInterface!$E$69 = 1,CHOOSE(m_identity,'SHE-Transmission PLC'!W46, SPTL!W46, 'NGET TO'!W46),CHOOSE(m_identity,'SHE-Transmission PLC (Blank - )'!W46, 'SPTL (Blank - not used)'!W46, 'NGET TO (Blank - not used)'!W46)) -> 177.517 | X46: =IF(UserInterface!$E$69 = 1,CHOOSE(m_identity,'SHE-Transmission PLC'!X46, SPTL!X46, 'NGET TO'!X46),CHOOSE(m_identity,'SHE-Transmission PLC (Blank - )'!X46, 'SPTL (Blank - not used)'!X46, 'NGET TO (Blank - not used)'!X46)) -> 182.475 | Y46: =IF(UserInterface!$E$69 = 1,CHOOSE(m_identity,'SHE-Transmission PLC'!Y46, SPTL!Y46, 'NGET TO'!Y46),CHOOSE(m_identity,'SHE-Transmission PLC (Blank - )'!Y46, 'SPTL (Blank - not used)'!Y46, 'NGET TO (Blank - not used)'!Y46)) -> 188.15 | Z46: =IF(UserInterface!$E$69 = 1,CHOOSE(m_identity,'SHE-Transmission PLC'!Z46, SPTL!Z46, 'NGET TO'!Z46),CHOOSE(m_identity,'SHE-Transmission PLC (Blank - )'!Z46, 'SPTL (Blank - not used)'!Z46, 'NGET TO (Blank - not used)'!Z46)) -> 193.108 | AA46: =IF(UserInterface!$E$69 = 1,CHOOSE(m_identity,'SHE-Transmission PLC'!AA46, SPTL!AA46, 'NGET TO'!AA46),CHOOSE(m_identity,'SHE-Transmission PLC (Blank - )'!AA46, 'SPTL (Blank - not used)'!AA46, 'NGET TO (Blank - not used)'!AA46)) -> 200.317 | AB46: =IF(UserInterface!$E$69 = 1,CHOOSE(m_identity,'SHE-Transmission PLC'!AB46, SPTL!AB46, 'NGET TO'!AB46),CHOOSE(m_identity,'SHE-Transmission PLC (Blank - )'!AB46, 'SPTL (Blank - not used)'!AB46, 'NGET TO (Blank - not used)'!AB46)) -> 208.592 | AC46: =IF(UserInterface!$E$69 = 1,CHOOSE(m_identity,'SHE-Transmission PLC'!AC46, SPTL!AC46, 'NGET TO'!AC46),CHOOSE(m_identity,'SHE-Transmission PLC (Blank - )'!AC46, 'SPTL (Blank - not used)'!AC46, 'NGET TO (Blank - not used)'!AC46)) -> 214.783 | AD46: =IF(UserInterface!$E$69 = 1,CHOOSE(m_identity,'SHE-Transmission PLC'!AD46, SPTL!AD46, 'NGET TO'!AD46),CHOOSE(m_identity,'SHE-Transmission PLC (Blank - )'!AD46, 'SPTL (Blank - not used)'!AD46, 'NGET TO (Blank - not used)'!AD46)) -> 215.767 | AE46: =IF(UserInterface!$E$69 = 1,CHOOSE(m_identity,'SHE-Transmission PLC'!AE46, SPTL!AE46, 'NGET TO'!AE46),CHOOSE(m_identity,'SHE-Transmission PLC (Blank - )'!AE46, 'SPTL (Blank - not used)'!AE46, 'NGET TO (Blank - not used)'!AE46)) -> 226.475 | AF46: =IF(UserInterface!$E$69 = 1,CHOOSE(m_identity,'SHE-Transmission PLC'!AF46, SPTL!AF46, 'NGET TO'!AF46),CHOOSE(m_identity,'SHE-Transmission PLC (Blank - )'!AF46, 'SPTL (Blank - not used)'!AF46, 'NGET TO (Blank - not used)'!AF46)) -> 237.342 | AG46: =IF(UserInterface!$E$69 = 1,CHOOSE(m_identity,'SHE-Transmission PLC'!AG46, SPTL!AG46, 'NGET TO'!AG46),CHOOSE(m_identity,'SHE-Transmission PLC (Blank - )'!AG46, 'SPTL (Blank - not used)'!AG46, 'NGET TO (Blank - not used)'!AG46)) -> 243.988 | AH46: =IF(UserInterface!$E$69 = 1,CHOOSE(m_identity,'SHE-Transmission PLC'!AH46, SPTL!AH46, 'NGET TO'!AH46),CHOOSE(m_identity,'SHE-Transmission PLC (Blank - )'!AH46, 'SPTL (Blank - not used)'!AH46, 'NGET TO (Blank - not used)'!AH46)) -> 250.82 | AI46: =IF(UserInterface!$E$69 = 1,CHOOSE(m_identity,'SHE-Transmission PLC'!AI46, SPTL!AI46, 'NGET TO'!AI46),CHOOSE(m_identity,'SHE-Transmission PLC (Blank - )'!AI46, 'SPTL (Blank - not used)'!AI46, 'NGET TO (Blank - not used)'!AI46)) -> 257.843 | AJ46: =IF(UserInterface!$E$69 = 1,CHOOSE(m_identity,'SHE-Transmission PLC'!AJ46, SPTL!AJ46, 'NGET TO'!AJ46),CHOOSE(m_identity,'SHE-Transmission PLC (Blank - )'!AJ46, 'SPTL (Blank - not used)'!AJ46, 'NGET TO (Blank - not used)'!AJ46)) -> 265.063 | AK46: =IF(UserInterface!$E$69 = 1,CHOOSE(m_identity,'SHE-Transmission PLC'!AK46, SPTL!AK46, 'NGET TO'!AK46),CHOOSE(m_identity,'SHE-Transmission PLC (Blank - )'!AK46, 'SPTL (Blank - not used)'!AK46, 'NGET TO (Blank - not used)'!AK46)) -> 272.485 | AL46: =IF(UserInterface!$E$69 = 1,CHOOSE(m_identity,'SHE-Transmission PLC'!AL46, SPTL!AL46, 'NGET TO'!AL46),CHOOSE(m_identity,'SHE-Transmission PLC (Blank - )'!AL46, 'SPTL (Blank - not used)'!AL46, 'NGET TO (Blank - not used)'!AL46)) -> 280.115 | AM46: =IF(UserInterface!$E$69 = 1,CHOOSE(m_identity,'SHE-Transmission PLC'!AM46, SPTL!AM46, 'NGET TO'!AM46),CHOOSE(m_identity,'SHE-Transmission PLC (Blank - )'!AM46, 'SPTL (Blank - not used)'!AM46, 'NGET TO (Blank - not used)'!AM46)) -> 287.958 | AN46: =IF(UserInterface!$E$69 = 1,CHOOSE(m_identity,'SHE-Transmission PLC'!AN46, SPTL!AN46, 'NGET TO'!AN46),CHOOSE(m_identity,'SHE-Transmission PLC (Blank - )'!AN46, 'SPTL (Blank - not used)'!AN46, 'NGET TO (Blank - not used)'!AN46)) -> 296.021 | AO46: =IF(UserInterface!$E$69 = 1,CHOOSE(m_identity,'SHE-Transmission PLC'!AO46, SPTL!AO46, 'NGET TO'!AO46),CHOOSE(m_identity,'SHE-Transmission PLC (Blank - )'!AO46, 'SPTL (Blank - not used)'!AO46, 'NGET TO (Blank - not used)'!AO46)) -> 304.31
E47: Cost of Debt Inflation | G47: index value | J47: > | V47: =IF(UserInterface!$E$69 = 1,CHOOSE(m_identity,'SHE-Transmission PLC'!V47, SPTL!V47, 'NGET TO'!V47),CHOOSE(m_identity,'SHE-Transmission PLC (Blank - )'!V47, 'SPTL (Blank - not used)'!V47, 'NGET TO (Blank - not used)'!V47)) -> 173.875 | W47: =IF(UserInterface!$E$69 = 1,CHOOSE(m_identity,'SHE-Transmission PLC'!W47, SPTL!W47, 'NGET TO'!W47),CHOOSE(m_identity,'SHE-Transmission PLC (Blank - )'!W47, 'SPTL (Blank - not used)'!W47, 'NGET TO (Blank - not used)'!W47)) -> 177.517 | X47: =IF(UserInterface!$E$69 = 1,CHOOSE(m_identity,'SHE-Transmission PLC'!X47, SPTL!X47, 'NGET TO'!X47),CHOOSE(m_identity,'SHE-Transmission PLC (Blank - )'!X47, 'SPTL (Blank - not used)'!X47, 'NGET TO (Blank - not used)'!X47)) -> 182.475 | Y47: =IF(UserInterface!$E$69 = 1,CHOOSE(m_identity,'SHE-Transmission PLC'!Y47, SPTL!Y47, 'NGET TO'!Y47),CHOOSE(m_identity,'SHE-Transmission PLC (Blank - )'!Y47, 'SPTL (Blank - not used)'!Y47, 'NGET TO (Blank - not used)'!Y47)) -> 188.15 | Z47: =IF(UserInterface!$E$69 = 1,CHOOSE(m_identity,'SHE-Transmission PLC'!Z47, SPTL!Z47, 'NGET TO'!Z47),CHOOSE(m_identity,'SHE-Transmission PLC (Blank - )'!Z47, 'SPTL (Blank - not used)'!Z47, 'NGET TO (Blank - not used)'!Z47)) -> 193.108 | AA47: =IF(UserInterface!$E$69 = 1,CHOOSE(m_identity,'SHE-Transmission PLC'!AA47, SPTL!AA47, 'NGET TO'!AA47),CHOOSE(m_identity,'SHE-Transmission PLC (Blank - )'!AA47, 'SPTL (Blank - not used)'!AA47, 'NGET TO (Blank - not used)'!AA47)) -> 200.317 | AB47: =IF(UserInterface!$E$69 = 1,CHOOSE(m_identity,'SHE-Transmission PLC'!AB47, SPTL!AB47, 'NGET TO'!AB47),CHOOSE(m_identity,'SHE-Transmission PLC (Blank - )'!AB47, 'SPTL (Blank - not used)'!AB47, 'NGET TO (Blank - not used)'!AB47)) -> 208.592 | AC47: =IF(UserInterface!$E$69 = 1,CHOOSE(m_identity,'SHE-Transmission PLC'!AC47, SPTL!AC47, 'NGET TO'!AC47),CHOOSE(m_identity,'SHE-Transmission PLC (Blank - )'!AC47, 'SPTL (Blank - not used)'!AC47, 'NGET TO (Blank - not used)'!AC47)) -> 214.783 | AD47: =IF(UserInterface!$E$69 = 1,CHOOSE(m_identity,'SHE-Transmission PLC'!AD47, SPTL!AD47, 'NGET TO'!AD47),CHOOSE(m_identity,'SHE-Transmission PLC (Blank - )'!AD47, 'SPTL (Blank - not used)'!AD47, 'NGET TO (Blank - not used)'!AD47)) -> 215.767 | AE47: =IF(UserInterface!$E$69 = 1,CHOOSE(m_identity,'SHE-Transmission PLC'!AE47, SPTL!AE47, 'NGET TO'!AE47),CHOOSE(m_identity,'SHE-Transmission PLC (Blank - )'!AE47, 'SPTL (Blank - not used)'!AE47, 'NGET TO (Blank - not used)'!AE47)) -> 226.475 | AF47: =IF(UserInterface!$E$69 = 1,CHOOSE(m_identity,'SHE-Transmission PLC'!AF47, SPTL!AF47, 'NGET TO'!AF47),CHOOSE(m_identity,'SHE-Transmission PLC (Blank - )'!AF47, 'SPTL (Blank - not used)'!AF47, 'NGET TO (Blank - not used)'!AF47)) -> 237.342 | AG47: =IF(UserInterface!$E$69 = 1,CHOOSE(m_identity,'SHE-Transmission PLC'!AG47, SPTL!AG47, 'NGET TO'!AG47),CHOOSE(m_identity,'SHE-Transmission PLC (Blank - )'!AG47, 'SPTL (Blank - not used)'!AG47, 'NGET TO (Blank - not used)'!AG47)) -> 243.988 | AH47: =IF(UserInterface!$E$69 = 1,CHOOSE(m_identity,'SHE-Transmission PLC'!AH47, SPTL!AH47, 'NGET TO'!AH47),CHOOSE(m_identity,'SHE-Transmission PLC (Blank - )'!AH47, 'SPTL (Blank - not used)'!AH47, 'NGET TO (Blank - not used)'!AH47)) -> 250.82 | AI47: =IF(UserInterface!$E$69 = 1,CHOOSE(m_identity,'SHE-Transmission PLC'!AI47, SPTL!AI47, 'NGET TO'!AI47),CHOOSE(m_identity,'SHE-Transmission PLC (Blank - )'!AI47, 'SPTL (Blank - not used)'!AI47, 'NGET TO (Blank - not used)'!AI47)) -> 257.843 | AJ47: =IF(UserInterface!$E$69 = 1,CHOOSE(m_identity,'SHE-Transmission PLC'!AJ47, SPTL!AJ47, 'NGET TO'!AJ47),CHOOSE(m_identity,'SHE-Transmission PLC (Blank - )'!AJ47, 'SPTL (Blank - not used)'!AJ47, 'NGET TO (Blank - not used)'!AJ47)) -> 265.063 | AK47: =IF(UserInterface!$E$69 = 1,CHOOSE(m_identity,'SHE-Transmission PLC'!AK47, SPTL!AK47, 'NGET TO'!AK47),CHOOSE(m_identity,'SHE-Transmission PLC (Blank - )'!AK47, 'SPTL (Blank - not used)'!AK47, 'NGET TO (Blank - not used)'!AK47)) -> 272.485 | AL47: =IF(UserInterface!$E$69 = 1,CHOOSE(m_identity,'SHE-Transmission PLC'!AL47, SPTL!AL47, 'NGET TO'!AL47),CHOOSE(m_identity,'SHE-Transmission PLC (Blank - )'!AL47, 'SPTL (Blank - not used)'!AL47, 'NGET TO (Blank - not used)'!AL47)) -> 280.115 | AM47: =IF(UserInterface!$E$69 = 1,CHOOSE(m_identity,'SHE-Transmission PLC'!AM47, SPTL!AM47, 'NGET TO'!AM47),CHOOSE(m_identity,'SHE-Transmission PLC (Blank - )'!AM47, 'SPTL (Blank - not used)'!AM47, 'NGET TO (Blank - not used)'!AM47)) -> 287.958 | AN47: =IF(UserInterface!$E$69 = 1,CHOOSE(m_identity,'SHE-Transmission PLC'!AN47, SPTL!AN47, 'NGET TO'!AN47),CHOOSE(m_identity,'SHE-Transmission PLC (Blank - )'!AN47, 'SPTL (Blank - not used)'!AN47, 'NGET TO (Blank - not used)'!AN47)) -> 296.021 | AO47: =IF(UserInterface!$E$69 = 1,CHOOSE(m_identity,'SHE-Transmission PLC'!AO47, SPTL!AO47, 'NGET TO'!AO47),CHOOSE(m_identity,'SHE-Transmission PLC (Blank - )'!AO47, 'SPTL (Blank - not used)'!AO47, 'NGET TO (Blank - not used)'!AO47)) -> 304.31
C48: TIM and capitalisation
E50: Years from t until normal reporting of actual costs | G50: years | I50: =IF(UserInterface!$E$69 = 1,CHOOSE(m_identity,'SHE-Transmission PLC'!I50, SPTL!I50, 'NGET TO'!I50),CHOOSE(m_identity,'SHE-Transmission PLC (Blank - )'!I50, 'SPTL (Blank - not used)'!I50, 'NGET TO (Blank - not used)'!I50)) -> 2
E52: Capitalised share of totex | G52: % | AH52: =IF(UserInterface!$E$69 = 1,CHOOSE(m_identity,'SHE-Transmission PLC'!AH52, SPTL!AH52, 'NGET TO'!AH52),CHOOSE(m_identity,'SHE-Transmission PLC (Blank - )'!AH52, 'SPTL (Blank - not used)'!AH52, 'NGET TO (Blank - not used)'!AH52)) -> 0.85 | AI52: =IF(UserInterface!$E$69 = 1,CHOOSE(m_identity,'SHE-Transmission PLC'!AI52, SPTL!AI52, 'NGET TO'!AI52),CHOOSE(m_identity,'SHE-Transmission PLC (Blank - )'!AI52, 'SPTL (Blank - not used)'!AI52, 'NGET TO (Blank - not used)'!AI52)) -> 0.85 | AJ52: =IF(UserInterface!$E$69 = 1,CHOOSE(m_identity,'SHE-Transmission PLC'!AJ52, SPTL!AJ52, 'NGET TO'!AJ52),CHOOSE(m_identity,'SHE-Transmission PLC (Blank - )'!AJ52, 'SPTL (Blank - not used)'!AJ52, 'NGET TO (Blank - not used)'!AJ52)) -> 0.85 | AK52: =IF(UserInterface!$E$69 = 1,CHOOSE(m_identity,'SHE-Transmission PLC'!AK52, SPTL!AK52, 'NGET TO'!AK52),CHOOSE(m_identity,'SHE-Transmission PLC (Blank - )'!AK52, 'SPTL (Blank - not used)'!AK52, 'NGET TO (Blank - not used)'!AK52)) -> 0.85 | AL52: =IF(UserInterface!$E$69 = 1,CHOOSE(m_identity,'SHE-Transmission PLC'!AL52, SPTL!AL52, 'NGET TO'!AL52),CHOOSE(m_identity,'SHE-Transmission PLC (Blank - )'!AL52, 'SPTL (Blank - not used)'!AL52, 'NGET TO (Blank - not used)'!AL52)) -> 0.85 | AM52: =IF(UserInterface!$E$69 = 1,CHOOSE(m_identity,'SHE-Transmission PLC'!AM52, SPTL!AM52, 'NGET TO'!AM52),CHOOSE(m_identity,'SHE-Transmission PLC (Blank - )'!AM52, 'SPTL (Blank - not used)'!AM52, 'NGET TO (Blank - not used)'!AM52)) -> 0.85 | AN52: =IF(UserInterface!$E$69 = 1,CHOOSE(m_identity,'SHE-Transmission PLC'!AN52, SPTL!AN52, 'NGET TO'!AN52),CHOOSE(m_identity,'SHE-Transmission PLC (Blank - )'!AN52, 'SPTL (Blank - not used)'!AN52, 'NGET TO (Blank - not used)'!AN52)) -> 0.85 | AO52: =IF(UserInterface!$E$69 = 1,CHOOSE(m_identity,'SHE-Transmission PLC'!AO52, SPTL!AO52, 'NGET TO'!AO52),CHOOSE(m_identity,'SHE-Transmission PLC (Blank - )'!AO52, 'SPTL (Blank - not used)'!AO52, 'NGET TO (Blank - not used)'!AO52)) -> 0.85
E53: Capitalised share of wider works | G53: % | AH53: =IF(UserInterface!$E$69 = 1,CHOOSE(m_identity,'SHE-Transmission PLC'!AH53, SPTL!AH53, 'NGET TO'!AH53),CHOOSE(m_identity,'SHE-Transmission PLC (Blank - )'!AH53, 'SPTL (Blank - not used)'!AH53, 'NGET TO (Blank - not used)'!AH53)) -> 0.85 | AI53: =IF(UserInterface!$E$69 = 1,CHOOSE(m_identity,'SHE-Transmission PLC'!AI53, SPTL!AI53, 'NGET TO'!AI53),CHOOSE(m_identity,'SHE-Transmission PLC (Blank - )'!AI53, 'SPTL (Blank - not used)'!AI53, 'NGET TO (Blank - not used)'!AI53)) -> 0.85 | AJ53: =IF(UserInterface!$E$69 = 1,CHOOSE(m_identity,'SHE-Transmission PLC'!AJ53, SPTL!AJ53, 'NGET TO'!AJ53),CHOOSE(m_identity,'SHE-Transmission PLC (Blank - )'!AJ53, 'SPTL (Blank - not used)'!AJ53, 'NGET TO (Blank - not used)'!AJ53)) -> 0.85 | AK53: =IF(UserInterface!$E$69 = 1,CHOOSE(m_identity,'SHE-Transmission PLC'!AK53, SPTL!AK53, 'NGET TO'!AK53),CHOOSE(m_identity,'SHE-Transmission PLC (Blank - )'!AK53, 'SPTL (Blank - not used)'!AK53, 'NGET TO (Blank - not used)'!AK53)) -> 0.85 | AL53: =IF(UserInterface!$E$69 = 1,CHOOSE(m_identity,'SHE-Transmission PLC'!AL53, SPTL!AL53, 'NGET TO'!AL53),CHOOSE(m_identity,'SHE-Transmission PLC (Blank - )'!AL53, 'SPTL (Blank - not used)'!AL53, 'NGET TO (Blank - not used)'!AL53)) -> 0.85 | AM53: =IF(UserInterface!$E$69 = 1,CHOOSE(m_identity,'SHE-Transmission PLC'!AM53, SPTL!AM53, 'NGET TO'!AM53),CHOOSE(m_identity,'SHE-Transmission PLC (Blank - )'!AM53, 'SPTL (Blank - not used)'!AM53, 'NGET TO (Blank - not used)'!AM53)) -> 0.85 | AN53: =IF(UserInterface!$E$69 = 1,CHOOSE(m_identity,'SHE-Transmission PLC'!AN53, SPTL!AN53, 'NGET TO'!AN53),CHOOSE(m_identity,'SHE-Transmission PLC (Blank - )'!AN53, 'SPTL (Blank - not used)'!AN53, 'NGET TO (Blank - not used)'!AN53)) -> 0.85 | AO53: =IF(UserInterface!$E$69 = 1,CHOOSE(m_identity,'SHE-Transmission PLC'!AO53, SPTL!AO53, 'NGET TO'!AO53),CHOOSE(m_identity,'SHE-Transmission PLC (Blank - )'!AO53, 'SPTL (Blank - not used)'!AO53, 'NGET TO (Blank - not used)'!AO53)) -> 0.85
E55: Incentive rate (slope) | G55: scalar | I55: =IF(UserInterface!$E$69 = 1,CHOOSE(m_identity,'SHE-Transmission PLC'!I55, SPTL!I55, 'NGET TO'!I55),CHOOSE(m_identity,'SHE-Transmission PLC (Blank - )'!I55, 'SPTL (Blank - not used)'!I55, 'NGET TO (Blank - not used)'!I55)) -> -0.0025
E56: Incentive rate (intercept) | G56: scalar | I56: =IF(UserInterface!$E$69 = 1,CHOOSE(m_identity,'SHE-Transmission PLC'!I56, SPTL!I56, 'NGET TO'!I56),CHOOSE(m_identity,'SHE-Transmission PLC (Blank - )'!I56, 'SPTL (Blank - not used)'!I56, 'NGET TO (Blank - not used)'!I56)) -> 0.75
E57: Additional income (intercept) | G57: scalar | I57: =IF(UserInterface!$E$69 = 1,CHOOSE(m_identity,'SHE-Transmission PLC'!I57, SPTL!I57, 'NGET TO'!I57),CHOOSE(m_identity,'SHE-Transmission PLC (Blank - )'!I57, 'SPTL (Blank - not used)'!I57, 'NGET TO (Blank - not used)'!I57)) -> 8.75
E58: Additional Income (adjustment) | G58: £m 09/10 prices | AH58: =IF(UserInterface!$E$69 = 1,CHOOSE(m_identity,'SHE-Transmission PLC'!AH58, SPTL!AH58, 'NGET TO'!AH58),CHOOSE(m_identity,'SHE-Transmission PLC (Blank - )'!AH58, 'SPTL (Blank - not used)'!AH58, 'NGET TO (Blank - not used)'!AH58)) -> 2.112301096 | AI58: =IF(UserInterface!$E$69 = 1,CHOOSE(m_identity,'SHE-Transmission PLC'!AI58, SPTL!AI58, 'NGET TO'!AI58),CHOOSE(m_identity,'SHE-Transmission PLC (Blank - )'!AI58, 'SPTL (Blank - not used)'!AI58, 'NGET TO (Blank - not used)'!AI58)) -> 2.043075937 | AJ58: =IF(UserInterface!$E$69 = 1,CHOOSE(m_identity,'SHE-Transmission PLC'!AJ58, SPTL!AJ58, 'NGET TO'!AJ58),CHOOSE(m_identity,'SHE-Transmission PLC (Blank - )'!AJ58, 'SPTL (Blank - not used)'!AJ58, 'NGET TO (Blank - not used)'!AJ58)) -> 2.000931562 | AK58: =IF(UserInterface!$E$69 = 1,CHOOSE(m_identity,'SHE-Transmission PLC'!AK58, SPTL!AK58, 'NGET TO'!AK58),CHOOSE(m_identity,'SHE-Transmission PLC (Blank - )'!AK58, 'SPTL (Blank - not used)'!AK58, 'NGET TO (Blank - not used)'!AK58)) -> 1.958787188 | AL58: =IF(UserInterface!$E$69 = 1,CHOOSE(m_identity,'SHE-Transmission PLC'!AL58, SPTL!AL58, 'NGET TO'!AL58),CHOOSE(m_identity,'SHE-Transmission PLC (Blank - )'!AL58, 'SPTL (Blank - not used)'!AL58, 'NGET TO (Blank - not used)'!AL58)) -> 1.916642813 | AM58: =IF(UserInterface!$E$69 = 1,CHOOSE(m_identity,'SHE-Transmission PLC'!AM58, SPTL!AM58, 'NGET TO'!AM58),CHOOSE(m_identity,'SHE-Transmission PLC (Blank - )'!AM58, 'SPTL (Blank - not used)'!AM58, 'NGET TO (Blank - not used)'!AM58)) -> 1.874498438 | AN58: =IF(UserInterface!$E$69 = 1,CHOOSE(m_identity,'SHE-Transmission PLC'!AN58, SPTL!AN58, 'NGET TO'!AN58),CHOOSE(m_identity,'SHE-Transmission PLC (Blank - )'!AN58, 'SPTL (Blank - not used)'!AN58, 'NGET TO (Blank - not used)'!AN58)) -> 1.832354063 | AO58: =IF(UserInterface!$E$69 = 1,CHOOSE(m_identity,'SHE-Transmission PLC'!AO58, SPTL!AO58, 'NGET TO'!AO58),CHOOSE(m_identity,'SHE-Transmission PLC (Blank - )'!AO58, 'SPTL (Blank - not used)'!AO58, 'NGET TO (Blank - not used)'!AO58)) -> 1.790209688
E59: Weight of Ofgem's view on price control totex | G59: % | I59: =IF(UserInterface!$E$69 = 1,CHOOSE(m_identity,'SHE-Transmission PLC'!I59, SPTL!I59, 'NGET TO'!I59),CHOOSE(m_identity,'SHE-Transmission PLC (Blank - )'!I59, 'SPTL (Blank - not used)'!I59, 'NGET TO (Blank - not used)'!I59)) -> 0.75
E60: Weight of operator's view on price control totex | G60: % | I60: =IF(UserInterface!$E$69 = 1,CHOOSE(m_identity,'SHE-Transmission PLC'!I60, SPTL!I60, 'NGET TO'!I60),CHOOSE(m_identity,'SHE-Transmission PLC (Blank - )'!I60, 'SPTL (Blank - not used)'!I60, 'NGET TO (Blank - not used)'!I60)) -> 0.25
E62: Ofgem's view of licensee totex | G62: £m 09/10 prices | I62: =IF(UserInterface!$E$69 = 1,CHOOSE(m_identity,'SHE-Transmission PLC'!I62, SPTL!I62, 'NGET TO'!I62),CHOOSE(m_identity,'SHE-Transmission PLC (Blank - )'!I62, 'SPTL (Blank - not used)'!I62, 'NGET TO (Blank - not used)'!I62)) -> 10961.97316
E63: Operator's view of licensee totex | G63: £m 09/10 prices | I63: =IF(UserInterface!$E$69 = 1,CHOOSE(m_identity,'SHE-Transmission PLC'!I63, SPTL!I63, 'NGET TO'!I63),CHOOSE(m_identity,'SHE-Transmission PLC (Blank - )'!I63, 'SPTL (Blank - not used)'!I63, 'NGET TO (Blank - not used)'!I63)) -> 12278.83025
E65: Ofgem's view of group price control totex | G65: £m 09/10 prices | I65: =IF(UserInterface!$E$69 = 1,CHOOSE(m_identity,'SHE-Transmission PLC'!I65, SPTL!I65, 'NGET TO'!I65),CHOOSE(m_identity,'SHE-Transmission PLC (Blank - )'!I65, 'SPTL (Blank - not used)'!I65, 'NGET TO (Blank - not used)'!I65)) -> 11784.97539
E66: Operator's view of group price control totex | G66: £m 09/10 prices | I66: =IF(UserInterface!$E$69 = 1,CHOOSE(m_identity,'SHE-Transmission PLC'!I66, SPTL!I66, 'NGET TO'!I66),CHOOSE(m_identity,'SHE-Transmission PLC (Blank - )'!I66, 'SPTL (Blank - not used)'!I66, 'NGET TO (Blank - not used)'!I66)) -> 13249.13586
C68: Finance
E70: Minimum equity issuance threshold | G70: % | I70: =IF(UserInterface!$E$69 = 1,CHOOSE(m_identity,'SHE-Transmission PLC'!I70, SPTL!I70, 'NGET TO'!I70),CHOOSE(m_identity,'SHE-Transmission PLC (Blank - )'!I70, 'SPTL (Blank - not used)'!I70, 'NGET TO (Blank - not used)'!I70)) -> 0.025
E71: Equity issuance costs | G71: % | I71: =IF(UserInterface!$E$69 = 1,CHOOSE(m_identity,'SHE-Transmission PLC'!I71, SPTL!I71, 'NGET TO'!I71),CHOOSE(m_identity,'SHE-Transmission PLC (Blank - )'!I71, 'SPTL (Blank - not used)'!I71, 'NGET TO (Blank - not used)'!I71)) -> 0.05
E72: Assumed dividends as % of notional equity portion of RAV | G72: % | I72: =IF(UserInterface!$E$69 = 1,CHOOSE(m_identity,'SHE-Transmission PLC'!I72, SPTL!I72, 'NGET TO'!I72),CHOOSE(m_identity,'SHE-Transmission PLC (Blank - )'!I72, 'SPTL (Blank - not used)'!I72, 'NGET TO (Blank - not used)'!I72)) -> 0.05
E74: Equity issuance gearing target | G74: % | AH74: =IF(UserInterface!$E$69 = 1,CHOOSE(m_identity,'SHE-Transmission PLC'!AH74, SPTL!AH74, 'NGET TO'!AH74),CHOOSE(m_identity,'SHE-Transmission PLC (Blank - )'!AH74, 'SPTL (Blank - not used)'!AH74, 'NGET TO (Blank - not used)'!AH74)) -> 0.6 | AI74: =IF(UserInterface!$E$69 = 1,CHOOSE(m_identity,'SHE-Transmission PLC'!AI74, SPTL!AI74, 'NGET TO'!AI74),CHOOSE(m_identity,'SHE-Transmission PLC (Blank - )'!AI74, 'SPTL (Blank - not used)'!AI74, 'NGET TO (Blank - not used)'!AI74)) -> 0.6 | AJ74: =IF(UserInterface!$E$69 = 1,CHOOSE(m_identity,'SHE-Transmission PLC'!AJ74, SPTL!AJ74, 'NGET TO'!AJ74),CHOOSE(m_identity,'SHE-Transmission PLC (Blank - )'!AJ74, 'SPTL (Blank - not used)'!AJ74, 'NGET TO (Blank - not used)'!AJ74)) -> 0.6 | AK74: =IF(UserInterface!$E$69 = 1,CHOOSE(m_identity,'SHE-Transmission PLC'!AK74, SPTL!AK74, 'NGET TO'!AK74),CHOOSE(m_identity,'SHE-Transmission PLC (Blank - )'!AK74, 'SPTL (Blank - not used)'!AK74, 'NGET TO (Blank - not used)'!AK74)) -> 0.6 | AL74: =IF(UserInterface!$E$69 = 1,CHOOSE(m_identity,'SHE-Transmission PLC'!AL74, SPTL!AL74, 'NGET TO'!AL74),CHOOSE(m_identity,'SHE-Transmission PLC (Blank - )'!AL74, 'SPTL (Blank - not used)'!AL74, 'NGET TO (Blank - not used)'!AL74)) -> 0.6 | AM74: =IF(UserInterface!$E$69 = 1,CHOOSE(m_identity,'SHE-Transmission PLC'!AM74, SPTL!AM74, 'NGET TO'!AM74),CHOOSE(m_identity,'SHE-Transmission PLC (Blank - )'!AM74, 'SPTL (Blank - not used)'!AM74, 'NGET TO (Blank - not used)'!AM74)) -> 0.6 | AN74: =IF(UserInterface!$E$69 = 1,CHOOSE(m_identity,'SHE-Transmission PLC'!AN74, SPTL!AN74, 'NGET TO'!AN74),CHOOSE(m_identity,'SHE-Transmission PLC (Blank - )'!AN74, 'SPTL (Blank - not used)'!AN74, 'NGET TO (Blank - not used)'!AN74)) -> 0.6 | AO74: =IF(UserInterface!$E$69 = 1,CHOOSE(m_identity,'SHE-Transmission PLC'!AO74, SPTL!AO74, 'NGET TO'!AO74),CHOOSE(m_identity,'SHE-Transmission PLC (Blank - )'!AO74, 'SPTL (Blank - not used)'!AO74, 'NGET TO (Blank - not used)'!AO74)) -> 0.6
E76: Index-linked debt as a percentage of net debt | G76: % | AH76: =IF(UserInterface!$E$69 = 1,CHOOSE(m_identity,'SHE-Transmission PLC'!AH76, SPTL!AH76, 'NGET TO'!AH76),CHOOSE(m_identity,'SHE-Transmission PLC (Blank - )'!AH76, 'SPTL (Blank - not used)'!AH76, 'NGET TO (Blank - not used)'!AH76)) -> 0.25 | AI76: =IF(UserInterface!$E$69 = 1,CHOOSE(m_identity,'SHE-Transmission PLC'!AI76, SPTL!AI76, 'NGET TO'!AI76),CHOOSE(m_identity,'SHE-Transmission PLC (Blank - )'!AI76, 'SPTL (Blank - not used)'!AI76, 'NGET TO (Blank - not used)'!AI76)) -> 0.25 | AJ76: =IF(UserInterface!$E$69 = 1,CHOOSE(m_identity,'SHE-Transmission PLC'!AJ76, SPTL!AJ76, 'NGET TO'!AJ76),CHOOSE(m_identity,'SHE-Transmission PLC (Blank - )'!AJ76, 'SPTL (Blank - not used)'!AJ76, 'NGET TO (Blank - not used)'!AJ76)) -> 0.25 | AK76: =IF(UserInterface!$E$69 = 1,CHOOSE(m_identity,'SHE-Transmission PLC'!AK76, SPTL!AK76, 'NGET TO'!AK76),CHOOSE(m_identity,'SHE-Transmission PLC (Blank - )'!AK76, 'SPTL (Blank - not used)'!AK76, 'NGET TO (Blank - not used)'!AK76)) -> 0.25 | AL76: =IF(UserInterface!$E$69 = 1,CHOOSE(m_identity,'SHE-Transmission PLC'!AL76, SPTL!AL76, 'NGET TO'!AL76),CHOOSE(m_identity,'SHE-Transmission PLC (Blank - )'!AL76, 'SPTL (Blank - not used)'!AL76, 'NGET TO (Blank - not used)'!AL76)) -> 0.25 | AM76: =IF(UserInterface!$E$69 = 1,CHOOSE(m_identity,'SHE-Transmission PLC'!AM76, SPTL!AM76, 'NGET TO'!AM76),CHOOSE(m_identity,'SHE-Transmission PLC (Blank - )'!AM76, 'SPTL (Blank - not used)'!AM76, 'NGET TO (Blank - not used)'!AM76)) -> 0.25 | AN76: =IF(UserInterface!$E$69 = 1,CHOOSE(m_identity,'SHE-Transmission PLC'!AN76, SPTL!AN76, 'NGET TO'!AN76),CHOOSE(m_identity,'SHE-Transmission PLC (Blank - )'!AN76, 'SPTL (Blank - not used)'!AN76, 'NGET TO (Blank - not used)'!AN76)) -> 0.25 | AO76: =IF(UserInterface!$E$69 = 1,CHOOSE(m_identity,'SHE-Transmission PLC'!AO76, SPTL!AO76, 'NGET TO'!AO76),CHOOSE(m_identity,'SHE-Transmission PLC (Blank - )'!AO76, 'SPTL (Blank - not used)'!AO76, 'NGET TO (Blank - not used)'!AO76)) -> 0.25
B78: Expenditure
C80: Totex
D82: Non-variant allowances
E84: Non-variant allowed load related capex expenditure | G84: £m 09/10 prices | AH84: =IF(UserInterface!$E$69 = 1,CHOOSE(m_identity,'SHE-Transmission PLC'!AH84, SPTL!AH84, 'NGET TO'!AH84),CHOOSE(m_identity,'SHE-Transmission PLC (Blank - )'!AH84, 'SPTL (Blank - not used)'!AH84, 'NGET TO (Blank - not used)'!AH84)) -> 241.918351 | AI84: =IF(UserInterface!$E$69 = 1,CHOOSE(m_identity,'SHE-Transmission PLC'!AI84, SPTL!AI84, 'NGET TO'!AI84),CHOOSE(m_identity,'SHE-Transmission PLC (Blank - )'!AI84, 'SPTL (Blank - not used)'!AI84, 'NGET TO (Blank - not used)'!AI84)) -> 206.2228581 | AJ84: =IF(UserInterface!$E$69 = 1,CHOOSE(m_identity,'SHE-Transmission PLC'!AJ84, SPTL!AJ84, 'NGET TO'!AJ84),CHOOSE(m_identity,'SHE-Transmission PLC (Blank - )'!AJ84, 'SPTL (Blank - not used)'!AJ84, 'NGET TO (Blank - not used)'!AJ84)) -> 183.4765697 | AK84: =IF(UserInterface!$E$69 = 1,CHOOSE(m_identity,'SHE-Transmission PLC'!AK84, SPTL!AK84, 'NGET TO'!AK84),CHOOSE(m_identity,'SHE-Transmission PLC (Blank - )'!AK84, 'SPTL (Blank - not used)'!AK84, 'NGET TO (Blank - not used)'!AK84)) -> 187.4017354 | AL84: =IF(UserInterface!$E$69 = 1,CHOOSE(m_identity,'SHE-Transmission PLC'!AL84, SPTL!AL84, 'NGET TO'!AL84),CHOOSE(m_identity,'SHE-Transmission PLC (Blank - )'!AL84, 'SPTL (Blank - not used)'!AL84, 'NGET TO (Blank - not used)'!AL84)) -> 142.927059 | AM84: =IF(UserInterface!$E$69 = 1,CHOOSE(m_identity,'SHE-Transmission PLC'!AM84, SPTL!AM84, 'NGET TO'!AM84),CHOOSE(m_identity,'SHE-Transmission PLC (Blank - )'!AM84, 'SPTL (Blank - not used)'!AM84, 'NGET TO (Blank - not used)'!AM84)) -> 124.4612897 | AN84: =IF(UserInterface!$E$69 = 1,CHOOSE(m_identity,'SHE-Transmission PLC'!AN84, SPTL!AN84, 'NGET TO'!AN84),CHOOSE(m_identity,'SHE-Transmission PLC (Blank - )'!AN84, 'SPTL (Blank - not used)'!AN84, 'NGET TO (Blank - not used)'!AN84)) -> 44.07235061 | AO84: =IF(UserInterface!$E$69 = 1,CHOOSE(m_identity,'SHE-Transmission PLC'!AO84, SPTL!AO84, 'NGET TO'!AO84),CHOOSE(m_identity,'SHE-Transmission PLC (Blank - )'!AO84, 'SPTL (Blank - not used)'!AO84, 'NGET TO (Blank - not used)'!AO84)) -> 28.38354864
E85: Non-variant allowed asset replacement capex expenditure | G85: £m 09/10 prices | AH85: =IF(UserInterface!$E$69 = 1,CHOOSE(m_identity,'SHE-Transmission PLC'!AH85, SPTL!AH85, 'NGET TO'!AH85),CHOOSE(m_identity,'SHE-Transmission PLC (Blank - )'!AH85, 'SPTL (Blank - not used)'!AH85, 'NGET TO (Blank - not used)'!AH85)) -> 468.8084321 | AI85: =IF(UserInterface!$E$69 = 1,CHOOSE(m_identity,'SHE-Transmission PLC'!AI85, SPTL!AI85, 'NGET TO'!AI85),CHOOSE(m_identity,'SHE-Transmission PLC (Blank - )'!AI85, 'SPTL (Blank - not used)'!AI85, 'NGET TO (Blank - not used)'!AI85)) -> 464.0539988 | AJ85: =IF(UserInterface!$E$69 = 1,CHOOSE(m_identity,'SHE-Transmission PLC'!AJ85, SPTL!AJ85, 'NGET TO'!AJ85),CHOOSE(m_identity,'SHE-Transmission PLC (Blank - )'!AJ85, 'SPTL (Blank - not used)'!AJ85, 'NGET TO (Blank - not used)'!AJ85)) -> 458.9694018 | AK85: =IF(UserInterface!$E$69 = 1,CHOOSE(m_identity,'SHE-Transmission PLC'!AK85, SPTL!AK85, 'NGET TO'!AK85),CHOOSE(m_identity,'SHE-Transmission PLC (Blank - )'!AK85, 'SPTL (Blank - not used)'!AK85, 'NGET TO (Blank - not used)'!AK85)) -> 462.2051567 | AL85: =IF(UserInterface!$E$69 = 1,CHOOSE(m_identity,'SHE-Transmission PLC'!AL85, SPTL!AL85, 'NGET TO'!AL85),CHOOSE(m_identity,'SHE-Transmission PLC (Blank - )'!AL85, 'SPTL (Blank - not used)'!AL85, 'NGET TO (Blank - not used)'!AL85)) -> 597.3961699 | AM85: =IF(UserInterface!$E$69 = 1,CHOOSE(m_identity,'SHE-Transmission PLC'!AM85, SPTL!AM85, 'NGET TO'!AM85),CHOOSE(m_identity,'SHE-Transmission PLC (Blank - )'!AM85, 'SPTL (Blank - not used)'!AM85, 'NGET TO (Blank - not used)'!AM85)) -> 694.9536236 | AN85: =IF(UserInterface!$E$69 = 1,CHOOSE(m_identity,'SHE-Transmission PLC'!AN85, SPTL!AN85, 'NGET TO'!AN85),CHOOSE(m_identity,'SHE-Transmission PLC (Blank - )'!AN85, 'SPTL (Blank - not used)'!AN85, 'NGET TO (Blank - not used)'!AN85)) -> 760.4713341 | AO85: =IF(UserInterface!$E$69 = 1,CHOOSE(m_identity,'SHE-Transmission PLC'!AO85, SPTL!AO85, 'NGET TO'!AO85),CHOOSE(m_identity,'SHE-Transmission PLC (Blank - )'!AO85, 'SPTL (Blank - not used)'!AO85, 'NGET TO (Blank - not used)'!AO85)) -> 680.3753404
E86: Non-variant allowed other capex expenditure | G86: £m 09/10 prices | AH86: =IF(UserInterface!$E$69 = 1,CHOOSE(m_identity,'SHE-Transmission PLC'!AH86, SPTL!AH86, 'NGET TO'!AH86),CHOOSE(m_identity,'SHE-Transmission PLC (Blank - )'!AH86, 'SPTL (Blank - not used)'!AH86, 'NGET TO (Blank - not used)'!AH86)) -> 8.80768 | AI86: =IF(UserInterface!$E$69 = 1,CHOOSE(m_identity,'SHE-Transmission PLC'!AI86, SPTL!AI86, 'NGET TO'!AI86),CHOOSE(m_identity,'SHE-Transmission PLC (Blank - )'!AI86, 'SPTL (Blank - not used)'!AI86, 'NGET TO (Blank - not used)'!AI86)) -> 7.25688 | AJ86: =IF(UserInterface!$E$69 = 1,CHOOSE(m_identity,'SHE-Transmission PLC'!AJ86, SPTL!AJ86, 'NGET TO'!AJ86),CHOOSE(m_identity,'SHE-Transmission PLC (Blank - )'!AJ86, 'SPTL (Blank - not used)'!AJ86, 'NGET TO (Blank - not used)'!AJ86)) -> 5.941 | AK86: =IF(UserInterface!$E$69 = 1,CHOOSE(m_identity,'SHE-Transmission PLC'!AK86, SPTL!AK86, 'NGET TO'!AK86),CHOOSE(m_identity,'SHE-Transmission PLC (Blank - )'!AK86, 'SPTL (Blank - not used)'!AK86, 'NGET TO (Blank - not used)'!AK86)) -> 8.25228 | AL86: =IF(UserInterface!$E$69 = 1,CHOOSE(m_identity,'SHE-Transmission PLC'!AL86, SPTL!AL86, 'NGET TO'!AL86),CHOOSE(m_identity,'SHE-Transmission PLC (Blank - )'!AL86, 'SPTL (Blank - not used)'!AL86, 'NGET TO (Blank - not used)'!AL86)) -> 7.90532 | AM86: =IF(UserInterface!$E$69 = 1,CHOOSE(m_identity,'SHE-Transmission PLC'!AM86, SPTL!AM86, 'NGET TO'!AM86),CHOOSE(m_identity,'SHE-Transmission PLC (Blank - )'!AM86, 'SPTL (Blank - not used)'!AM86, 'NGET TO (Blank - not used)'!AM86)) -> 10.71164 | AN86: =IF(UserInterface!$E$69 = 1,CHOOSE(m_identity,'SHE-Transmission PLC'!AN86, SPTL!AN86, 'NGET TO'!AN86),CHOOSE(m_identity,'SHE-Transmission PLC (Blank - )'!AN86, 'SPTL (Blank - not used)'!AN86, 'NGET TO (Blank - not used)'!AN86)) -> 10.66964 | AO86: =IF(UserInterface!$E$69 = 1,CHOOSE(m_identity,'SHE-Transmission PLC'!AO86, SPTL!AO86, 'NGET TO'!AO86),CHOOSE(m_identity,'SHE-Transmission PLC (Blank - )'!AO86, 'SPTL (Blank - not used)'!AO86, 'NGET TO (Blank - not used)'!AO86)) -> 11.88064
E87: Non-variant allowed controllable opex | G87: £m 09/10 prices | AH87: =IF(UserInterface!$E$69 = 1,CHOOSE(m_identity,'SHE-Transmission PLC'!AH87, SPTL!AH87, 'NGET TO'!AH87),CHOOSE(m_identity,'SHE-Transmission PLC (Blank - )'!AH87, 'SPTL (Blank - not used)'!AH87, 'NGET TO (Blank - not used)'!AH87)) -> 192.2128263 | AI87: =IF(UserInterface!$E$69 = 1,CHOOSE(m_identity,'SHE-Transmission PLC'!AI87, SPTL!AI87, 'NGET TO'!AI87),CHOOSE(m_identity,'SHE-Transmission PLC (Blank - )'!AI87, 'SPTL (Blank - not used)'!AI87, 'NGET TO (Blank - not used)'!AI87)) -> 196.4120407 | AJ87: =IF(UserInterface!$E$69 = 1,CHOOSE(m_identity,'SHE-Transmission PLC'!AJ87, SPTL!AJ87, 'NGET TO'!AJ87),CHOOSE(m_identity,'SHE-Transmission PLC (Blank - )'!AJ87, 'SPTL (Blank - not used)'!AJ87, 'NGET TO (Blank - not used)'!AJ87)) -> 203.0471066 | AK87: =IF(UserInterface!$E$69 = 1,CHOOSE(m_identity,'SHE-Transmission PLC'!AK87, SPTL!AK87, 'NGET TO'!AK87),CHOOSE(m_identity,'SHE-Transmission PLC (Blank - )'!AK87, 'SPTL (Blank - not used)'!AK87, 'NGET TO (Blank - not used)'!AK87)) -> 204.3517168 | AL87: =IF(UserInterface!$E$69 = 1,CHOOSE(m_identity,'SHE-Transmission PLC'!AL87, SPTL!AL87, 'NGET TO'!AL87),CHOOSE(m_identity,'SHE-Transmission PLC (Blank - )'!AL87, 'SPTL (Blank - not used)'!AL87, 'NGET TO (Blank - not used)'!AL87)) -> 205.7220397 | AM87: =IF(UserInterface!$E$69 = 1,CHOOSE(m_identity,'SHE-Transmission PLC'!AM87, SPTL!AM87, 'NGET TO'!AM87),CHOOSE(m_identity,'SHE-Transmission PLC (Blank - )'!AM87, 'SPTL (Blank - not used)'!AM87, 'NGET TO (Blank - not used)'!AM87)) -> 206.0644405 | AN87: =IF(UserInterface!$E$69 = 1,CHOOSE(m_identity,'SHE-Transmission PLC'!AN87, SPTL!AN87, 'NGET TO'!AN87),CHOOSE(m_identity,'SHE-Transmission PLC (Blank - )'!AN87, 'SPTL (Blank - not used)'!AN87, 'NGET TO (Blank - not used)'!AN87)) -> 207.83891 | AO87: =IF(UserInterface!$E$69 = 1,CHOOSE(m_identity,'SHE-Transmission PLC'!AO87, SPTL!AO87, 'NGET TO'!AO87),CHOOSE(m_identity,'SHE-Transmission PLC (Blank - )'!AO87, 'SPTL (Blank - not used)'!AO87, 'NGET TO (Blank - not used)'!AO87)) -> 208.2040553
E88: Non-variant allowed non-operational capex | G88: £m 09/10 prices | AH88: =IF(UserInterface!$E$69 = 1,CHOOSE(m_identity,'SHE-Transmission PLC'!AH88, SPTL!AH88, 'NGET TO'!AH88),CHOOSE(m_identity,'SHE-Transmission PLC (Blank - )'!AH88, 'SPTL (Blank - not used)'!AH88, 'NGET TO (Blank - not used)'!AH88)) -> 28.50225287 | AI88: =IF(UserInterface!$E$69 = 1,CHOOSE(m_identity,'SHE-Transmission PLC'!AI88, SPTL!AI88, 'NGET TO'!AI88),CHOOSE(m_identity,'SHE-Transmission PLC (Blank - )'!AI88, 'SPTL (Blank - not used)'!AI88, 'NGET TO (Blank - not used)'!AI88)) -> 27.89321936 | AJ88: =IF(UserInterface!$E$69 = 1,CHOOSE(m_identity,'SHE-Transmission PLC'!AJ88, SPTL!AJ88, 'NGET TO'!AJ88),CHOOSE(m_identity,'SHE-Transmission PLC (Blank - )'!AJ88, 'SPTL (Blank - not used)'!AJ88, 'NGET TO (Blank - not used)'!AJ88)) -> 20.16289582 | AK88: =IF(UserInterface!$E$69 = 1,CHOOSE(m_identity,'SHE-Transmission PLC'!AK88, SPTL!AK88, 'NGET TO'!AK88),CHOOSE(m_identity,'SHE-Transmission PLC (Blank - )'!AK88, 'SPTL (Blank - not used)'!AK88, 'NGET TO (Blank - not used)'!AK88)) -> 18.68399486 | AL88: =IF(UserInterface!$E$69 = 1,CHOOSE(m_identity,'SHE-Transmission PLC'!AL88, SPTL!AL88, 'NGET TO'!AL88),CHOOSE(m_identity,'SHE-Transmission PLC (Blank - )'!AL88, 'SPTL (Blank - not used)'!AL88, 'NGET TO (Blank - not used)'!AL88)) -> 17.31743474 | AM88: =IF(UserInterface!$E$69 = 1,CHOOSE(m_identity,'SHE-Transmission PLC'!AM88, SPTL!AM88, 'NGET TO'!AM88),CHOOSE(m_identity,'SHE-Transmission PLC (Blank - )'!AM88, 'SPTL (Blank - not used)'!AM88, 'NGET TO (Blank - not used)'!AM88)) -> 10.13227357 | AN88: =IF(UserInterface!$E$69 = 1,CHOOSE(m_identity,'SHE-Transmission PLC'!AN88, SPTL!AN88, 'NGET TO'!AN88),CHOOSE(m_identity,'SHE-Transmission PLC (Blank - )'!AN88, 'SPTL (Blank - not used)'!AN88, 'NGET TO (Blank - not used)'!AN88)) -> 13.10983634 | AO88: =IF(UserInterface!$E$69 = 1,CHOOSE(m_identity,'SHE-Transmission PLC'!AO88, SPTL!AO88, 'NGET TO'!AO88),CHOOSE(m_identity,'SHE-Transmission PLC (Blank - )'!AO88, 'SPTL (Blank - not used)'!AO88, 'NGET TO (Blank - not used)'!AO88)) -> 11.95703552
D90: Variant allowances
E92: =E14 -> Uncertain costs - enhanced security | G92: £m 09/10 prices | AH92: =AH14 -> 0 | AI92: =AI14 -> 0 | AJ92: 0 | AK92: 0 | AL92: 0 | AM92: 0 | AN92: 0 | AO92: 0
E93: Allocation to load related capex expenditure | G93: % | AH93: =IF(UserInterface!$E$69 = 1,CHOOSE(m_identity,'SHE-Transmission PLC'!AH93, SPTL!AH93, 'NGET TO'!AH93),CHOOSE(m_identity,'SHE-Transmission PLC (Blank - )'!AH93, 'SPTL (Blank - not used)'!AH93, 'NGET TO (Blank - not used)'!AH93)) -> 0 | AI93: =IF(UserInterface!$E$69 = 1,CHOOSE(m_identity,'SHE-Transmission PLC'!AI93, SPTL!AI93, 'NGET TO'!AI93),CHOOSE(m_identity,'SHE-Transmission PLC (Blank - )'!AI93, 'SPTL (Blank - not used)'!AI93, 'NGET TO (Blank - not used)'!AI93)) -> 0 | AJ93: =IF(UserInterface!$E$69 = 1,CHOOSE(m_identity,'SHE-Transmission PLC'!AJ93, SPTL!AJ93, 'NGET TO'!AJ93),CHOOSE(m_identity,'SHE-Transmission PLC (Blank - )'!AJ93, 'SPTL (Blank - not used)'!AJ93, 'NGET TO (Blank - not used)'!AJ93)) -> 0 | AK93: =IF(UserInterface!$E$69 = 1,CHOOSE(m_identity,'SHE-Transmission PLC'!AK93, SPTL!AK93, 'NGET TO'!AK93),CHOOSE(m_identity,'SHE-Transmission PLC (Blank - )'!AK93, 'SPTL (Blank - not used)'!AK93, 'NGET TO (Blank - not used)'!AK93)) -> 0 | AL93: =IF(UserInterface!$E$69 = 1,CHOOSE(m_identity,'SHE-Transmission PLC'!AL93, SPTL!AL93, 'NGET TO'!AL93),CHOOSE(m_identity,'SHE-Transmission PLC (Blank - )'!AL93, 'SPTL (Blank - not used)'!AL93, 'NGET TO (Blank - not used)'!AL93)) -> 0 | AM93: =IF(UserInterface!$E$69 = 1,CHOOSE(m_identity,'SHE-Transmission PLC'!AM93, SPTL!AM93, 'NGET TO'!AM93),CHOOSE(m_identity,'SHE-Transmission PLC (Blank - )'!AM93, 'SPTL (Blank - not used)'!AM93, 'NGET TO (Blank - not used)'!AM93)) -> 0 | AN93: =IF(UserInterface!$E$69 = 1,CHOOSE(m_identity,'SHE-Transmission PLC'!AN93, SPTL!AN93, 'NGET TO'!AN93),CHOOSE(m_identity,'SHE-Transmission PLC (Blank - )'!AN93, 'SPTL (Blank - not used)'!AN93, 'NGET TO (Blank - not used)'!AN93)) -> 0 | AO93: =IF(UserInterface!$E$69 = 1,CHOOSE(m_identity,'SHE-Transmission PLC'!AO93, SPTL!AO93, 'NGET TO'!AO93),CHOOSE(m_identity,'SHE-Transmission PLC (Blank - )'!AO93, 'SPTL (Blank - not used)'!AO93, 'NGET TO (Blank - not used)'!AO93)) -> 0
E94: Allocation to asset replacement capex expenditure | G94: % | AH94: =IF(UserInterface!$E$69 = 1,CHOOSE(m_identity,'SHE-Transmission PLC'!AH94, SPTL!AH94, 'NGET TO'!AH94),CHOOSE(m_identity,'SHE-Transmission PLC (Blank - )'!AH94, 'SPTL (Blank - not used)'!AH94, 'NGET TO (Blank - not used)'!AH94)) -> 0 | AI94: =IF(UserInterface!$E$69 = 1,CHOOSE(m_identity,'SHE-Transmission PLC'!AI94, SPTL!AI94, 'NGET TO'!AI94),CHOOSE(m_identity,'SHE-Transmission PLC (Blank - )'!AI94, 'SPTL (Blank - not used)'!AI94, 'NGET TO (Blank - not used)'!AI94)) -> 0 | AJ94: =IF(UserInterface!$E$69 = 1,CHOOSE(m_identity,'SHE-Transmission PLC'!AJ94, SPTL!AJ94, 'NGET TO'!AJ94),CHOOSE(m_identity,'SHE-Transmission PLC (Blank - )'!AJ94, 'SPTL (Blank - not used)'!AJ94, 'NGET TO (Blank - not used)'!AJ94)) -> 0 | AK94: =IF(UserInterface!$E$69 = 1,CHOOSE(m_identity,'SHE-Transmission PLC'!AK94, SPTL!AK94, 'NGET TO'!AK94),CHOOSE(m_identity,'SHE-Transmission PLC (Blank - )'!AK94, 'SPTL (Blank - not used)'!AK94, 'NGET TO (Blank - not used)'!AK94)) -> 0 | AL94: =IF(UserInterface!$E$69 = 1,CHOOSE(m_identity,'SHE-Transmission PLC'!AL94, SPTL!AL94, 'NGET TO'!AL94),CHOOSE(m_identity,'SHE-Transmission PLC (Blank - )'!AL94, 'SPTL (Blank - not used)'!AL94, 'NGET TO (Blank - not used)'!AL94)) -> 0 | AM94: =IF(UserInterface!$E$69 = 1,CHOOSE(m_identity,'SHE-Transmission PLC'!AM94, SPTL!AM94, 'NGET TO'!AM94),CHOOSE(m_identity,'SHE-Transmission PLC (Blank - )'!AM94, 'SPTL (Blank - not used)'!AM94, 'NGET TO (Blank - not used)'!AM94)) -> 0 | AN94: =IF(UserInterface!$E$69 = 1,CHOOSE(m_identity,'SHE-Transmission PLC'!AN94, SPTL!AN94, 'NGET TO'!AN94),CHOOSE(m_identity,'SHE-Transmission PLC (Blank - )'!AN94, 'SPTL (Blank - not used)'!AN94, 'NGET TO (Blank - not used)'!AN94)) -> 0 | AO94: =IF(UserInterface!$E$69 = 1,CHOOSE(m_identity,'SHE-Transmission PLC'!AO94, SPTL!AO94, 'NGET TO'!AO94),CHOOSE(m_identity,'SHE-Transmission PLC (Blank - )'!AO94, 'SPTL (Blank - not used)'!AO94, 'NGET TO (Blank - not used)'!AO94)) -> 0
E95: Allocation to other capex expenditure | G95: % | AH95: =IF(UserInterface!$E$69 = 1,CHOOSE(m_identity,'SHE-Transmission PLC'!AH95, SPTL!AH95, 'NGET TO'!AH95),CHOOSE(m_identity,'SHE-Transmission PLC (Blank - )'!AH95, 'SPTL (Blank - not used)'!AH95, 'NGET TO (Blank - not used)'!AH95)) -> 0.9379664251 | AI95: =IF(UserInterface!$E$69 = 1,CHOOSE(m_identity,'SHE-Transmission PLC'!AI95, SPTL!AI95, 'NGET TO'!AI95),CHOOSE(m_identity,'SHE-Transmission PLC (Blank - )'!AI95, 'SPTL (Blank - not used)'!AI95, 'NGET TO (Blank - not used)'!AI95)) -> 0.8752294861 | AJ95: =IF(UserInterface!$E$69 = 1,CHOOSE(m_identity,'SHE-Transmission PLC'!AJ95, SPTL!AJ95, 'NGET TO'!AJ95),CHOOSE(m_identity,'SHE-Transmission PLC (Blank - )'!AJ95, 'SPTL (Blank - not used)'!AJ95, 'NGET TO (Blank - not used)'!AJ95)) -> 0.4887584045 | AK95: =IF(UserInterface!$E$69 = 1,CHOOSE(m_identity,'SHE-Transmission PLC'!AK95, SPTL!AK95, 'NGET TO'!AK95),CHOOSE(m_identity,'SHE-Transmission PLC (Blank - )'!AK95, 'SPTL (Blank - not used)'!AK95, 'NGET TO (Blank - not used)'!AK95)) -> 0.6296516044 | AL95: =IF(UserInterface!$E$69 = 1,CHOOSE(m_identity,'SHE-Transmission PLC'!AL95, SPTL!AL95, 'NGET TO'!AL95),CHOOSE(m_identity,'SHE-Transmission PLC (Blank - )'!AL95, 'SPTL (Blank - not used)'!AL95, 'NGET TO (Blank - not used)'!AL95)) -> 0.2579769131 | AM95: =IF(UserInterface!$E$69 = 1,CHOOSE(m_identity,'SHE-Transmission PLC'!AM95, SPTL!AM95, 'NGET TO'!AM95),CHOOSE(m_identity,'SHE-Transmission PLC (Blank - )'!AM95, 'SPTL (Blank - not used)'!AM95, 'NGET TO (Blank - not used)'!AM95)) -> 0.2582132785 | AN95: =IF(UserInterface!$E$69 = 1,CHOOSE(m_identity,'SHE-Transmission PLC'!AN95, SPTL!AN95, 'NGET TO'!AN95),CHOOSE(m_identity,'SHE-Transmission PLC (Blank - )'!AN95, 'SPTL (Blank - not used)'!AN95, 'NGET TO (Blank - not used)'!AN95)) -> 0.2581700151 | AO95: =IF(UserInterface!$E$69 = 1,CHOOSE(m_identity,'SHE-Transmission PLC'!AO95, SPTL!AO95, 'NGET TO'!AO95),CHOOSE(m_identity,'SHE-Transmission PLC (Blank - )'!AO95, 'SPTL (Blank - not used)'!AO95, 'NGET TO (Blank - not used)'!AO95)) -> 0.2581154085
E96: Allocation to controllable opex | G96: % | AH96: =IF(UserInterface!$E$69 = 1,CHOOSE(m_identity,'SHE-Transmission PLC'!AH96, SPTL!AH96, 'NGET TO'!AH96),CHOOSE(m_identity,'SHE-Transmission PLC (Blank - )'!AH96, 'SPTL (Blank - not used)'!AH96, 'NGET TO (Blank - not used)'!AH96)) -> 0.06203357495 | AI96: =IF(UserInterface!$E$69 = 1,CHOOSE(m_identity,'SHE-Transmission PLC'!AI96, SPTL!AI96, 'NGET TO'!AI96),CHOOSE(m_identity,'SHE-Transmission PLC (Blank - )'!AI96, 'SPTL (Blank - not used)'!AI96, 'NGET TO (Blank - not used)'!AI96)) -> 0.1247705139 | AJ96: =IF(UserInterface!$E$69 = 1,CHOOSE(m_identity,'SHE-Transmission PLC'!AJ96, SPTL!AJ96, 'NGET TO'!AJ96),CHOOSE(m_identity,'SHE-Transmission PLC (Blank - )'!AJ96, 'SPTL (Blank - not used)'!AJ96, 'NGET TO (Blank - not used)'!AJ96)) -> 0.5112415955 | AK96: =IF(UserInterface!$E$69 = 1,CHOOSE(m_identity,'SHE-Transmission PLC'!AK96, SPTL!AK96, 'NGET TO'!AK96),CHOOSE(m_identity,'SHE-Transmission PLC (Blank - )'!AK96, 'SPTL (Blank - not used)'!AK96, 'NGET TO (Blank - not used)'!AK96)) -> 0.3703483956 | AL96: =IF(UserInterface!$E$69 = 1,CHOOSE(m_identity,'SHE-Transmission PLC'!AL96, SPTL!AL96, 'NGET TO'!AL96),CHOOSE(m_identity,'SHE-Transmission PLC (Blank - )'!AL96, 'SPTL (Blank - not used)'!AL96, 'NGET TO (Blank - not used)'!AL96)) -> 0.7420230869 | AM96: =IF(UserInterface!$E$69 = 1,CHOOSE(m_identity,'SHE-Transmission PLC'!AM96, SPTL!AM96, 'NGET TO'!AM96),CHOOSE(m_identity,'SHE-Transmission PLC (Blank - )'!AM96, 'SPTL (Blank - not used)'!AM96, 'NGET TO (Blank - not used)'!AM96)) -> 0.7417867215 | AN96: =IF(UserInterface!$E$69 = 1,CHOOSE(m_identity,'SHE-Transmission PLC'!AN96, SPTL!AN96, 'NGET TO'!AN96),CHOOSE(m_identity,'SHE-Transmission PLC (Blank - )'!AN96, 'SPTL (Blank - not used)'!AN96, 'NGET TO (Blank - not used)'!AN96)) -> 0.7418299849 | AO96: =IF(UserInterface!$E$69 = 1,CHOOSE(m_identity,'SHE-Transmission PLC'!AO96, SPTL!AO96, 'NGET TO'!AO96),CHOOSE(m_identity,'SHE-Transmission PLC (Blank - )'!AO96, 'SPTL (Blank - not used)'!AO96, 'NGET TO (Blank - not used)'!AO96)) -> 0.7418845915
E97: Allocation to non-operational capex | G97: % | AH97: =IF(UserInterface!$E$69 = 1,CHOOSE(m_identity,'SHE-Transmission PLC'!AH97, SPTL!AH97, 'NGET TO'!AH97),CHOOSE(m_identity,'SHE-Transmission PLC (Blank - )'!AH97, 'SPTL (Blank - not used)'!AH97, 'NGET TO (Blank - not used)'!AH97)) -> 0 | AI97: =IF(UserInterface!$E$69 = 1,CHOOSE(m_identity,'SHE-Transmission PLC'!AI97, SPTL!AI97, 'NGET TO'!AI97),CHOOSE(m_identity,'SHE-Transmission PLC (Blank - )'!AI97, 'SPTL (Blank - not used)'!AI97, 'NGET TO (Blank - not used)'!AI97)) -> 0 | AJ97: =IF(UserInterface!$E$69 = 1,CHOOSE(m_identity,'SHE-Transmission PLC'!AJ97, SPTL!AJ97, 'NGET TO'!AJ97),CHOOSE(m_identity,'SHE-Transmission PLC (Blank - )'!AJ97, 'SPTL (Blank - not used)'!AJ97, 'NGET TO (Blank - not used)'!AJ97)) -> 0 | AK97: =IF(UserInterface!$E$69 = 1,CHOOSE(m_identity,'SHE-Transmission PLC'!AK97, SPTL!AK97, 'NGET TO'!AK97),CHOOSE(m_identity,'SHE-Transmission PLC (Blank - )'!AK97, 'SPTL (Blank - not used)'!AK97, 'NGET TO (Blank - not used)'!AK97)) -> 0 | AL97: =IF(UserInterface!$E$69 = 1,CHOOSE(m_identity,'SHE-Transmission PLC'!AL97, SPTL!AL97, 'NGET TO'!AL97),CHOOSE(m_identity,'SHE-Transmission PLC (Blank - )'!AL97, 'SPTL (Blank - not used)'!AL97, 'NGET TO (Blank - not used)'!AL97)) -> 0 | AM97: =IF(UserInterface!$E$69 = 1,CHOOSE(m_identity,'SHE-Transmission PLC'!AM97, SPTL!AM97, 'NGET TO'!AM97),CHOOSE(m_identity,'SHE-Transmission PLC (Blank - )'!AM97, 'SPTL (Blank - not used)'!AM97, 'NGET TO (Blank - not used)'!AM97)) -> 0 | AN97: =IF(UserInterface!$E$69 = 1,CHOOSE(m_identity,'SHE-Transmission PLC'!AN97, SPTL!AN97, 'NGET TO'!AN97),CHOOSE(m_identity,'SHE-Transmission PLC (Blank - )'!AN97, 'SPTL (Blank - not used)'!AN97, 'NGET TO (Blank - not used)'!AN97)) -> 0 | AO97: =IF(UserInterface!$E$69 = 1,CHOOSE(m_identity,'SHE-Transmission PLC'!AO97, SPTL!AO97, 'NGET TO'!AO97),CHOOSE(m_identity,'SHE-Transmission PLC (Blank - )'!AO97, 'SPTL (Blank - not used)'!AO97, 'NGET TO (Blank - not used)'!AO97)) -> 0
E99: =E15 -> Uncertain costs – workforce renewal (SPTL only) | G99: £m 09/10 prices | AH99: =AH15 -> 0 | AI99: =AI15 -> 0 | AJ99: =AJ15 -> 0 | AK99: 0 | AL99: 0 | AM99: 0 | AN99: 0 | AO99: 0
E100: Allocation to load related capex expenditure | G100: % | AH100: =IF(UserInterface!$E$69 = 1,CHOOSE(m_identity,'SHE-Transmission PLC'!AH100, SPTL!AH100, 'NGET TO'!AH100),CHOOSE(m_identity,'SHE-Transmission PLC (Blank - )'!AH100, 'SPTL (Blank - not used)'!AH100, 'NGET TO (Blank - not used)'!AH100)) -> 0 | AI100: =IF(UserInterface!$E$69 = 1,CHOOSE(m_identity,'SHE-Transmission PLC'!AI100, SPTL!AI100, 'NGET TO'!AI100),CHOOSE(m_identity,'SHE-Transmission PLC (Blank - )'!AI100, 'SPTL (Blank - not used)'!AI100, 'NGET TO (Blank - not used)'!AI100)) -> 0 | AJ100: =IF(UserInterface!$E$69 = 1,CHOOSE(m_identity,'SHE-Transmission PLC'!AJ100, SPTL!AJ100, 'NGET TO'!AJ100),CHOOSE(m_identity,'SHE-Transmission PLC (Blank - )'!AJ100, 'SPTL (Blank - not used)'!AJ100, 'NGET TO (Blank - not used)'!AJ100)) -> 0 | AK100: =IF(UserInterface!$E$69 = 1,CHOOSE(m_identity,'SHE-Transmission PLC'!AK100, SPTL!AK100, 'NGET TO'!AK100),CHOOSE(m_identity,'SHE-Transmission PLC (Blank - )'!AK100, 'SPTL (Blank - not used)'!AK100, 'NGET TO (Blank - not used)'!AK100)) -> 0 | AL100: =IF(UserInterface!$E$69 = 1,CHOOSE(m_identity,'SHE-Transmission PLC'!AL100, SPTL!AL100, 'NGET TO'!AL100),CHOOSE(m_identity,'SHE-Transmission PLC (Blank - )'!AL100, 'SPTL (Blank - not used)'!AL100, 'NGET TO (Blank - not used)'!AL100)) -> 0 | AM100: =IF(UserInterface!$E$69 = 1,CHOOSE(m_identity,'SHE-Transmission PLC'!AM100, SPTL!AM100, 'NGET TO'!AM100),CHOOSE(m_identity,'SHE-Transmission PLC (Blank - )'!AM100, 'SPTL (Blank - not used)'!AM100, 'NGET TO (Blank - not used)'!AM100)) -> 0 | AN100: =IF(UserInterface!$E$69 = 1,CHOOSE(m_identity,'SHE-Transmission PLC'!AN100, SPTL!AN100, 'NGET TO'!AN100),CHOOSE(m_identity,'SHE-Transmission PLC (Blank - )'!AN100, 'SPTL (Blank - not used)'!AN100, 'NGET TO (Blank - not used)'!AN100)) -> 0 | AO100: =IF(UserInterface!$E$69 = 1,CHOOSE(m_identity,'SHE-Transmission PLC'!AO100, SPTL!AO100, 'NGET TO'!AO100),CHOOSE(m_identity,'SHE-Transmission PLC (Blank - )'!AO100, 'SPTL (Blank - not used)'!AO100, 'NGET TO (Blank - not used)'!AO100)) -> 0
E101: Allocation to asset replacement capex expenditure | G101: % | AH101: =IF(UserInterface!$E$69 = 1,CHOOSE(m_identity,'SHE-Transmission PLC'!AH101, SPTL!AH101, 'NGET TO'!AH101),CHOOSE(m_identity,'SHE-Transmission PLC (Blank - )'!AH101, 'SPTL (Blank - not used)'!AH101, 'NGET TO (Blank - not used)'!AH101)) -> 0 | AI101: =IF(UserInterface!$E$69 = 1,CHOOSE(m_identity,'SHE-Transmission PLC'!AI101, SPTL!AI101, 'NGET TO'!AI101),CHOOSE(m_identity,'SHE-Transmission PLC (Blank - )'!AI101, 'SPTL (Blank - not used)'!AI101, 'NGET TO (Blank - not used)'!AI101)) -> 0 | AJ101: =IF(UserInterface!$E$69 = 1,CHOOSE(m_identity,'SHE-Transmission PLC'!AJ101, SPTL!AJ101, 'NGET TO'!AJ101),CHOOSE(m_identity,'SHE-Transmission PLC (Blank - )'!AJ101, 'SPTL (Blank - not used)'!AJ101, 'NGET TO (Blank - not used)'!AJ101)) -> 0 | AK101: =IF(UserInterface!$E$69 = 1,CHOOSE(m_identity,'SHE-Transmission PLC'!AK101, SPTL!AK101, 'NGET TO'!AK101),CHOOSE(m_identity,'SHE-Transmission PLC (Blank - )'!AK101, 'SPTL (Blank - not used)'!AK101, 'NGET TO (Blank - not used)'!AK101)) -> 0 | AL101: =IF(UserInterface!$E$69 = 1,CHOOSE(m_identity,'SHE-Transmission PLC'!AL101, SPTL!AL101, 'NGET TO'!AL101),CHOOSE(m_identity,'SHE-Transmission PLC (Blank - )'!AL101, 'SPTL (Blank - not used)'!AL101, 'NGET TO (Blank - not used)'!AL101)) -> 0 | AM101: =IF(UserInterface!$E$69 = 1,CHOOSE(m_identity,'SHE-Transmission PLC'!AM101, SPTL!AM101, 'NGET TO'!AM101),CHOOSE(m_identity,'SHE-Transmission PLC (Blank - )'!AM101, 'SPTL (Blank - not used)'!AM101, 'NGET TO (Blank - not used)'!AM101)) -> 0 | AN101: =IF(UserInterface!$E$69 = 1,CHOOSE(m_identity,'SHE-Transmission PLC'!AN101, SPTL!AN101, 'NGET TO'!AN101),CHOOSE(m_identity,'SHE-Transmission PLC (Blank - )'!AN101, 'SPTL (Blank - not used)'!AN101, 'NGET TO (Blank - not used)'!AN101)) -> 0 | AO101: =IF(UserInterface!$E$69 = 1,CHOOSE(m_identity,'SHE-Transmission PLC'!AO101, SPTL!AO101, 'NGET TO'!AO101),CHOOSE(m_identity,'SHE-Transmission PLC (Blank - )'!AO101, 'SPTL (Blank - not used)'!AO101, 'NGET TO (Blank - not used)'!AO101)) -> 0
E102: Allocation to other capex expenditure | G102: % | AH102: =IF(UserInterface!$E$69 = 1,CHOOSE(m_identity,'SHE-Transmission PLC'!AH102, SPTL!AH102, 'NGET TO'!AH102),CHOOSE(m_identity,'SHE-Transmission PLC (Blank - )'!AH102, 'SPTL (Blank - not used)'!AH102, 'NGET TO (Blank - not used)'!AH102)) -> 1 | AI102: =IF(UserInterface!$E$69 = 1,CHOOSE(m_identity,'SHE-Transmission PLC'!AI102, SPTL!AI102, 'NGET TO'!AI102),CHOOSE(m_identity,'SHE-Transmission PLC (Blank - )'!AI102, 'SPTL (Blank - not used)'!AI102, 'NGET TO (Blank - not used)'!AI102)) -> 1 | AJ102: =IF(UserInterface!$E$69 = 1,CHOOSE(m_identity,'SHE-Transmission PLC'!AJ102, SPTL!AJ102, 'NGET TO'!AJ102),CHOOSE(m_identity,'SHE-Transmission PLC (Blank - )'!AJ102, 'SPTL (Blank - not used)'!AJ102, 'NGET TO (Blank - not used)'!AJ102)) -> 1 | AK102: =IF(UserInterface!$E$69 = 1,CHOOSE(m_identity,'SHE-Transmission PLC'!AK102, SPTL!AK102, 'NGET TO'!AK102),CHOOSE(m_identity,'SHE-Transmission PLC (Blank - )'!AK102, 'SPTL (Blank - not used)'!AK102, 'NGET TO (Blank - not used)'!AK102)) -> 1 | AL102: =IF(UserInterface!$E$69 = 1,CHOOSE(m_identity,'SHE-Transmission PLC'!AL102, SPTL!AL102, 'NGET TO'!AL102),CHOOSE(m_identity,'SHE-Transmission PLC (Blank - )'!AL102, 'SPTL (Blank - not used)'!AL102, 'NGET TO (Blank - not used)'!AL102)) -> 1 | AM102: =IF(UserInterface!$E$69 = 1,CHOOSE(m_identity,'SHE-Transmission PLC'!AM102, SPTL!AM102, 'NGET TO'!AM102),CHOOSE(m_identity,'SHE-Transmission PLC (Blank - )'!AM102, 'SPTL (Blank - not used)'!AM102, 'NGET TO (Blank - not used)'!AM102)) -> 1 | AN102: =IF(UserInterface!$E$69 = 1,CHOOSE(m_identity,'SHE-Transmission PLC'!AN102, SPTL!AN102, 'NGET TO'!AN102),CHOOSE(m_identity,'SHE-Transmission PLC (Blank - )'!AN102, 'SPTL (Blank - not used)'!AN102, 'NGET TO (Blank - not used)'!AN102)) -> 1 | AO102: =IF(UserInterface!$E$69 = 1,CHOOSE(m_identity,'SHE-Transmission PLC'!AO102, SPTL!AO102, 'NGET TO'!AO102),CHOOSE(m_identity,'SHE-Transmission PLC (Blank - )'!AO102, 'SPTL (Blank - not used)'!AO102, 'NGET TO (Blank - not used)'!AO102)) -> 1
E103: Allocation to controllable opex | G103: % | AH103: =IF(UserInterface!$E$69 = 1,CHOOSE(m_identity,'SHE-Transmission PLC'!AH103, SPTL!AH103, 'NGET TO'!AH103),CHOOSE(m_identity,'SHE-Transmission PLC (Blank - )'!AH103, 'SPTL (Blank - not used)'!AH103, 'NGET TO (Blank - not used)'!AH103)) -> 0 | AI103: =IF(UserInterface!$E$69 = 1,CHOOSE(m_identity,'SHE-Transmission PLC'!AI103, SPTL!AI103, 'NGET TO'!AI103),CHOOSE(m_identity,'SHE-Transmission PLC (Blank - )'!AI103, 'SPTL (Blank - not used)'!AI103, 'NGET TO (Blank - not used)'!AI103)) -> 0 | AJ103: =IF(UserInterface!$E$69 = 1,CHOOSE(m_identity,'SHE-Transmission PLC'!AJ103, SPTL!AJ103, 'NGET TO'!AJ103),CHOOSE(m_identity,'SHE-Transmission PLC (Blank - )'!AJ103, 'SPTL (Blank - not used)'!AJ103, 'NGET TO (Blank - not used)'!AJ103)) -> 0 | AK103: =IF(UserInterface!$E$69 = 1,CHOOSE(m_identity,'SHE-Transmission PLC'!AK103, SPTL!AK103, 'NGET TO'!AK103),CHOOSE(m_identity,'SHE-Transmission PLC (Blank - )'!AK103, 'SPTL (Blank - not used)'!AK103, 'NGET TO (Blank - not used)'!AK103)) -> 0 | AL103: =IF(UserInterface!$E$69 = 1,CHOOSE(m_identity,'SHE-Transmission PLC'!AL103, SPTL!AL103, 'NGET TO'!AL103),CHOOSE(m_identity,'SHE-Transmission PLC (Blank - )'!AL103, 'SPTL (Blank - not used)'!AL103, 'NGET TO (Blank - not used)'!AL103)) -> 0 | AM103: =IF(UserInterface!$E$69 = 1,CHOOSE(m_identity,'SHE-Transmission PLC'!AM103, SPTL!AM103, 'NGET TO'!AM103),CHOOSE(m_identity,'SHE-Transmission PLC (Blank - )'!AM103, 'SPTL (Blank - not used)'!AM103, 'NGET TO (Blank - not used)'!AM103)) -> 0 | AN103: =IF(UserInterface!$E$69 = 1,CHOOSE(m_identity,'SHE-Transmission PLC'!AN103, SPTL!AN103, 'NGET TO'!AN103),CHOOSE(m_identity,'SHE-Transmission PLC (Blank - )'!AN103, 'SPTL (Blank - not used)'!AN103, 'NGET TO (Blank - not used)'!AN103)) -> 0 | AO103: =IF(UserInterface!$E$69 = 1,CHOOSE(m_identity,'SHE-Transmission PLC'!AO103, SPTL!AO103, 'NGET TO'!AO103),CHOOSE(m_identity,'SHE-Transmission PLC (Blank - )'!AO103, 'SPTL (Blank - not used)'!AO103, 'NGET TO (Blank - not used)'!AO103)) -> 0
E104: Allocation to non-operational capex | G104: % | AH104: =IF(UserInterface!$E$69 = 1,CHOOSE(m_identity,'SHE-Transmission PLC'!AH104, SPTL!AH104, 'NGET TO'!AH104),CHOOSE(m_identity,'SHE-Transmission PLC (Blank - )'!AH104, 'SPTL (Blank - not used)'!AH104, 'NGET TO (Blank - not used)'!AH104)) -> 0 | AI104: =IF(UserInterface!$E$69 = 1,CHOOSE(m_identity,'SHE-Transmission PLC'!AI104, SPTL!AI104, 'NGET TO'!AI104),CHOOSE(m_identity,'SHE-Transmission PLC (Blank - )'!AI104, 'SPTL (Blank - not used)'!AI104, 'NGET TO (Blank - not used)'!AI104)) -> 0 | AJ104: =IF(UserInterface!$E$69 = 1,CHOOSE(m_identity,'SHE-Transmission PLC'!AJ104, SPTL!AJ104, 'NGET TO'!AJ104),CHOOSE(m_identity,'SHE-Transmission PLC (Blank - )'!AJ104, 'SPTL (Blank - not used)'!AJ104, 'NGET TO (Blank - not used)'!AJ104)) -> 0 | AK104: =IF(UserInterface!$E$69 = 1,CHOOSE(m_identity,'SHE-Transmission PLC'!AK104, SPTL!AK104, 'NGET TO'!AK104),CHOOSE(m_identity,'SHE-Transmission PLC (Blank - )'!AK104, 'SPTL (Blank - not used)'!AK104, 'NGET TO (Blank - not used)'!AK104)) -> 0 | AL104: =IF(UserInterface!$E$69 = 1,CHOOSE(m_identity,'SHE-Transmission PLC'!AL104, SPTL!AL104, 'NGET TO'!AL104),CHOOSE(m_identity,'SHE-Transmission PLC (Blank - )'!AL104, 'SPTL (Blank - not used)'!AL104, 'NGET TO (Blank - not used)'!AL104)) -> 0 | AM104: =IF(UserInterface!$E$69 = 1,CHOOSE(m_identity,'SHE-Transmission PLC'!AM104, SPTL!AM104, 'NGET TO'!AM104),CHOOSE(m_identity,'SHE-Transmission PLC (Blank - )'!AM104, 'SPTL (Blank - not used)'!AM104, 'NGET TO (Blank - not used)'!AM104)) -> 0 | AN104: =IF(UserInterface!$E$69 = 1,CHOOSE(m_identity,'SHE-Transmission PLC'!AN104, SPTL!AN104, 'NGET TO'!AN104),CHOOSE(m_identity,'SHE-Transmission PLC (Blank - )'!AN104, 'SPTL (Blank - not used)'!AN104, 'NGET TO (Blank - not used)'!AN104)) -> 0 | AO104: =IF(UserInterface!$E$69 = 1,CHOOSE(m_identity,'SHE-Transmission PLC'!AO104, SPTL!AO104, 'NGET TO'!AO104),CHOOSE(m_identity,'SHE-Transmission PLC (Blank - )'!AO104, 'SPTL (Blank - not used)'!AO104, 'NGET TO (Blank - not used)'!AO104)) -> 0
E106: =E16 -> Uncertain costs – BT 21st Century (SHETPLC only) | G106: £m 09/10 prices | AH106: =AH16 -> 0 | AI106: =AI16 -> 0 | AJ106: 0 | AK106: 0 | AL106: 0 | AM106: 0 | AN106: 0 | AO106: 0
E107: Allocation to load related capex expenditure | G107: % | AH107: =IF(UserInterface!$E$69 = 1,CHOOSE(m_identity,'SHE-Transmission PLC'!AH107, SPTL!AH107, 'NGET TO'!AH107),CHOOSE(m_identity,'SHE-Transmission PLC (Blank - )'!AH107, 'SPTL (Blank - not used)'!AH107, 'NGET TO (Blank - not used)'!AH107)) -> 0 | AI107: =IF(UserInterface!$E$69 = 1,CHOOSE(m_identity,'SHE-Transmission PLC'!AI107, SPTL!AI107, 'NGET TO'!AI107),CHOOSE(m_identity,'SHE-Transmission PLC (Blank - )'!AI107, 'SPTL (Blank - not used)'!AI107, 'NGET TO (Blank - not used)'!AI107)) -> 0 | AJ107: =IF(UserInterface!$E$69 = 1,CHOOSE(m_identity,'SHE-Transmission PLC'!AJ107, SPTL!AJ107, 'NGET TO'!AJ107),CHOOSE(m_identity,'SHE-Transmission PLC (Blank - )'!AJ107, 'SPTL (Blank - not used)'!AJ107, 'NGET TO (Blank - not used)'!AJ107)) -> 0 | AK107: =IF(UserInterface!$E$69 = 1,CHOOSE(m_identity,'SHE-Transmission PLC'!AK107, SPTL!AK107, 'NGET TO'!AK107),CHOOSE(m_identity,'SHE-Transmission PLC (Blank - )'!AK107, 'SPTL (Blank - not used)'!AK107, 'NGET TO (Blank - not used)'!AK107)) -> 0 | AL107: =IF(UserInterface!$E$69 = 1,CHOOSE(m_identity,'SHE-Transmission PLC'!AL107, SPTL!AL107, 'NGET TO'!AL107),CHOOSE(m_identity,'SHE-Transmission PLC (Blank - )'!AL107, 'SPTL (Blank - not used)'!AL107, 'NGET TO (Blank - not used)'!AL107)) -> 0 | AM107: =IF(UserInterface!$E$69 = 1,CHOOSE(m_identity,'SHE-Transmission PLC'!AM107, SPTL!AM107, 'NGET TO'!AM107),CHOOSE(m_identity,'SHE-Transmission PLC (Blank - )'!AM107, 'SPTL (Blank - not used)'!AM107, 'NGET TO (Blank - not used)'!AM107)) -> 0 | AN107: =IF(UserInterface!$E$69 = 1,CHOOSE(m_identity,'SHE-Transmission PLC'!AN107, SPTL!AN107, 'NGET TO'!AN107),CHOOSE(m_identity,'SHE-Transmission PLC (Blank - )'!AN107, 'SPTL (Blank - not used)'!AN107, 'NGET TO (Blank - not used)'!AN107)) -> 0 | AO107: =IF(UserInterface!$E$69 = 1,CHOOSE(m_identity,'SHE-Transmission PLC'!AO107, SPTL!AO107, 'NGET TO'!AO107),CHOOSE(m_identity,'SHE-Transmission PLC (Blank - )'!AO107, 'SPTL (Blank - not used)'!AO107, 'NGET TO (Blank - not used)'!AO107)) -> 0
E108: Allocation to asset replacement capex expenditure | G108: % | AH108: =IF(UserInterface!$E$69 = 1,CHOOSE(m_identity,'SHE-Transmission PLC'!AH108, SPTL!AH108, 'NGET TO'!AH108),CHOOSE(m_identity,'SHE-Transmission PLC (Blank - )'!AH108, 'SPTL (Blank - not used)'!AH108, 'NGET TO (Blank - not used)'!AH108)) -> 0 | AI108: =IF(UserInterface!$E$69 = 1,CHOOSE(m_identity,'SHE-Transmission PLC'!AI108, SPTL!AI108, 'NGET TO'!AI108),CHOOSE(m_identity,'SHE-Transmission PLC (Blank - )'!AI108, 'SPTL (Blank - not used)'!AI108, 'NGET TO (Blank - not used)'!AI108)) -> 0 | AJ108: =IF(UserInterface!$E$69 = 1,CHOOSE(m_identity,'SHE-Transmission PLC'!AJ108, SPTL!AJ108, 'NGET TO'!AJ108),CHOOSE(m_identity,'SHE-Transmission PLC (Blank - )'!AJ108, 'SPTL (Blank - not used)'!AJ108, 'NGET TO (Blank - not used)'!AJ108)) -> 0 | AK108: =IF(UserInterface!$E$69 = 1,CHOOSE(m_identity,'SHE-Transmission PLC'!AK108, SPTL!AK108, 'NGET TO'!AK108),CHOOSE(m_identity,'SHE-Transmission PLC (Blank - )'!AK108, 'SPTL (Blank - not used)'!AK108, 'NGET TO (Blank - not used)'!AK108)) -> 0 | AL108: =IF(UserInterface!$E$69 = 1,CHOOSE(m_identity,'SHE-Transmission PLC'!AL108, SPTL!AL108, 'NGET TO'!AL108),CHOOSE(m_identity,'SHE-Transmission PLC (Blank - )'!AL108, 'SPTL (Blank - not used)'!AL108, 'NGET TO (Blank - not used)'!AL108)) -> 0 | AM108: =IF(UserInterface!$E$69 = 1,CHOOSE(m_identity,'SHE-Transmission PLC'!AM108, SPTL!AM108, 'NGET TO'!AM108),CHOOSE(m_identity,'SHE-Transmission PLC (Blank - )'!AM108, 'SPTL (Blank - not used)'!AM108, 'NGET TO (Blank - not used)'!AM108)) -> 0 | AN108: =IF(UserInterface!$E$69 = 1,CHOOSE(m_identity,'SHE-Transmission PLC'!AN108, SPTL!AN108, 'NGET TO'!AN108),CHOOSE(m_identity,'SHE-Transmission PLC (Blank - )'!AN108, 'SPTL (Blank - not used)'!AN108, 'NGET TO (Blank - not used)'!AN108)) -> 0 | AO108: =IF(UserInterface!$E$69 = 1,CHOOSE(m_identity,'SHE-Transmission PLC'!AO108, SPTL!AO108, 'NGET TO'!AO108),CHOOSE(m_identity,'SHE-Transmission PLC (Blank - )'!AO108, 'SPTL (Blank - not used)'!AO108, 'NGET TO (Blank - not used)'!AO108)) -> 0
E109: Allocation to other capex expenditure | G109: % | AH109: =IF(UserInterface!$E$69 = 1,CHOOSE(m_identity,'SHE-Transmission PLC'!AH109, SPTL!AH109, 'NGET TO'!AH109),CHOOSE(m_identity,'SHE-Transmission PLC (Blank - )'!AH109, 'SPTL (Blank - not used)'!AH109, 'NGET TO (Blank - not used)'!AH109)) -> 1 | AI109: =IF(UserInterface!$E$69 = 1,CHOOSE(m_identity,'SHE-Transmission PLC'!AI109, SPTL!AI109, 'NGET TO'!AI109),CHOOSE(m_identity,'SHE-Transmission PLC (Blank - )'!AI109, 'SPTL (Blank - not used)'!AI109, 'NGET TO (Blank - not used)'!AI109)) -> 1 | AJ109: =IF(UserInterface!$E$69 = 1,CHOOSE(m_identity,'SHE-Transmission PLC'!AJ109, SPTL!AJ109, 'NGET TO'!AJ109),CHOOSE(m_identity,'SHE-Transmission PLC (Blank - )'!AJ109, 'SPTL (Blank - not used)'!AJ109, 'NGET TO (Blank - not used)'!AJ109)) -> 1 | AK109: =IF(UserInterface!$E$69 = 1,CHOOSE(m_identity,'SHE-Transmission PLC'!AK109, SPTL!AK109, 'NGET TO'!AK109),CHOOSE(m_identity,'SHE-Transmission PLC (Blank - )'!AK109, 'SPTL (Blank - not used)'!AK109, 'NGET TO (Blank - not used)'!AK109)) -> 1 | AL109: =IF(UserInterface!$E$69 = 1,CHOOSE(m_identity,'SHE-Transmission PLC'!AL109, SPTL!AL109, 'NGET TO'!AL109),CHOOSE(m_identity,'SHE-Transmission PLC (Blank - )'!AL109, 'SPTL (Blank - not used)'!AL109, 'NGET TO (Blank - not used)'!AL109)) -> 1 | AM109: =IF(UserInterface!$E$69 = 1,CHOOSE(m_identity,'SHE-Transmission PLC'!AM109, SPTL!AM109, 'NGET TO'!AM109),CHOOSE(m_identity,'SHE-Transmission PLC (Blank - )'!AM109, 'SPTL (Blank - not used)'!AM109, 'NGET TO (Blank - not used)'!AM109)) -> 1 | AN109: =IF(UserInterface!$E$69 = 1,CHOOSE(m_identity,'SHE-Transmission PLC'!AN109, SPTL!AN109, 'NGET TO'!AN109),CHOOSE(m_identity,'SHE-Transmission PLC (Blank - )'!AN109, 'SPTL (Blank - not used)'!AN109, 'NGET TO (Blank - not used)'!AN109)) -> 1 | AO109: =IF(UserInterface!$E$69 = 1,CHOOSE(m_identity,'SHE-Transmission PLC'!AO109, SPTL!AO109, 'NGET TO'!AO109),CHOOSE(m_identity,'SHE-Transmission PLC (Blank - )'!AO109, 'SPTL (Blank - not used)'!AO109, 'NGET TO (Blank - not used)'!AO109)) -> 1
E110: Allocation to controllable opex | G110: % | AH110: =IF(UserInterface!$E$69 = 1,CHOOSE(m_identity,'SHE-Transmission PLC'!AH110, SPTL!AH110, 'NGET TO'!AH110),CHOOSE(m_identity,'SHE-Transmission PLC (Blank - )'!AH110, 'SPTL (Blank - not used)'!AH110, 'NGET TO (Blank - not used)'!AH110)) -> 0 | AI110: =IF(UserInterface!$E$69 = 1,CHOOSE(m_identity,'SHE-Transmission PLC'!AI110, SPTL!AI110, 'NGET TO'!AI110),CHOOSE(m_identity,'SHE-Transmission PLC (Blank - )'!AI110, 'SPTL (Blank - not used)'!AI110, 'NGET TO (Blank - not used)'!AI110)) -> 0 | AJ110: =IF(UserInterface!$E$69 = 1,CHOOSE(m_identity,'SHE-Transmission PLC'!AJ110, SPTL!AJ110, 'NGET TO'!AJ110),CHOOSE(m_identity,'SHE-Transmission PLC (Blank - )'!AJ110, 'SPTL (Blank - not used)'!AJ110, 'NGET TO (Blank - not used)'!AJ110)) -> 0 | AK110: =IF(UserInterface!$E$69 = 1,CHOOSE(m_identity,'SHE-Transmission PLC'!AK110, SPTL!AK110, 'NGET TO'!AK110),CHOOSE(m_identity,'SHE-Transmission PLC (Blank - )'!AK110, 'SPTL (Blank - not used)'!AK110, 'NGET TO (Blank - not used)'!AK110)) -> 0 | AL110: =IF(UserInterface!$E$69 = 1,CHOOSE(m_identity,'SHE-Transmission PLC'!AL110, SPTL!AL110, 'NGET TO'!AL110),CHOOSE(m_identity,'SHE-Transmission PLC (Blank - )'!AL110, 'SPTL (Blank - not used)'!AL110, 'NGET TO (Blank - not used)'!AL110)) -> 0 | AM110: =IF(UserInterface!$E$69 = 1,CHOOSE(m_identity,'SHE-Transmission PLC'!AM110, SPTL!AM110, 'NGET TO'!AM110),CHOOSE(m_identity,'SHE-Transmission PLC (Blank - )'!AM110, 'SPTL (Blank - not used)'!AM110, 'NGET TO (Blank - not used)'!AM110)) -> 0 | AN110: =IF(UserInterface!$E$69 = 1,CHOOSE(m_identity,'SHE-Transmission PLC'!AN110, SPTL!AN110, 'NGET TO'!AN110),CHOOSE(m_identity,'SHE-Transmission PLC (Blank - )'!AN110, 'SPTL (Blank - not used)'!AN110, 'NGET TO (Blank - not used)'!AN110)) -> 0 | AO110: =IF(UserInterface!$E$69 = 1,CHOOSE(m_identity,'SHE-Transmission PLC'!AO110, SPTL!AO110, 'NGET TO'!AO110),CHOOSE(m_identity,'SHE-Transmission PLC (Blank - )'!AO110, 'SPTL (Blank - not used)'!AO110, 'NGET TO (Blank - not used)'!AO110)) -> 0
E111: Allocation to non-operational capex | G111: % | AH111: =IF(UserInterface!$E$69 = 1,CHOOSE(m_identity,'SHE-Transmission PLC'!AH111, SPTL!AH111, 'NGET TO'!AH111),CHOOSE(m_identity,'SHE-Transmission PLC (Blank - )'!AH111, 'SPTL (Blank - not used)'!AH111, 'NGET TO (Blank - not used)'!AH111)) -> 0 | AI111: =IF(UserInterface!$E$69 = 1,CHOOSE(m_identity,'SHE-Transmission PLC'!AI111, SPTL!AI111, 'NGET TO'!AI111),CHOOSE(m_identity,'SHE-Transmission PLC (Blank - )'!AI111, 'SPTL (Blank - not used)'!AI111, 'NGET TO (Blank - not used)'!AI111)) -> 0 | AJ111: =IF(UserInterface!$E$69 = 1,CHOOSE(m_identity,'SHE-Transmission PLC'!AJ111, SPTL!AJ111, 'NGET TO'!AJ111),CHOOSE(m_identity,'SHE-Transmission PLC (Blank - )'!AJ111, 'SPTL (Blank - not used)'!AJ111, 'NGET TO (Blank - not used)'!AJ111)) -> 0 | AK111: =IF(UserInterface!$E$69 = 1,CHOOSE(m_identity,'SHE-Transmission PLC'!AK111, SPTL!AK111, 'NGET TO'!AK111),CHOOSE(m_identity,'SHE-Transmission PLC (Blank - )'!AK111, 'SPTL (Blank - not used)'!AK111, 'NGET TO (Blank - not used)'!AK111)) -> 0 | AL111: =IF(UserInterface!$E$69 = 1,CHOOSE(m_identity,'SHE-Transmission PLC'!AL111, SPTL!AL111, 'NGET TO'!AL111),CHOOSE(m_identity,'SHE-Transmission PLC (Blank - )'!AL111, 'SPTL (Blank - not used)'!AL111, 'NGET TO (Blank - not used)'!AL111)) -> 0 | AM111: =IF(UserInterface!$E$69 = 1,CHOOSE(m_identity,'SHE-Transmission PLC'!AM111, SPTL!AM111, 'NGET TO'!AM111),CHOOSE(m_identity,'SHE-Transmission PLC (Blank - )'!AM111, 'SPTL (Blank - not used)'!AM111, 'NGET TO (Blank - not used)'!AM111)) -> 0 | AN111: =IF(UserInterface!$E$69 = 1,CHOOSE(m_identity,'SHE-Transmission PLC'!AN111, SPTL!AN111, 'NGET TO'!AN111),CHOOSE(m_identity,'SHE-Transmission PLC (Blank - )'!AN111, 'SPTL (Blank - not used)'!AN111, 'NGET TO (Blank - not used)'!AN111)) -> 0 | AO111: =IF(UserInterface!$E$69 = 1,CHOOSE(m_identity,'SHE-Transmission PLC'!AO111, SPTL!AO111, 'NGET TO'!AO111),CHOOSE(m_identity,'SHE-Transmission PLC (Blank - )'!AO111, 'SPTL (Blank - not used)'!AO111, 'NGET TO (Blank - not used)'!AO111)) -> 0
E113: =E17 -> Uncertain costs – compensation costs for landowners for wayleave (SHETPLC only) | G113: £m 09/10 prices | AH113: =AH17 -> 0 | AI113: =AI17 -> 0 | AJ113: 0 | AK113: 0 | AL113: 0 | AM113: 0 | AN113: 0 | AO113: 0
E114: Allocation to load related capex expenditure | G114: % | AH114: =IF(UserInterface!$E$69 = 1,CHOOSE(m_identity,'SHE-Transmission PLC'!AH114, SPTL!AH114, 'NGET TO'!AH114),CHOOSE(m_identity,'SHE-Transmission PLC (Blank - )'!AH114, 'SPTL (Blank - not used)'!AH114, 'NGET TO (Blank - not used)'!AH114)) -> 0 | AI114: =IF(UserInterface!$E$69 = 1,CHOOSE(m_identity,'SHE-Transmission PLC'!AI114, SPTL!AI114, 'NGET TO'!AI114),CHOOSE(m_identity,'SHE-Transmission PLC (Blank - )'!AI114, 'SPTL (Blank - not used)'!AI114, 'NGET TO (Blank - not used)'!AI114)) -> 0 | AJ114: =IF(UserInterface!$E$69 = 1,CHOOSE(m_identity,'SHE-Transmission PLC'!AJ114, SPTL!AJ114, 'NGET TO'!AJ114),CHOOSE(m_identity,'SHE-Transmission PLC (Blank - )'!AJ114, 'SPTL (Blank - not used)'!AJ114, 'NGET TO (Blank - not used)'!AJ114)) -> 0 | AK114: =IF(UserInterface!$E$69 = 1,CHOOSE(m_identity,'SHE-Transmission PLC'!AK114, SPTL!AK114, 'NGET TO'!AK114),CHOOSE(m_identity,'SHE-Transmission PLC (Blank - )'!AK114, 'SPTL (Blank - not used)'!AK114, 'NGET TO (Blank - not used)'!AK114)) -> 0 | AL114: =IF(UserInterface!$E$69 = 1,CHOOSE(m_identity,'SHE-Transmission PLC'!AL114, SPTL!AL114, 'NGET TO'!AL114),CHOOSE(m_identity,'SHE-Transmission PLC (Blank - )'!AL114, 'SPTL (Blank - not used)'!AL114, 'NGET TO (Blank - not used)'!AL114)) -> 0 | AM114: =IF(UserInterface!$E$69 = 1,CHOOSE(m_identity,'SHE-Transmission PLC'!AM114, SPTL!AM114, 'NGET TO'!AM114),CHOOSE(m_identity,'SHE-Transmission PLC (Blank - )'!AM114, 'SPTL (Blank - not used)'!AM114, 'NGET TO (Blank - not used)'!AM114)) -> 0 | AN114: =IF(UserInterface!$E$69 = 1,CHOOSE(m_identity,'SHE-Transmission PLC'!AN114, SPTL!AN114, 'NGET TO'!AN114),CHOOSE(m_identity,'SHE-Transmission PLC (Blank - )'!AN114, 'SPTL (Blank - not used)'!AN114, 'NGET TO (Blank - not used)'!AN114)) -> 0 | AO114: =IF(UserInterface!$E$69 = 1,CHOOSE(m_identity,'SHE-Transmission PLC'!AO114, SPTL!AO114, 'NGET TO'!AO114),CHOOSE(m_identity,'SHE-Transmission PLC (Blank - )'!AO114, 'SPTL (Blank - not used)'!AO114, 'NGET TO (Blank - not used)'!AO114)) -> 0
E115: Allocation to asset replacement capex expenditure | G115: % | AH115: =IF(UserInterface!$E$69 = 1,CHOOSE(m_identity,'SHE-Transmission PLC'!AH115, SPTL!AH115, 'NGET TO'!AH115),CHOOSE(m_identity,'SHE-Transmission PLC (Blank - )'!AH115, 'SPTL (Blank - not used)'!AH115, 'NGET TO (Blank - not used)'!AH115)) -> 0 | AI115: =IF(UserInterface!$E$69 = 1,CHOOSE(m_identity,'SHE-Transmission PLC'!AI115, SPTL!AI115, 'NGET TO'!AI115),CHOOSE(m_identity,'SHE-Transmission PLC (Blank - )'!AI115, 'SPTL (Blank - not used)'!AI115, 'NGET TO (Blank - not used)'!AI115)) -> 0 | AJ115: =IF(UserInterface!$E$69 = 1,CHOOSE(m_identity,'SHE-Transmission PLC'!AJ115, SPTL!AJ115, 'NGET TO'!AJ115),CHOOSE(m_identity,'SHE-Transmission PLC (Blank - )'!AJ115, 'SPTL (Blank - not used)'!AJ115, 'NGET TO (Blank - not used)'!AJ115)) -> 0 | AK115: =IF(UserInterface!$E$69 = 1,CHOOSE(m_identity,'SHE-Transmission PLC'!AK115, SPTL!AK115, 'NGET TO'!AK115),CHOOSE(m_identity,'SHE-Transmission PLC (Blank - )'!AK115, 'SPTL (Blank - not used)'!AK115, 'NGET TO (Blank - not used)'!AK115)) -> 0 | AL115: =IF(UserInterface!$E$69 = 1,CHOOSE(m_identity,'SHE-Transmission PLC'!AL115, SPTL!AL115, 'NGET TO'!AL115),CHOOSE(m_identity,'SHE-Transmission PLC (Blank - )'!AL115, 'SPTL (Blank - not used)'!AL115, 'NGET TO (Blank - not used)'!AL115)) -> 0 | AM115: =IF(UserInterface!$E$69 = 1,CHOOSE(m_identity,'SHE-Transmission PLC'!AM115, SPTL!AM115, 'NGET TO'!AM115),CHOOSE(m_identity,'SHE-Transmission PLC (Blank - )'!AM115, 'SPTL (Blank - not used)'!AM115, 'NGET TO (Blank - not used)'!AM115)) -> 0 | AN115: =IF(UserInterface!$E$69 = 1,CHOOSE(m_identity,'SHE-Transmission PLC'!AN115, SPTL!AN115, 'NGET TO'!AN115),CHOOSE(m_identity,'SHE-Transmission PLC (Blank - )'!AN115, 'SPTL (Blank - not used)'!AN115, 'NGET TO (Blank - not used)'!AN115)) -> 0 | AO115: =IF(UserInterface!$E$69 = 1,CHOOSE(m_identity,'SHE-Transmission PLC'!AO115, SPTL!AO115, 'NGET TO'!AO115),CHOOSE(m_identity,'SHE-Transmission PLC (Blank - )'!AO115, 'SPTL (Blank - not used)'!AO115, 'NGET TO (Blank - not used)'!AO115)) -> 0
E116: Allocation to other capex expenditure | G116: % | AH116: =IF(UserInterface!$E$69 = 1,CHOOSE(m_identity,'SHE-Transmission PLC'!AH116, SPTL!AH116, 'NGET TO'!AH116),CHOOSE(m_identity,'SHE-Transmission PLC (Blank - )'!AH116, 'SPTL (Blank - not used)'!AH116, 'NGET TO (Blank - not used)'!AH116)) -> 1 | AI116: =IF(UserInterface!$E$69 = 1,CHOOSE(m_identity,'SHE-Transmission PLC'!AI116, SPTL!AI116, 'NGET TO'!AI116),CHOOSE(m_identity,'SHE-Transmission PLC (Blank - )'!AI116, 'SPTL (Blank - not used)'!AI116, 'NGET TO (Blank - not used)'!AI116)) -> 1 | AJ116: =IF(UserInterface!$E$69 = 1,CHOOSE(m_identity,'SHE-Transmission PLC'!AJ116, SPTL!AJ116, 'NGET TO'!AJ116),CHOOSE(m_identity,'SHE-Transmission PLC (Blank - )'!AJ116, 'SPTL (Blank - not used)'!AJ116, 'NGET TO (Blank - not used)'!AJ116)) -> 1 | AK116: =IF(UserInterface!$E$69 = 1,CHOOSE(m_identity,'SHE-Transmission PLC'!AK116, SPTL!AK116, 'NGET TO'!AK116),CHOOSE(m_identity,'SHE-Transmission PLC (Blank - )'!AK116, 'SPTL (Blank - not used)'!AK116, 'NGET TO (Blank - not used)'!AK116)) -> 1 | AL116: =IF(UserInterface!$E$69 = 1,CHOOSE(m_identity,'SHE-Transmission PLC'!AL116, SPTL!AL116, 'NGET TO'!AL116),CHOOSE(m_identity,'SHE-Transmission PLC (Blank - )'!AL116, 'SPTL (Blank - not used)'!AL116, 'NGET TO (Blank - not used)'!AL116)) -> 1 | AM116: =IF(UserInterface!$E$69 = 1,CHOOSE(m_identity,'SHE-Transmission PLC'!AM116, SPTL!AM116, 'NGET TO'!AM116),CHOOSE(m_identity,'SHE-Transmission PLC (Blank - )'!AM116, 'SPTL (Blank - not used)'!AM116, 'NGET TO (Blank - not used)'!AM116)) -> 1 | AN116: =IF(UserInterface!$E$69 = 1,CHOOSE(m_identity,'SHE-Transmission PLC'!AN116, SPTL!AN116, 'NGET TO'!AN116),CHOOSE(m_identity,'SHE-Transmission PLC (Blank - )'!AN116, 'SPTL (Blank - not used)'!AN116, 'NGET TO (Blank - not used)'!AN116)) -> 1 | AO116: =IF(UserInterface!$E$69 = 1,CHOOSE(m_identity,'SHE-Transmission PLC'!AO116, SPTL!AO116, 'NGET TO'!AO116),CHOOSE(m_identity,'SHE-Transmission PLC (Blank - )'!AO116, 'SPTL (Blank - not used)'!AO116, 'NGET TO (Blank - not used)'!AO116)) -> 1
E117: Allocation to controllable opex | G117: % | AH117: =IF(UserInterface!$E$69 = 1,CHOOSE(m_identity,'SHE-Transmission PLC'!AH117, SPTL!AH117, 'NGET TO'!AH117),CHOOSE(m_identity,'SHE-Transmission PLC (Blank - )'!AH117, 'SPTL (Blank - not used)'!AH117, 'NGET TO (Blank - not used)'!AH117)) -> 0 | AI117: =IF(UserInterface!$E$69 = 1,CHOOSE(m_identity,'SHE-Transmission PLC'!AI117, SPTL!AI117, 'NGET TO'!AI117),CHOOSE(m_identity,'SHE-Transmission PLC (Blank - )'!AI117, 'SPTL (Blank - not used)'!AI117, 'NGET TO (Blank - not used)'!AI117)) -> 0 | AJ117: =IF(UserInterface!$E$69 = 1,CHOOSE(m_identity,'SHE-Transmission PLC'!AJ117, SPTL!AJ117, 'NGET TO'!AJ117),CHOOSE(m_identity,'SHE-Transmission PLC (Blank - )'!AJ117, 'SPTL (Blank - not used)'!AJ117, 'NGET TO (Blank - not used)'!AJ117)) -> 0 | AK117: =IF(UserInterface!$E$69 = 1,CHOOSE(m_identity,'SHE-Transmission PLC'!AK117, SPTL!AK117, 'NGET TO'!AK117),CHOOSE(m_identity,'SHE-Transmission PLC (Blank - )'!AK117, 'SPTL (Blank - not used)'!AK117, 'NGET TO (Blank - not used)'!AK117)) -> 0 | AL117: =IF(UserInterface!$E$69 = 1,CHOOSE(m_identity,'SHE-Transmission PLC'!AL117, SPTL!AL117, 'NGET TO'!AL117),CHOOSE(m_identity,'SHE-Transmission PLC (Blank - )'!AL117, 'SPTL (Blank - not used)'!AL117, 'NGET TO (Blank - not used)'!AL117)) -> 0 | AM117: =IF(UserInterface!$E$69 = 1,CHOOSE(m_identity,'SHE-Transmission PLC'!AM117, SPTL!AM117, 'NGET TO'!AM117),CHOOSE(m_identity,'SHE-Transmission PLC (Blank - )'!AM117, 'SPTL (Blank - not used)'!AM117, 'NGET TO (Blank - not used)'!AM117)) -> 0 | AN117: =IF(UserInterface!$E$69 = 1,CHOOSE(m_identity,'SHE-Transmission PLC'!AN117, SPTL!AN117, 'NGET TO'!AN117),CHOOSE(m_identity,'SHE-Transmission PLC (Blank - )'!AN117, 'SPTL (Blank - not used)'!AN117, 'NGET TO (Blank - not used)'!AN117)) -> 0 | AO117: =IF(UserInterface!$E$69 = 1,CHOOSE(m_identity,'SHE-Transmission PLC'!AO117, SPTL!AO117, 'NGET TO'!AO117),CHOOSE(m_identity,'SHE-Transmission PLC (Blank - )'!AO117, 'SPTL (Blank - not used)'!AO117, 'NGET TO (Blank - not used)'!AO117)) -> 0
E118: Allocation to non-operational capex | G118: % | AH118: =IF(UserInterface!$E$69 = 1,CHOOSE(m_identity,'SHE-Transmission PLC'!AH118, SPTL!AH118, 'NGET TO'!AH118),CHOOSE(m_identity,'SHE-Transmission PLC (Blank - )'!AH118, 'SPTL (Blank - not used)'!AH118, 'NGET TO (Blank - not used)'!AH118)) -> 0 | AI118: =IF(UserInterface!$E$69 = 1,CHOOSE(m_identity,'SHE-Transmission PLC'!AI118, SPTL!AI118, 'NGET TO'!AI118),CHOOSE(m_identity,'SHE-Transmission PLC (Blank - )'!AI118, 'SPTL (Blank - not used)'!AI118, 'NGET TO (Blank - not used)'!AI118)) -> 0 | AJ118: =IF(UserInterface!$E$69 = 1,CHOOSE(m_identity,'SHE-Transmission PLC'!AJ118, SPTL!AJ118, 'NGET TO'!AJ118),CHOOSE(m_identity,'SHE-Transmission PLC (Blank - )'!AJ118, 'SPTL (Blank - not used)'!AJ118, 'NGET TO (Blank - not used)'!AJ118)) -> 0 | AK118: =IF(UserInterface!$E$69 = 1,CHOOSE(m_identity,'SHE-Transmission PLC'!AK118, SPTL!AK118, 'NGET TO'!AK118),CHOOSE(m_identity,'SHE-Transmission PLC (Blank - )'!AK118, 'SPTL (Blank - not used)'!AK118, 'NGET TO (Blank - not used)'!AK118)) -> 0 | AL118: =IF(UserInterface!$E$69 = 1,CHOOSE(m_identity,'SHE-Transmission PLC'!AL118, SPTL!AL118, 'NGET TO'!AL118),CHOOSE(m_identity,'SHE-Transmission PLC (Blank - )'!AL118, 'SPTL (Blank - not used)'!AL118, 'NGET TO (Blank - not used)'!AL118)) -> 0 | AM118: =IF(UserInterface!$E$69 = 1,CHOOSE(m_identity,'SHE-Transmission PLC'!AM118, SPTL!AM118, 'NGET TO'!AM118),CHOOSE(m_identity,'SHE-Transmission PLC (Blank - )'!AM118, 'SPTL (Blank - not used)'!AM118, 'NGET TO (Blank - not used)'!AM118)) -> 0 | AN118: =IF(UserInterface!$E$69 = 1,CHOOSE(m_identity,'SHE-Transmission PLC'!AN118, SPTL!AN118, 'NGET TO'!AN118),CHOOSE(m_identity,'SHE-Transmission PLC (Blank - )'!AN118, 'SPTL (Blank - not used)'!AN118, 'NGET TO (Blank - not used)'!AN118)) -> 0 | AO118: =IF(UserInterface!$E$69 = 1,CHOOSE(m_identity,'SHE-Transmission PLC'!AO118, SPTL!AO118, 'NGET TO'!AO118),CHOOSE(m_identity,'SHE-Transmission PLC (Blank - )'!AO118, 'SPTL (Blank - not used)'!AO118, 'NGET TO (Blank - not used)'!AO118)) -> 0
E120: =E18 -> Baseline and strategic wider works outputs | G120: £m 09/10 prices | AH120: =AH18 -> 161.7 | AI120: =AI18 -> 230.4 | AJ120: 208.9 | AK120: 20.1 | AL120: 0 | AM120: 0 | AN120: 0 | AO120: 0
E121: Allocation to load related capex expenditure | G121: % | AH121: =IF(UserInterface!$E$69 = 1,CHOOSE(m_identity,'SHE-Transmission PLC'!AH121, SPTL!AH121, 'NGET TO'!AH121),CHOOSE(m_identity,'SHE-Transmission PLC (Blank - )'!AH121, 'SPTL (Blank - not used)'!AH121, 'NGET TO (Blank - not used)'!AH121)) -> 1 | AI121: =IF(UserInterface!$E$69 = 1,CHOOSE(m_identity,'SHE-Transmission PLC'!AI121, SPTL!AI121, 'NGET TO'!AI121),CHOOSE(m_identity,'SHE-Transmission PLC (Blank - )'!AI121, 'SPTL (Blank - not used)'!AI121, 'NGET TO (Blank - not used)'!AI121)) -> 1 | AJ121: =IF(UserInterface!$E$69 = 1,CHOOSE(m_identity,'SHE-Transmission PLC'!AJ121, SPTL!AJ121, 'NGET TO'!AJ121),CHOOSE(m_identity,'SHE-Transmission PLC (Blank - )'!AJ121, 'SPTL (Blank - not used)'!AJ121, 'NGET TO (Blank - not used)'!AJ121)) -> 1 | AK121: =IF(UserInterface!$E$69 = 1,CHOOSE(m_identity,'SHE-Transmission PLC'!AK121, SPTL!AK121, 'NGET TO'!AK121),CHOOSE(m_identity,'SHE-Transmission PLC (Blank - )'!AK121, 'SPTL (Blank - not used)'!AK121, 'NGET TO (Blank - not used)'!AK121)) -> 1 | AL121: =IF(UserInterface!$E$69 = 1,CHOOSE(m_identity,'SHE-Transmission PLC'!AL121, SPTL!AL121, 'NGET TO'!AL121),CHOOSE(m_identity,'SHE-Transmission PLC (Blank - )'!AL121, 'SPTL (Blank - not used)'!AL121, 'NGET TO (Blank - not used)'!AL121)) -> 1 | AM121: =IF(UserInterface!$E$69 = 1,CHOOSE(m_identity,'SHE-Transmission PLC'!AM121, SPTL!AM121, 'NGET TO'!AM121),CHOOSE(m_identity,'SHE-Transmission PLC (Blank - )'!AM121, 'SPTL (Blank - not used)'!AM121, 'NGET TO (Blank - not used)'!AM121)) -> 1 | AN121: =IF(UserInterface!$E$69 = 1,CHOOSE(m_identity,'SHE-Transmission PLC'!AN121, SPTL!AN121, 'NGET TO'!AN121),CHOOSE(m_identity,'SHE-Transmission PLC (Blank - )'!AN121, 'SPTL (Blank - not used)'!AN121, 'NGET TO (Blank - not used)'!AN121)) -> 1 | AO121: =IF(UserInterface!$E$69 = 1,CHOOSE(m_identity,'SHE-Transmission PLC'!AO121, SPTL!AO121, 'NGET TO'!AO121),CHOOSE(m_identity,'SHE-Transmission PLC (Blank - )'!AO121, 'SPTL (Blank - not used)'!AO121, 'NGET TO (Blank - not used)'!AO121)) -> 1
E122: Allocation to asset replacement capex expenditure | G122: % | AH122: =IF(UserInterface!$E$69 = 1,CHOOSE(m_identity,'SHE-Transmission PLC'!AH122, SPTL!AH122, 'NGET TO'!AH122),CHOOSE(m_identity,'SHE-Transmission PLC (Blank - )'!AH122, 'SPTL (Blank - not used)'!AH122, 'NGET TO (Blank - not used)'!AH122)) -> 0 | AI122: =IF(UserInterface!$E$69 = 1,CHOOSE(m_identity,'SHE-Transmission PLC'!AI122, SPTL!AI122, 'NGET TO'!AI122),CHOOSE(m_identity,'SHE-Transmission PLC (Blank - )'!AI122, 'SPTL (Blank - not used)'!AI122, 'NGET TO (Blank - not used)'!AI122)) -> 0 | AJ122: =IF(UserInterface!$E$69 = 1,CHOOSE(m_identity,'SHE-Transmission PLC'!AJ122, SPTL!AJ122, 'NGET TO'!AJ122),CHOOSE(m_identity,'SHE-Transmission PLC (Blank - )'!AJ122, 'SPTL (Blank - not used)'!AJ122, 'NGET TO (Blank - not used)'!AJ122)) -> 0 | AK122: =IF(UserInterface!$E$69 = 1,CHOOSE(m_identity,'SHE-Transmission PLC'!AK122, SPTL!AK122, 'NGET TO'!AK122),CHOOSE(m_identity,'SHE-Transmission PLC (Blank - )'!AK122, 'SPTL (Blank - not used)'!AK122, 'NGET TO (Blank - not used)'!AK122)) -> 0 | AL122: =IF(UserInterface!$E$69 = 1,CHOOSE(m_identity,'SHE-Transmission PLC'!AL122, SPTL!AL122, 'NGET TO'!AL122),CHOOSE(m_identity,'SHE-Transmission PLC (Blank - )'!AL122, 'SPTL (Blank - not used)'!AL122, 'NGET TO (Blank - not used)'!AL122)) -> 0 | AM122: =IF(UserInterface!$E$69 = 1,CHOOSE(m_identity,'SHE-Transmission PLC'!AM122, SPTL!AM122, 'NGET TO'!AM122),CHOOSE(m_identity,'SHE-Transmission PLC (Blank - )'!AM122, 'SPTL (Blank - not used)'!AM122, 'NGET TO (Blank - not used)'!AM122)) -> 0 | AN122: =IF(UserInterface!$E$69 = 1,CHOOSE(m_identity,'SHE-Transmission PLC'!AN122, SPTL!AN122, 'NGET TO'!AN122),CHOOSE(m_identity,'SHE-Transmission PLC (Blank - )'!AN122, 'SPTL (Blank - not used)'!AN122, 'NGET TO (Blank - not used)'!AN122)) -> 0 | AO122: =IF(UserInterface!$E$69 = 1,CHOOSE(m_identity,'SHE-Transmission PLC'!AO122, SPTL!AO122, 'NGET TO'!AO122),CHOOSE(m_identity,'SHE-Transmission PLC (Blank - )'!AO122, 'SPTL (Blank - not used)'!AO122, 'NGET TO (Blank - not used)'!AO122)) -> 0
E123: Allocation to other capex expenditure | G123: % | AH123: =IF(UserInterface!$E$69 = 1,CHOOSE(m_identity,'SHE-Transmission PLC'!AH123, SPTL!AH123, 'NGET TO'!AH123),CHOOSE(m_identity,'SHE-Transmission PLC (Blank - )'!AH123, 'SPTL (Blank - not used)'!AH123, 'NGET TO (Blank - not used)'!AH123)) -> 0 | AI123: =IF(UserInterface!$E$69 = 1,CHOOSE(m_identity,'SHE-Transmission PLC'!AI123, SPTL!AI123, 'NGET TO'!AI123),CHOOSE(m_identity,'SHE-Transmission PLC (Blank - )'!AI123, 'SPTL (Blank - not used)'!AI123, 'NGET TO (Blank - not used)'!AI123)) -> 0 | AJ123: =IF(UserInterface!$E$69 = 1,CHOOSE(m_identity,'SHE-Transmission PLC'!AJ123, SPTL!AJ123, 'NGET TO'!AJ123),CHOOSE(m_identity,'SHE-Transmission PLC (Blank - )'!AJ123, 'SPTL (Blank - not used)'!AJ123, 'NGET TO (Blank - not used)'!AJ123)) -> 0 | AK123: =IF(UserInterface!$E$69 = 1,CHOOSE(m_identity,'SHE-Transmission PLC'!AK123, SPTL!AK123, 'NGET TO'!AK123),CHOOSE(m_identity,'SHE-Transmission PLC (Blank - )'!AK123, 'SPTL (Blank - not used)'!AK123, 'NGET TO (Blank - not used)'!AK123)) -> 0 | AL123: =IF(UserInterface!$E$69 = 1,CHOOSE(m_identity,'SHE-Transmission PLC'!AL123, SPTL!AL123, 'NGET TO'!AL123),CHOOSE(m_identity,'SHE-Transmission PLC (Blank - )'!AL123, 'SPTL (Blank - not used)'!AL123, 'NGET TO (Blank - not used)'!AL123)) -> 0 | AM123: =IF(UserInterface!$E$69 = 1,CHOOSE(m_identity,'SHE-Transmission PLC'!AM123, SPTL!AM123, 'NGET TO'!AM123),CHOOSE(m_identity,'SHE-Transmission PLC (Blank - )'!AM123, 'SPTL (Blank - not used)'!AM123, 'NGET TO (Blank - not used)'!AM123)) -> 0 | AN123: =IF(UserInterface!$E$69 = 1,CHOOSE(m_identity,'SHE-Transmission PLC'!AN123, SPTL!AN123, 'NGET TO'!AN123),CHOOSE(m_identity,'SHE-Transmission PLC (Blank - )'!AN123, 'SPTL (Blank - not used)'!AN123, 'NGET TO (Blank - not used)'!AN123)) -> 0 | AO123: =IF(UserInterface!$E$69 = 1,CHOOSE(m_identity,'SHE-Transmission PLC'!AO123, SPTL!AO123, 'NGET TO'!AO123),CHOOSE(m_identity,'SHE-Transmission PLC (Blank - )'!AO123, 'SPTL (Blank - not used)'!AO123, 'NGET TO (Blank - not used)'!AO123)) -> 0
E124: Allocation to controllable opex | G124: % | AH124: =IF(UserInterface!$E$69 = 1,CHOOSE(m_identity,'SHE-Transmission PLC'!AH124, SPTL!AH124, 'NGET TO'!AH124),CHOOSE(m_identity,'SHE-Transmission PLC (Blank - )'!AH124, 'SPTL (Blank - not used)'!AH124, 'NGET TO (Blank - not used)'!AH124)) -> 0 | AI124: =IF(UserInterface!$E$69 = 1,CHOOSE(m_identity,'SHE-Transmission PLC'!AI124, SPTL!AI124, 'NGET TO'!AI124),CHOOSE(m_identity,'SHE-Transmission PLC (Blank - )'!AI124, 'SPTL (Blank - not used)'!AI124, 'NGET TO (Blank - not used)'!AI124)) -> 0 | AJ124: =IF(UserInterface!$E$69 = 1,CHOOSE(m_identity,'SHE-Transmission PLC'!AJ124, SPTL!AJ124, 'NGET TO'!AJ124),CHOOSE(m_identity,'SHE-Transmission PLC (Blank - )'!AJ124, 'SPTL (Blank - not used)'!AJ124, 'NGET TO (Blank - not used)'!AJ124)) -> 0 | AK124: =IF(UserInterface!$E$69 = 1,CHOOSE(m_identity,'SHE-Transmission PLC'!AK124, SPTL!AK124, 'NGET TO'!AK124),CHOOSE(m_identity,'SHE-Transmission PLC (Blank - )'!AK124, 'SPTL (Blank - not used)'!AK124, 'NGET TO (Blank - not used)'!AK124)) -> 0 | AL124: =IF(UserInterface!$E$69 = 1,CHOOSE(m_identity,'SHE-Transmission PLC'!AL124, SPTL!AL124, 'NGET TO'!AL124),CHOOSE(m_identity,'SHE-Transmission PLC (Blank - )'!AL124, 'SPTL (Blank - not used)'!AL124, 'NGET TO (Blank - not used)'!AL124)) -> 0 | AM124: =IF(UserInterface!$E$69 = 1,CHOOSE(m_identity,'SHE-Transmission PLC'!AM124, SPTL!AM124, 'NGET TO'!AM124),CHOOSE(m_identity,'SHE-Transmission PLC (Blank - )'!AM124, 'SPTL (Blank - not used)'!AM124, 'NGET TO (Blank - not used)'!AM124)) -> 0 | AN124: =IF(UserInterface!$E$69 = 1,CHOOSE(m_identity,'SHE-Transmission PLC'!AN124, SPTL!AN124, 'NGET TO'!AN124),CHOOSE(m_identity,'SHE-Transmission PLC (Blank - )'!AN124, 'SPTL (Blank - not used)'!AN124, 'NGET TO (Blank - not used)'!AN124)) -> 0 | AO124: =IF(UserInterface!$E$69 = 1,CHOOSE(m_identity,'SHE-Transmission PLC'!AO124, SPTL!AO124, 'NGET TO'!AO124),CHOOSE(m_identity,'SHE-Transmission PLC (Blank - )'!AO124, 'SPTL (Blank - not used)'!AO124, 'NGET TO (Blank - not used)'!AO124)) -> 0
E125: Allocation to non-operational capex | G125: % | AH125: =IF(UserInterface!$E$69 = 1,CHOOSE(m_identity,'SHE-Transmission PLC'!AH125, SPTL!AH125, 'NGET TO'!AH125),CHOOSE(m_identity,'SHE-Transmission PLC (Blank - )'!AH125, 'SPTL (Blank - not used)'!AH125, 'NGET TO (Blank - not used)'!AH125)) -> 0 | AI125: =IF(UserInterface!$E$69 = 1,CHOOSE(m_identity,'SHE-Transmission PLC'!AI125, SPTL!AI125, 'NGET TO'!AI125),CHOOSE(m_identity,'SHE-Transmission PLC (Blank - )'!AI125, 'SPTL (Blank - not used)'!AI125, 'NGET TO (Blank - not used)'!AI125)) -> 0 | AJ125: =IF(UserInterface!$E$69 = 1,CHOOSE(m_identity,'SHE-Transmission PLC'!AJ125, SPTL!AJ125, 'NGET TO'!AJ125),CHOOSE(m_identity,'SHE-Transmission PLC (Blank - )'!AJ125, 'SPTL (Blank - not used)'!AJ125, 'NGET TO (Blank - not used)'!AJ125)) -> 0 | AK125: =IF(UserInterface!$E$69 = 1,CHOOSE(m_identity,'SHE-Transmission PLC'!AK125, SPTL!AK125, 'NGET TO'!AK125),CHOOSE(m_identity,'SHE-Transmission PLC (Blank - )'!AK125, 'SPTL (Blank - not used)'!AK125, 'NGET TO (Blank - not used)'!AK125)) -> 0 | AL125: =IF(UserInterface!$E$69 = 1,CHOOSE(m_identity,'SHE-Transmission PLC'!AL125, SPTL!AL125, 'NGET TO'!AL125),CHOOSE(m_identity,'SHE-Transmission PLC (Blank - )'!AL125, 'SPTL (Blank - not used)'!AL125, 'NGET TO (Blank - not used)'!AL125)) -> 0 | AM125: =IF(UserInterface!$E$69 = 1,CHOOSE(m_identity,'SHE-Transmission PLC'!AM125, SPTL!AM125, 'NGET TO'!AM125),CHOOSE(m_identity,'SHE-Transmission PLC (Blank - )'!AM125, 'SPTL (Blank - not used)'!AM125, 'NGET TO (Blank - not used)'!AM125)) -> 0 | AN125: =IF(UserInterface!$E$69 = 1,CHOOSE(m_identity,'SHE-Transmission PLC'!AN125, SPTL!AN125, 'NGET TO'!AN125),CHOOSE(m_identity,'SHE-Transmission PLC (Blank - )'!AN125, 'SPTL (Blank - not used)'!AN125, 'NGET TO (Blank - not used)'!AN125)) -> 0 | AO125: =IF(UserInterface!$E$69 = 1,CHOOSE(m_identity,'SHE-Transmission PLC'!AO125, SPTL!AO125, 'NGET TO'!AO125),CHOOSE(m_identity,'SHE-Transmission PLC (Blank - )'!AO125, 'SPTL (Blank - not used)'!AO125, 'NGET TO (Blank - not used)'!AO125)) -> 0
E127: =E19 -> Network development and wider works volume driver (NGET only) | G127: £m 09/10 prices | AH127: =AH19 -> 397.10976 | AI127: 303.2836665 | AJ127: 264.33553 | AK127: 283.1637444 | AL127: 133.1950619 | AM127: 70.25223768 | AN127: 27.32472935 | AO127: 8.569314199
E128: Allocation to load related capex expenditure | G128: % | AH128: =IF(UserInterface!$E$69 = 1,CHOOSE(m_identity,'SHE-Transmission PLC'!AH128, SPTL!AH128, 'NGET TO'!AH128),CHOOSE(m_identity,'SHE-Transmission PLC (Blank - )'!AH128, 'SPTL (Blank - not used)'!AH128, 'NGET TO (Blank - not used)'!AH128)) -> 1 | AI128: =IF(UserInterface!$E$69 = 1,CHOOSE(m_identity,'SHE-Transmission PLC'!AI128, SPTL!AI128, 'NGET TO'!AI128),CHOOSE(m_identity,'SHE-Transmission PLC (Blank - )'!AI128, 'SPTL (Blank - not used)'!AI128, 'NGET TO (Blank - not used)'!AI128)) -> 1 | AJ128: =IF(UserInterface!$E$69 = 1,CHOOSE(m_identity,'SHE-Transmission PLC'!AJ128, SPTL!AJ128, 'NGET TO'!AJ128),CHOOSE(m_identity,'SHE-Transmission PLC (Blank - )'!AJ128, 'SPTL (Blank - not used)'!AJ128, 'NGET TO (Blank - not used)'!AJ128)) -> 1 | AK128: =IF(UserInterface!$E$69 = 1,CHOOSE(m_identity,'SHE-Transmission PLC'!AK128, SPTL!AK128, 'NGET TO'!AK128),CHOOSE(m_identity,'SHE-Transmission PLC (Blank - )'!AK128, 'SPTL (Blank - not used)'!AK128, 'NGET TO (Blank - not used)'!AK128)) -> 1 | AL128: =IF(UserInterface!$E$69 = 1,CHOOSE(m_identity,'SHE-Transmission PLC'!AL128, SPTL!AL128, 'NGET TO'!AL128),CHOOSE(m_identity,'SHE-Transmission PLC (Blank - )'!AL128, 'SPTL (Blank - not used)'!AL128, 'NGET TO (Blank - not used)'!AL128)) -> 1 | AM128: =IF(UserInterface!$E$69 = 1,CHOOSE(m_identity,'SHE-Transmission PLC'!AM128, SPTL!AM128, 'NGET TO'!AM128),CHOOSE(m_identity,'SHE-Transmission PLC (Blank - )'!AM128, 'SPTL (Blank - not used)'!AM128, 'NGET TO (Blank - not used)'!AM128)) -> 1 | AN128: =IF(UserInterface!$E$69 = 1,CHOOSE(m_identity,'SHE-Transmission PLC'!AN128, SPTL!AN128, 'NGET TO'!AN128),CHOOSE(m_identity,'SHE-Transmission PLC (Blank - )'!AN128, 'SPTL (Blank - not used)'!AN128, 'NGET TO (Blank - not used)'!AN128)) -> 1 | AO128: =IF(UserInterface!$E$69 = 1,CHOOSE(m_identity,'SHE-Transmission PLC'!AO128, SPTL!AO128, 'NGET TO'!AO128),CHOOSE(m_identity,'SHE-Transmission PLC (Blank - )'!AO128, 'SPTL (Blank - not used)'!AO128, 'NGET TO (Blank - not used)'!AO128)) -> 1
E129: Allocation to asset replacement capex expenditure | G129: % | AH129: =IF(UserInterface!$E$69 = 1,CHOOSE(m_identity,'SHE-Transmission PLC'!AH129, SPTL!AH129, 'NGET TO'!AH129),CHOOSE(m_identity,'SHE-Transmission PLC (Blank - )'!AH129, 'SPTL (Blank - not used)'!AH129, 'NGET TO (Blank - not used)'!AH129)) -> 0 | AI129: =IF(UserInterface!$E$69 = 1,CHOOSE(m_identity,'SHE-Transmission PLC'!AI129, SPTL!AI129, 'NGET TO'!AI129),CHOOSE(m_identity,'SHE-Transmission PLC (Blank - )'!AI129, 'SPTL (Blank - not used)'!AI129, 'NGET TO (Blank - not used)'!AI129)) -> 0 | AJ129: =IF(UserInterface!$E$69 = 1,CHOOSE(m_identity,'SHE-Transmission PLC'!AJ129, SPTL!AJ129, 'NGET TO'!AJ129),CHOOSE(m_identity,'SHE-Transmission PLC (Blank - )'!AJ129, 'SPTL (Blank - not used)'!AJ129, 'NGET TO (Blank - not used)'!AJ129)) -> 0 | AK129: =IF(UserInterface!$E$69 = 1,CHOOSE(m_identity,'SHE-Transmission PLC'!AK129, SPTL!AK129, 'NGET TO'!AK129),CHOOSE(m_identity,'SHE-Transmission PLC (Blank - )'!AK129, 'SPTL (Blank - not used)'!AK129, 'NGET TO (Blank - not used)'!AK129)) -> 0 | AL129: =IF(UserInterface!$E$69 = 1,CHOOSE(m_identity,'SHE-Transmission PLC'!AL129, SPTL!AL129, 'NGET TO'!AL129),CHOOSE(m_identity,'SHE-Transmission PLC (Blank - )'!AL129, 'SPTL (Blank - not used)'!AL129, 'NGET TO (Blank - not used)'!AL129)) -> 0 | AM129: =IF(UserInterface!$E$69 = 1,CHOOSE(m_identity,'SHE-Transmission PLC'!AM129, SPTL!AM129, 'NGET TO'!AM129),CHOOSE(m_identity,'SHE-Transmission PLC (Blank - )'!AM129, 'SPTL (Blank - not used)'!AM129, 'NGET TO (Blank - not used)'!AM129)) -> 0 | AN129: =IF(UserInterface!$E$69 = 1,CHOOSE(m_identity,'SHE-Transmission PLC'!AN129, SPTL!AN129, 'NGET TO'!AN129),CHOOSE(m_identity,'SHE-Transmission PLC (Blank - )'!AN129, 'SPTL (Blank - not used)'!AN129, 'NGET TO (Blank - not used)'!AN129)) -> 0 | AO129: =IF(UserInterface!$E$69 = 1,CHOOSE(m_identity,'SHE-Transmission PLC'!AO129, SPTL!AO129, 'NGET TO'!AO129),CHOOSE(m_identity,'SHE-Transmission PLC (Blank - )'!AO129, 'SPTL (Blank - not used)'!AO129, 'NGET TO (Blank - not used)'!AO129)) -> 0
E130: Allocation to other capex expenditure | G130: % | AH130: =IF(UserInterface!$E$69 = 1,CHOOSE(m_identity,'SHE-Transmission PLC'!AH130, SPTL!AH130, 'NGET TO'!AH130),CHOOSE(m_identity,'SHE-Transmission PLC (Blank - )'!AH130, 'SPTL (Blank - not used)'!AH130, 'NGET TO (Blank - not used)'!AH130)) -> 0 | AI130: =IF(UserInterface!$E$69 = 1,CHOOSE(m_identity,'SHE-Transmission PLC'!AI130, SPTL!AI130, 'NGET TO'!AI130),CHOOSE(m_identity,'SHE-Transmission PLC (Blank - )'!AI130, 'SPTL (Blank - not used)'!AI130, 'NGET TO (Blank - not used)'!AI130)) -> 0 | AJ130: =IF(UserInterface!$E$69 = 1,CHOOSE(m_identity,'SHE-Transmission PLC'!AJ130, SPTL!AJ130, 'NGET TO'!AJ130),CHOOSE(m_identity,'SHE-Transmission PLC (Blank - )'!AJ130, 'SPTL (Blank - not used)'!AJ130, 'NGET TO (Blank - not used)'!AJ130)) -> 0 | AK130: =IF(UserInterface!$E$69 = 1,CHOOSE(m_identity,'SHE-Transmission PLC'!AK130, SPTL!AK130, 'NGET TO'!AK130),CHOOSE(m_identity,'SHE-Transmission PLC (Blank - )'!AK130, 'SPTL (Blank - not used)'!AK130, 'NGET TO (Blank - not used)'!AK130)) -> 0 | AL130: =IF(UserInterface!$E$69 = 1,CHOOSE(m_identity,'SHE-Transmission PLC'!AL130, SPTL!AL130, 'NGET TO'!AL130),CHOOSE(m_identity,'SHE-Transmission PLC (Blank - )'!AL130, 'SPTL (Blank - not used)'!AL130, 'NGET TO (Blank - not used)'!AL130)) -> 0 | AM130: =IF(UserInterface!$E$69 = 1,CHOOSE(m_identity,'SHE-Transmission PLC'!AM130, SPTL!AM130, 'NGET TO'!AM130),CHOOSE(m_identity,'SHE-Transmission PLC (Blank - )'!AM130, 'SPTL (Blank - not used)'!AM130, 'NGET TO (Blank - not used)'!AM130)) -> 0 | AN130: =IF(UserInterface!$E$69 = 1,CHOOSE(m_identity,'SHE-Transmission PLC'!AN130, SPTL!AN130, 'NGET TO'!AN130),CHOOSE(m_identity,'SHE-Transmission PLC (Blank - )'!AN130, 'SPTL (Blank - not used)'!AN130, 'NGET TO (Blank - not used)'!AN130)) -> 0 | AO130: =IF(UserInterface!$E$69 = 1,CHOOSE(m_identity,'SHE-Transmission PLC'!AO130, SPTL!AO130, 'NGET TO'!AO130),CHOOSE(m_identity,'SHE-Transmission PLC (Blank - )'!AO130, 'SPTL (Blank - not used)'!AO130, 'NGET TO (Blank - not used)'!AO130)) -> 0
E131: Allocation to controllable opex | G131: % | AH131: =IF(UserInterface!$E$69 = 1,CHOOSE(m_identity,'SHE-Transmission PLC'!AH131, SPTL!AH131, 'NGET TO'!AH131),CHOOSE(m_identity,'SHE-Transmission PLC (Blank - )'!AH131, 'SPTL (Blank - not used)'!AH131, 'NGET TO (Blank - not used)'!AH131)) -> 0 | AI131: =IF(UserInterface!$E$69 = 1,CHOOSE(m_identity,'SHE-Transmission PLC'!AI131, SPTL!AI131, 'NGET TO'!AI131),CHOOSE(m_identity,'SHE-Transmission PLC (Blank - )'!AI131, 'SPTL (Blank - not used)'!AI131, 'NGET TO (Blank - not used)'!AI131)) -> 0 | AJ131: =IF(UserInterface!$E$69 = 1,CHOOSE(m_identity,'SHE-Transmission PLC'!AJ131, SPTL!AJ131, 'NGET TO'!AJ131),CHOOSE(m_identity,'SHE-Transmission PLC (Blank - )'!AJ131, 'SPTL (Blank - not used)'!AJ131, 'NGET TO (Blank - not used)'!AJ131)) -> 0 | AK131: =IF(UserInterface!$E$69 = 1,CHOOSE(m_identity,'SHE-Transmission PLC'!AK131, SPTL!AK131, 'NGET TO'!AK131),CHOOSE(m_identity,'SHE-Transmission PLC (Blank - )'!AK131, 'SPTL (Blank - not used)'!AK131, 'NGET TO (Blank - not used)'!AK131)) -> 0 | AL131: =IF(UserInterface!$E$69 = 1,CHOOSE(m_identity,'SHE-Transmission PLC'!AL131, SPTL!AL131, 'NGET TO'!AL131),CHOOSE(m_identity,'SHE-Transmission PLC (Blank - )'!AL131, 'SPTL (Blank - not used)'!AL131, 'NGET TO (Blank - not used)'!AL131)) -> 0 | AM131: =IF(UserInterface!$E$69 = 1,CHOOSE(m_identity,'SHE-Transmission PLC'!AM131, SPTL!AM131, 'NGET TO'!AM131),CHOOSE(m_identity,'SHE-Transmission PLC (Blank - )'!AM131, 'SPTL (Blank - not used)'!AM131, 'NGET TO (Blank - not used)'!AM131)) -> 0 | AN131: =IF(UserInterface!$E$69 = 1,CHOOSE(m_identity,'SHE-Transmission PLC'!AN131, SPTL!AN131, 'NGET TO'!AN131),CHOOSE(m_identity,'SHE-Transmission PLC (Blank - )'!AN131, 'SPTL (Blank - not used)'!AN131, 'NGET TO (Blank - not used)'!AN131)) -> 0 | AO131: =IF(UserInterface!$E$69 = 1,CHOOSE(m_identity,'SHE-Transmission PLC'!AO131, SPTL!AO131, 'NGET TO'!AO131),CHOOSE(m_identity,'SHE-Transmission PLC (Blank - )'!AO131, 'SPTL (Blank - not used)'!AO131, 'NGET TO (Blank - not used)'!AO131)) -> 0
E132: Allocation to non-operational capex | G132: % | AH132: =IF(UserInterface!$E$69 = 1,CHOOSE(m_identity,'SHE-Transmission PLC'!AH132, SPTL!AH132, 'NGET TO'!AH132),CHOOSE(m_identity,'SHE-Transmission PLC (Blank - )'!AH132, 'SPTL (Blank - not used)'!AH132, 'NGET TO (Blank - not used)'!AH132)) -> 0 | AI132: =IF(UserInterface!$E$69 = 1,CHOOSE(m_identity,'SHE-Transmission PLC'!AI132, SPTL!AI132, 'NGET TO'!AI132),CHOOSE(m_identity,'SHE-Transmission PLC (Blank - )'!AI132, 'SPTL (Blank - not used)'!AI132, 'NGET TO (Blank - not used)'!AI132)) -> 0 | AJ132: =IF(UserInterface!$E$69 = 1,CHOOSE(m_identity,'SHE-Transmission PLC'!AJ132, SPTL!AJ132, 'NGET TO'!AJ132),CHOOSE(m_identity,'SHE-Transmission PLC (Blank - )'!AJ132, 'SPTL (Blank - not used)'!AJ132, 'NGET TO (Blank - not used)'!AJ132)) -> 0 | AK132: =IF(UserInterface!$E$69 = 1,CHOOSE(m_identity,'SHE-Transmission PLC'!AK132, SPTL!AK132, 'NGET TO'!AK132),CHOOSE(m_identity,'SHE-Transmission PLC (Blank - )'!AK132, 'SPTL (Blank - not used)'!AK132, 'NGET TO (Blank - not used)'!AK132)) -> 0 | AL132: =IF(UserInterface!$E$69 = 1,CHOOSE(m_identity,'SHE-Transmission PLC'!AL132, SPTL!AL132, 'NGET TO'!AL132),CHOOSE(m_identity,'SHE-Transmission PLC (Blank - )'!AL132, 'SPTL (Blank - not used)'!AL132, 'NGET TO (Blank - not used)'!AL132)) -> 0 | AM132: =IF(UserInterface!$E$69 = 1,CHOOSE(m_identity,'SHE-Transmission PLC'!AM132, SPTL!AM132, 'NGET TO'!AM132),CHOOSE(m_identity,'SHE-Transmission PLC (Blank - )'!AM132, 'SPTL (Blank - not used)'!AM132, 'NGET TO (Blank - not used)'!AM132)) -> 0 | AN132: =IF(UserInterface!$E$69 = 1,CHOOSE(m_identity,'SHE-Transmission PLC'!AN132, SPTL!AN132, 'NGET TO'!AN132),CHOOSE(m_identity,'SHE-Transmission PLC (Blank - )'!AN132, 'SPTL (Blank - not used)'!AN132, 'NGET TO (Blank - not used)'!AN132)) -> 0 | AO132: =IF(UserInterface!$E$69 = 1,CHOOSE(m_identity,'SHE-Transmission PLC'!AO132, SPTL!AO132, 'NGET TO'!AO132),CHOOSE(m_identity,'SHE-Transmission PLC (Blank - )'!AO132, 'SPTL (Blank - not used)'!AO132, 'NGET TO (Blank - not used)'!AO132)) -> 0
E134: =E20 -> Enhancements to pre-existing infrastructure | G134: £m 09/10 prices | AH134: =AH20 -> 0 | AI134: 0 | AJ134: 0 | AK134: 0 | AL134: 0 | AM134: 0 | AN134: 0 | AO134: 0
E135: Allocation to load related capex expenditure | G135: % | AH135: =IF(UserInterface!$E$69 = 1,CHOOSE(m_identity,'SHE-Transmission PLC'!AH135, SPTL!AH135, 'NGET TO'!AH135),CHOOSE(m_identity,'SHE-Transmission PLC (Blank - )'!AH135, 'SPTL (Blank - not used)'!AH135, 'NGET TO (Blank - not used)'!AH135)) -> 0 | AI135: =IF(UserInterface!$E$69 = 1,CHOOSE(m_identity,'SHE-Transmission PLC'!AI135, SPTL!AI135, 'NGET TO'!AI135),CHOOSE(m_identity,'SHE-Transmission PLC (Blank - )'!AI135, 'SPTL (Blank - not used)'!AI135, 'NGET TO (Blank - not used)'!AI135)) -> 0 | AJ135: =IF(UserInterface!$E$69 = 1,CHOOSE(m_identity,'SHE-Transmission PLC'!AJ135, SPTL!AJ135, 'NGET TO'!AJ135),CHOOSE(m_identity,'SHE-Transmission PLC (Blank - )'!AJ135, 'SPTL (Blank - not used)'!AJ135, 'NGET TO (Blank - not used)'!AJ135)) -> 0 | AK135: =IF(UserInterface!$E$69 = 1,CHOOSE(m_identity,'SHE-Transmission PLC'!AK135, SPTL!AK135, 'NGET TO'!AK135),CHOOSE(m_identity,'SHE-Transmission PLC (Blank - )'!AK135, 'SPTL (Blank - not used)'!AK135, 'NGET TO (Blank - not used)'!AK135)) -> 0 | AL135: =IF(UserInterface!$E$69 = 1,CHOOSE(m_identity,'SHE-Transmission PLC'!AL135, SPTL!AL135, 'NGET TO'!AL135),CHOOSE(m_identity,'SHE-Transmission PLC (Blank - )'!AL135, 'SPTL (Blank - not used)'!AL135, 'NGET TO (Blank - not used)'!AL135)) -> 0 | AM135: =IF(UserInterface!$E$69 = 1,CHOOSE(m_identity,'SHE-Transmission PLC'!AM135, SPTL!AM135, 'NGET TO'!AM135),CHOOSE(m_identity,'SHE-Transmission PLC (Blank - )'!AM135, 'SPTL (Blank - not used)'!AM135, 'NGET TO (Blank - not used)'!AM135)) -> 0 | AN135: =IF(UserInterface!$E$69 = 1,CHOOSE(m_identity,'SHE-Transmission PLC'!AN135, SPTL!AN135, 'NGET TO'!AN135),CHOOSE(m_identity,'SHE-Transmission PLC (Blank - )'!AN135, 'SPTL (Blank - not used)'!AN135, 'NGET TO (Blank - not used)'!AN135)) -> 0 | AO135: =IF(UserInterface!$E$69 = 1,CHOOSE(m_identity,'SHE-Transmission PLC'!AO135, SPTL!AO135, 'NGET TO'!AO135),CHOOSE(m_identity,'SHE-Transmission PLC (Blank - )'!AO135, 'SPTL (Blank - not used)'!AO135, 'NGET TO (Blank - not used)'!AO135)) -> 0
E136: Allocation to asset replacement capex expenditure | G136: % | AH136: =IF(UserInterface!$E$69 = 1,CHOOSE(m_identity,'SHE-Transmission PLC'!AH136, SPTL!AH136, 'NGET TO'!AH136),CHOOSE(m_identity,'SHE-Transmission PLC (Blank - )'!AH136, 'SPTL (Blank - not used)'!AH136, 'NGET TO (Blank - not used)'!AH136)) -> 0 | AI136: =IF(UserInterface!$E$69 = 1,CHOOSE(m_identity,'SHE-Transmission PLC'!AI136, SPTL!AI136, 'NGET TO'!AI136),CHOOSE(m_identity,'SHE-Transmission PLC (Blank - )'!AI136, 'SPTL (Blank - not used)'!AI136, 'NGET TO (Blank - not used)'!AI136)) -> 0 | AJ136: =IF(UserInterface!$E$69 = 1,CHOOSE(m_identity,'SHE-Transmission PLC'!AJ136, SPTL!AJ136, 'NGET TO'!AJ136),CHOOSE(m_identity,'SHE-Transmission PLC (Blank - )'!AJ136, 'SPTL (Blank - not used)'!AJ136, 'NGET TO (Blank - not used)'!AJ136)) -> 0 | AK136: =IF(UserInterface!$E$69 = 1,CHOOSE(m_identity,'SHE-Transmission PLC'!AK136, SPTL!AK136, 'NGET TO'!AK136),CHOOSE(m_identity,'SHE-Transmission PLC (Blank - )'!AK136, 'SPTL (Blank - not used)'!AK136, 'NGET TO (Blank - not used)'!AK136)) -> 0 | AL136: =IF(UserInterface!$E$69 = 1,CHOOSE(m_identity,'SHE-Transmission PLC'!AL136, SPTL!AL136, 'NGET TO'!AL136),CHOOSE(m_identity,'SHE-Transmission PLC (Blank - )'!AL136, 'SPTL (Blank - not used)'!AL136, 'NGET TO (Blank - not used)'!AL136)) -> 0 | AM136: =IF(UserInterface!$E$69 = 1,CHOOSE(m_identity,'SHE-Transmission PLC'!AM136, SPTL!AM136, 'NGET TO'!AM136),CHOOSE(m_identity,'SHE-Transmission PLC (Blank - )'!AM136, 'SPTL (Blank - not used)'!AM136, 'NGET TO (Blank - not used)'!AM136)) -> 0 | AN136: =IF(UserInterface!$E$69 = 1,CHOOSE(m_identity,'SHE-Transmission PLC'!AN136, SPTL!AN136, 'NGET TO'!AN136),CHOOSE(m_identity,'SHE-Transmission PLC (Blank - )'!AN136, 'SPTL (Blank - not used)'!AN136, 'NGET TO (Blank - not used)'!AN136)) -> 0 | AO136: =IF(UserInterface!$E$69 = 1,CHOOSE(m_identity,'SHE-Transmission PLC'!AO136, SPTL!AO136, 'NGET TO'!AO136),CHOOSE(m_identity,'SHE-Transmission PLC (Blank - )'!AO136, 'SPTL (Blank - not used)'!AO136, 'NGET TO (Blank - not used)'!AO136)) -> 0
E137: Allocation to other capex expenditure | G137: % | AH137: =IF(UserInterface!$E$69 = 1,CHOOSE(m_identity,'SHE-Transmission PLC'!AH137, SPTL!AH137, 'NGET TO'!AH137),CHOOSE(m_identity,'SHE-Transmission PLC (Blank - )'!AH137, 'SPTL (Blank - not used)'!AH137, 'NGET TO (Blank - not used)'!AH137)) -> 1 | AI137: =IF(UserInterface!$E$69 = 1,CHOOSE(m_identity,'SHE-Transmission PLC'!AI137, SPTL!AI137, 'NGET TO'!AI137),CHOOSE(m_identity,'SHE-Transmission PLC (Blank - )'!AI137, 'SPTL (Blank - not used)'!AI137, 'NGET TO (Blank - not used)'!AI137)) -> 1 | AJ137: =IF(UserInterface!$E$69 = 1,CHOOSE(m_identity,'SHE-Transmission PLC'!AJ137, SPTL!AJ137, 'NGET TO'!AJ137),CHOOSE(m_identity,'SHE-Transmission PLC (Blank - )'!AJ137, 'SPTL (Blank - not used)'!AJ137, 'NGET TO (Blank - not used)'!AJ137)) -> 1 | AK137: =IF(UserInterface!$E$69 = 1,CHOOSE(m_identity,'SHE-Transmission PLC'!AK137, SPTL!AK137, 'NGET TO'!AK137),CHOOSE(m_identity,'SHE-Transmission PLC (Blank - )'!AK137, 'SPTL (Blank - not used)'!AK137, 'NGET TO (Blank - not used)'!AK137)) -> 1 | AL137: =IF(UserInterface!$E$69 = 1,CHOOSE(m_identity,'SHE-Transmission PLC'!AL137, SPTL!AL137, 'NGET TO'!AL137),CHOOSE(m_identity,'SHE-Transmission PLC (Blank - )'!AL137, 'SPTL (Blank - not used)'!AL137, 'NGET TO (Blank - not used)'!AL137)) -> 1 | AM137: =IF(UserInterface!$E$69 = 1,CHOOSE(m_identity,'SHE-Transmission PLC'!AM137, SPTL!AM137, 'NGET TO'!AM137),CHOOSE(m_identity,'SHE-Transmission PLC (Blank - )'!AM137, 'SPTL (Blank - not used)'!AM137, 'NGET TO (Blank - not used)'!AM137)) -> 1 | AN137: =IF(UserInterface!$E$69 = 1,CHOOSE(m_identity,'SHE-Transmission PLC'!AN137, SPTL!AN137, 'NGET TO'!AN137),CHOOSE(m_identity,'SHE-Transmission PLC (Blank - )'!AN137, 'SPTL (Blank - not used)'!AN137, 'NGET TO (Blank - not used)'!AN137)) -> 1 | AO137: =IF(UserInterface!$E$69 = 1,CHOOSE(m_identity,'SHE-Transmission PLC'!AO137, SPTL!AO137, 'NGET TO'!AO137),CHOOSE(m_identity,'SHE-Transmission PLC (Blank - )'!AO137, 'SPTL (Blank - not used)'!AO137, 'NGET TO (Blank - not used)'!AO137)) -> 1
E138: Allocation to controllable opex | G138: % | AH138: =IF(UserInterface!$E$69 = 1,CHOOSE(m_identity,'SHE-Transmission PLC'!AH138, SPTL!AH138, 'NGET TO'!AH138),CHOOSE(m_identity,'SHE-Transmission PLC (Blank - )'!AH138, 'SPTL (Blank - not used)'!AH138, 'NGET TO (Blank - not used)'!AH138)) -> 0 | AI138: =IF(UserInterface!$E$69 = 1,CHOOSE(m_identity,'SHE-Transmission PLC'!AI138, SPTL!AI138, 'NGET TO'!AI138),CHOOSE(m_identity,'SHE-Transmission PLC (Blank - )'!AI138, 'SPTL (Blank - not used)'!AI138, 'NGET TO (Blank - not used)'!AI138)) -> 0 | AJ138: =IF(UserInterface!$E$69 = 1,CHOOSE(m_identity,'SHE-Transmission PLC'!AJ138, SPTL!AJ138, 'NGET TO'!AJ138),CHOOSE(m_identity,'SHE-Transmission PLC (Blank - )'!AJ138, 'SPTL (Blank - not used)'!AJ138, 'NGET TO (Blank - not used)'!AJ138)) -> 0 | AK138: =IF(UserInterface!$E$69 = 1,CHOOSE(m_identity,'SHE-Transmission PLC'!AK138, SPTL!AK138, 'NGET TO'!AK138),CHOOSE(m_identity,'SHE-Transmission PLC (Blank - )'!AK138, 'SPTL (Blank - not used)'!AK138, 'NGET TO (Blank - not used)'!AK138)) -> 0 | AL138: =IF(UserInterface!$E$69 = 1,CHOOSE(m_identity,'SHE-Transmission PLC'!AL138, SPTL!AL138, 'NGET TO'!AL138),CHOOSE(m_identity,'SHE-Transmission PLC (Blank - )'!AL138, 'SPTL (Blank - not used)'!AL138, 'NGET TO (Blank - not used)'!AL138)) -> 0 | AM138: =IF(UserInterface!$E$69 = 1,CHOOSE(m_identity,'SHE-Transmission PLC'!AM138, SPTL!AM138, 'NGET TO'!AM138),CHOOSE(m_identity,'SHE-Transmission PLC (Blank - )'!AM138, 'SPTL (Blank - not used)'!AM138, 'NGET TO (Blank - not used)'!AM138)) -> 0 | AN138: =IF(UserInterface!$E$69 = 1,CHOOSE(m_identity,'SHE-Transmission PLC'!AN138, SPTL!AN138, 'NGET TO'!AN138),CHOOSE(m_identity,'SHE-Transmission PLC (Blank - )'!AN138, 'SPTL (Blank - not used)'!AN138, 'NGET TO (Blank - not used)'!AN138)) -> 0 | AO138: =IF(UserInterface!$E$69 = 1,CHOOSE(m_identity,'SHE-Transmission PLC'!AO138, SPTL!AO138, 'NGET TO'!AO138),CHOOSE(m_identity,'SHE-Transmission PLC (Blank - )'!AO138, 'SPTL (Blank - not used)'!AO138, 'NGET TO (Blank - not used)'!AO138)) -> 0
E139: Allocation to non-operational capex | G139: % | AH139: =IF(UserInterface!$E$69 = 1,CHOOSE(m_identity,'SHE-Transmission PLC'!AH139, SPTL!AH139, 'NGET TO'!AH139),CHOOSE(m_identity,'SHE-Transmission PLC (Blank - )'!AH139, 'SPTL (Blank - not used)'!AH139, 'NGET TO (Blank - not used)'!AH139)) -> 0 | AI139: =IF(UserInterface!$E$69 = 1,CHOOSE(m_identity,'SHE-Transmission PLC'!AI139, SPTL!AI139, 'NGET TO'!AI139),CHOOSE(m_identity,'SHE-Transmission PLC (Blank - )'!AI139, 'SPTL (Blank - not used)'!AI139, 'NGET TO (Blank - not used)'!AI139)) -> 0 | AJ139: =IF(UserInterface!$E$69 = 1,CHOOSE(m_identity,'SHE-Transmission PLC'!AJ139, SPTL!AJ139, 'NGET TO'!AJ139),CHOOSE(m_identity,'SHE-Transmission PLC (Blank - )'!AJ139, 'SPTL (Blank - not used)'!AJ139, 'NGET TO (Blank - not used)'!AJ139)) -> 0 | AK139: =IF(UserInterface!$E$69 = 1,CHOOSE(m_identity,'SHE-Transmission PLC'!AK139, SPTL!AK139, 'NGET TO'!AK139),CHOOSE(m_identity,'SHE-Transmission PLC (Blank - )'!AK139, 'SPTL (Blank - not used)'!AK139, 'NGET TO (Blank - not used)'!AK139)) -> 0 | AL139: =IF(UserInterface!$E$69 = 1,CHOOSE(m_identity,'SHE-Transmission PLC'!AL139, SPTL!AL139, 'NGET TO'!AL139),CHOOSE(m_identity,'SHE-Transmission PLC (Blank - )'!AL139, 'SPTL (Blank - not used)'!AL139, 'NGET TO (Blank - not used)'!AL139)) -> 0 | AM139: =IF(UserInterface!$E$69 = 1,CHOOSE(m_identity,'SHE-Transmission PLC'!AM139, SPTL!AM139, 'NGET TO'!AM139),CHOOSE(m_identity,'SHE-Transmission PLC (Blank - )'!AM139, 'SPTL (Blank - not used)'!AM139, 'NGET TO (Blank - not used)'!AM139)) -> 0 | AN139: =IF(UserInterface!$E$69 = 1,CHOOSE(m_identity,'SHE-Transmission PLC'!AN139, SPTL!AN139, 'NGET TO'!AN139),CHOOSE(m_identity,'SHE-Transmission PLC (Blank - )'!AN139, 'SPTL (Blank - not used)'!AN139, 'NGET TO (Blank - not used)'!AN139)) -> 0 | AO139: =IF(UserInterface!$E$69 = 1,CHOOSE(m_identity,'SHE-Transmission PLC'!AO139, SPTL!AO139, 'NGET TO'!AO139),CHOOSE(m_identity,'SHE-Transmission PLC (Blank - )'!AO139, 'SPTL (Blank - not used)'!AO139, 'NGET TO (Blank - not used)'!AO139)) -> 0
E141: =E21 -> Demand related infrastructure volume driver | G141: £m 09/10 prices | AH141: =AH21 -> 31.78771538 | AI141: =AI21 -> 36.18741631 | AJ141: 32.38779131 | AK141: 32.82810519 | AL141: 50.58957488 | AM141: 41.37305882 | AN141: 12.47368774 | AO141: 0.9330676837
E142: Allocation to load related capex expenditure | G142: % | AH142: =IF(UserInterface!$E$69 = 1,CHOOSE(m_identity,'SHE-Transmission PLC'!AH142, SPTL!AH142, 'NGET TO'!AH142),CHOOSE(m_identity,'SHE-Transmission PLC (Blank - )'!AH142, 'SPTL (Blank - not used)'!AH142, 'NGET TO (Blank - not used)'!AH142)) -> 1 | AI142: =IF(UserInterface!$E$69 = 1,CHOOSE(m_identity,'SHE-Transmission PLC'!AI142, SPTL!AI142, 'NGET TO'!AI142),CHOOSE(m_identity,'SHE-Transmission PLC (Blank - )'!AI142, 'SPTL (Blank - not used)'!AI142, 'NGET TO (Blank - not used)'!AI142)) -> 1 | AJ142: =IF(UserInterface!$E$69 = 1,CHOOSE(m_identity,'SHE-Transmission PLC'!AJ142, SPTL!AJ142, 'NGET TO'!AJ142),CHOOSE(m_identity,'SHE-Transmission PLC (Blank - )'!AJ142, 'SPTL (Blank - not used)'!AJ142, 'NGET TO (Blank - not used)'!AJ142)) -> 1 | AK142: =IF(UserInterface!$E$69 = 1,CHOOSE(m_identity,'SHE-Transmission PLC'!AK142, SPTL!AK142, 'NGET TO'!AK142),CHOOSE(m_identity,'SHE-Transmission PLC (Blank - )'!AK142, 'SPTL (Blank - not used)'!AK142, 'NGET TO (Blank - not used)'!AK142)) -> 1 | AL142: =IF(UserInterface!$E$69 = 1,CHOOSE(m_identity,'SHE-Transmission PLC'!AL142, SPTL!AL142, 'NGET TO'!AL142),CHOOSE(m_identity,'SHE-Transmission PLC (Blank - )'!AL142, 'SPTL (Blank - not used)'!AL142, 'NGET TO (Blank - not used)'!AL142)) -> 1 | AM142: =IF(UserInterface!$E$69 = 1,CHOOSE(m_identity,'SHE-Transmission PLC'!AM142, SPTL!AM142, 'NGET TO'!AM142),CHOOSE(m_identity,'SHE-Transmission PLC (Blank - )'!AM142, 'SPTL (Blank - not used)'!AM142, 'NGET TO (Blank - not used)'!AM142)) -> 1 | AN142: =IF(UserInterface!$E$69 = 1,CHOOSE(m_identity,'SHE-Transmission PLC'!AN142, SPTL!AN142, 'NGET TO'!AN142),CHOOSE(m_identity,'SHE-Transmission PLC (Blank - )'!AN142, 'SPTL (Blank - not used)'!AN142, 'NGET TO (Blank - not used)'!AN142)) -> 1 | AO142: =IF(UserInterface!$E$69 = 1,CHOOSE(m_identity,'SHE-Transmission PLC'!AO142, SPTL!AO142, 'NGET TO'!AO142),CHOOSE(m_identity,'SHE-Transmission PLC (Blank - )'!AO142, 'SPTL (Blank - not used)'!AO142, 'NGET TO (Blank - not used)'!AO142)) -> 1
E143: Allocation to asset replacement capex expenditure | G143: % | AH143: =IF(UserInterface!$E$69 = 1,CHOOSE(m_identity,'SHE-Transmission PLC'!AH143, SPTL!AH143, 'NGET TO'!AH143),CHOOSE(m_identity,'SHE-Transmission PLC (Blank - )'!AH143, 'SPTL (Blank - not used)'!AH143, 'NGET TO (Blank - not used)'!AH143)) -> 0 | AI143: =IF(UserInterface!$E$69 = 1,CHOOSE(m_identity,'SHE-Transmission PLC'!AI143, SPTL!AI143, 'NGET TO'!AI143),CHOOSE(m_identity,'SHE-Transmission PLC (Blank - )'!AI143, 'SPTL (Blank - not used)'!AI143, 'NGET TO (Blank - not used)'!AI143)) -> 0 | AJ143: =IF(UserInterface!$E$69 = 1,CHOOSE(m_identity,'SHE-Transmission PLC'!AJ143, SPTL!AJ143, 'NGET TO'!AJ143),CHOOSE(m_identity,'SHE-Transmission PLC (Blank - )'!AJ143, 'SPTL (Blank - not used)'!AJ143, 'NGET TO (Blank - not used)'!AJ143)) -> 0 | AK143: =IF(UserInterface!$E$69 = 1,CHOOSE(m_identity,'SHE-Transmission PLC'!AK143, SPTL!AK143, 'NGET TO'!AK143),CHOOSE(m_identity,'SHE-Transmission PLC (Blank - )'!AK143, 'SPTL (Blank - not used)'!AK143, 'NGET TO (Blank - not used)'!AK143)) -> 0 | AL143: =IF(UserInterface!$E$69 = 1,CHOOSE(m_identity,'SHE-Transmission PLC'!AL143, SPTL!AL143, 'NGET TO'!AL143),CHOOSE(m_identity,'SHE-Transmission PLC (Blank - )'!AL143, 'SPTL (Blank - not used)'!AL143, 'NGET TO (Blank - not used)'!AL143)) -> 0 | AM143: =IF(UserInterface!$E$69 = 1,CHOOSE(m_identity,'SHE-Transmission PLC'!AM143, SPTL!AM143, 'NGET TO'!AM143),CHOOSE(m_identity,'SHE-Transmission PLC (Blank - )'!AM143, 'SPTL (Blank - not used)'!AM143, 'NGET TO (Blank - not used)'!AM143)) -> 0 | AN143: =IF(UserInterface!$E$69 = 1,CHOOSE(m_identity,'SHE-Transmission PLC'!AN143, SPTL!AN143, 'NGET TO'!AN143),CHOOSE(m_identity,'SHE-Transmission PLC (Blank - )'!AN143, 'SPTL (Blank - not used)'!AN143, 'NGET TO (Blank - not used)'!AN143)) -> 0 | AO143: =IF(UserInterface!$E$69 = 1,CHOOSE(m_identity,'SHE-Transmission PLC'!AO143, SPTL!AO143, 'NGET TO'!AO143),CHOOSE(m_identity,'SHE-Transmission PLC (Blank - )'!AO143, 'SPTL (Blank - not used)'!AO143, 'NGET TO (Blank - not used)'!AO143)) -> 0
E144: Allocation to other capex expenditure | G144: % | AH144: =IF(UserInterface!$E$69 = 1,CHOOSE(m_identity,'SHE-Transmission PLC'!AH144, SPTL!AH144, 'NGET TO'!AH144),CHOOSE(m_identity,'SHE-Transmission PLC (Blank - )'!AH144, 'SPTL (Blank - not used)'!AH144, 'NGET TO (Blank - not used)'!AH144)) -> 0 | AI144: =IF(UserInterface!$E$69 = 1,CHOOSE(m_identity,'SHE-Transmission PLC'!AI144, SPTL!AI144, 'NGET TO'!AI144),CHOOSE(m_identity,'SHE-Transmission PLC (Blank - )'!AI144, 'SPTL (Blank - not used)'!AI144, 'NGET TO (Blank - not used)'!AI144)) -> 0 | AJ144: =IF(UserInterface!$E$69 = 1,CHOOSE(m_identity,'SHE-Transmission PLC'!AJ144, SPTL!AJ144, 'NGET TO'!AJ144),CHOOSE(m_identity,'SHE-Transmission PLC (Blank - )'!AJ144, 'SPTL (Blank - not used)'!AJ144, 'NGET TO (Blank - not used)'!AJ144)) -> 0 | AK144: =IF(UserInterface!$E$69 = 1,CHOOSE(m_identity,'SHE-Transmission PLC'!AK144, SPTL!AK144, 'NGET TO'!AK144),CHOOSE(m_identity,'SHE-Transmission PLC (Blank - )'!AK144, 'SPTL (Blank - not used)'!AK144, 'NGET TO (Blank - not used)'!AK144)) -> 0 | AL144: =IF(UserInterface!$E$69 = 1,CHOOSE(m_identity,'SHE-Transmission PLC'!AL144, SPTL!AL144, 'NGET TO'!AL144),CHOOSE(m_identity,'SHE-Transmission PLC (Blank - )'!AL144, 'SPTL (Blank - not used)'!AL144, 'NGET TO (Blank - not used)'!AL144)) -> 0 | AM144: =IF(UserInterface!$E$69 = 1,CHOOSE(m_identity,'SHE-Transmission PLC'!AM144, SPTL!AM144, 'NGET TO'!AM144),CHOOSE(m_identity,'SHE-Transmission PLC (Blank - )'!AM144, 'SPTL (Blank - not used)'!AM144, 'NGET TO (Blank - not used)'!AM144)) -> 0 | AN144: =IF(UserInterface!$E$69 = 1,CHOOSE(m_identity,'SHE-Transmission PLC'!AN144, SPTL!AN144, 'NGET TO'!AN144),CHOOSE(m_identity,'SHE-Transmission PLC (Blank - )'!AN144, 'SPTL (Blank - not used)'!AN144, 'NGET TO (Blank - not used)'!AN144)) -> 0 | AO144: =IF(UserInterface!$E$69 = 1,CHOOSE(m_identity,'SHE-Transmission PLC'!AO144, SPTL!AO144, 'NGET TO'!AO144),CHOOSE(m_identity,'SHE-Transmission PLC (Blank - )'!AO144, 'SPTL (Blank - not used)'!AO144, 'NGET TO (Blank - not used)'!AO144)) -> 0
E145: Allocation to controllable opex | G145: % | AH145: =IF(UserInterface!$E$69 = 1,CHOOSE(m_identity,'SHE-Transmission PLC'!AH145, SPTL!AH145, 'NGET TO'!AH145),CHOOSE(m_identity,'SHE-Transmission PLC (Blank - )'!AH145, 'SPTL (Blank - not used)'!AH145, 'NGET TO (Blank - not used)'!AH145)) -> 0 | AI145: =IF(UserInterface!$E$69 = 1,CHOOSE(m_identity,'SHE-Transmission PLC'!AI145, SPTL!AI145, 'NGET TO'!AI145),CHOOSE(m_identity,'SHE-Transmission PLC (Blank - )'!AI145, 'SPTL (Blank - not used)'!AI145, 'NGET TO (Blank - not used)'!AI145)) -> 0 | AJ145: =IF(UserInterface!$E$69 = 1,CHOOSE(m_identity,'SHE-Transmission PLC'!AJ145, SPTL!AJ145, 'NGET TO'!AJ145),CHOOSE(m_identity,'SHE-Transmission PLC (Blank - )'!AJ145, 'SPTL (Blank - not used)'!AJ145, 'NGET TO (Blank - not used)'!AJ145)) -> 0 | AK145: =IF(UserInterface!$E$69 = 1,CHOOSE(m_identity,'SHE-Transmission PLC'!AK145, SPTL!AK145, 'NGET TO'!AK145),CHOOSE(m_identity,'SHE-Transmission PLC (Blank - )'!AK145, 'SPTL (Blank - not used)'!AK145, 'NGET TO (Blank - not used)'!AK145)) -> 0 | AL145: =IF(UserInterface!$E$69 = 1,CHOOSE(m_identity,'SHE-Transmission PLC'!AL145, SPTL!AL145, 'NGET TO'!AL145),CHOOSE(m_identity,'SHE-Transmission PLC (Blank - )'!AL145, 'SPTL (Blank - not used)'!AL145, 'NGET TO (Blank - not used)'!AL145)) -> 0 | AM145: =IF(UserInterface!$E$69 = 1,CHOOSE(m_identity,'SHE-Transmission PLC'!AM145, SPTL!AM145, 'NGET TO'!AM145),CHOOSE(m_identity,'SHE-Transmission PLC (Blank - )'!AM145, 'SPTL (Blank - not used)'!AM145, 'NGET TO (Blank - not used)'!AM145)) -> 0 | AN145: =IF(UserInterface!$E$69 = 1,CHOOSE(m_identity,'SHE-Transmission PLC'!AN145, SPTL!AN145, 'NGET TO'!AN145),CHOOSE(m_identity,'SHE-Transmission PLC (Blank - )'!AN145, 'SPTL (Blank - not used)'!AN145, 'NGET TO (Blank - not used)'!AN145)) -> 0 | AO145: =IF(UserInterface!$E$69 = 1,CHOOSE(m_identity,'SHE-Transmission PLC'!AO145, SPTL!AO145, 'NGET TO'!AO145),CHOOSE(m_identity,'SHE-Transmission PLC (Blank - )'!AO145, 'SPTL (Blank - not used)'!AO145, 'NGET TO (Blank - not used)'!AO145)) -> 0
E146: Allocation to non-operational capex | G146: % | AH146: =IF(UserInterface!$E$69 = 1,CHOOSE(m_identity,'SHE-Transmission PLC'!AH146, SPTL!AH146, 'NGET TO'!AH146),CHOOSE(m_identity,'SHE-Transmission PLC (Blank - )'!AH146, 'SPTL (Blank - not used)'!AH146, 'NGET TO (Blank - not used)'!AH146)) -> 0 | AI146: =IF(UserInterface!$E$69 = 1,CHOOSE(m_identity,'SHE-Transmission PLC'!AI146, SPTL!AI146, 'NGET TO'!AI146),CHOOSE(m_identity,'SHE-Transmission PLC (Blank - )'!AI146, 'SPTL (Blank - not used)'!AI146, 'NGET TO (Blank - not used)'!AI146)) -> 0 | AJ146: =IF(UserInterface!$E$69 = 1,CHOOSE(m_identity,'SHE-Transmission PLC'!AJ146, SPTL!AJ146, 'NGET TO'!AJ146),CHOOSE(m_identity,'SHE-Transmission PLC (Blank - )'!AJ146, 'SPTL (Blank - not used)'!AJ146, 'NGET TO (Blank - not used)'!AJ146)) -> 0 | AK146: =IF(UserInterface!$E$69 = 1,CHOOSE(m_identity,'SHE-Transmission PLC'!AK146, SPTL!AK146, 'NGET TO'!AK146),CHOOSE(m_identity,'SHE-Transmission PLC (Blank - )'!AK146, 'SPTL (Blank - not used)'!AK146, 'NGET TO (Blank - not used)'!AK146)) -> 0 | AL146: =IF(UserInterface!$E$69 = 1,CHOOSE(m_identity,'SHE-Transmission PLC'!AL146, SPTL!AL146, 'NGET TO'!AL146),CHOOSE(m_identity,'SHE-Transmission PLC (Blank - )'!AL146, 'SPTL (Blank - not used)'!AL146, 'NGET TO (Blank - not used)'!AL146)) -> 0 | AM146: =IF(UserInterface!$E$69 = 1,CHOOSE(m_identity,'SHE-Transmission PLC'!AM146, SPTL!AM146, 'NGET TO'!AM146),CHOOSE(m_identity,'SHE-Transmission PLC (Blank - )'!AM146, 'SPTL (Blank - not used)'!AM146, 'NGET TO (Blank - not used)'!AM146)) -> 0 | AN146: =IF(UserInterface!$E$69 = 1,CHOOSE(m_identity,'SHE-Transmission PLC'!AN146, SPTL!AN146, 'NGET TO'!AN146),CHOOSE(m_identity,'SHE-Transmission PLC (Blank - )'!AN146, 'SPTL (Blank - not used)'!AN146, 'NGET TO (Blank - not used)'!AN146)) -> 0 | AO146: =IF(UserInterface!$E$69 = 1,CHOOSE(m_identity,'SHE-Transmission PLC'!AO146, SPTL!AO146, 'NGET TO'!AO146),CHOOSE(m_identity,'SHE-Transmission PLC (Blank - )'!AO146, 'SPTL (Blank - not used)'!AO146, 'NGET TO (Blank - not used)'!AO146)) -> 0
E148: =E22 -> Undergrounding volume driver | G148: £m 09/10 prices | AH148: =AH22 -> 0 | AI148: =AI22 -> 0 | AJ148: 0 | AK148: 0 | AL148: 0 | AM148: 0 | AN148: 0 | AO148: 0
E149: Allocation to load related capex expenditure | G149: % | AH149: =IF(UserInterface!$E$69 = 1,CHOOSE(m_identity,'SHE-Transmission PLC'!AH149, SPTL!AH149, 'NGET TO'!AH149),CHOOSE(m_identity,'SHE-Transmission PLC (Blank - )'!AH149, 'SPTL (Blank - not used)'!AH149, 'NGET TO (Blank - not used)'!AH149)) -> 1 | AI149: =IF(UserInterface!$E$69 = 1,CHOOSE(m_identity,'SHE-Transmission PLC'!AI149, SPTL!AI149, 'NGET TO'!AI149),CHOOSE(m_identity,'SHE-Transmission PLC (Blank - )'!AI149, 'SPTL (Blank - not used)'!AI149, 'NGET TO (Blank - not used)'!AI149)) -> 1 | AJ149: =IF(UserInterface!$E$69 = 1,CHOOSE(m_identity,'SHE-Transmission PLC'!AJ149, SPTL!AJ149, 'NGET TO'!AJ149),CHOOSE(m_identity,'SHE-Transmission PLC (Blank - )'!AJ149, 'SPTL (Blank - not used)'!AJ149, 'NGET TO (Blank - not used)'!AJ149)) -> 1 | AK149: =IF(UserInterface!$E$69 = 1,CHOOSE(m_identity,'SHE-Transmission PLC'!AK149, SPTL!AK149, 'NGET TO'!AK149),CHOOSE(m_identity,'SHE-Transmission PLC (Blank - )'!AK149, 'SPTL (Blank - not used)'!AK149, 'NGET TO (Blank - not used)'!AK149)) -> 1 | AL149: =IF(UserInterface!$E$69 = 1,CHOOSE(m_identity,'SHE-Transmission PLC'!AL149, SPTL!AL149, 'NGET TO'!AL149),CHOOSE(m_identity,'SHE-Transmission PLC (Blank - )'!AL149, 'SPTL (Blank - not used)'!AL149, 'NGET TO (Blank - not used)'!AL149)) -> 1 | AM149: =IF(UserInterface!$E$69 = 1,CHOOSE(m_identity,'SHE-Transmission PLC'!AM149, SPTL!AM149, 'NGET TO'!AM149),CHOOSE(m_identity,'SHE-Transmission PLC (Blank - )'!AM149, 'SPTL (Blank - not used)'!AM149, 'NGET TO (Blank - not used)'!AM149)) -> 1 | AN149: =IF(UserInterface!$E$69 = 1,CHOOSE(m_identity,'SHE-Transmission PLC'!AN149, SPTL!AN149, 'NGET TO'!AN149),CHOOSE(m_identity,'SHE-Transmission PLC (Blank - )'!AN149, 'SPTL (Blank - not used)'!AN149, 'NGET TO (Blank - not used)'!AN149)) -> 1 | AO149: =IF(UserInterface!$E$69 = 1,CHOOSE(m_identity,'SHE-Transmission PLC'!AO149, SPTL!AO149, 'NGET TO'!AO149),CHOOSE(m_identity,'SHE-Transmission PLC (Blank - )'!AO149, 'SPTL (Blank - not used)'!AO149, 'NGET TO (Blank - not used)'!AO149)) -> 1
E150: Allocation to asset replacement capex expenditure | G150: % | AH150: =IF(UserInterface!$E$69 = 1,CHOOSE(m_identity,'SHE-Transmission PLC'!AH150, SPTL!AH150, 'NGET TO'!AH150),CHOOSE(m_identity,'SHE-Transmission PLC (Blank - )'!AH150, 'SPTL (Blank - not used)'!AH150, 'NGET TO (Blank - not used)'!AH150)) -> 0 | AI150: =IF(UserInterface!$E$69 = 1,CHOOSE(m_identity,'SHE-Transmission PLC'!AI150, SPTL!AI150, 'NGET TO'!AI150),CHOOSE(m_identity,'SHE-Transmission PLC (Blank - )'!AI150, 'SPTL (Blank - not used)'!AI150, 'NGET TO (Blank - not used)'!AI150)) -> 0 | AJ150: =IF(UserInterface!$E$69 = 1,CHOOSE(m_identity,'SHE-Transmission PLC'!AJ150, SPTL!AJ150, 'NGET TO'!AJ150),CHOOSE(m_identity,'SHE-Transmission PLC (Blank - )'!AJ150, 'SPTL (Blank - not used)'!AJ150, 'NGET TO (Blank - not used)'!AJ150)) -> 0 | AK150: =IF(UserInterface!$E$69 = 1,CHOOSE(m_identity,'SHE-Transmission PLC'!AK150, SPTL!AK150, 'NGET TO'!AK150),CHOOSE(m_identity,'SHE-Transmission PLC (Blank - )'!AK150, 'SPTL (Blank - not used)'!AK150, 'NGET TO (Blank - not used)'!AK150)) -> 0 | AL150: =IF(UserInterface!$E$69 = 1,CHOOSE(m_identity,'SHE-Transmission PLC'!AL150, SPTL!AL150, 'NGET TO'!AL150),CHOOSE(m_identity,'SHE-Transmission PLC (Blank - )'!AL150, 'SPTL (Blank - not used)'!AL150, 'NGET TO (Blank - not used)'!AL150)) -> 0 | AM150: =IF(UserInterface!$E$69 = 1,CHOOSE(m_identity,'SHE-Transmission PLC'!AM150, SPTL!AM150, 'NGET TO'!AM150),CHOOSE(m_identity,'SHE-Transmission PLC (Blank - )'!AM150, 'SPTL (Blank - not used)'!AM150, 'NGET TO (Blank - not used)'!AM150)) -> 0 | AN150: =IF(UserInterface!$E$69 = 1,CHOOSE(m_identity,'SHE-Transmission PLC'!AN150, SPTL!AN150, 'NGET TO'!AN150),CHOOSE(m_identity,'SHE-Transmission PLC (Blank - )'!AN150, 'SPTL (Blank - not used)'!AN150, 'NGET TO (Blank - not used)'!AN150)) -> 0 | AO150: =IF(UserInterface!$E$69 = 1,CHOOSE(m_identity,'SHE-Transmission PLC'!AO150, SPTL!AO150, 'NGET TO'!AO150),CHOOSE(m_identity,'SHE-Transmission PLC (Blank - )'!AO150, 'SPTL (Blank - not used)'!AO150, 'NGET TO (Blank - not used)'!AO150)) -> 0
E151: Allocation to other capex expenditure | G151: % | AH151: =IF(UserInterface!$E$69 = 1,CHOOSE(m_identity,'SHE-Transmission PLC'!AH151, SPTL!AH151, 'NGET TO'!AH151),CHOOSE(m_identity,'SHE-Transmission PLC (Blank - )'!AH151, 'SPTL (Blank - not used)'!AH151, 'NGET TO (Blank - not used)'!AH151)) -> 0 | AI151: =IF(UserInterface!$E$69 = 1,CHOOSE(m_identity,'SHE-Transmission PLC'!AI151, SPTL!AI151, 'NGET TO'!AI151),CHOOSE(m_identity,'SHE-Transmission PLC (Blank - )'!AI151, 'SPTL (Blank - not used)'!AI151, 'NGET TO (Blank - not used)'!AI151)) -> 0 | AJ151: =IF(UserInterface!$E$69 = 1,CHOOSE(m_identity,'SHE-Transmission PLC'!AJ151, SPTL!AJ151, 'NGET TO'!AJ151),CHOOSE(m_identity,'SHE-Transmission PLC (Blank - )'!AJ151, 'SPTL (Blank - not used)'!AJ151, 'NGET TO (Blank - not used)'!AJ151)) -> 0 | AK151: =IF(UserInterface!$E$69 = 1,CHOOSE(m_identity,'SHE-Transmission PLC'!AK151, SPTL!AK151, 'NGET TO'!AK151),CHOOSE(m_identity,'SHE-Transmission PLC (Blank - )'!AK151, 'SPTL (Blank - not used)'!AK151, 'NGET TO (Blank - not used)'!AK151)) -> 0 | AL151: =IF(UserInterface!$E$69 = 1,CHOOSE(m_identity,'SHE-Transmission PLC'!AL151, SPTL!AL151, 'NGET TO'!AL151),CHOOSE(m_identity,'SHE-Transmission PLC (Blank - )'!AL151, 'SPTL (Blank - not used)'!AL151, 'NGET TO (Blank - not used)'!AL151)) -> 0 | AM151: =IF(UserInterface!$E$69 = 1,CHOOSE(m_identity,'SHE-Transmission PLC'!AM151, SPTL!AM151, 'NGET TO'!AM151),CHOOSE(m_identity,'SHE-Transmission PLC (Blank - )'!AM151, 'SPTL (Blank - not used)'!AM151, 'NGET TO (Blank - not used)'!AM151)) -> 0 | AN151: =IF(UserInterface!$E$69 = 1,CHOOSE(m_identity,'SHE-Transmission PLC'!AN151, SPTL!AN151, 'NGET TO'!AN151),CHOOSE(m_identity,'SHE-Transmission PLC (Blank - )'!AN151, 'SPTL (Blank - not used)'!AN151, 'NGET TO (Blank - not used)'!AN151)) -> 0 | AO151: =IF(UserInterface!$E$69 = 1,CHOOSE(m_identity,'SHE-Transmission PLC'!AO151, SPTL!AO151, 'NGET TO'!AO151),CHOOSE(m_identity,'SHE-Transmission PLC (Blank - )'!AO151, 'SPTL (Blank - not used)'!AO151, 'NGET TO (Blank - not used)'!AO151)) -> 0
E152: Allocation to controllable opex | G152: % | AH152: =IF(UserInterface!$E$69 = 1,CHOOSE(m_identity,'SHE-Transmission PLC'!AH152, SPTL!AH152, 'NGET TO'!AH152),CHOOSE(m_identity,'SHE-Transmission PLC (Blank - )'!AH152, 'SPTL (Blank - not used)'!AH152, 'NGET TO (Blank - not used)'!AH152)) -> 0 | AI152: =IF(UserInterface!$E$69 = 1,CHOOSE(m_identity,'SHE-Transmission PLC'!AI152, SPTL!AI152, 'NGET TO'!AI152),CHOOSE(m_identity,'SHE-Transmission PLC (Blank - )'!AI152, 'SPTL (Blank - not used)'!AI152, 'NGET TO (Blank - not used)'!AI152)) -> 0 | AJ152: =IF(UserInterface!$E$69 = 1,CHOOSE(m_identity,'SHE-Transmission PLC'!AJ152, SPTL!AJ152, 'NGET TO'!AJ152),CHOOSE(m_identity,'SHE-Transmission PLC (Blank - )'!AJ152, 'SPTL (Blank - not used)'!AJ152, 'NGET TO (Blank - not used)'!AJ152)) -> 0 | AK152: =IF(UserInterface!$E$69 = 1,CHOOSE(m_identity,'SHE-Transmission PLC'!AK152, SPTL!AK152, 'NGET TO'!AK152),CHOOSE(m_identity,'SHE-Transmission PLC (Blank - )'!AK152, 'SPTL (Blank - not used)'!AK152, 'NGET TO (Blank - not used)'!AK152)) -> 0 | AL152: =IF(UserInterface!$E$69 = 1,CHOOSE(m_identity,'SHE-Transmission PLC'!AL152, SPTL!AL152, 'NGET TO'!AL152),CHOOSE(m_identity,'SHE-Transmission PLC (Blank - )'!AL152, 'SPTL (Blank - not used)'!AL152, 'NGET TO (Blank - not used)'!AL152)) -> 0 | AM152: =IF(UserInterface!$E$69 = 1,CHOOSE(m_identity,'SHE-Transmission PLC'!AM152, SPTL!AM152, 'NGET TO'!AM152),CHOOSE(m_identity,'SHE-Transmission PLC (Blank - )'!AM152, 'SPTL (Blank - not used)'!AM152, 'NGET TO (Blank - not used)'!AM152)) -> 0 | AN152: =IF(UserInterface!$E$69 = 1,CHOOSE(m_identity,'SHE-Transmission PLC'!AN152, SPTL!AN152, 'NGET TO'!AN152),CHOOSE(m_identity,'SHE-Transmission PLC (Blank - )'!AN152, 'SPTL (Blank - not used)'!AN152, 'NGET TO (Blank - not used)'!AN152)) -> 0 | AO152: =IF(UserInterface!$E$69 = 1,CHOOSE(m_identity,'SHE-Transmission PLC'!AO152, SPTL!AO152, 'NGET TO'!AO152),CHOOSE(m_identity,'SHE-Transmission PLC (Blank - )'!AO152, 'SPTL (Blank - not used)'!AO152, 'NGET TO (Blank - not used)'!AO152)) -> 0
E153: Allocation to non-operational capex | G153: % | AH153: =IF(UserInterface!$E$69 = 1,CHOOSE(m_identity,'SHE-Transmission PLC'!AH153, SPTL!AH153, 'NGET TO'!AH153),CHOOSE(m_identity,'SHE-Transmission PLC (Blank - )'!AH153, 'SPTL (Blank - not used)'!AH153, 'NGET TO (Blank - not used)'!AH153)) -> 0 | AI153: =IF(UserInterface!$E$69 = 1,CHOOSE(m_identity,'SHE-Transmission PLC'!AI153, SPTL!AI153, 'NGET TO'!AI153),CHOOSE(m_identity,'SHE-Transmission PLC (Blank - )'!AI153, 'SPTL (Blank - not used)'!AI153, 'NGET TO (Blank - not used)'!AI153)) -> 0 | AJ153: =IF(UserInterface!$E$69 = 1,CHOOSE(m_identity,'SHE-Transmission PLC'!AJ153, SPTL!AJ153, 'NGET TO'!AJ153),CHOOSE(m_identity,'SHE-Transmission PLC (Blank - )'!AJ153, 'SPTL (Blank - not used)'!AJ153, 'NGET TO (Blank - not used)'!AJ153)) -> 0 | AK153: =IF(UserInterface!$E$69 = 1,CHOOSE(m_identity,'SHE-Transmission PLC'!AK153, SPTL!AK153, 'NGET TO'!AK153),CHOOSE(m_identity,'SHE-Transmission PLC (Blank - )'!AK153, 'SPTL (Blank - not used)'!AK153, 'NGET TO (Blank - not used)'!AK153)) -> 0 | AL153: =IF(UserInterface!$E$69 = 1,CHOOSE(m_identity,'SHE-Transmission PLC'!AL153, SPTL!AL153, 'NGET TO'!AL153),CHOOSE(m_identity,'SHE-Transmission PLC (Blank - )'!AL153, 'SPTL (Blank - not used)'!AL153, 'NGET TO (Blank - not used)'!AL153)) -> 0 | AM153: =IF(UserInterface!$E$69 = 1,CHOOSE(m_identity,'SHE-Transmission PLC'!AM153, SPTL!AM153, 'NGET TO'!AM153),CHOOSE(m_identity,'SHE-Transmission PLC (Blank - )'!AM153, 'SPTL (Blank - not used)'!AM153, 'NGET TO (Blank - not used)'!AM153)) -> 0 | AN153: =IF(UserInterface!$E$69 = 1,CHOOSE(m_identity,'SHE-Transmission PLC'!AN153, SPTL!AN153, 'NGET TO'!AN153),CHOOSE(m_identity,'SHE-Transmission PLC (Blank - )'!AN153, 'SPTL (Blank - not used)'!AN153, 'NGET TO (Blank - not used)'!AN153)) -> 0 | AO153: =IF(UserInterface!$E$69 = 1,CHOOSE(m_identity,'SHE-Transmission PLC'!AO153, SPTL!AO153, 'NGET TO'!AO153),CHOOSE(m_identity,'SHE-Transmission PLC (Blank - )'!AO153, 'SPTL (Blank - not used)'!AO153, 'NGET TO (Blank - not used)'!AO153)) -> 0
E155: =E23 -> Generation connections volume driver | G155: £m 09/10 prices | AH155: =AH23 -> 133.8600486 | AI155: =AI23 -> 185.2282575 | AJ155: =AJ23 -> 184.1122051 | AK155: 220.7097046 | AL155: =AL23 -> 117.3640777 | AM155: 95.96457882 | AN155: 42.49354524 | AO155: 20.66151168
E156: Allocation to load related capex expenditure | G156: % | AH156: =IF(UserInterface!$E$69 = 1,CHOOSE(m_identity,'SHE-Transmission PLC'!AH156, SPTL!AH156, 'NGET TO'!AH156),CHOOSE(m_identity,'SHE-Transmission PLC (Blank - )'!AH156, 'SPTL (Blank - not used)'!AH156, 'NGET TO (Blank - not used)'!AH156)) -> 1 | AI156: =IF(UserInterface!$E$69 = 1,CHOOSE(m_identity,'SHE-Transmission PLC'!AI156, SPTL!AI156, 'NGET TO'!AI156),CHOOSE(m_identity,'SHE-Transmission PLC (Blank - )'!AI156, 'SPTL (Blank - not used)'!AI156, 'NGET TO (Blank - not used)'!AI156)) -> 1 | AJ156: =IF(UserInterface!$E$69 = 1,CHOOSE(m_identity,'SHE-Transmission PLC'!AJ156, SPTL!AJ156, 'NGET TO'!AJ156),CHOOSE(m_identity,'SHE-Transmission PLC (Blank - )'!AJ156, 'SPTL (Blank - not used)'!AJ156, 'NGET TO (Blank - not used)'!AJ156)) -> 1 | AK156: =IF(UserInterface!$E$69 = 1,CHOOSE(m_identity,'SHE-Transmission PLC'!AK156, SPTL!AK156, 'NGET TO'!AK156),CHOOSE(m_identity,'SHE-Transmission PLC (Blank - )'!AK156, 'SPTL (Blank - not used)'!AK156, 'NGET TO (Blank - not used)'!AK156)) -> 1 | AL156: =IF(UserInterface!$E$69 = 1,CHOOSE(m_identity,'SHE-Transmission PLC'!AL156, SPTL!AL156, 'NGET TO'!AL156),CHOOSE(m_identity,'SHE-Transmission PLC (Blank - )'!AL156, 'SPTL (Blank - not used)'!AL156, 'NGET TO (Blank - not used)'!AL156)) -> 1 | AM156: =IF(UserInterface!$E$69 = 1,CHOOSE(m_identity,'SHE-Transmission PLC'!AM156, SPTL!AM156, 'NGET TO'!AM156),CHOOSE(m_identity,'SHE-Transmission PLC (Blank - )'!AM156, 'SPTL (Blank - not used)'!AM156, 'NGET TO (Blank - not used)'!AM156)) -> 1 | AN156: =IF(UserInterface!$E$69 = 1,CHOOSE(m_identity,'SHE-Transmission PLC'!AN156, SPTL!AN156, 'NGET TO'!AN156),CHOOSE(m_identity,'SHE-Transmission PLC (Blank - )'!AN156, 'SPTL (Blank - not used)'!AN156, 'NGET TO (Blank - not used)'!AN156)) -> 1 | AO156: =IF(UserInterface!$E$69 = 1,CHOOSE(m_identity,'SHE-Transmission PLC'!AO156, SPTL!AO156, 'NGET TO'!AO156),CHOOSE(m_identity,'SHE-Transmission PLC (Blank - )'!AO156, 'SPTL (Blank - not used)'!AO156, 'NGET TO (Blank - not used)'!AO156)) -> 1
E157: Allocation to asset replacement capex expenditure | G157: % | AH157: =IF(UserInterface!$E$69 = 1,CHOOSE(m_identity,'SHE-Transmission PLC'!AH157, SPTL!AH157, 'NGET TO'!AH157),CHOOSE(m_identity,'SHE-Transmission PLC (Blank - )'!AH157, 'SPTL (Blank - not used)'!AH157, 'NGET TO (Blank - not used)'!AH157)) -> 0 | AI157: =IF(UserInterface!$E$69 = 1,CHOOSE(m_identity,'SHE-Transmission PLC'!AI157, SPTL!AI157, 'NGET TO'!AI157),CHOOSE(m_identity,'SHE-Transmission PLC (Blank - )'!AI157, 'SPTL (Blank - not used)'!AI157, 'NGET TO (Blank - not used)'!AI157)) -> 0 | AJ157: =IF(UserInterface!$E$69 = 1,CHOOSE(m_identity,'SHE-Transmission PLC'!AJ157, SPTL!AJ157, 'NGET TO'!AJ157),CHOOSE(m_identity,'SHE-Transmission PLC (Blank - )'!AJ157, 'SPTL (Blank - not used)'!AJ157, 'NGET TO (Blank - not used)'!AJ157)) -> 0 | AK157: =IF(UserInterface!$E$69 = 1,CHOOSE(m_identity,'SHE-Transmission PLC'!AK157, SPTL!AK157, 'NGET TO'!AK157),CHOOSE(m_identity,'SHE-Transmission PLC (Blank - )'!AK157, 'SPTL (Blank - not used)'!AK157, 'NGET TO (Blank - not used)'!AK157)) -> 0 | AL157: =IF(UserInterface!$E$69 = 1,CHOOSE(m_identity,'SHE-Transmission PLC'!AL157, SPTL!AL157, 'NGET TO'!AL157),CHOOSE(m_identity,'SHE-Transmission PLC (Blank - )'!AL157, 'SPTL (Blank - not used)'!AL157, 'NGET TO (Blank - not used)'!AL157)) -> 0 | AM157: =IF(UserInterface!$E$69 = 1,CHOOSE(m_identity,'SHE-Transmission PLC'!AM157, SPTL!AM157, 'NGET TO'!AM157),CHOOSE(m_identity,'SHE-Transmission PLC (Blank - )'!AM157, 'SPTL (Blank - not used)'!AM157, 'NGET TO (Blank - not used)'!AM157)) -> 0 | AN157: =IF(UserInterface!$E$69 = 1,CHOOSE(m_identity,'SHE-Transmission PLC'!AN157, SPTL!AN157, 'NGET TO'!AN157),CHOOSE(m_identity,'SHE-Transmission PLC (Blank - )'!AN157, 'SPTL (Blank - not used)'!AN157, 'NGET TO (Blank - not used)'!AN157)) -> 0 | AO157: =IF(UserInterface!$E$69 = 1,CHOOSE(m_identity,'SHE-Transmission PLC'!AO157, SPTL!AO157, 'NGET TO'!AO157),CHOOSE(m_identity,'SHE-Transmission PLC (Blank - )'!AO157, 'SPTL (Blank - not used)'!AO157, 'NGET TO (Blank - not used)'!AO157)) -> 0
E158: Allocation to other capex expenditure | G158: % | AH158: =IF(UserInterface!$E$69 = 1,CHOOSE(m_identity,'SHE-Transmission PLC'!AH158, SPTL!AH158, 'NGET TO'!AH158),CHOOSE(m_identity,'SHE-Transmission PLC (Blank - )'!AH158, 'SPTL (Blank - not used)'!AH158, 'NGET TO (Blank - not used)'!AH158)) -> 0 | AI158: =IF(UserInterface!$E$69 = 1,CHOOSE(m_identity,'SHE-Transmission PLC'!AI158, SPTL!AI158, 'NGET TO'!AI158),CHOOSE(m_identity,'SHE-Transmission PLC (Blank - )'!AI158, 'SPTL (Blank - not used)'!AI158, 'NGET TO (Blank - not used)'!AI158)) -> 0 | AJ158: =IF(UserInterface!$E$69 = 1,CHOOSE(m_identity,'SHE-Transmission PLC'!AJ158, SPTL!AJ158, 'NGET TO'!AJ158),CHOOSE(m_identity,'SHE-Transmission PLC (Blank - )'!AJ158, 'SPTL (Blank - not used)'!AJ158, 'NGET TO (Blank - not used)'!AJ158)) -> 0 | AK158: =IF(UserInterface!$E$69 = 1,CHOOSE(m_identity,'SHE-Transmission PLC'!AK158, SPTL!AK158, 'NGET TO'!AK158),CHOOSE(m_identity,'SHE-Transmission PLC (Blank - )'!AK158, 'SPTL (Blank - not used)'!AK158, 'NGET TO (Blank - not used)'!AK158)) -> 0 | AL158: =IF(UserInterface!$E$69 = 1,CHOOSE(m_identity,'SHE-Transmission PLC'!AL158, SPTL!AL158, 'NGET TO'!AL158),CHOOSE(m_identity,'SHE-Transmission PLC (Blank - )'!AL158, 'SPTL (Blank - not used)'!AL158, 'NGET TO (Blank - not used)'!AL158)) -> 0 | AM158: =IF(UserInterface!$E$69 = 1,CHOOSE(m_identity,'SHE-Transmission PLC'!AM158, SPTL!AM158, 'NGET TO'!AM158),CHOOSE(m_identity,'SHE-Transmission PLC (Blank - )'!AM158, 'SPTL (Blank - not used)'!AM158, 'NGET TO (Blank - not used)'!AM158)) -> 0 | AN158: =IF(UserInterface!$E$69 = 1,CHOOSE(m_identity,'SHE-Transmission PLC'!AN158, SPTL!AN158, 'NGET TO'!AN158),CHOOSE(m_identity,'SHE-Transmission PLC (Blank - )'!AN158, 'SPTL (Blank - not used)'!AN158, 'NGET TO (Blank - not used)'!AN158)) -> 0 | AO158: =IF(UserInterface!$E$69 = 1,CHOOSE(m_identity,'SHE-Transmission PLC'!AO158, SPTL!AO158, 'NGET TO'!AO158),CHOOSE(m_identity,'SHE-Transmission PLC (Blank - )'!AO158, 'SPTL (Blank - not used)'!AO158, 'NGET TO (Blank - not used)'!AO158)) -> 0
E159: Allocation to controllable opex | G159: % | AH159: =IF(UserInterface!$E$69 = 1,CHOOSE(m_identity,'SHE-Transmission PLC'!AH159, SPTL!AH159, 'NGET TO'!AH159),CHOOSE(m_identity,'SHE-Transmission PLC (Blank - )'!AH159, 'SPTL (Blank - not used)'!AH159, 'NGET TO (Blank - not used)'!AH159)) -> 0 | AI159: =IF(UserInterface!$E$69 = 1,CHOOSE(m_identity,'SHE-Transmission PLC'!AI159, SPTL!AI159, 'NGET TO'!AI159),CHOOSE(m_identity,'SHE-Transmission PLC (Blank - )'!AI159, 'SPTL (Blank - not used)'!AI159, 'NGET TO (Blank - not used)'!AI159)) -> 0 | AJ159: =IF(UserInterface!$E$69 = 1,CHOOSE(m_identity,'SHE-Transmission PLC'!AJ159, SPTL!AJ159, 'NGET TO'!AJ159),CHOOSE(m_identity,'SHE-Transmission PLC (Blank - )'!AJ159, 'SPTL (Blank - not used)'!AJ159, 'NGET TO (Blank - not used)'!AJ159)) -> 0 | AK159: =IF(UserInterface!$E$69 = 1,CHOOSE(m_identity,'SHE-Transmission PLC'!AK159, SPTL!AK159, 'NGET TO'!AK159),CHOOSE(m_identity,'SHE-Transmission PLC (Blank - )'!AK159, 'SPTL (Blank - not used)'!AK159, 'NGET TO (Blank - not used)'!AK159)) -> 0 | AL159: =IF(UserInterface!$E$69 = 1,CHOOSE(m_identity,'SHE-Transmission PLC'!AL159, SPTL!AL159, 'NGET TO'!AL159),CHOOSE(m_identity,'SHE-Transmission PLC (Blank - )'!AL159, 'SPTL (Blank - not used)'!AL159, 'NGET TO (Blank - not used)'!AL159)) -> 0 | AM159: =IF(UserInterface!$E$69 = 1,CHOOSE(m_identity,'SHE-Transmission PLC'!AM159, SPTL!AM159, 'NGET TO'!AM159),CHOOSE(m_identity,'SHE-Transmission PLC (Blank - )'!AM159, 'SPTL (Blank - not used)'!AM159, 'NGET TO (Blank - not used)'!AM159)) -> 0 | AN159: =IF(UserInterface!$E$69 = 1,CHOOSE(m_identity,'SHE-Transmission PLC'!AN159, SPTL!AN159, 'NGET TO'!AN159),CHOOSE(m_identity,'SHE-Transmission PLC (Blank - )'!AN159, 'SPTL (Blank - not used)'!AN159, 'NGET TO (Blank - not used)'!AN159)) -> 0 | AO159: =IF(UserInterface!$E$69 = 1,CHOOSE(m_identity,'SHE-Transmission PLC'!AO159, SPTL!AO159, 'NGET TO'!AO159),CHOOSE(m_identity,'SHE-Transmission PLC (Blank - )'!AO159, 'SPTL (Blank - not used)'!AO159, 'NGET TO (Blank - not used)'!AO159)) -> 0
E160: Allocation to non-operational capex | G160: % | AH160: =IF(UserInterface!$E$69 = 1,CHOOSE(m_identity,'SHE-Transmission PLC'!AH160, SPTL!AH160, 'NGET TO'!AH160),CHOOSE(m_identity,'SHE-Transmission PLC (Blank - )'!AH160, 'SPTL (Blank - not used)'!AH160, 'NGET TO (Blank - not used)'!AH160)) -> 0 | AI160: =IF(UserInterface!$E$69 = 1,CHOOSE(m_identity,'SHE-Transmission PLC'!AI160, SPTL!AI160, 'NGET TO'!AI160),CHOOSE(m_identity,'SHE-Transmission PLC (Blank - )'!AI160, 'SPTL (Blank - not used)'!AI160, 'NGET TO (Blank - not used)'!AI160)) -> 0 | AJ160: =IF(UserInterface!$E$69 = 1,CHOOSE(m_identity,'SHE-Transmission PLC'!AJ160, SPTL!AJ160, 'NGET TO'!AJ160),CHOOSE(m_identity,'SHE-Transmission PLC (Blank - )'!AJ160, 'SPTL (Blank - not used)'!AJ160, 'NGET TO (Blank - not used)'!AJ160)) -> 0 | AK160: =IF(UserInterface!$E$69 = 1,CHOOSE(m_identity,'SHE-Transmission PLC'!AK160, SPTL!AK160, 'NGET TO'!AK160),CHOOSE(m_identity,'SHE-Transmission PLC (Blank - )'!AK160, 'SPTL (Blank - not used)'!AK160, 'NGET TO (Blank - not used)'!AK160)) -> 0 | AL160: =IF(UserInterface!$E$69 = 1,CHOOSE(m_identity,'SHE-Transmission PLC'!AL160, SPTL!AL160, 'NGET TO'!AL160),CHOOSE(m_identity,'SHE-Transmission PLC (Blank - )'!AL160, 'SPTL (Blank - not used)'!AL160, 'NGET TO (Blank - not used)'!AL160)) -> 0 | AM160: =IF(UserInterface!$E$69 = 1,CHOOSE(m_identity,'SHE-Transmission PLC'!AM160, SPTL!AM160, 'NGET TO'!AM160),CHOOSE(m_identity,'SHE-Transmission PLC (Blank - )'!AM160, 'SPTL (Blank - not used)'!AM160, 'NGET TO (Blank - not used)'!AM160)) -> 0 | AN160: =IF(UserInterface!$E$69 = 1,CHOOSE(m_identity,'SHE-Transmission PLC'!AN160, SPTL!AN160, 'NGET TO'!AN160),CHOOSE(m_identity,'SHE-Transmission PLC (Blank - )'!AN160, 'SPTL (Blank - not used)'!AN160, 'NGET TO (Blank - not used)'!AN160)) -> 0 | AO160: =IF(UserInterface!$E$69 = 1,CHOOSE(m_identity,'SHE-Transmission PLC'!AO160, SPTL!AO160, 'NGET TO'!AO160),CHOOSE(m_identity,'SHE-Transmission PLC (Blank - )'!AO160, 'SPTL (Blank - not used)'!AO160, 'NGET TO (Blank - not used)'!AO160)) -> 0
E162: =E24 -> Innovation roll out mechanism | G162: £m 09/10 prices | AH162: =AH24 -> 0 | AI162: =AI24 -> 0 | AJ162: 0 | AK162: 0 | AL162: 0 | AM162: 0 | AN162: 0 | AO162: 0
E163: Allocation to load related capex expenditure | G163: % | AH163: =IF(UserInterface!$E$69 = 1,CHOOSE(m_identity,'SHE-Transmission PLC'!AH163, SPTL!AH163, 'NGET TO'!AH163),CHOOSE(m_identity,'SHE-Transmission PLC (Blank - )'!AH163, 'SPTL (Blank - not used)'!AH163, 'NGET TO (Blank - not used)'!AH163)) -> 0.3 | AI163: =IF(UserInterface!$E$69 = 1,CHOOSE(m_identity,'SHE-Transmission PLC'!AI163, SPTL!AI163, 'NGET TO'!AI163),CHOOSE(m_identity,'SHE-Transmission PLC (Blank - )'!AI163, 'SPTL (Blank - not used)'!AI163, 'NGET TO (Blank - not used)'!AI163)) -> 0.3 | AJ163: =IF(UserInterface!$E$69 = 1,CHOOSE(m_identity,'SHE-Transmission PLC'!AJ163, SPTL!AJ163, 'NGET TO'!AJ163),CHOOSE(m_identity,'SHE-Transmission PLC (Blank - )'!AJ163, 'SPTL (Blank - not used)'!AJ163, 'NGET TO (Blank - not used)'!AJ163)) -> 0.3 | AK163: =IF(UserInterface!$E$69 = 1,CHOOSE(m_identity,'SHE-Transmission PLC'!AK163, SPTL!AK163, 'NGET TO'!AK163),CHOOSE(m_identity,'SHE-Transmission PLC (Blank - )'!AK163, 'SPTL (Blank - not used)'!AK163, 'NGET TO (Blank - not used)'!AK163)) -> 0.3 | AL163: =IF(UserInterface!$E$69 = 1,CHOOSE(m_identity,'SHE-Transmission PLC'!AL163, SPTL!AL163, 'NGET TO'!AL163),CHOOSE(m_identity,'SHE-Transmission PLC (Blank - )'!AL163, 'SPTL (Blank - not used)'!AL163, 'NGET TO (Blank - not used)'!AL163)) -> 0.3 | AM163: =IF(UserInterface!$E$69 = 1,CHOOSE(m_identity,'SHE-Transmission PLC'!AM163, SPTL!AM163, 'NGET TO'!AM163),CHOOSE(m_identity,'SHE-Transmission PLC (Blank - )'!AM163, 'SPTL (Blank - not used)'!AM163, 'NGET TO (Blank - not used)'!AM163)) -> 0.3 | AN163: =IF(UserInterface!$E$69 = 1,CHOOSE(m_identity,'SHE-Transmission PLC'!AN163, SPTL!AN163, 'NGET TO'!AN163),CHOOSE(m_identity,'SHE-Transmission PLC (Blank - )'!AN163, 'SPTL (Blank - not used)'!AN163, 'NGET TO (Blank - not used)'!AN163)) -> 0.3 | AO163: =IF(UserInterface!$E$69 = 1,CHOOSE(m_identity,'SHE-Transmission PLC'!AO163, SPTL!AO163, 'NGET TO'!AO163),CHOOSE(m_identity,'SHE-Transmission PLC (Blank - )'!AO163, 'SPTL (Blank - not used)'!AO163, 'NGET TO (Blank - not used)'!AO163)) -> 0.3
E164: Allocation to asset replacement capex expenditure | G164: % | AH164: =IF(UserInterface!$E$69 = 1,CHOOSE(m_identity,'SHE-Transmission PLC'!AH164, SPTL!AH164, 'NGET TO'!AH164),CHOOSE(m_identity,'SHE-Transmission PLC (Blank - )'!AH164, 'SPTL (Blank - not used)'!AH164, 'NGET TO (Blank - not used)'!AH164)) -> 0.1 | AI164: =IF(UserInterface!$E$69 = 1,CHOOSE(m_identity,'SHE-Transmission PLC'!AI164, SPTL!AI164, 'NGET TO'!AI164),CHOOSE(m_identity,'SHE-Transmission PLC (Blank - )'!AI164, 'SPTL (Blank - not used)'!AI164, 'NGET TO (Blank - not used)'!AI164)) -> 0.1 | AJ164: =IF(UserInterface!$E$69 = 1,CHOOSE(m_identity,'SHE-Transmission PLC'!AJ164, SPTL!AJ164, 'NGET TO'!AJ164),CHOOSE(m_identity,'SHE-Transmission PLC (Blank - )'!AJ164, 'SPTL (Blank - not used)'!AJ164, 'NGET TO (Blank - not used)'!AJ164)) -> 0.1 | AK164: =IF(UserInterface!$E$69 = 1,CHOOSE(m_identity,'SHE-Transmission PLC'!AK164, SPTL!AK164, 'NGET TO'!AK164),CHOOSE(m_identity,'SHE-Transmission PLC (Blank - )'!AK164, 'SPTL (Blank - not used)'!AK164, 'NGET TO (Blank - not used)'!AK164)) -> 0.1 | AL164: =IF(UserInterface!$E$69 = 1,CHOOSE(m_identity,'SHE-Transmission PLC'!AL164, SPTL!AL164, 'NGET TO'!AL164),CHOOSE(m_identity,'SHE-Transmission PLC (Blank - )'!AL164, 'SPTL (Blank - not used)'!AL164, 'NGET TO (Blank - not used)'!AL164)) -> 0.1 | AM164: =IF(UserInterface!$E$69 = 1,CHOOSE(m_identity,'SHE-Transmission PLC'!AM164, SPTL!AM164, 'NGET TO'!AM164),CHOOSE(m_identity,'SHE-Transmission PLC (Blank - )'!AM164, 'SPTL (Blank - not used)'!AM164, 'NGET TO (Blank - not used)'!AM164)) -> 0.1 | AN164: =IF(UserInterface!$E$69 = 1,CHOOSE(m_identity,'SHE-Transmission PLC'!AN164, SPTL!AN164, 'NGET TO'!AN164),CHOOSE(m_identity,'SHE-Transmission PLC (Blank - )'!AN164, 'SPTL (Blank - not used)'!AN164, 'NGET TO (Blank - not used)'!AN164)) -> 0.1 | AO164: =IF(UserInterface!$E$69 = 1,CHOOSE(m_identity,'SHE-Transmission PLC'!AO164, SPTL!AO164, 'NGET TO'!AO164),CHOOSE(m_identity,'SHE-Transmission PLC (Blank - )'!AO164, 'SPTL (Blank - not used)'!AO164, 'NGET TO (Blank - not used)'!AO164)) -> 0.1
E165: Allocation to other capex expenditure | G165: % | AH165: =IF(UserInterface!$E$69 = 1,CHOOSE(m_identity,'SHE-Transmission PLC'!AH165, SPTL!AH165, 'NGET TO'!AH165),CHOOSE(m_identity,'SHE-Transmission PLC (Blank - )'!AH165, 'SPTL (Blank - not used)'!AH165, 'NGET TO (Blank - not used)'!AH165)) -> 0.5 | AI165: =IF(UserInterface!$E$69 = 1,CHOOSE(m_identity,'SHE-Transmission PLC'!AI165, SPTL!AI165, 'NGET TO'!AI165),CHOOSE(m_identity,'SHE-Transmission PLC (Blank - )'!AI165, 'SPTL (Blank - not used)'!AI165, 'NGET TO (Blank - not used)'!AI165)) -> 0.5 | AJ165: =IF(UserInterface!$E$69 = 1,CHOOSE(m_identity,'SHE-Transmission PLC'!AJ165, SPTL!AJ165, 'NGET TO'!AJ165),CHOOSE(m_identity,'SHE-Transmission PLC (Blank - )'!AJ165, 'SPTL (Blank - not used)'!AJ165, 'NGET TO (Blank - not used)'!AJ165)) -> 0.5 | AK165: =IF(UserInterface!$E$69 = 1,CHOOSE(m_identity,'SHE-Transmission PLC'!AK165, SPTL!AK165, 'NGET TO'!AK165),CHOOSE(m_identity,'SHE-Transmission PLC (Blank - )'!AK165, 'SPTL (Blank - not used)'!AK165, 'NGET TO (Blank - not used)'!AK165)) -> 0.5 | AL165: =IF(UserInterface!$E$69 = 1,CHOOSE(m_identity,'SHE-Transmission PLC'!AL165, SPTL!AL165, 'NGET TO'!AL165),CHOOSE(m_identity,'SHE-Transmission PLC (Blank - )'!AL165, 'SPTL (Blank - not used)'!AL165, 'NGET TO (Blank - not used)'!AL165)) -> 0.5 | AM165: =IF(UserInterface!$E$69 = 1,CHOOSE(m_identity,'SHE-Transmission PLC'!AM165, SPTL!AM165, 'NGET TO'!AM165),CHOOSE(m_identity,'SHE-Transmission PLC (Blank - )'!AM165, 'SPTL (Blank - not used)'!AM165, 'NGET TO (Blank - not used)'!AM165)) -> 0.5 | AN165: =IF(UserInterface!$E$69 = 1,CHOOSE(m_identity,'SHE-Transmission PLC'!AN165, SPTL!AN165, 'NGET TO'!AN165),CHOOSE(m_identity,'SHE-Transmission PLC (Blank - )'!AN165, 'SPTL (Blank - not used)'!AN165, 'NGET TO (Blank - not used)'!AN165)) -> 0.5 | AO165: =IF(UserInterface!$E$69 = 1,CHOOSE(m_identity,'SHE-Transmission PLC'!AO165, SPTL!AO165, 'NGET TO'!AO165),CHOOSE(m_identity,'SHE-Transmission PLC (Blank - )'!AO165, 'SPTL (Blank - not used)'!AO165, 'NGET TO (Blank - not used)'!AO165)) -> 0.5
E166: Allocation to controllable opex | G166: % | AH166: =IF(UserInterface!$E$69 = 1,CHOOSE(m_identity,'SHE-Transmission PLC'!AH166, SPTL!AH166, 'NGET TO'!AH166),CHOOSE(m_identity,'SHE-Transmission PLC (Blank - )'!AH166, 'SPTL (Blank - not used)'!AH166, 'NGET TO (Blank - not used)'!AH166)) -> 0.1 | AI166: =IF(UserInterface!$E$69 = 1,CHOOSE(m_identity,'SHE-Transmission PLC'!AI166, SPTL!AI166, 'NGET TO'!AI166),CHOOSE(m_identity,'SHE-Transmission PLC (Blank - )'!AI166, 'SPTL (Blank - not used)'!AI166, 'NGET TO (Blank - not used)'!AI166)) -> 0.1 | AJ166: =IF(UserInterface!$E$69 = 1,CHOOSE(m_identity,'SHE-Transmission PLC'!AJ166, SPTL!AJ166, 'NGET TO'!AJ166),CHOOSE(m_identity,'SHE-Transmission PLC (Blank - )'!AJ166, 'SPTL (Blank - not used)'!AJ166, 'NGET TO (Blank - not used)'!AJ166)) -> 0.1 | AK166: =IF(UserInterface!$E$69 = 1,CHOOSE(m_identity,'SHE-Transmission PLC'!AK166, SPTL!AK166, 'NGET TO'!AK166),CHOOSE(m_identity,'SHE-Transmission PLC (Blank - )'!AK166, 'SPTL (Blank - not used)'!AK166, 'NGET TO (Blank - not used)'!AK166)) -> 0.1 | AL166: =IF(UserInterface!$E$69 = 1,CHOOSE(m_identity,'SHE-Transmission PLC'!AL166, SPTL!AL166, 'NGET TO'!AL166),CHOOSE(m_identity,'SHE-Transmission PLC (Blank - )'!AL166, 'SPTL (Blank - not used)'!AL166, 'NGET TO (Blank - not used)'!AL166)) -> 0.1 | AM166: =IF(UserInterface!$E$69 = 1,CHOOSE(m_identity,'SHE-Transmission PLC'!AM166, SPTL!AM166, 'NGET TO'!AM166),CHOOSE(m_identity,'SHE-Transmission PLC (Blank - )'!AM166, 'SPTL (Blank - not used)'!AM166, 'NGET TO (Blank - not used)'!AM166)) -> 0.1 | AN166: =IF(UserInterface!$E$69 = 1,CHOOSE(m_identity,'SHE-Transmission PLC'!AN166, SPTL!AN166, 'NGET TO'!AN166),CHOOSE(m_identity,'SHE-Transmission PLC (Blank - )'!AN166, 'SPTL (Blank - not used)'!AN166, 'NGET TO (Blank - not used)'!AN166)) -> 0.1 | AO166: =IF(UserInterface!$E$69 = 1,CHOOSE(m_identity,'SHE-Transmission PLC'!AO166, SPTL!AO166, 'NGET TO'!AO166),CHOOSE(m_identity,'SHE-Transmission PLC (Blank - )'!AO166, 'SPTL (Blank - not used)'!AO166, 'NGET TO (Blank - not used)'!AO166)) -> 0.1
E167: Allocation to non-operational capex | G167: % | AH167: =IF(UserInterface!$E$69 = 1,CHOOSE(m_identity,'SHE-Transmission PLC'!AH167, SPTL!AH167, 'NGET TO'!AH167),CHOOSE(m_identity,'SHE-Transmission PLC (Blank - )'!AH167, 'SPTL (Blank - not used)'!AH167, 'NGET TO (Blank - not used)'!AH167)) -> 0 | AI167: =IF(UserInterface!$E$69 = 1,CHOOSE(m_identity,'SHE-Transmission PLC'!AI167, SPTL!AI167, 'NGET TO'!AI167),CHOOSE(m_identity,'SHE-Transmission PLC (Blank - )'!AI167, 'SPTL (Blank - not used)'!AI167, 'NGET TO (Blank - not used)'!AI167)) -> 0 | AJ167: =IF(UserInterface!$E$69 = 1,CHOOSE(m_identity,'SHE-Transmission PLC'!AJ167, SPTL!AJ167, 'NGET TO'!AJ167),CHOOSE(m_identity,'SHE-Transmission PLC (Blank - )'!AJ167, 'SPTL (Blank - not used)'!AJ167, 'NGET TO (Blank - not used)'!AJ167)) -> 0 | AK167: =IF(UserInterface!$E$69 = 1,CHOOSE(m_identity,'SHE-Transmission PLC'!AK167, SPTL!AK167, 'NGET TO'!AK167),CHOOSE(m_identity,'SHE-Transmission PLC (Blank - )'!AK167, 'SPTL (Blank - not used)'!AK167, 'NGET TO (Blank - not used)'!AK167)) -> 0 | AL167: =IF(UserInterface!$E$69 = 1,CHOOSE(m_identity,'SHE-Transmission PLC'!AL167, SPTL!AL167, 'NGET TO'!AL167),CHOOSE(m_identity,'SHE-Transmission PLC (Blank - )'!AL167, 'SPTL (Blank - not used)'!AL167, 'NGET TO (Blank - not used)'!AL167)) -> 0 | AM167: =IF(UserInterface!$E$69 = 1,CHOOSE(m_identity,'SHE-Transmission PLC'!AM167, SPTL!AM167, 'NGET TO'!AM167),CHOOSE(m_identity,'SHE-Transmission PLC (Blank - )'!AM167, 'SPTL (Blank - not used)'!AM167, 'NGET TO (Blank - not used)'!AM167)) -> 0 | AN167: =IF(UserInterface!$E$69 = 1,CHOOSE(m_identity,'SHE-Transmission PLC'!AN167, SPTL!AN167, 'NGET TO'!AN167),CHOOSE(m_identity,'SHE-Transmission PLC (Blank - )'!AN167, 'SPTL (Blank - not used)'!AN167, 'NGET TO (Blank - not used)'!AN167)) -> 0 | AO167: =IF(UserInterface!$E$69 = 1,CHOOSE(m_identity,'SHE-Transmission PLC'!AO167, SPTL!AO167, 'NGET TO'!AO167),CHOOSE(m_identity,'SHE-Transmission PLC (Blank - )'!AO167, 'SPTL (Blank - not used)'!AO167, 'NGET TO (Blank - not used)'!AO167)) -> 0
E169: =E25 -> Exceptional Sub Sea Cable Faults | G169: £m 09/10 prices | AH169: =AH25 -> 0 | AI169: =AI25 -> 0 | AJ169: 0 | AK169: 0 | AL169: 0 | AM169: 0 | AN169: 0 | AO169: 0
E170: Allocation to load related capex expenditure | G170: % | AH170: =IF(UserInterface!$E$69 = 1,CHOOSE(m_identity,'SHE-Transmission PLC'!AH170, SPTL!AH170, 'NGET TO'!AH170),CHOOSE(m_identity,'SHE-Transmission PLC (Blank - )'!AH170, 'SPTL (Blank - not used)'!AH170, 'NGET TO (Blank - not used)'!AH170)) -> 0 | AI170: =IF(UserInterface!$E$69 = 1,CHOOSE(m_identity,'SHE-Transmission PLC'!AI170, SPTL!AI170, 'NGET TO'!AI170),CHOOSE(m_identity,'SHE-Transmission PLC (Blank - )'!AI170, 'SPTL (Blank - not used)'!AI170, 'NGET TO (Blank - not used)'!AI170)) -> 0 | AJ170: =IF(UserInterface!$E$69 = 1,CHOOSE(m_identity,'SHE-Transmission PLC'!AJ170, SPTL!AJ170, 'NGET TO'!AJ170),CHOOSE(m_identity,'SHE-Transmission PLC (Blank - )'!AJ170, 'SPTL (Blank - not used)'!AJ170, 'NGET TO (Blank - not used)'!AJ170)) -> 0 | AK170: =IF(UserInterface!$E$69 = 1,CHOOSE(m_identity,'SHE-Transmission PLC'!AK170, SPTL!AK170, 'NGET TO'!AK170),CHOOSE(m_identity,'SHE-Transmission PLC (Blank - )'!AK170, 'SPTL (Blank - not used)'!AK170, 'NGET TO (Blank - not used)'!AK170)) -> 0 | AL170: =IF(UserInterface!$E$69 = 1,CHOOSE(m_identity,'SHE-Transmission PLC'!AL170, SPTL!AL170, 'NGET TO'!AL170),CHOOSE(m_identity,'SHE-Transmission PLC (Blank - )'!AL170, 'SPTL (Blank - not used)'!AL170, 'NGET TO (Blank - not used)'!AL170)) -> 0 | AM170: =IF(UserInterface!$E$69 = 1,CHOOSE(m_identity,'SHE-Transmission PLC'!AM170, SPTL!AM170, 'NGET TO'!AM170),CHOOSE(m_identity,'SHE-Transmission PLC (Blank - )'!AM170, 'SPTL (Blank - not used)'!AM170, 'NGET TO (Blank - not used)'!AM170)) -> 0 | AN170: =IF(UserInterface!$E$69 = 1,CHOOSE(m_identity,'SHE-Transmission PLC'!AN170, SPTL!AN170, 'NGET TO'!AN170),CHOOSE(m_identity,'SHE-Transmission PLC (Blank - )'!AN170, 'SPTL (Blank - not used)'!AN170, 'NGET TO (Blank - not used)'!AN170)) -> 0 | AO170: =IF(UserInterface!$E$69 = 1,CHOOSE(m_identity,'SHE-Transmission PLC'!AO170, SPTL!AO170, 'NGET TO'!AO170),CHOOSE(m_identity,'SHE-Transmission PLC (Blank - )'!AO170, 'SPTL (Blank - not used)'!AO170, 'NGET TO (Blank - not used)'!AO170)) -> 0
E171: Allocation to asset replacement capex expenditure | G171: % | AH171: =IF(UserInterface!$E$69 = 1,CHOOSE(m_identity,'SHE-Transmission PLC'!AH171, SPTL!AH171, 'NGET TO'!AH171),CHOOSE(m_identity,'SHE-Transmission PLC (Blank - )'!AH171, 'SPTL (Blank - not used)'!AH171, 'NGET TO (Blank - not used)'!AH171)) -> 0 | AI171: =IF(UserInterface!$E$69 = 1,CHOOSE(m_identity,'SHE-Transmission PLC'!AI171, SPTL!AI171, 'NGET TO'!AI171),CHOOSE(m_identity,'SHE-Transmission PLC (Blank - )'!AI171, 'SPTL (Blank - not used)'!AI171, 'NGET TO (Blank - not used)'!AI171)) -> 0 | AJ171: =IF(UserInterface!$E$69 = 1,CHOOSE(m_identity,'SHE-Transmission PLC'!AJ171, SPTL!AJ171, 'NGET TO'!AJ171),CHOOSE(m_identity,'SHE-Transmission PLC (Blank - )'!AJ171, 'SPTL (Blank - not used)'!AJ171, 'NGET TO (Blank - not used)'!AJ171)) -> 0 | AK171: =IF(UserInterface!$E$69 = 1,CHOOSE(m_identity,'SHE-Transmission PLC'!AK171, SPTL!AK171, 'NGET TO'!AK171),CHOOSE(m_identity,'SHE-Transmission PLC (Blank - )'!AK171, 'SPTL (Blank - not used)'!AK171, 'NGET TO (Blank - not used)'!AK171)) -> 0 | AL171: =IF(UserInterface!$E$69 = 1,CHOOSE(m_identity,'SHE-Transmission PLC'!AL171, SPTL!AL171, 'NGET TO'!AL171),CHOOSE(m_identity,'SHE-Transmission PLC (Blank - )'!AL171, 'SPTL (Blank - not used)'!AL171, 'NGET TO (Blank - not used)'!AL171)) -> 0 | AM171: =IF(UserInterface!$E$69 = 1,CHOOSE(m_identity,'SHE-Transmission PLC'!AM171, SPTL!AM171, 'NGET TO'!AM171),CHOOSE(m_identity,'SHE-Transmission PLC (Blank - )'!AM171, 'SPTL (Blank - not used)'!AM171, 'NGET TO (Blank - not used)'!AM171)) -> 0 | AN171: =IF(UserInterface!$E$69 = 1,CHOOSE(m_identity,'SHE-Transmission PLC'!AN171, SPTL!AN171, 'NGET TO'!AN171),CHOOSE(m_identity,'SHE-Transmission PLC (Blank - )'!AN171, 'SPTL (Blank - not used)'!AN171, 'NGET TO (Blank - not used)'!AN171)) -> 0 | AO171: =IF(UserInterface!$E$69 = 1,CHOOSE(m_identity,'SHE-Transmission PLC'!AO171, SPTL!AO171, 'NGET TO'!AO171),CHOOSE(m_identity,'SHE-Transmission PLC (Blank - )'!AO171, 'SPTL (Blank - not used)'!AO171, 'NGET TO (Blank - not used)'!AO171)) -> 0
E172: Allocation to other capex expenditure | G172: % | AH172: =IF(UserInterface!$E$69 = 1,CHOOSE(m_identity,'SHE-Transmission PLC'!AH172, SPTL!AH172, 'NGET TO'!AH172),CHOOSE(m_identity,'SHE-Transmission PLC (Blank - )'!AH172, 'SPTL (Blank - not used)'!AH172, 'NGET TO (Blank - not used)'!AH172)) -> 1 | AI172: =IF(UserInterface!$E$69 = 1,CHOOSE(m_identity,'SHE-Transmission PLC'!AI172, SPTL!AI172, 'NGET TO'!AI172),CHOOSE(m_identity,'SHE-Transmission PLC (Blank - )'!AI172, 'SPTL (Blank - not used)'!AI172, 'NGET TO (Blank - not used)'!AI172)) -> 1 | AJ172: =IF(UserInterface!$E$69 = 1,CHOOSE(m_identity,'SHE-Transmission PLC'!AJ172, SPTL!AJ172, 'NGET TO'!AJ172),CHOOSE(m_identity,'SHE-Transmission PLC (Blank - )'!AJ172, 'SPTL (Blank - not used)'!AJ172, 'NGET TO (Blank - not used)'!AJ172)) -> 1 | AK172: =IF(UserInterface!$E$69 = 1,CHOOSE(m_identity,'SHE-Transmission PLC'!AK172, SPTL!AK172, 'NGET TO'!AK172),CHOOSE(m_identity,'SHE-Transmission PLC (Blank - )'!AK172, 'SPTL (Blank - not used)'!AK172, 'NGET TO (Blank - not used)'!AK172)) -> 1 | AL172: =IF(UserInterface!$E$69 = 1,CHOOSE(m_identity,'SHE-Transmission PLC'!AL172, SPTL!AL172, 'NGET TO'!AL172),CHOOSE(m_identity,'SHE-Transmission PLC (Blank - )'!AL172, 'SPTL (Blank - not used)'!AL172, 'NGET TO (Blank - not used)'!AL172)) -> 1 | AM172: =IF(UserInterface!$E$69 = 1,CHOOSE(m_identity,'SHE-Transmission PLC'!AM172, SPTL!AM172, 'NGET TO'!AM172),CHOOSE(m_identity,'SHE-Transmission PLC (Blank - )'!AM172, 'SPTL (Blank - not used)'!AM172, 'NGET TO (Blank - not used)'!AM172)) -> 1 | AN172: =IF(UserInterface!$E$69 = 1,CHOOSE(m_identity,'SHE-Transmission PLC'!AN172, SPTL!AN172, 'NGET TO'!AN172),CHOOSE(m_identity,'SHE-Transmission PLC (Blank - )'!AN172, 'SPTL (Blank - not used)'!AN172, 'NGET TO (Blank - not used)'!AN172)) -> 1 | AO172: =IF(UserInterface!$E$69 = 1,CHOOSE(m_identity,'SHE-Transmission PLC'!AO172, SPTL!AO172, 'NGET TO'!AO172),CHOOSE(m_identity,'SHE-Transmission PLC (Blank - )'!AO172, 'SPTL (Blank - not used)'!AO172, 'NGET TO (Blank - not used)'!AO172)) -> 1
E173: Allocation to controllable opex | G173: % | AH173: =IF(UserInterface!$E$69 = 1,CHOOSE(m_identity,'SHE-Transmission PLC'!AH173, SPTL!AH173, 'NGET TO'!AH173),CHOOSE(m_identity,'SHE-Transmission PLC (Blank - )'!AH173, 'SPTL (Blank - not used)'!AH173, 'NGET TO (Blank - not used)'!AH173)) -> 0 | AI173: =IF(UserInterface!$E$69 = 1,CHOOSE(m_identity,'SHE-Transmission PLC'!AI173, SPTL!AI173, 'NGET TO'!AI173),CHOOSE(m_identity,'SHE-Transmission PLC (Blank - )'!AI173, 'SPTL (Blank - not used)'!AI173, 'NGET TO (Blank - not used)'!AI173)) -> 0 | AJ173: =IF(UserInterface!$E$69 = 1,CHOOSE(m_identity,'SHE-Transmission PLC'!AJ173, SPTL!AJ173, 'NGET TO'!AJ173),CHOOSE(m_identity,'SHE-Transmission PLC (Blank - )'!AJ173, 'SPTL (Blank - not used)'!AJ173, 'NGET TO (Blank - not used)'!AJ173)) -> 0 | AK173: =IF(UserInterface!$E$69 = 1,CHOOSE(m_identity,'SHE-Transmission PLC'!AK173, SPTL!AK173, 'NGET TO'!AK173),CHOOSE(m_identity,'SHE-Transmission PLC (Blank - )'!AK173, 'SPTL (Blank - not used)'!AK173, 'NGET TO (Blank - not used)'!AK173)) -> 0 | AL173: =IF(UserInterface!$E$69 = 1,CHOOSE(m_identity,'SHE-Transmission PLC'!AL173, SPTL!AL173, 'NGET TO'!AL173),CHOOSE(m_identity,'SHE-Transmission PLC (Blank - )'!AL173, 'SPTL (Blank - not used)'!AL173, 'NGET TO (Blank - not used)'!AL173)) -> 0 | AM173: =IF(UserInterface!$E$69 = 1,CHOOSE(m_identity,'SHE-Transmission PLC'!AM173, SPTL!AM173, 'NGET TO'!AM173),CHOOSE(m_identity,'SHE-Transmission PLC (Blank - )'!AM173, 'SPTL (Blank - not used)'!AM173, 'NGET TO (Blank - not used)'!AM173)) -> 0 | AN173: =IF(UserInterface!$E$69 = 1,CHOOSE(m_identity,'SHE-Transmission PLC'!AN173, SPTL!AN173, 'NGET TO'!AN173),CHOOSE(m_identity,'SHE-Transmission PLC (Blank - )'!AN173, 'SPTL (Blank - not used)'!AN173, 'NGET TO (Blank - not used)'!AN173)) -> 0 | AO173: =IF(UserInterface!$E$69 = 1,CHOOSE(m_identity,'SHE-Transmission PLC'!AO173, SPTL!AO173, 'NGET TO'!AO173),CHOOSE(m_identity,'SHE-Transmission PLC (Blank - )'!AO173, 'SPTL (Blank - not used)'!AO173, 'NGET TO (Blank - not used)'!AO173)) -> 0
E174: Allocation to non-operational capex | G174: % | AH174: =IF(UserInterface!$E$69 = 1,CHOOSE(m_identity,'SHE-Transmission PLC'!AH174, SPTL!AH174, 'NGET TO'!AH174),CHOOSE(m_identity,'SHE-Transmission PLC (Blank - )'!AH174, 'SPTL (Blank - not used)'!AH174, 'NGET TO (Blank - not used)'!AH174)) -> 0 | AI174: =IF(UserInterface!$E$69 = 1,CHOOSE(m_identity,'SHE-Transmission PLC'!AI174, SPTL!AI174, 'NGET TO'!AI174),CHOOSE(m_identity,'SHE-Transmission PLC (Blank - )'!AI174, 'SPTL (Blank - not used)'!AI174, 'NGET TO (Blank - not used)'!AI174)) -> 0 | AJ174: =IF(UserInterface!$E$69 = 1,CHOOSE(m_identity,'SHE-Transmission PLC'!AJ174, SPTL!AJ174, 'NGET TO'!AJ174),CHOOSE(m_identity,'SHE-Transmission PLC (Blank - )'!AJ174, 'SPTL (Blank - not used)'!AJ174, 'NGET TO (Blank - not used)'!AJ174)) -> 0 | AK174: =IF(UserInterface!$E$69 = 1,CHOOSE(m_identity,'SHE-Transmission PLC'!AK174, SPTL!AK174, 'NGET TO'!AK174),CHOOSE(m_identity,'SHE-Transmission PLC (Blank - )'!AK174, 'SPTL (Blank - not used)'!AK174, 'NGET TO (Blank - not used)'!AK174)) -> 0 | AL174: =IF(UserInterface!$E$69 = 1,CHOOSE(m_identity,'SHE-Transmission PLC'!AL174, SPTL!AL174, 'NGET TO'!AL174),CHOOSE(m_identity,'SHE-Transmission PLC (Blank - )'!AL174, 'SPTL (Blank - not used)'!AL174, 'NGET TO (Blank - not used)'!AL174)) -> 0 | AM174: =IF(UserInterface!$E$69 = 1,CHOOSE(m_identity,'SHE-Transmission PLC'!AM174, SPTL!AM174, 'NGET TO'!AM174),CHOOSE(m_identity,'SHE-Transmission PLC (Blank - )'!AM174, 'SPTL (Blank - not used)'!AM174, 'NGET TO (Blank - not used)'!AM174)) -> 0 | AN174: =IF(UserInterface!$E$69 = 1,CHOOSE(m_identity,'SHE-Transmission PLC'!AN174, SPTL!AN174, 'NGET TO'!AN174),CHOOSE(m_identity,'SHE-Transmission PLC (Blank - )'!AN174, 'SPTL (Blank - not used)'!AN174, 'NGET TO (Blank - not used)'!AN174)) -> 0 | AO174: =IF(UserInterface!$E$69 = 1,CHOOSE(m_identity,'SHE-Transmission PLC'!AO174, SPTL!AO174, 'NGET TO'!AO174),CHOOSE(m_identity,'SHE-Transmission PLC (Blank - )'!AO174, 'SPTL (Blank - not used)'!AO174, 'NGET TO (Blank - not used)'!AO174)) -> 0
E176: =E26 -> Non-load Related Work Costs | G176: £m 09/10 prices | AH176: =AH26 -> 0 | AI176: =AI26 -> 0 | AJ176: 0 | AK176: 0 | AL176: 0 | AM176: 0 | AN176: 0 | AO176: 0
E177: Allocation to load related capex expenditure | G177: % | AH177: =IF(UserInterface!$E$69 = 1,CHOOSE(m_identity,'SHE-Transmission PLC'!AH177, SPTL!AH177, 'NGET TO'!AH177),CHOOSE(m_identity,'SHE-Transmission PLC (Blank - )'!AH177, 'SPTL (Blank - not used)'!AH177, 'NGET TO (Blank - not used)'!AH177)) -> 0 | AI177: =IF(UserInterface!$E$69 = 1,CHOOSE(m_identity,'SHE-Transmission PLC'!AI177, SPTL!AI177, 'NGET TO'!AI177),CHOOSE(m_identity,'SHE-Transmission PLC (Blank - )'!AI177, 'SPTL (Blank - not used)'!AI177, 'NGET TO (Blank - not used)'!AI177)) -> 0 | AJ177: =IF(UserInterface!$E$69 = 1,CHOOSE(m_identity,'SHE-Transmission PLC'!AJ177, SPTL!AJ177, 'NGET TO'!AJ177),CHOOSE(m_identity,'SHE-Transmission PLC (Blank - )'!AJ177, 'SPTL (Blank - not used)'!AJ177, 'NGET TO (Blank - not used)'!AJ177)) -> 0 | AK177: =IF(UserInterface!$E$69 = 1,CHOOSE(m_identity,'SHE-Transmission PLC'!AK177, SPTL!AK177, 'NGET TO'!AK177),CHOOSE(m_identity,'SHE-Transmission PLC (Blank - )'!AK177, 'SPTL (Blank - not used)'!AK177, 'NGET TO (Blank - not used)'!AK177)) -> 0 | AL177: =IF(UserInterface!$E$69 = 1,CHOOSE(m_identity,'SHE-Transmission PLC'!AL177, SPTL!AL177, 'NGET TO'!AL177),CHOOSE(m_identity,'SHE-Transmission PLC (Blank - )'!AL177, 'SPTL (Blank - not used)'!AL177, 'NGET TO (Blank - not used)'!AL177)) -> 0 | AM177: =IF(UserInterface!$E$69 = 1,CHOOSE(m_identity,'SHE-Transmission PLC'!AM177, SPTL!AM177, 'NGET TO'!AM177),CHOOSE(m_identity,'SHE-Transmission PLC (Blank - )'!AM177, 'SPTL (Blank - not used)'!AM177, 'NGET TO (Blank - not used)'!AM177)) -> 0 | AN177: =IF(UserInterface!$E$69 = 1,CHOOSE(m_identity,'SHE-Transmission PLC'!AN177, SPTL!AN177, 'NGET TO'!AN177),CHOOSE(m_identity,'SHE-Transmission PLC (Blank - )'!AN177, 'SPTL (Blank - not used)'!AN177, 'NGET TO (Blank - not used)'!AN177)) -> 0 | AO177: =IF(UserInterface!$E$69 = 1,CHOOSE(m_identity,'SHE-Transmission PLC'!AO177, SPTL!AO177, 'NGET TO'!AO177),CHOOSE(m_identity,'SHE-Transmission PLC (Blank - )'!AO177, 'SPTL (Blank - not used)'!AO177, 'NGET TO (Blank - not used)'!AO177)) -> 0
E178: Allocation to asset replacement capex expenditure | G178: % | AH178: =IF(UserInterface!$E$69 = 1,CHOOSE(m_identity,'SHE-Transmission PLC'!AH178, SPTL!AH178, 'NGET TO'!AH178),CHOOSE(m_identity,'SHE-Transmission PLC (Blank - )'!AH178, 'SPTL (Blank - not used)'!AH178, 'NGET TO (Blank - not used)'!AH178)) -> 0 | AI178: =IF(UserInterface!$E$69 = 1,CHOOSE(m_identity,'SHE-Transmission PLC'!AI178, SPTL!AI178, 'NGET TO'!AI178),CHOOSE(m_identity,'SHE-Transmission PLC (Blank - )'!AI178, 'SPTL (Blank - not used)'!AI178, 'NGET TO (Blank - not used)'!AI178)) -> 0 | AJ178: =IF(UserInterface!$E$69 = 1,CHOOSE(m_identity,'SHE-Transmission PLC'!AJ178, SPTL!AJ178, 'NGET TO'!AJ178),CHOOSE(m_identity,'SHE-Transmission PLC (Blank - )'!AJ178, 'SPTL (Blank - not used)'!AJ178, 'NGET TO (Blank - not used)'!AJ178)) -> 0 | AK178: =IF(UserInterface!$E$69 = 1,CHOOSE(m_identity,'SHE-Transmission PLC'!AK178, SPTL!AK178, 'NGET TO'!AK178),CHOOSE(m_identity,'SHE-Transmission PLC (Blank - )'!AK178, 'SPTL (Blank - not used)'!AK178, 'NGET TO (Blank - not used)'!AK178)) -> 0 | AL178: =IF(UserInterface!$E$69 = 1,CHOOSE(m_identity,'SHE-Transmission PLC'!AL178, SPTL!AL178, 'NGET TO'!AL178),CHOOSE(m_identity,'SHE-Transmission PLC (Blank - )'!AL178, 'SPTL (Blank - not used)'!AL178, 'NGET TO (Blank - not used)'!AL178)) -> 0 | AM178: =IF(UserInterface!$E$69 = 1,CHOOSE(m_identity,'SHE-Transmission PLC'!AM178, SPTL!AM178, 'NGET TO'!AM178),CHOOSE(m_identity,'SHE-Transmission PLC (Blank - )'!AM178, 'SPTL (Blank - not used)'!AM178, 'NGET TO (Blank - not used)'!AM178)) -> 0 | AN178: =IF(UserInterface!$E$69 = 1,CHOOSE(m_identity,'SHE-Transmission PLC'!AN178, SPTL!AN178, 'NGET TO'!AN178),CHOOSE(m_identity,'SHE-Transmission PLC (Blank - )'!AN178, 'SPTL (Blank - not used)'!AN178, 'NGET TO (Blank - not used)'!AN178)) -> 0 | AO178: =IF(UserInterface!$E$69 = 1,CHOOSE(m_identity,'SHE-Transmission PLC'!AO178, SPTL!AO178, 'NGET TO'!AO178),CHOOSE(m_identity,'SHE-Transmission PLC (Blank - )'!AO178, 'SPTL (Blank - not used)'!AO178, 'NGET TO (Blank - not used)'!AO178)) -> 0
E179: Allocation to other capex expenditure | G179: % | AH179: =IF(UserInterface!$E$69 = 1,CHOOSE(m_identity,'SHE-Transmission PLC'!AH179, SPTL!AH179, 'NGET TO'!AH179),CHOOSE(m_identity,'SHE-Transmission PLC (Blank - )'!AH179, 'SPTL (Blank - not used)'!AH179, 'NGET TO (Blank - not used)'!AH179)) -> 1 | AI179: =IF(UserInterface!$E$69 = 1,CHOOSE(m_identity,'SHE-Transmission PLC'!AI179, SPTL!AI179, 'NGET TO'!AI179),CHOOSE(m_identity,'SHE-Transmission PLC (Blank - )'!AI179, 'SPTL (Blank - not used)'!AI179, 'NGET TO (Blank - not used)'!AI179)) -> 1 | AJ179: =IF(UserInterface!$E$69 = 1,CHOOSE(m_identity,'SHE-Transmission PLC'!AJ179, SPTL!AJ179, 'NGET TO'!AJ179),CHOOSE(m_identity,'SHE-Transmission PLC (Blank - )'!AJ179, 'SPTL (Blank - not used)'!AJ179, 'NGET TO (Blank - not used)'!AJ179)) -> 1 | AK179: =IF(UserInterface!$E$69 = 1,CHOOSE(m_identity,'SHE-Transmission PLC'!AK179, SPTL!AK179, 'NGET TO'!AK179),CHOOSE(m_identity,'SHE-Transmission PLC (Blank - )'!AK179, 'SPTL (Blank - not used)'!AK179, 'NGET TO (Blank - not used)'!AK179)) -> 1 | AL179: =IF(UserInterface!$E$69 = 1,CHOOSE(m_identity,'SHE-Transmission PLC'!AL179, SPTL!AL179, 'NGET TO'!AL179),CHOOSE(m_identity,'SHE-Transmission PLC (Blank - )'!AL179, 'SPTL (Blank - not used)'!AL179, 'NGET TO (Blank - not used)'!AL179)) -> 1 | AM179: =IF(UserInterface!$E$69 = 1,CHOOSE(m_identity,'SHE-Transmission PLC'!AM179, SPTL!AM179, 'NGET TO'!AM179),CHOOSE(m_identity,'SHE-Transmission PLC (Blank - )'!AM179, 'SPTL (Blank - not used)'!AM179, 'NGET TO (Blank - not used)'!AM179)) -> 1 | AN179: =IF(UserInterface!$E$69 = 1,CHOOSE(m_identity,'SHE-Transmission PLC'!AN179, SPTL!AN179, 'NGET TO'!AN179),CHOOSE(m_identity,'SHE-Transmission PLC (Blank - )'!AN179, 'SPTL (Blank - not used)'!AN179, 'NGET TO (Blank - not used)'!AN179)) -> 1 | AO179: =IF(UserInterface!$E$69 = 1,CHOOSE(m_identity,'SHE-Transmission PLC'!AO179, SPTL!AO179, 'NGET TO'!AO179),CHOOSE(m_identity,'SHE-Transmission PLC (Blank - )'!AO179, 'SPTL (Blank - not used)'!AO179, 'NGET TO (Blank - not used)'!AO179)) -> 1
E180: Allocation to controllable opex | G180: % | AH180: =IF(UserInterface!$E$69 = 1,CHOOSE(m_identity,'SHE-Transmission PLC'!AH180, SPTL!AH180, 'NGET TO'!AH180),CHOOSE(m_identity,'SHE-Transmission PLC (Blank - )'!AH180, 'SPTL (Blank - not used)'!AH180, 'NGET TO (Blank - not used)'!AH180)) -> 0 | AI180: =IF(UserInterface!$E$69 = 1,CHOOSE(m_identity,'SHE-Transmission PLC'!AI180, SPTL!AI180, 'NGET TO'!AI180),CHOOSE(m_identity,'SHE-Transmission PLC (Blank - )'!AI180, 'SPTL (Blank - not used)'!AI180, 'NGET TO (Blank - not used)'!AI180)) -> 0 | AJ180: =IF(UserInterface!$E$69 = 1,CHOOSE(m_identity,'SHE-Transmission PLC'!AJ180, SPTL!AJ180, 'NGET TO'!AJ180),CHOOSE(m_identity,'SHE-Transmission PLC (Blank - )'!AJ180, 'SPTL (Blank - not used)'!AJ180, 'NGET TO (Blank - not used)'!AJ180)) -> 0 | AK180: =IF(UserInterface!$E$69 = 1,CHOOSE(m_identity,'SHE-Transmission PLC'!AK180, SPTL!AK180, 'NGET TO'!AK180),CHOOSE(m_identity,'SHE-Transmission PLC (Blank - )'!AK180, 'SPTL (Blank - not used)'!AK180, 'NGET TO (Blank - not used)'!AK180)) -> 0 | AL180: =IF(UserInterface!$E$69 = 1,CHOOSE(m_identity,'SHE-Transmission PLC'!AL180, SPTL!AL180, 'NGET TO'!AL180),CHOOSE(m_identity,'SHE-Transmission PLC (Blank - )'!AL180, 'SPTL (Blank - not used)'!AL180, 'NGET TO (Blank - not used)'!AL180)) -> 0 | AM180: =IF(UserInterface!$E$69 = 1,CHOOSE(m_identity,'SHE-Transmission PLC'!AM180, SPTL!AM180, 'NGET TO'!AM180),CHOOSE(m_identity,'SHE-Transmission PLC (Blank - )'!AM180, 'SPTL (Blank - not used)'!AM180, 'NGET TO (Blank - not used)'!AM180)) -> 0 | AN180: =IF(UserInterface!$E$69 = 1,CHOOSE(m_identity,'SHE-Transmission PLC'!AN180, SPTL!AN180, 'NGET TO'!AN180),CHOOSE(m_identity,'SHE-Transmission PLC (Blank - )'!AN180, 'SPTL (Blank - not used)'!AN180, 'NGET TO (Blank - not used)'!AN180)) -> 0 | AO180: =IF(UserInterface!$E$69 = 1,CHOOSE(m_identity,'SHE-Transmission PLC'!AO180, SPTL!AO180, 'NGET TO'!AO180),CHOOSE(m_identity,'SHE-Transmission PLC (Blank - )'!AO180, 'SPTL (Blank - not used)'!AO180, 'NGET TO (Blank - not used)'!AO180)) -> 0
E181: Allocation to non-operational capex | G181: % | AH181: =IF(UserInterface!$E$69 = 1,CHOOSE(m_identity,'SHE-Transmission PLC'!AH181, SPTL!AH181, 'NGET TO'!AH181),CHOOSE(m_identity,'SHE-Transmission PLC (Blank - )'!AH181, 'SPTL (Blank - not used)'!AH181, 'NGET TO (Blank - not used)'!AH181)) -> 0 | AI181: =IF(UserInterface!$E$69 = 1,CHOOSE(m_identity,'SHE-Transmission PLC'!AI181, SPTL!AI181, 'NGET TO'!AI181),CHOOSE(m_identity,'SHE-Transmission PLC (Blank - )'!AI181, 'SPTL (Blank - not used)'!AI181, 'NGET TO (Blank - not used)'!AI181)) -> 0 | AJ181: =IF(UserInterface!$E$69 = 1,CHOOSE(m_identity,'SHE-Transmission PLC'!AJ181, SPTL!AJ181, 'NGET TO'!AJ181),CHOOSE(m_identity,'SHE-Transmission PLC (Blank - )'!AJ181, 'SPTL (Blank - not used)'!AJ181, 'NGET TO (Blank - not used)'!AJ181)) -> 0 | AK181: =IF(UserInterface!$E$69 = 1,CHOOSE(m_identity,'SHE-Transmission PLC'!AK181, SPTL!AK181, 'NGET TO'!AK181),CHOOSE(m_identity,'SHE-Transmission PLC (Blank - )'!AK181, 'SPTL (Blank - not used)'!AK181, 'NGET TO (Blank - not used)'!AK181)) -> 0 | AL181: =IF(UserInterface!$E$69 = 1,CHOOSE(m_identity,'SHE-Transmission PLC'!AL181, SPTL!AL181, 'NGET TO'!AL181),CHOOSE(m_identity,'SHE-Transmission PLC (Blank - )'!AL181, 'SPTL (Blank - not used)'!AL181, 'NGET TO (Blank - not used)'!AL181)) -> 0 | AM181: =IF(UserInterface!$E$69 = 1,CHOOSE(m_identity,'SHE-Transmission PLC'!AM181, SPTL!AM181, 'NGET TO'!AM181),CHOOSE(m_identity,'SHE-Transmission PLC (Blank - )'!AM181, 'SPTL (Blank - not used)'!AM181, 'NGET TO (Blank - not used)'!AM181)) -> 0 | AN181: =IF(UserInterface!$E$69 = 1,CHOOSE(m_identity,'SHE-Transmission PLC'!AN181, SPTL!AN181, 'NGET TO'!AN181),CHOOSE(m_identity,'SHE-Transmission PLC (Blank - )'!AN181, 'SPTL (Blank - not used)'!AN181, 'NGET TO (Blank - not used)'!AN181)) -> 0 | AO181: =IF(UserInterface!$E$69 = 1,CHOOSE(m_identity,'SHE-Transmission PLC'!AO181, SPTL!AO181, 'NGET TO'!AO181),CHOOSE(m_identity,'SHE-Transmission PLC (Blank - )'!AO181, 'SPTL (Blank - not used)'!AO181, 'NGET TO (Blank - not used)'!AO181)) -> 0
E183: Variant allowed load related capex expenditure | G183: £m 09/10 prices | AH183: =(AH$92*AH93) + (AH$99*AH100) + (AH$106*AH107) + (AH$113*AH114) + (AH$120*AH121) + (AH$127*AH128) + (AH$134*AH135) + (AH$141*AH142) + (AH$148*AH149) + (AH$155*AH156) + (AH$162*AH163) + (AH$169*AH170) + (AH$176*AH177) -> 724.4575239 | AI183: =(AI$92*AI93) + (AI$99*AI100) + (AI$106*AI107) + (AI$113*AI114) + (AI$120*AI121) + (AI$127*AI128) + (AI$134*AI135) + (AI$141*AI142) + (AI$148*AI149) + (AI$155*AI156) + (AI$162*AI163) + (AI$169*AI170) + (AI$176*AI177) -> 755.0993403 | AJ183: 689.7355265 | AK183: 556.8015542 | AL183: 301.1487145 | AM183: 207.5898753 | AN183: 82.29196233 | AO183: 30.16389356
E184: Variant allowed asset replacement capex expenditure | G184: £m 09/10 prices | AH184: =(AH$92*AH94) + (AH$99*AH101) + (AH$106*AH108) + (AH$113*AH115) + (AH$120*AH122) + (AH$127*AH129) + (AH$134*AH136) + (AH$141*AH143) + (AH$148*AH150) + (AH$155*AH157) + (AH$162*AH164) + (AH$169*AH171) + (AH$176*AH178) -> 0 | AI184: 0 | AJ184: 0 | AK184: 0 | AL184: 0 | AM184: 0 | AN184: 0 | AO184: 0
E185: Variant allowed other capex expenditure | G185: £m 09/10 prices | AH185: =(AH$92*AH95) + (AH$99*AH102) + (AH$106*AH109) + (AH$113*AH116) + (AH$120*AH123) + (AH$127*AH130) + (AH$134*AH137) + (AH$141*AH144) + (AH$148*AH151) + (AH$155*AH158) + (AH$162*AH165) + (AH$169*AH172) + (AH$176*AH179) -> 0 | AI185: 0 | AJ185: 0 | AK185: 0 | AL185: 0 | AM185: 0 | AN185: 0 | AO185: 0
E186: Variant allowed controllable opex | G186: £m 09/10 prices | AH186: =(AH$92*AH96) + (AH$99*AH103) + (AH$106*AH110) + (AH$113*AH117) + (AH$120*AH124) + (AH$127*AH131) + (AH$134*AH138) + (AH$141*AH145) + (AH$148*AH152) + (AH$155*AH159) + (AH$162*AH166) + (AH$169*AH173) + (AH$176*AH180) -> 0 | AI186: 0 | AJ186: 0 | AK186: 0 | AL186: 0 | AM186: 0 | AN186: 0 | AO186: 0
E187: Variant allowed non-operational capex | G187: £m 09/10 prices | AH187: =(AH$92*AH97) + (AH$99*AH104) + (AH$106*AH111) + (AH$113*AH118) + (AH$120*AH125) + (AH$127*AH132) + (AH$134*AH139) + (AH$141*AH146) + (AH$148*AH153) + (AH$155*AH160) + (AH$162*AH167) + (AH$169*AH174) + (AH$176*AH181) -> 0 | AI187: 0 | AJ187: 0 | AK187: 0 | AL187: 0 | AM187: 0 | AN187: 0 | AO187: 0
D189: Actual
E191: Actual load related capex expenditure | G191: £m 09/10 prices | AH191: =AH9 -> 576.47236 | AI191: 0 | AJ191: 0 | AK191: 0 | AL191: 0 | AM191: 0 | AN191: 0 | AO191: 0
E192: Actual asset replacement capex expenditure | G192: £m 09/10 prices | AH192: =AH10 -> 217.1426879 | AI192: 0 | AJ192: 0 | AK192: 0 | AL192: 0 | AM192: 0 | AN192: 0 | AO192: 0
E193: Actual other capex expenditure | G193: £m 09/10 prices | AH193: =AH11 -> 174.9917829 | AI193: 0 | AJ193: 0 | AK193: 0 | AL193: 0 | AM193: 0 | AN193: 0 | AO193: 0
E194: Actual controllable opex | G194: £m 09/10 prices | AH194: 165.286129 | AI194: 0 | AJ194: 0 | AK194: 0 | AL194: 0 | AM194: 0 | AN194: 0 | AO194: 0
E195: Actual non-operational capex | G195: £m 09/10 prices | AH195: =AH13 -> 30.72440394 | AI195: 0 | AJ195: 0 | AK195: 0 | AL195: 0 | AM195: 0 | AN195: 0 | AO195: 0
C197: Non-totex
E199: Non-controllable opex | G199: £m 09/10 prices | AH199: =IF(UserInterface!$E$69 = 1,CHOOSE(m_identity,'SHE-Transmission PLC'!AH199, SPTL!AH199, 'NGET TO'!AH199),CHOOSE(m_identity,'SHE-Transmission PLC (Blank - )'!AH199, 'SPTL (Blank - not used)'!AH199, 'NGET TO (Blank - not used)'!AH199)) -> 94.24723304 | AI199: =IF(UserInterface!$E$69 = 1,CHOOSE(m_identity,'SHE-Transmission PLC'!AI199, SPTL!AI199, 'NGET TO'!AI199),CHOOSE(m_identity,'SHE-Transmission PLC (Blank - )'!AI199, 'SPTL (Blank - not used)'!AI199, 'NGET TO (Blank - not used)'!AI199)) -> 87.6782242 | AJ199: =IF(UserInterface!$E$69 = 1,CHOOSE(m_identity,'SHE-Transmission PLC'!AJ199, SPTL!AJ199, 'NGET TO'!AJ199),CHOOSE(m_identity,'SHE-Transmission PLC (Blank - )'!AJ199, 'SPTL (Blank - not used)'!AJ199, 'NGET TO (Blank - not used)'!AJ199)) -> 87.67624376 | AK199: =IF(UserInterface!$E$69 = 1,CHOOSE(m_identity,'SHE-Transmission PLC'!AK199, SPTL!AK199, 'NGET TO'!AK199),CHOOSE(m_identity,'SHE-Transmission PLC (Blank - )'!AK199, 'SPTL (Blank - not used)'!AK199, 'NGET TO (Blank - not used)'!AK199)) -> 87.67748178 | AL199: =IF(UserInterface!$E$69 = 1,CHOOSE(m_identity,'SHE-Transmission PLC'!AL199, SPTL!AL199, 'NGET TO'!AL199),CHOOSE(m_identity,'SHE-Transmission PLC (Blank - )'!AL199, 'SPTL (Blank - not used)'!AL199, 'NGET TO (Blank - not used)'!AL199)) -> 87.67624449 | AM199: =IF(UserInterface!$E$69 = 1,CHOOSE(m_identity,'SHE-Transmission PLC'!AM199, SPTL!AM199, 'NGET TO'!AM199),CHOOSE(m_identity,'SHE-Transmission PLC (Blank - )'!AM199, 'SPTL (Blank - not used)'!AM199, 'NGET TO (Blank - not used)'!AM199)) -> 87.67624449 | AN199: =IF(UserInterface!$E$69 = 1,CHOOSE(m_identity,'SHE-Transmission PLC'!AN199, SPTL!AN199, 'NGET TO'!AN199),CHOOSE(m_identity,'SHE-Transmission PLC (Blank - )'!AN199, 'SPTL (Blank - not used)'!AN199, 'NGET TO (Blank - not used)'!AN199)) -> 87.67624449 | AO199: =IF(UserInterface!$E$69 = 1,CHOOSE(m_identity,'SHE-Transmission PLC'!AO199, SPTL!AO199, 'NGET TO'!AO199),CHOOSE(m_identity,'SHE-Transmission PLC (Blank - )'!AO199, 'SPTL (Blank - not used)'!AO199, 'NGET TO (Blank - not used)'!AO199)) -> 87.67624446
B201: Direct allowed revenue terms (DARTs)
E203: =E29 -> Pension scheme administration and Pension Protection Fund Levy | G203: £m 09/10 prices | AH203: =AH29 -> 1.5 | AI203: 1.3 | AJ203: 1.3 | AK203: 1.5 | AL203: 1.3 | AM203: 1.3 | AN203: 1.5 | AO203: 1.3
E204: =E30 -> Pension Scheme Established Deficit | G204: £m 09/10 prices | AH204: =AH30 -> 28.92905255 | AI204: 28.92905255 | AJ204: 32.58575306 | AK204: 32.58575306 | AL204: 32.58575306 | AM204: 32.58575306 | AN204: 32.58575306 | AO204: 32.58575306
E206: Pension true-up from previous price controls | G206: £m 09/10 prices | AH206: =IF(UserInterface!$E$69 = 1,CHOOSE(m_identity,'SHE-Transmission PLC'!AH206, SPTL!AH206, 'NGET TO'!AH206),CHOOSE(m_identity,'SHE-Transmission PLC (Blank - )'!AH206, 'SPTL (Blank - not used)'!AH206, 'NGET TO (Blank - not used)'!AH206)) -> 1.628172748 | AI206: =IF(UserInterface!$E$69 = 1,CHOOSE(m_identity,'SHE-Transmission PLC'!AI206, SPTL!AI206, 'NGET TO'!AI206),CHOOSE(m_identity,'SHE-Transmission PLC (Blank - )'!AI206, 'SPTL (Blank - not used)'!AI206, 'NGET TO (Blank - not used)'!AI206)) -> 1.700333364 | AJ206: =IF(UserInterface!$E$69 = 1,CHOOSE(m_identity,'SHE-Transmission PLC'!AJ206, SPTL!AJ206, 'NGET TO'!AJ206),CHOOSE(m_identity,'SHE-Transmission PLC (Blank - )'!AJ206, 'SPTL (Blank - not used)'!AJ206, 'NGET TO (Blank - not used)'!AJ206)) -> 1.773957799 | AK206: =IF(UserInterface!$E$69 = 1,CHOOSE(m_identity,'SHE-Transmission PLC'!AK206, SPTL!AK206, 'NGET TO'!AK206),CHOOSE(m_identity,'SHE-Transmission PLC (Blank - )'!AK206, 'SPTL (Blank - not used)'!AK206, 'NGET TO (Blank - not used)'!AK206)) -> 1.850770172 | AL206: =IF(UserInterface!$E$69 = 1,CHOOSE(m_identity,'SHE-Transmission PLC'!AL206, SPTL!AL206, 'NGET TO'!AL206),CHOOSE(m_identity,'SHE-Transmission PLC (Blank - )'!AL206, 'SPTL (Blank - not used)'!AL206, 'NGET TO (Blank - not used)'!AL206)) -> 1.93090852 | AM206: =IF(UserInterface!$E$69 = 1,CHOOSE(m_identity,'SHE-Transmission PLC'!AM206, SPTL!AM206, 'NGET TO'!AM206),CHOOSE(m_identity,'SHE-Transmission PLC (Blank - )'!AM206, 'SPTL (Blank - not used)'!AM206, 'NGET TO (Blank - not used)'!AM206)) -> 2.014516859 | AN206: =IF(UserInterface!$E$69 = 1,CHOOSE(m_identity,'SHE-Transmission PLC'!AN206, SPTL!AN206, 'NGET TO'!AN206),CHOOSE(m_identity,'SHE-Transmission PLC (Blank - )'!AN206, 'SPTL (Blank - not used)'!AN206, 'NGET TO (Blank - not used)'!AN206)) -> 2.101745439 | AO206: =IF(UserInterface!$E$69 = 1,CHOOSE(m_identity,'SHE-Transmission PLC'!AO206, SPTL!AO206, 'NGET TO'!AO206),CHOOSE(m_identity,'SHE-Transmission PLC (Blank - )'!AO206, 'SPTL (Blank - not used)'!AO206, 'NGET TO (Blank - not used)'!AO206)) -> 2.192751016
E207: NGET TO Capital Expenditure Incentive and Safety Net | G207: £m 09/10 prices | AH207: =IF(UserInterface!$E$69 = 1,CHOOSE(m_identity,'SHE-Transmission PLC'!AH207, SPTL!AH207, 'NGET TO'!AH207),CHOOSE(m_identity,'SHE-Transmission PLC (Blank - )'!AH207, 'SPTL (Blank - not used)'!AH207, 'NGET TO (Blank - not used)'!AH207)) -> 19.09222316 | AI207: =IF(UserInterface!$E$69 = 1,CHOOSE(m_identity,'SHE-Transmission PLC'!AI207, SPTL!AI207, 'NGET TO'!AI207),CHOOSE(m_identity,'SHE-Transmission PLC (Blank - )'!AI207, 'SPTL (Blank - not used)'!AI207, 'NGET TO (Blank - not used)'!AI207)) -> 19.93839049 | AJ207: =IF(UserInterface!$E$69 = 1,CHOOSE(m_identity,'SHE-Transmission PLC'!AJ207, SPTL!AJ207, 'NGET TO'!AJ207),CHOOSE(m_identity,'SHE-Transmission PLC (Blank - )'!AJ207, 'SPTL (Blank - not used)'!AJ207, 'NGET TO (Blank - not used)'!AJ207)) -> 20.8017228 | AK207: =IF(UserInterface!$E$69 = 1,CHOOSE(m_identity,'SHE-Transmission PLC'!AK207, SPTL!AK207, 'NGET TO'!AK207),CHOOSE(m_identity,'SHE-Transmission PLC (Blank - )'!AK207, 'SPTL (Blank - not used)'!AK207, 'NGET TO (Blank - not used)'!AK207)) -> 21.7024374 | AL207: =IF(UserInterface!$E$69 = 1,CHOOSE(m_identity,'SHE-Transmission PLC'!AL207, SPTL!AL207, 'NGET TO'!AL207),CHOOSE(m_identity,'SHE-Transmission PLC (Blank - )'!AL207, 'SPTL (Blank - not used)'!AL207, 'NGET TO (Blank - not used)'!AL207)) -> 22.64215294 | AM207: =IF(UserInterface!$E$69 = 1,CHOOSE(m_identity,'SHE-Transmission PLC'!AM207, SPTL!AM207, 'NGET TO'!AM207),CHOOSE(m_identity,'SHE-Transmission PLC (Blank - )'!AM207, 'SPTL (Blank - not used)'!AM207, 'NGET TO (Blank - not used)'!AM207)) -> 23.62255816 | AN207: =IF(UserInterface!$E$69 = 1,CHOOSE(m_identity,'SHE-Transmission PLC'!AN207, SPTL!AN207, 'NGET TO'!AN207),CHOOSE(m_identity,'SHE-Transmission PLC (Blank - )'!AN207, 'SPTL (Blank - not used)'!AN207, 'NGET TO (Blank - not used)'!AN207)) -> 24.64541493 | AO207: =IF(UserInterface!$E$69 = 1,CHOOSE(m_identity,'SHE-Transmission PLC'!AO207, SPTL!AO207, 'NGET TO'!AO207),CHOOSE(m_identity,'SHE-Transmission PLC (Blank - )'!AO207, 'SPTL (Blank - not used)'!AO207, 'NGET TO (Blank - not used)'!AO207)) -> 25.7125614
E209: Revenue adjustment from previous controls (Base) | G209: £m 09/10 prices | AH209: =IF(UserInterface!$E$69 = 1,CHOOSE(m_identity,'SHE-Transmission PLC'!AH209, SPTL!AH209, 'NGET TO'!AH209),CHOOSE(m_identity,'SHE-Transmission PLC (Blank - )'!AH209, 'SPTL (Blank - not used)'!AH209, 'NGET TO (Blank - not used)'!AH209)) -> 6.834099792 | AI209: =IF(UserInterface!$E$69 = 1,CHOOSE(m_identity,'SHE-Transmission PLC'!AI209, SPTL!AI209, 'NGET TO'!AI209),CHOOSE(m_identity,'SHE-Transmission PLC (Blank - )'!AI209, 'SPTL (Blank - not used)'!AI209, 'NGET TO (Blank - not used)'!AI209)) -> 7.136987095 | AJ209: =IF(UserInterface!$E$69 = 1,CHOOSE(m_identity,'SHE-Transmission PLC'!AJ209, SPTL!AJ209, 'NGET TO'!AJ209),CHOOSE(m_identity,'SHE-Transmission PLC (Blank - )'!AJ209, 'SPTL (Blank - not used)'!AJ209, 'NGET TO (Blank - not used)'!AJ209)) -> 7.446018636 | AK209: =IF(UserInterface!$E$69 = 1,CHOOSE(m_identity,'SHE-Transmission PLC'!AK209, SPTL!AK209, 'NGET TO'!AK209),CHOOSE(m_identity,'SHE-Transmission PLC (Blank - )'!AK209, 'SPTL (Blank - not used)'!AK209, 'NGET TO (Blank - not used)'!AK209)) -> 7.768431243 | AL209: =IF(UserInterface!$E$69 = 1,CHOOSE(m_identity,'SHE-Transmission PLC'!AL209, SPTL!AL209, 'NGET TO'!AL209),CHOOSE(m_identity,'SHE-Transmission PLC (Blank - )'!AL209, 'SPTL (Blank - not used)'!AL209, 'NGET TO (Blank - not used)'!AL209)) -> 8.104804316 | AM209: =IF(UserInterface!$E$69 = 1,CHOOSE(m_identity,'SHE-Transmission PLC'!AM209, SPTL!AM209, 'NGET TO'!AM209),CHOOSE(m_identity,'SHE-Transmission PLC (Blank - )'!AM209, 'SPTL (Blank - not used)'!AM209, 'NGET TO (Blank - not used)'!AM209)) -> 8.455742343 | AN209: =IF(UserInterface!$E$69 = 1,CHOOSE(m_identity,'SHE-Transmission PLC'!AN209, SPTL!AN209, 'NGET TO'!AN209),CHOOSE(m_identity,'SHE-Transmission PLC (Blank - )'!AN209, 'SPTL (Blank - not used)'!AN209, 'NGET TO (Blank - not used)'!AN209)) -> 8.821875986 | AO209: =IF(UserInterface!$E$69 = 1,CHOOSE(m_identity,'SHE-Transmission PLC'!AO209, SPTL!AO209, 'NGET TO'!AO209),CHOOSE(m_identity,'SHE-Transmission PLC (Blank - )'!AO209, 'SPTL (Blank - not used)'!AO209, 'NGET TO (Blank - not used)'!AO209)) -> 9.203863216
E210: =E31 -> Legacy price control adjustments to allowed revenue | G210: £m 09/10 prices | AH210: =IF(OR(m_identity=1,m_identity=2),AH31,$AH$31/8) -> 12.32429704 | AI210: =IF(OR(m_identity=1,m_identity=2),AI31,$AH$31/8*(1+$AI$42)) -> 12.87050988 | AJ210: =IF(OR(m_identity=1,m_identity=2),AJ31,$AH$31/8*(1+$AI$42)*(1+$AJ$42)) -> 13.42780296 | AK210: =IF(OR(m_identity=1,m_identity=2),AK31,$AH$31/8*(1+$AI$42)*(1+$AJ$42)*(1+$AK$42)) -> 14.00922683 | AL210: =IF(OR(m_identity=1,m_identity=2),AL31,$AH$31/8*(1+$AI$42)*(1+$AJ$42)*(1+$AK$42)*(1+$AL$42)) -> 14.61582635 | AM210: =IF(OR(m_identity=1,m_identity=2),AM31,$AH$31/8*(1+$AI$42)*(1+$AJ$42)*(1+$AK$42)*(1+$AL$42)*(1+$AM$42)) -> 15.24869163 | AN210: =IF(OR(m_identity=1,m_identity=2),AN31,$AH$31/8*(1+$AI$42)*(1+$AJ$42)*(1+$AK$42)*(1+$AL$42)*(1+$AM$42)*(1+$AN$42)) -> 15.90895998 | AO210: =IF(OR(m_identity=1,m_identity=2),AO31,$AH$31/8*(1+$AI$42)*(1+$AJ$42)*(1+$AK$42)*(1+$AL$42)*(1+$AM$42)*(1+$AN$42)*(1+$AO$42)) -> 16.59781795
E211: Revenue adjustment from previous controls | G211: £m 09/10 prices | AH211: =AH209+AH210 -> 19.15839683 | AI211: =AI209+AI210 -> 20.00749698 | AJ211: 20.8738216 | AK211: 21.77765807 | AL211: 22.72063067 | AM211: 23.70443397 | AN211: 24.73083597 | AO211: 25.80168116
E213: Excluded services revenue | G213: £m 09/10 prices | AH213: =IF(UserInterface!$E$69 = 1,CHOOSE(m_identity,'SHE-Transmission PLC'!AH213, SPTL!AH213, 'NGET TO'!AH213),CHOOSE(m_identity,'SHE-Transmission PLC (Blank - )'!AH213, 'SPTL (Blank - not used)'!AH213, 'NGET TO (Blank - not used)'!AH213)) -> 123 | AI213: =IF(UserInterface!$E$69 = 1,CHOOSE(m_identity,'SHE-Transmission PLC'!AI213, SPTL!AI213, 'NGET TO'!AI213),CHOOSE(m_identity,'SHE-Transmission PLC (Blank - )'!AI213, 'SPTL (Blank - not used)'!AI213, 'NGET TO (Blank - not used)'!AI213)) -> 122.8 | AJ213: =IF(UserInterface!$E$69 = 1,CHOOSE(m_identity,'SHE-Transmission PLC'!AJ213, SPTL!AJ213, 'NGET TO'!AJ213),CHOOSE(m_identity,'SHE-Transmission PLC (Blank - )'!AJ213, 'SPTL (Blank - not used)'!AJ213, 'NGET TO (Blank - not used)'!AJ213)) -> 129.8 | AK213: =IF(UserInterface!$E$69 = 1,CHOOSE(m_identity,'SHE-Transmission PLC'!AK213, SPTL!AK213, 'NGET TO'!AK213),CHOOSE(m_identity,'SHE-Transmission PLC (Blank - )'!AK213, 'SPTL (Blank - not used)'!AK213, 'NGET TO (Blank - not used)'!AK213)) -> 125.6 | AL213: =IF(UserInterface!$E$69 = 1,CHOOSE(m_identity,'SHE-Transmission PLC'!AL213, SPTL!AL213, 'NGET TO'!AL213),CHOOSE(m_identity,'SHE-Transmission PLC (Blank - )'!AL213, 'SPTL (Blank - not used)'!AL213, 'NGET TO (Blank - not used)'!AL213)) -> 127.3 | AM213: =IF(UserInterface!$E$69 = 1,CHOOSE(m_identity,'SHE-Transmission PLC'!AM213, SPTL!AM213, 'NGET TO'!AM213),CHOOSE(m_identity,'SHE-Transmission PLC (Blank - )'!AM213, 'SPTL (Blank - not used)'!AM213, 'NGET TO (Blank - not used)'!AM213)) -> 128.6 | AN213: =IF(UserInterface!$E$69 = 1,CHOOSE(m_identity,'SHE-Transmission PLC'!AN213, SPTL!AN213, 'NGET TO'!AN213),CHOOSE(m_identity,'SHE-Transmission PLC (Blank - )'!AN213, 'SPTL (Blank - not used)'!AN213, 'NGET TO (Blank - not used)'!AN213)) -> 130.2 | AO213: =IF(UserInterface!$E$69 = 1,CHOOSE(m_identity,'SHE-Transmission PLC'!AO213, SPTL!AO213, 'NGET TO'!AO213),CHOOSE(m_identity,'SHE-Transmission PLC (Blank - )'!AO213, 'SPTL (Blank - not used)'!AO213, 'NGET TO (Blank - not used)'!AO213)) -> 131.7
E214: Identified excluded services costs | G214: £m 09/10 prices | AH214: =IF(UserInterface!$E$69 = 1,CHOOSE(m_identity,'SHE-Transmission PLC'!AH214, SPTL!AH214, 'NGET TO'!AH214),CHOOSE(m_identity,'SHE-Transmission PLC (Blank - )'!AH214, 'SPTL (Blank - not used)'!AH214, 'NGET TO (Blank - not used)'!AH214)) -> 7.367 | AI214: =IF(UserInterface!$E$69 = 1,CHOOSE(m_identity,'SHE-Transmission PLC'!AI214, SPTL!AI214, 'NGET TO'!AI214),CHOOSE(m_identity,'SHE-Transmission PLC (Blank - )'!AI214, 'SPTL (Blank - not used)'!AI214, 'NGET TO (Blank - not used)'!AI214)) -> 6.234 | AJ214: =IF(UserInterface!$E$69 = 1,CHOOSE(m_identity,'SHE-Transmission PLC'!AJ214, SPTL!AJ214, 'NGET TO'!AJ214),CHOOSE(m_identity,'SHE-Transmission PLC (Blank - )'!AJ214, 'SPTL (Blank - not used)'!AJ214, 'NGET TO (Blank - not used)'!AJ214)) -> 5.578 | AK214: =IF(UserInterface!$E$69 = 1,CHOOSE(m_identity,'SHE-Transmission PLC'!AK214, SPTL!AK214, 'NGET TO'!AK214),CHOOSE(m_identity,'SHE-Transmission PLC (Blank - )'!AK214, 'SPTL (Blank - not used)'!AK214, 'NGET TO (Blank - not used)'!AK214)) -> 3.369 | AL214: =IF(UserInterface!$E$69 = 1,CHOOSE(m_identity,'SHE-Transmission PLC'!AL214, SPTL!AL214, 'NGET TO'!AL214),CHOOSE(m_identity,'SHE-Transmission PLC (Blank - )'!AL214, 'SPTL (Blank - not used)'!AL214, 'NGET TO (Blank - not used)'!AL214)) -> 3.368 | AM214: =IF(UserInterface!$E$69 = 1,CHOOSE(m_identity,'SHE-Transmission PLC'!AM214, SPTL!AM214, 'NGET TO'!AM214),CHOOSE(m_identity,'SHE-Transmission PLC (Blank - )'!AM214, 'SPTL (Blank - not used)'!AM214, 'NGET TO (Blank - not used)'!AM214)) -> 3.162 | AN214: =IF(UserInterface!$E$69 = 1,CHOOSE(m_identity,'SHE-Transmission PLC'!AN214, SPTL!AN214, 'NGET TO'!AN214),CHOOSE(m_identity,'SHE-Transmission PLC (Blank - )'!AN214, 'SPTL (Blank - not used)'!AN214, 'NGET TO (Blank - not used)'!AN214)) -> 3.094 | AO214: =IF(UserInterface!$E$69 = 1,CHOOSE(m_identity,'SHE-Transmission PLC'!AO214, SPTL!AO214, 'NGET TO'!AO214),CHOOSE(m_identity,'SHE-Transmission PLC (Blank - )'!AO214, 'SPTL (Blank - not used)'!AO214, 'NGET TO (Blank - not used)'!AO214)) -> 3.027
E215: Excluded services | G215: £m 09/10 prices | AH215: =SUM(AH213, -AH214) -> 115.633 | AI215: =SUM(AI213, -AI214) -> 116.566 | AJ215: 124.222 | AK215: 122.231 | AL215: 123.932 | AM215: 125.438 | AN215: 127.106 | AO215: 128.673
B217: RAV and assets
C219: Pre-vesting assets
E221: Pre-vesting RAV cost opening balance brought forward (before transfers) | G221: £m 09/10 prices | AH221: =IF(UserInterface!$E$69 = 1,CHOOSE(m_identity,'SHE-Transmission PLC'!AH221, SPTL!AH221, 'NGET TO'!AH221),CHOOSE(m_identity,'SHE-Transmission PLC (Blank - )'!AH221, 'SPTL (Blank - not used)'!AH221, 'NGET TO (Blank - not used)'!AH221)) -> 0
E222: Pre-vesting RAV cumulative depreciation opening balance brought forward (before transfers) | G222: £m 09/10 prices | AH222: =IF(UserInterface!$E$69 = 1,CHOOSE(m_identity,'SHE-Transmission PLC'!AH222, SPTL!AH222, 'NGET TO'!AH222),CHOOSE(m_identity,'SHE-Transmission PLC (Blank - )'!AH222, 'SPTL (Blank - not used)'!AH222, 'NGET TO (Blank - not used)'!AH222)) -> 0
E224: Pre-vesting asset life | G224: years | I224: =IF(UserInterface!$E$69 = 1,CHOOSE(m_identity,'SHE-Transmission PLC'!I224, SPTL!I224, 'NGET TO'!I224),CHOOSE(m_identity,'SHE-Transmission PLC (Blank - )'!I224, 'SPTL (Blank - not used)'!I224, 'NGET TO (Blank - not used)'!I224)) -> 20
E226: Years of pre-vesting depreciation remaining | G226: years | AH226: =IF(UserInterface!$E$69 = 1,CHOOSE(m_identity,'SHE-Transmission PLC'!AH226, SPTL!AH226, 'NGET TO'!AH226),CHOOSE(m_identity,'SHE-Transmission PLC (Blank - )'!AH226, 'SPTL (Blank - not used)'!AH226, 'NGET TO (Blank - not used)'!AH226)) -> 45 | AI226: =IF(UserInterface!$E$69 = 1,CHOOSE(m_identity,'SHE-Transmission PLC'!AI226, SPTL!AI226, 'NGET TO'!AI226),CHOOSE(m_identity,'SHE-Transmission PLC (Blank - )'!AI226, 'SPTL (Blank - not used)'!AI226, 'NGET TO (Blank - not used)'!AI226)) -> 44 | AJ226: =IF(UserInterface!$E$69 = 1,CHOOSE(m_identity,'SHE-Transmission PLC'!AJ226, SPTL!AJ226, 'NGET TO'!AJ226),CHOOSE(m_identity,'SHE-Transmission PLC (Blank - )'!AJ226, 'SPTL (Blank - not used)'!AJ226, 'NGET TO (Blank - not used)'!AJ226)) -> 43 | AK226: =IF(UserInterface!$E$69 = 1,CHOOSE(m_identity,'SHE-Transmission PLC'!AK226, SPTL!AK226, 'NGET TO'!AK226),CHOOSE(m_identity,'SHE-Transmission PLC (Blank - )'!AK226, 'SPTL (Blank - not used)'!AK226, 'NGET TO (Blank - not used)'!AK226)) -> 42 | AL226: =IF(UserInterface!$E$69 = 1,CHOOSE(m_identity,'SHE-Transmission PLC'!AL226, SPTL!AL226, 'NGET TO'!AL226),CHOOSE(m_identity,'SHE-Transmission PLC (Blank - )'!AL226, 'SPTL (Blank - not used)'!AL226, 'NGET TO (Blank - not used)'!AL226)) -> 41 | AM226: =IF(UserInterface!$E$69 = 1,CHOOSE(m_identity,'SHE-Transmission PLC'!AM226, SPTL!AM226, 'NGET TO'!AM226),CHOOSE(m_identity,'SHE-Transmission PLC (Blank - )'!AM226, 'SPTL (Blank - not used)'!AM226, 'NGET TO (Blank - not used)'!AM226)) -> 40 | AN226: =IF(UserInterface!$E$69 = 1,CHOOSE(m_identity,'SHE-Transmission PLC'!AN226, SPTL!AN226, 'NGET TO'!AN226),CHOOSE(m_identity,'SHE-Transmission PLC (Blank - )'!AN226, 'SPTL (Blank - not used)'!AN226, 'NGET TO (Blank - not used)'!AN226)) -> 39 | AO226: =IF(UserInterface!$E$69 = 1,CHOOSE(m_identity,'SHE-Transmission PLC'!AO226, SPTL!AO226, 'NGET TO'!AO226),CHOOSE(m_identity,'SHE-Transmission PLC (Blank - )'!AO226, 'SPTL (Blank - not used)'!AO226, 'NGET TO (Blank - not used)'!AO226)) -> 38
C228: Post-vesting assets
E230: Transmission
E231: Post-vesting asset life | G231: years | J231: > | K231: =IF(UserInterface!$E$69 = 1,CHOOSE(m_identity,'SHE-Transmission PLC'!K231, SPTL!K231, 'NGET TO'!K231),CHOOSE(m_identity,'SHE-Transmission PLC (Blank - )'!K231, 'SPTL (Blank - not used)'!K231, 'NGET TO (Blank - not used)'!K231)) -> 40 | L231: =IF(UserInterface!$E$69 = 1,CHOOSE(m_identity,'SHE-Transmission PLC'!L231, SPTL!L231, 'NGET TO'!L231),CHOOSE(m_identity,'SHE-Transmission PLC (Blank - )'!L231, 'SPTL (Blank - not used)'!L231, 'NGET TO (Blank - not used)'!L231)) -> 40 | M231: =IF(UserInterface!$E$69 = 1,CHOOSE(m_identity,'SHE-Transmission PLC'!M231, SPTL!M231, 'NGET TO'!M231),CHOOSE(m_identity,'SHE-Transmission PLC (Blank - )'!M231, 'SPTL (Blank - not used)'!M231, 'NGET TO (Blank - not used)'!M231)) -> 40 | N231: =IF(UserInterface!$E$69 = 1,CHOOSE(m_identity,'SHE-Transmission PLC'!N231, SPTL!N231, 'NGET TO'!N231),CHOOSE(m_identity,'SHE-Transmission PLC (Blank - )'!N231, 'SPTL (Blank - not used)'!N231, 'NGET TO (Blank - not used)'!N231)) -> 40 | O231: =IF(UserInterface!$E$69 = 1,CHOOSE(m_identity,'SHE-Transmission PLC'!O231, SPTL!O231, 'NGET TO'!O231),CHOOSE(m_identity,'SHE-Transmission PLC (Blank - )'!O231, 'SPTL (Blank - not used)'!O231, 'NGET TO (Blank - not used)'!O231)) -> 40 | P231: =IF(UserInterface!$E$69 = 1,CHOOSE(m_identity,'SHE-Transmission PLC'!P231, SPTL!P231, 'NGET TO'!P231),CHOOSE(m_identity,'SHE-Transmission PLC (Blank - )'!P231, 'SPTL (Blank - not used)'!P231, 'NGET TO (Blank - not used)'!P231)) -> 40 | Q231: =IF(UserInterface!$E$69 = 1,CHOOSE(m_identity,'SHE-Transmission PLC'!Q231, SPTL!Q231, 'NGET TO'!Q231),CHOOSE(m_identity,'SHE-Transmission PLC (Blank - )'!Q231, 'SPTL (Blank - not used)'!Q231, 'NGET TO (Blank - not used)'!Q231)) -> 40 | R231: =IF(UserInterface!$E$69 = 1,CHOOSE(m_identity,'SHE-Transmission PLC'!R231, SPTL!R231, 'NGET TO'!R231),CHOOSE(m_identity,'SHE-Transmission PLC (Blank - )'!R231, 'SPTL (Blank - not used)'!R231, 'NGET TO (Blank - not used)'!R231)) -> 40 | S231: =IF(UserInterface!$E$69 = 1,CHOOSE(m_identity,'SHE-Transmission PLC'!S231, SPTL!S231, 'NGET TO'!S231),CHOOSE(m_identity,'SHE-Transmission PLC (Blank - )'!S231, 'SPTL (Blank - not used)'!S231, 'NGET TO (Blank - not used)'!S231)) -> 40 | T231: =IF(UserInterface!$E$69 = 1,CHOOSE(m_identity,'SHE-Transmission PLC'!T231, SPTL!T231, 'NGET TO'!T231),CHOOSE(m_identity,'SHE-Transmission PLC (Blank - )'!T231, 'SPTL (Blank - not used)'!T231, 'NGET TO (Blank - not used)'!T231)) -> 40 | U231: =IF(UserInterface!$E$69 = 1,CHOOSE(m_identity,'SHE-Transmission PLC'!U231, SPTL!U231, 'NGET TO'!U231),CHOOSE(m_identity,'SHE-Transmission PLC (Blank - )'!U231, 'SPTL (Blank - not used)'!U231, 'NGET TO (Blank - not used)'!U231)) -> 40 | V231: =IF(UserInterface!$E$69 = 1,CHOOSE(m_identity,'SHE-Transmission PLC'!V231, SPTL!V231, 'NGET TO'!V231),CHOOSE(m_identity,'SHE-Transmission PLC (Blank - )'!V231, 'SPTL (Blank - not used)'!V231, 'NGET TO (Blank - not used)'!V231)) -> 40 | W231: =IF(UserInterface!$E$69 = 1,CHOOSE(m_identity,'SHE-Transmission PLC'!W231, SPTL!W231, 'NGET TO'!W231),CHOOSE(m_identity,'SHE-Transmission PLC (Blank - )'!W231, 'SPTL (Blank - not used)'!W231, 'NGET TO (Blank - not used)'!W231)) -> 40 | X231: =IF(UserInterface!$E$69 = 1,CHOOSE(m_identity,'SHE-Transmission PLC'!X231, SPTL!X231, 'NGET TO'!X231),CHOOSE(m_identity,'SHE-Transmission PLC (Blank - )'!X231, 'SPTL (Blank - not used)'!X231, 'NGET TO (Blank - not used)'!X231)) -> 40 | Y231: =IF(UserInterface!$E$69 = 1,CHOOSE(m_identity,'SHE-Transmission PLC'!Y231, SPTL!Y231, 'NGET TO'!Y231),CHOOSE(m_identity,'SHE-Transmission PLC (Blank - )'!Y231, 'SPTL (Blank - not used)'!Y231, 'NGET TO (Blank - not used)'!Y231)) -> 40 | Z231: =IF(UserInterface!$E$69 = 1,CHOOSE(m_identity,'SHE-Transmission PLC'!Z231, SPTL!Z231, 'NGET TO'!Z231),CHOOSE(m_identity,'SHE-Transmission PLC (Blank - )'!Z231, 'SPTL (Blank - not used)'!Z231, 'NGET TO (Blank - not used)'!Z231)) -> 40 | AA231: =IF(UserInterface!$E$69 = 1,CHOOSE(m_identity,'SHE-Transmission PLC'!AA231, SPTL!AA231, 'NGET TO'!AA231),CHOOSE(m_identity,'SHE-Transmission PLC (Blank - )'!AA231, 'SPTL (Blank - not used)'!AA231, 'NGET TO (Blank - not used)'!AA231)) -> 40 | AB231: =IF(UserInterface!$E$69 = 1,CHOOSE(m_identity,'SHE-Transmission PLC'!AB231, SPTL!AB231, 'NGET TO'!AB231),CHOOSE(m_identity,'SHE-Transmission PLC (Blank - )'!AB231, 'SPTL (Blank - not used)'!AB231, 'NGET TO (Blank - not used)'!AB231)) -> 40 | AC231: =IF(UserInterface!$E$69 = 1,CHOOSE(m_identity,'SHE-Transmission PLC'!AC231, SPTL!AC231, 'NGET TO'!AC231),CHOOSE(m_identity,'SHE-Transmission PLC (Blank - )'!AC231, 'SPTL (Blank - not used)'!AC231, 'NGET TO (Blank - not used)'!AC231)) -> 40 | AD231: =IF(UserInterface!$E$69 = 1,CHOOSE(m_identity,'SHE-Transmission PLC'!AD231, SPTL!AD231, 'NGET TO'!AD231),CHOOSE(m_identity,'SHE-Transmission PLC (Blank - )'!AD231, 'SPTL (Blank - not used)'!AD231, 'NGET TO (Blank - not used)'!AD231)) -> 40 | AE231: =IF(UserInterface!$E$69 = 1,CHOOSE(m_identity,'SHE-Transmission PLC'!AE231, SPTL!AE231, 'NGET TO'!AE231),CHOOSE(m_identity,'SHE-Transmission PLC (Blank - )'!AE231, 'SPTL (Blank - not used)'!AE231, 'NGET TO (Blank - not used)'!AE231)) -> 40 | AF231: =IF(UserInterface!$E$69 = 1,CHOOSE(m_identity,'SHE-Transmission PLC'!AF231, SPTL!AF231, 'NGET TO'!AF231),CHOOSE(m_identity,'SHE-Transmission PLC (Blank - )'!AF231, 'SPTL (Blank - not used)'!AF231, 'NGET TO (Blank - not used)'!AF231)) -> 40 | AG231: =IF(UserInterface!$E$69 = 1,CHOOSE(m_identity,'SHE-Transmission PLC'!AG231, SPTL!AG231, 'NGET TO'!AG231),CHOOSE(m_identity,'SHE-Transmission PLC (Blank - )'!AG231, 'SPTL (Blank - not used)'!AG231, 'NGET TO (Blank - not used)'!AG231)) -> 40 | AH231: =IF(UserInterface!$E$69 = 1,CHOOSE(m_identity,'SHE-Transmission PLC'!AH231, SPTL!AH231, 'NGET TO'!AH231),CHOOSE(m_identity,'SHE-Transmission PLC (Blank - )'!AH231, 'SPTL (Blank - not used)'!AH231, 'NGET TO (Blank - not used)'!AH231)) -> 23.125 | AI231: =IF(UserInterface!$E$69 = 1,CHOOSE(m_identity,'SHE-Transmission PLC'!AI231, SPTL!AI231, 'NGET TO'!AI231),CHOOSE(m_identity,'SHE-Transmission PLC (Blank - )'!AI231, 'SPTL (Blank - not used)'!AI231, 'NGET TO (Blank - not used)'!AI231)) -> 26.25 | AJ231: =IF(UserInterface!$E$69 = 1,CHOOSE(m_identity,'SHE-Transmission PLC'!AJ231, SPTL!AJ231, 'NGET TO'!AJ231),CHOOSE(m_identity,'SHE-Transmission PLC (Blank - )'!AJ231, 'SPTL (Blank - not used)'!AJ231, 'NGET TO (Blank - not used)'!AJ231)) -> 29.375 | AK231: =IF(UserInterface!$E$69 = 1,CHOOSE(m_identity,'SHE-Transmission PLC'!AK231, SPTL!AK231, 'NGET TO'!AK231),CHOOSE(m_identity,'SHE-Transmission PLC (Blank - )'!AK231, 'SPTL (Blank - not used)'!AK231, 'NGET TO (Blank - not used)'!AK231)) -> 32.5 | AL231: =IF(UserInterface!$E$69 = 1,CHOOSE(m_identity,'SHE-Transmission PLC'!AL231, SPTL!AL231, 'NGET TO'!AL231),CHOOSE(m_identity,'SHE-Transmission PLC (Blank - )'!AL231, 'SPTL (Blank - not used)'!AL231, 'NGET TO (Blank - not used)'!AL231)) -> 35.625 | AM231: =IF(UserInterface!$E$69 = 1,CHOOSE(m_identity,'SHE-Transmission PLC'!AM231, SPTL!AM231, 'NGET TO'!AM231),CHOOSE(m_identity,'SHE-Transmission PLC (Blank - )'!AM231, 'SPTL (Blank - not used)'!AM231, 'NGET TO (Blank - not used)'!AM231)) -> 38.75 | AN231: =IF(UserInterface!$E$69 = 1,CHOOSE(m_identity,'SHE-Transmission PLC'!AN231, SPTL!AN231, 'NGET TO'!AN231),CHOOSE(m_identity,'SHE-Transmission PLC (Blank - )'!AN231, 'SPTL (Blank - not used)'!AN231, 'NGET TO (Blank - not used)'!AN231)) -> 41.875 | AO231: =IF(UserInterface!$E$69 = 1,CHOOSE(m_identity,'SHE-Transmission PLC'!AO231, SPTL!AO231, 'NGET TO'!AO231),CHOOSE(m_identity,'SHE-Transmission PLC (Blank - )'!AO231, 'SPTL (Blank - not used)'!AO231, 'NGET TO (Blank - not used)'!AO231)) -> 45
E232: Accelerated post-vesting asset life | G232: years | J232: > | K232: =IF(UserInterface!$E$69 = 1,CHOOSE(m_identity,'SHE-Transmission PLC'!K232, SPTL!K232, 'NGET TO'!K232),CHOOSE(m_identity,'SHE-Transmission PLC (Blank - )'!K232, 'SPTL (Blank - not used)'!K232, 'NGET TO (Blank - not used)'!K232)) -> 20 | L232: =IF(UserInterface!$E$69 = 1,CHOOSE(m_identity,'SHE-Transmission PLC'!L232, SPTL!L232, 'NGET TO'!L232),CHOOSE(m_identity,'SHE-Transmission PLC (Blank - )'!L232, 'SPTL (Blank - not used)'!L232, 'NGET TO (Blank - not used)'!L232)) -> 20 | M232: =IF(UserInterface!$E$69 = 1,CHOOSE(m_identity,'SHE-Transmission PLC'!M232, SPTL!M232, 'NGET TO'!M232),CHOOSE(m_identity,'SHE-Transmission PLC (Blank - )'!M232, 'SPTL (Blank - not used)'!M232, 'NGET TO (Blank - not used)'!M232)) -> 20 | N232: =IF(UserInterface!$E$69 = 1,CHOOSE(m_identity,'SHE-Transmission PLC'!N232, SPTL!N232, 'NGET TO'!N232),CHOOSE(m_identity,'SHE-Transmission PLC (Blank - )'!N232, 'SPTL (Blank - not used)'!N232, 'NGET TO (Blank - not used)'!N232)) -> 20 | O232: =IF(UserInterface!$E$69 = 1,CHOOSE(m_identity,'SHE-Transmission PLC'!O232, SPTL!O232, 'NGET TO'!O232),CHOOSE(m_identity,'SHE-Transmission PLC (Blank - )'!O232, 'SPTL (Blank - not used)'!O232, 'NGET TO (Blank - not used)'!O232)) -> 20 | P232: =IF(UserInterface!$E$69 = 1,CHOOSE(m_identity,'SHE-Transmission PLC'!P232, SPTL!P232, 'NGET TO'!P232),CHOOSE(m_identity,'SHE-Transmission PLC (Blank - )'!P232, 'SPTL (Blank - not used)'!P232, 'NGET TO (Blank - not used)'!P232)) -> 20 | Q232: =IF(UserInterface!$E$69 = 1,CHOOSE(m_identity,'SHE-Transmission PLC'!Q232, SPTL!Q232, 'NGET TO'!Q232),CHOOSE(m_identity,'SHE-Transmission PLC (Blank - )'!Q232, 'SPTL (Blank - not used)'!Q232, 'NGET TO (Blank - not used)'!Q232)) -> 20 | R232: =IF(UserInterface!$E$69 = 1,CHOOSE(m_identity,'SHE-Transmission PLC'!R232, SPTL!R232, 'NGET TO'!R232),CHOOSE(m_identity,'SHE-Transmission PLC (Blank - )'!R232, 'SPTL (Blank - not used)'!R232, 'NGET TO (Blank - not used)'!R232)) -> 20 | S232: =IF(UserInterface!$E$69 = 1,CHOOSE(m_identity,'SHE-Transmission PLC'!S232, SPTL!S232, 'NGET TO'!S232),CHOOSE(m_identity,'SHE-Transmission PLC (Blank - )'!S232, 'SPTL (Blank - not used)'!S232, 'NGET TO (Blank - not used)'!S232)) -> 20 | T232: =IF(UserInterface!$E$69 = 1,CHOOSE(m_identity,'SHE-Transmission PLC'!T232, SPTL!T232, 'NGET TO'!T232),CHOOSE(m_identity,'SHE-Transmission PLC (Blank - )'!T232, 'SPTL (Blank - not used)'!T232, 'NGET TO (Blank - not used)'!T232)) -> 20 | U232: =IF(UserInterface!$E$69 = 1,CHOOSE(m_identity,'SHE-Transmission PLC'!U232, SPTL!U232, 'NGET TO'!U232),CHOOSE(m_identity,'SHE-Transmission PLC (Blank - )'!U232, 'SPTL (Blank - not used)'!U232, 'NGET TO (Blank - not used)'!U232)) -> 20 | V232: =IF(UserInterface!$E$69 = 1,CHOOSE(m_identity,'SHE-Transmission PLC'!V232, SPTL!V232, 'NGET TO'!V232),CHOOSE(m_identity,'SHE-Transmission PLC (Blank - )'!V232, 'SPTL (Blank - not used)'!V232, 'NGET TO (Blank - not used)'!V232)) -> 20 | W232: =IF(UserInterface!$E$69 = 1,CHOOSE(m_identity,'SHE-Transmission PLC'!W232, SPTL!W232, 'NGET TO'!W232),CHOOSE(m_identity,'SHE-Transmission PLC (Blank - )'!W232, 'SPTL (Blank - not used)'!W232, 'NGET TO (Blank - not used)'!W232)) -> 20 | X232: =IF(UserInterface!$E$69 = 1,CHOOSE(m_identity,'SHE-Transmission PLC'!X232, SPTL!X232, 'NGET TO'!X232),CHOOSE(m_identity,'SHE-Transmission PLC (Blank - )'!X232, 'SPTL (Blank - not used)'!X232, 'NGET TO (Blank - not used)'!X232)) -> 20 | Y232: =IF(UserInterface!$E$69 = 1,CHOOSE(m_identity,'SHE-Transmission PLC'!Y232, SPTL!Y232, 'NGET TO'!Y232),CHOOSE(m_identity,'SHE-Transmission PLC (Blank - )'!Y232, 'SPTL (Blank - not used)'!Y232, 'NGET TO (Blank - not used)'!Y232)) -> 20 | Z232: =IF(UserInterface!$E$69 = 1,CHOOSE(m_identity,'SHE-Transmission PLC'!Z232, SPTL!Z232, 'NGET TO'!Z232),CHOOSE(m_identity,'SHE-Transmission PLC (Blank - )'!Z232, 'SPTL (Blank - not used)'!Z232, 'NGET TO (Blank - not used)'!Z232)) -> 20 | AA232: =IF(UserInterface!$E$69 = 1,CHOOSE(m_identity,'SHE-Transmission PLC'!AA232, SPTL!AA232, 'NGET TO'!AA232),CHOOSE(m_identity,'SHE-Transmission PLC (Blank - )'!AA232, 'SPTL (Blank - not used)'!AA232, 'NGET TO (Blank - not used)'!AA232)) -> 20 | AB232: =IF(UserInterface!$E$69 = 1,CHOOSE(m_identity,'SHE-Transmission PLC'!AB232, SPTL!AB232, 'NGET TO'!AB232),CHOOSE(m_identity,'SHE-Transmission PLC (Blank - )'!AB232, 'SPTL (Blank - not used)'!AB232, 'NGET TO (Blank - not used)'!AB232)) -> 20 | AC232: =IF(UserInterface!$E$69 = 1,CHOOSE(m_identity,'SHE-Transmission PLC'!AC232, SPTL!AC232, 'NGET TO'!AC232),CHOOSE(m_identity,'SHE-Transmission PLC (Blank - )'!AC232, 'SPTL (Blank - not used)'!AC232, 'NGET TO (Blank - not used)'!AC232)) -> 20 | AD232: =IF(UserInterface!$E$69 = 1,CHOOSE(m_identity,'SHE-Transmission PLC'!AD232, SPTL!AD232, 'NGET TO'!AD232),CHOOSE(m_identity,'SHE-Transmission PLC (Blank - )'!AD232, 'SPTL (Blank - not used)'!AD232, 'NGET TO (Blank - not used)'!AD232)) -> 20 | AE232: =IF(UserInterface!$E$69 = 1,CHOOSE(m_identity,'SHE-Transmission PLC'!AE232, SPTL!AE232, 'NGET TO'!AE232),CHOOSE(m_identity,'SHE-Transmission PLC (Blank - )'!AE232, 'SPTL (Blank - not used)'!AE232, 'NGET TO (Blank - not used)'!AE232)) -> 20 | AF232: =IF(UserInterface!$E$69 = 1,CHOOSE(m_identity,'SHE-Transmission PLC'!AF232, SPTL!AF232, 'NGET TO'!AF232),CHOOSE(m_identity,'SHE-Transmission PLC (Blank - )'!AF232, 'SPTL (Blank - not used)'!AF232, 'NGET TO (Blank - not used)'!AF232)) -> 20 | AG232: =IF(UserInterface!$E$69 = 1,CHOOSE(m_identity,'SHE-Transmission PLC'!AG232, SPTL!AG232, 'NGET TO'!AG232),CHOOSE(m_identity,'SHE-Transmission PLC (Blank - )'!AG232, 'SPTL (Blank - not used)'!AG232, 'NGET TO (Blank - not used)'!AG232)) -> 20 | AH232: =IF(UserInterface!$E$69 = 1,CHOOSE(m_identity,'SHE-Transmission PLC'!AH232, SPTL!AH232, 'NGET TO'!AH232),CHOOSE(m_identity,'SHE-Transmission PLC (Blank - )'!AH232, 'SPTL (Blank - not used)'!AH232, 'NGET TO (Blank - not used)'!AH232)) -> 23.125 | AI232: =IF(UserInterface!$E$69 = 1,CHOOSE(m_identity,'SHE-Transmission PLC'!AI232, SPTL!AI232, 'NGET TO'!AI232),CHOOSE(m_identity,'SHE-Transmission PLC (Blank - )'!AI232, 'SPTL (Blank - not used)'!AI232, 'NGET TO (Blank - not used)'!AI232)) -> 26.25 | AJ232: =IF(UserInterface!$E$69 = 1,CHOOSE(m_identity,'SHE-Transmission PLC'!AJ232, SPTL!AJ232, 'NGET TO'!AJ232),CHOOSE(m_identity,'SHE-Transmission PLC (Blank - )'!AJ232, 'SPTL (Blank - not used)'!AJ232, 'NGET TO (Blank - not used)'!AJ232)) -> 29.375 | AK232: =IF(UserInterface!$E$69 = 1,CHOOSE(m_identity,'SHE-Transmission PLC'!AK232, SPTL!AK232, 'NGET TO'!AK232),CHOOSE(m_identity,'SHE-Transmission PLC (Blank - )'!AK232, 'SPTL (Blank - not used)'!AK232, 'NGET TO (Blank - not used)'!AK232)) -> 32.5 | AL232: =IF(UserInterface!$E$69 = 1,CHOOSE(m_identity,'SHE-Transmission PLC'!AL232, SPTL!AL232, 'NGET TO'!AL232),CHOOSE(m_identity,'SHE-Transmission PLC (Blank - )'!AL232, 'SPTL (Blank - not used)'!AL232, 'NGET TO (Blank - not used)'!AL232)) -> 35.625 | AM232: =IF(UserInterface!$E$69 = 1,CHOOSE(m_identity,'SHE-Transmission PLC'!AM232, SPTL!AM232, 'NGET TO'!AM232),CHOOSE(m_identity,'SHE-Transmission PLC (Blank - )'!AM232, 'SPTL (Blank - not used)'!AM232, 'NGET TO (Blank - not used)'!AM232)) -> 38.75 | AN232: =IF(UserInterface!$E$69 = 1,CHOOSE(m_identity,'SHE-Transmission PLC'!AN232, SPTL!AN232, 'NGET TO'!AN232),CHOOSE(m_identity,'SHE-Transmission PLC (Blank - )'!AN232, 'SPTL (Blank - not used)'!AN232, 'NGET TO (Blank - not used)'!AN232)) -> 41.875 | AO232: =IF(UserInterface!$E$69 = 1,CHOOSE(m_identity,'SHE-Transmission PLC'!AO232, SPTL!AO232, 'NGET TO'!AO232),CHOOSE(m_identity,'SHE-Transmission PLC (Blank - )'!AO232, 'SPTL (Blank - not used)'!AO232, 'NGET TO (Blank - not used)'!AO232)) -> 45
E233: Smoothing period following full depreciation of pre-vesting assets | G233: years | I233: =IF(UserInterface!$E$69 = 1,CHOOSE(m_identity,'SHE-Transmission PLC'!I233, SPTL!I233, 'NGET TO'!I233),CHOOSE(m_identity,'SHE-Transmission PLC (Blank - )'!I233, 'SPTL (Blank - not used)'!I233, 'NGET TO (Blank - not used)'!I233)) -> 50
E234: Start of smoothing period | G234: year ending | I234: =IF(UserInterface!$E$69 = 1,CHOOSE(m_identity,'SHE-Transmission PLC'!I234, SPTL!I234, 'NGET TO'!I234),CHOOSE(m_identity,'SHE-Transmission PLC (Blank - )'!I234, 'SPTL (Blank - not used)'!I234, 'NGET TO (Blank - not used)'!I234)) -> 1991-03-31
E235: Pre-RIIO net additions to RAV | G235: £m 09/10 prices | J235: > | K235: =IF(UserInterface!$E$69 = 1,CHOOSE(m_identity,'SHE-Transmission PLC'!K235, SPTL!K235, 'NGET TO'!K235),CHOOSE(m_identity,'SHE-Transmission PLC (Blank - )'!K235, 'SPTL (Blank - not used)'!K235, 'NGET TO (Blank - not used)'!K235)) -> 379.4436332 | L235: =IF(UserInterface!$E$69 = 1,CHOOSE(m_identity,'SHE-Transmission PLC'!L235, SPTL!L235, 'NGET TO'!L235),CHOOSE(m_identity,'SHE-Transmission PLC (Blank - )'!L235, 'SPTL (Blank - not used)'!L235, 'NGET TO (Blank - not used)'!L235)) -> 470.0945248 | M235: =IF(UserInterface!$E$69 = 1,CHOOSE(m_identity,'SHE-Transmission PLC'!M235, SPTL!M235, 'NGET TO'!M235),CHOOSE(m_identity,'SHE-Transmission PLC (Blank - )'!M235, 'SPTL (Blank - not used)'!M235, 'NGET TO (Blank - not used)'!M235)) -> 554.8108451 | N235: =IF(UserInterface!$E$69 = 1,CHOOSE(m_identity,'SHE-Transmission PLC'!N235, SPTL!N235, 'NGET TO'!N235),CHOOSE(m_identity,'SHE-Transmission PLC (Blank - )'!N235, 'SPTL (Blank - not used)'!N235, 'NGET TO (Blank - not used)'!N235)) -> 399.5679012 | O235: =IF(UserInterface!$E$69 = 1,CHOOSE(m_identity,'SHE-Transmission PLC'!O235, SPTL!O235, 'NGET TO'!O235),CHOOSE(m_identity,'SHE-Transmission PLC (Blank - )'!O235, 'SPTL (Blank - not used)'!O235, 'NGET TO (Blank - not used)'!O235)) -> 260.2263273 | P235: =IF(UserInterface!$E$69 = 1,CHOOSE(m_identity,'SHE-Transmission PLC'!P235, SPTL!P235, 'NGET TO'!P235),CHOOSE(m_identity,'SHE-Transmission PLC (Blank - )'!P235, 'SPTL (Blank - not used)'!P235, 'NGET TO (Blank - not used)'!P235)) -> 263.05996 | Q235: =IF(UserInterface!$E$69 = 1,CHOOSE(m_identity,'SHE-Transmission PLC'!Q235, SPTL!Q235, 'NGET TO'!Q235),CHOOSE(m_identity,'SHE-Transmission PLC (Blank - )'!Q235, 'SPTL (Blank - not used)'!Q235, 'NGET TO (Blank - not used)'!Q235)) -> 254.7927781 | R235: =IF(UserInterface!$E$69 = 1,CHOOSE(m_identity,'SHE-Transmission PLC'!R235, SPTL!R235, 'NGET TO'!R235),CHOOSE(m_identity,'SHE-Transmission PLC (Blank - )'!R235, 'SPTL (Blank - not used)'!R235, 'NGET TO (Blank - not used)'!R235)) -> 225.413665 | S235: =IF(UserInterface!$E$69 = 1,CHOOSE(m_identity,'SHE-Transmission PLC'!S235, SPTL!S235, 'NGET TO'!S235),CHOOSE(m_identity,'SHE-Transmission PLC (Blank - )'!S235, 'SPTL (Blank - not used)'!S235, 'NGET TO (Blank - not used)'!S235)) -> 390.5666463 | T235: =IF(UserInterface!$E$69 = 1,CHOOSE(m_identity,'SHE-Transmission PLC'!T235, SPTL!T235, 'NGET TO'!T235),CHOOSE(m_identity,'SHE-Transmission PLC (Blank - )'!T235, 'SPTL (Blank - not used)'!T235, 'NGET TO (Blank - not used)'!T235)) -> 346.9643274 | U235: =IF(UserInterface!$E$69 = 1,CHOOSE(m_identity,'SHE-Transmission PLC'!U235, SPTL!U235, 'NGET TO'!U235),CHOOSE(m_identity,'SHE-Transmission PLC (Blank - )'!U235, 'SPTL (Blank - not used)'!U235, 'NGET TO (Blank - not used)'!U235)) -> 294.6148425 | V235: =IF(UserInterface!$E$69 = 1,CHOOSE(m_identity,'SHE-Transmission PLC'!V235, SPTL!V235, 'NGET TO'!V235),CHOOSE(m_identity,'SHE-Transmission PLC (Blank - )'!V235, 'SPTL (Blank - not used)'!V235, 'NGET TO (Blank - not used)'!V235)) -> 407.7088313 | W235: =IF(UserInterface!$E$69 = 1,CHOOSE(m_identity,'SHE-Transmission PLC'!W235, SPTL!W235, 'NGET TO'!W235),CHOOSE(m_identity,'SHE-Transmission PLC (Blank - )'!W235, 'SPTL (Blank - not used)'!W235, 'NGET TO (Blank - not used)'!W235)) -> 378.1171606 | X235: =IF(UserInterface!$E$69 = 1,CHOOSE(m_identity,'SHE-Transmission PLC'!X235, SPTL!X235, 'NGET TO'!X235),CHOOSE(m_identity,'SHE-Transmission PLC (Blank - )'!X235, 'SPTL (Blank - not used)'!X235, 'NGET TO (Blank - not used)'!X235)) -> 321.3343833 | Y235: =IF(UserInterface!$E$69 = 1,CHOOSE(m_identity,'SHE-Transmission PLC'!Y235, SPTL!Y235, 'NGET TO'!Y235),CHOOSE(m_identity,'SHE-Transmission PLC (Blank - )'!Y235, 'SPTL (Blank - not used)'!Y235, 'NGET TO (Blank - not used)'!Y235)) -> 422.5964764 | Z235: =IF(UserInterface!$E$69 = 1,CHOOSE(m_identity,'SHE-Transmission PLC'!Z235, SPTL!Z235, 'NGET TO'!Z235),CHOOSE(m_identity,'SHE-Transmission PLC (Blank - )'!Z235, 'SPTL (Blank - not used)'!Z235, 'NGET TO (Blank - not used)'!Z235)) -> 580.3708604 | AA235: =IF(UserInterface!$E$69 = 1,CHOOSE(m_identity,'SHE-Transmission PLC'!AA235, SPTL!AA235, 'NGET TO'!AA235),CHOOSE(m_identity,'SHE-Transmission PLC (Blank - )'!AA235, 'SPTL (Blank - not used)'!AA235, 'NGET TO (Blank - not used)'!AA235)) -> 556.6596888 | AB235: =IF(UserInterface!$E$69 = 1,CHOOSE(m_identity,'SHE-Transmission PLC'!AB235, SPTL!AB235, 'NGET TO'!AB235),CHOOSE(m_identity,'SHE-Transmission PLC (Blank - )'!AB235, 'SPTL (Blank - not used)'!AB235, 'NGET TO (Blank - not used)'!AB235)) -> 696.0701861 | AC235: =IF(UserInterface!$E$69 = 1,CHOOSE(m_identity,'SHE-Transmission PLC'!AC235, SPTL!AC235, 'NGET TO'!AC235),CHOOSE(m_identity,'SHE-Transmission PLC (Blank - )'!AC235, 'SPTL (Blank - not used)'!AC235, 'NGET TO (Blank - not used)'!AC235)) -> 665.0363469 | AD235: =IF(UserInterface!$E$69 = 1,CHOOSE(m_identity,'SHE-Transmission PLC'!AD235, SPTL!AD235, 'NGET TO'!AD235),CHOOSE(m_identity,'SHE-Transmission PLC (Blank - )'!AD235, 'SPTL (Blank - not used)'!AD235, 'NGET TO (Blank - not used)'!AD235)) -> 812.19193 | AE235: =IF(UserInterface!$E$69 = 1,CHOOSE(m_identity,'SHE-Transmission PLC'!AE235, SPTL!AE235, 'NGET TO'!AE235),CHOOSE(m_identity,'SHE-Transmission PLC (Blank - )'!AE235, 'SPTL (Blank - not used)'!AE235, 'NGET TO (Blank - not used)'!AE235)) -> 656.7203652 | AF235: =IF(UserInterface!$E$69 = 1,CHOOSE(m_identity,'SHE-Transmission PLC'!AF235, SPTL!AF235, 'NGET TO'!AF235),CHOOSE(m_identity,'SHE-Transmission PLC (Blank - )'!AF235, 'SPTL (Blank - not used)'!AF235, 'NGET TO (Blank - not used)'!AF235)) -> 927.7488527 | AG235: =IF(UserInterface!$E$69 = 1,CHOOSE(m_identity,'SHE-Transmission PLC'!AG235, SPTL!AG235, 'NGET TO'!AG235),CHOOSE(m_identity,'SHE-Transmission PLC (Blank - )'!AG235, 'SPTL (Blank - not used)'!AG235, 'NGET TO (Blank - not used)'!AG235)) -> 902.961618
E236: LRAV | G236: £m 09/10 prices | AH236: =AH32 -> -162.1748942
E237: RIIO post-vesting RAV additions | G237: £m 09/10 prices | AH237: =IF(UserInterface!$E$69 = 1,CHOOSE(m_identity,'SHE-Transmission PLC'!AH237, SPTL!AH237, 'NGET TO'!AH237),CHOOSE(m_identity,'SHE-Transmission PLC (Blank - )'!AH237, 'SPTL (Blank - not used)'!AH237, 'NGET TO (Blank - not used)'!AH237)) -> 0 | AI237: =IF(UserInterface!$E$69 = 1,CHOOSE(m_identity,'SHE-Transmission PLC'!AI237, SPTL!AI237, 'NGET TO'!AI237),CHOOSE(m_identity,'SHE-Transmission PLC (Blank - )'!AI237, 'SPTL (Blank - not used)'!AI237, 'NGET TO (Blank - not used)'!AI237)) -> 0 | AJ237: =IF(UserInterface!$E$69 = 1,CHOOSE(m_identity,'SHE-Transmission PLC'!AJ237, SPTL!AJ237, 'NGET TO'!AJ237),CHOOSE(m_identity,'SHE-Transmission PLC (Blank - )'!AJ237, 'SPTL (Blank - not used)'!AJ237, 'NGET TO (Blank - not used)'!AJ237)) -> 0 | AK237: =IF(UserInterface!$E$69 = 1,CHOOSE(m_identity,'SHE-Transmission PLC'!AK237, SPTL!AK237, 'NGET TO'!AK237),CHOOSE(m_identity,'SHE-Transmission PLC (Blank - )'!AK237, 'SPTL (Blank - not used)'!AK237, 'NGET TO (Blank - not used)'!AK237)) -> 0 | AL237: =IF(UserInterface!$E$69 = 1,CHOOSE(m_identity,'SHE-Transmission PLC'!AL237, SPTL!AL237, 'NGET TO'!AL237),CHOOSE(m_identity,'SHE-Transmission PLC (Blank - )'!AL237, 'SPTL (Blank - not used)'!AL237, 'NGET TO (Blank - not used)'!AL237)) -> 0 | AM237: =IF(UserInterface!$E$69 = 1,CHOOSE(m_identity,'SHE-Transmission PLC'!AM237, SPTL!AM237, 'NGET TO'!AM237),CHOOSE(m_identity,'SHE-Transmission PLC (Blank - )'!AM237, 'SPTL (Blank - not used)'!AM237, 'NGET TO (Blank - not used)'!AM237)) -> 0 | AN237: =IF(UserInterface!$E$69 = 1,CHOOSE(m_identity,'SHE-Transmission PLC'!AN237, SPTL!AN237, 'NGET TO'!AN237),CHOOSE(m_identity,'SHE-Transmission PLC (Blank - )'!AN237, 'SPTL (Blank - not used)'!AN237, 'NGET TO (Blank - not used)'!AN237)) -> 0 | AO237: =IF(UserInterface!$E$69 = 1,CHOOSE(m_identity,'SHE-Transmission PLC'!AO237, SPTL!AO237, 'NGET TO'!AO237),CHOOSE(m_identity,'SHE-Transmission PLC (Blank - )'!AO237, 'SPTL (Blank - not used)'!AO237, 'NGET TO (Blank - not used)'!AO237)) -> 0
E238: RIIO post-vesting RAV disposals | G238: £m 09/10 prices | AH238: =IF(UserInterface!$E$69 = 1,CHOOSE(m_identity,'SHE-Transmission PLC'!AH238, SPTL!AH238, 'NGET TO'!AH238),CHOOSE(m_identity,'SHE-Transmission PLC (Blank - )'!AH238, 'SPTL (Blank - not used)'!AH238, 'NGET TO (Blank - not used)'!AH238)) -> 0 | AI238: =IF(UserInterface!$E$69 = 1,CHOOSE(m_identity,'SHE-Transmission PLC'!AI238, SPTL!AI238, 'NGET TO'!AI238),CHOOSE(m_identity,'SHE-Transmission PLC (Blank - )'!AI238, 'SPTL (Blank - not used)'!AI238, 'NGET TO (Blank - not used)'!AI238)) -> 0 | AJ238: =IF(UserInterface!$E$69 = 1,CHOOSE(m_identity,'SHE-Transmission PLC'!AJ238, SPTL!AJ238, 'NGET TO'!AJ238),CHOOSE(m_identity,'SHE-Transmission PLC (Blank - )'!AJ238, 'SPTL (Blank - not used)'!AJ238, 'NGET TO (Blank - not used)'!AJ238)) -> 0 | AK238: =IF(UserInterface!$E$69 = 1,CHOOSE(m_identity,'SHE-Transmission PLC'!AK238, SPTL!AK238, 'NGET TO'!AK238),CHOOSE(m_identity,'SHE-Transmission PLC (Blank - )'!AK238, 'SPTL (Blank - not used)'!AK238, 'NGET TO (Blank - not used)'!AK238)) -> 0 | AL238: =IF(UserInterface!$E$69 = 1,CHOOSE(m_identity,'SHE-Transmission PLC'!AL238, SPTL!AL238, 'NGET TO'!AL238),CHOOSE(m_identity,'SHE-Transmission PLC (Blank - )'!AL238, 'SPTL (Blank - not used)'!AL238, 'NGET TO (Blank - not used)'!AL238)) -> 0 | AM238: =IF(UserInterface!$E$69 = 1,CHOOSE(m_identity,'SHE-Transmission PLC'!AM238, SPTL!AM238, 'NGET TO'!AM238),CHOOSE(m_identity,'SHE-Transmission PLC (Blank - )'!AM238, 'SPTL (Blank - not used)'!AM238, 'NGET TO (Blank - not used)'!AM238)) -> 0 | AN238: =IF(UserInterface!$E$69 = 1,CHOOSE(m_identity,'SHE-Transmission PLC'!AN238, SPTL!AN238, 'NGET TO'!AN238),CHOOSE(m_identity,'SHE-Transmission PLC (Blank - )'!AN238, 'SPTL (Blank - not used)'!AN238, 'NGET TO (Blank - not used)'!AN238)) -> 0 | AO238: =IF(UserInterface!$E$69 = 1,CHOOSE(m_identity,'SHE-Transmission PLC'!AO238, SPTL!AO238, 'NGET TO'!AO238),CHOOSE(m_identity,'SHE-Transmission PLC (Blank - )'!AO238, 'SPTL (Blank - not used)'!AO238, 'NGET TO (Blank - not used)'!AO238)) -> 0
